{"text_format":"1","workbook":"xlsx","n_sheets":18,"sheets":["Instruction","Example","Start Page","Jan","Feb","Mar","Apr","May","Jun","Jul","Aug","Sep","Oct","Nov","Dec","Summary","Def","TA"],"not_rendered":{"charts":0,"images":5,"macros":0,"external_links":0,"defined_names":95,"comments":0,"pivot_tables":0},"unopened":[],"bounds":{"document_bytes":16777216,"sheet_cells":100000,"rows_first":2000,"rows_last":500,"rows_between":2000,"halvings":0,"cell_chars":16384,"cell_head_chars":4096},"cells_cut":0,"cells_raw":0,"read":"whole","date_system":"1900"}

{"sheet":"Instruction","index":0,"n_rows":45,"n_cols":58,"rows_kept":45,"cut":false,"hidden":false,"merged":[[17,6,17,33]]}
[]
[]
[null,null,null,"Instructions for Time Recording Document"]
[]
[null,null,null,null,null,null,"Follow the rules of Time Recording"]
[]
[]
[]
[null,null,null,null,null,null,"Fill in all applicable data and information on the start page"]
[]
[null,null,null,null,null,null,"Error messengers will guide you to correct any misstake. If your EU project has no workpackage (WP No.), indicate absence with \"-\"."]
[null,null,null,null,null,null,"If you do not know a specific data or information, please consult your supervisor and/or your department's administrative support"]
[null,null,null,null,null,null,"For Funding information there are 3 valid option in a roll-down-menu. è "]
[null,null,null,null,null,null,"If you are technical or administrative personnel, check the box to  "]
[null,null,null,null,null,null,"get indications of days with reduced working hours in the calendar.",null,null,null,null,null,null,null,null,null,null,null,null,null,null,null,null,null,null,null,null,null,null,null,null,null,null,null,null,null,null,null,null,null,null,null,null,null,null,"Red cells indicates missing information"]
[]
[null,null,null,null,null,null,"You must write an acronym or project name to enable time recording"]
[null,null,null,null,null,null,"To make new paragraph in the description text use [Alt]+[Enter]"]
[]
[]
[null,null,null,"Parental leave information"]
[]
[null,null,null,null,null,null,"To stay home with ill child is "]
[null,null,null,null,null,null,null,null,null,null,null,null,null,null,null,null,null,null,"in H2020 = parental leave"]
[null,null,null,null,null,null,null,null,null,null,null,null,null,null,null,null,null,null,"in HEU = NOT parental leave, report as special leave in time record"]
[]
[]
[null,null,null,"Rules of Time Recording"]
[]
[]
[null,null,null,null,null,null,null,null,"Time is reported as hours per day"]
[]
[null,null,null,null,null,null,null,null,"Only ACTUAL hours worked can be reported; as well as ACTUAL holiday, ACTUAL illness and ACTUAL parental leave etc."]
[]
[null,null,null,null,null,null,null,null,"ALL hours worked at the university must be reported (included other externally funded projects, teaching and other time)"]
[]
[null,null,null,null,null,null,null,null,"Time records are produced monthly"]
[]
[null,null,null,null,null,null,null,null,"Time records must be signed at the latest during the first few weeks after the end of the month being signed. Use ACTUAL date of signatories."]
[]
[null,null,null,null,null,null,null,null,"The compolsory information that the funder requests must be visable on each month's timesheet"]
[]
[null,null,null,null,null,null,null,null,"For each physical person at the university there must only be one (1), compiled, time record"]
[]
[null,null,null,null,null,null,null,null,null,null,null,null,null,null,null,null,null,null,null,null,null,null,null,null,null,null,null,null,null,null,null,null,null,null,null,null,null,null,null,null,null,null,null,null,null,null,null,null,null,null,null,null,null,null,null,null,null,{"$f":"Version","v":"Version: 221115"}]

{"sheet":"Example","index":1,"n_rows":0,"n_cols":0,"rows_kept":0,"cut":false,"hidden":false,"merged":[]}

{"sheet":"Start Page","index":2,"n_rows":38,"n_cols":62,"rows_kept":38,"cut":false,"hidden":false,"merged":[[23,37,23,43],[24,37,24,43],[23,44,23,56],[24,44,24,56],[25,44,25,56],[25,37,25,43],[26,44,26,56],[27,44,27,56],[33,44,33,56],[28,44,28,56],[29,44,29,56],[30,44,30,56],[31,44,31,56],[32,44,32,56],[26,37,26,43],[27,37,27,43],[28,37,28,43],[29,37,29,43],[30,37,30,43],[31,37,31,43],[32,37,32,43],[33,37,33,43],[28,28,28,36],[29,28,29,36],[30,28,30,36],[31,28,31,36],[32,28,32,36],[33,28,33,36],[31,23,31,27],[32,23,32,27],[33,23,33,27],[23,28,23,36],[24,28,24,36],[25,28,25,36],[26,28,26,36],[27,28,27,36],[26,23,26,27],[27,23,27,27],[28,23,28,27],[29,23,29,27],[30,23,30,27],[31,5,31,15],[32,5,32,15],[33,5,33,15],[24,16,24,22],[25,16,25,22],[26,16,26,22],[27,16,27,22],[28,16,28,22],[29,16,29,22],[30,16,30,22],[31,16,31,22],[32,16,32,22],[33,16,33,22],[26,5,26,15],[27,5,27,15],[28,5,28,15],[29,5,29,15],[30,5,30,15],[23,5,23,15],[23,16,23,22],[23,23,23,27],[24,5,24,15],[25,5,25,15],[24,23,24,27],[25,23,25,27],[15,13,15,27],[13,3,13,11],[22,37,22,43],[20,16,20,22],[22,16,22,22],[17,3,18,9],[20,5,20,15],[22,5,22,15],[20,23,20,27],[22,23,22,27],[13,28,13,46],[7,48,14,55],[22,2,32,2],[2,3,3,11],[7,13,7,27],[11,13,11,27],[7,28,7,46],[11,28,11,46],[20,28,20,36],[22,28,22,36],[22,44,22,56],[5,13,5,27],[5,3,5,11],[7,3,7,11],[11,3,11,11],[15,3,15,11],[13,13,13,27]]}
[null,{"$f":"\"Start Page - Time Recording for \"&Year","v":"Start Page - Time Recording for 2024"}]
[]
[null,null,null,"Persons"]
[]
[]
[null,null,null,"Beneficiary",null,null,null,null,null,null,null,null,null,"STOCKHOLMS UNIVERSITET"]
[]
[null,null,null,"Project member*",null,null,null,null,null,null,null,null,null,"(fill in name of member on Start Page)",null,null,null,null,null,null,null,null,null,null,null,null,null,null,{"$f":"IF(Member=\"\",\"< < < Name of project member missing!\",\"\")","v":""},null,null,null,null,null,null,null,null,null,null,null,null,null,null,null,null,null,null,null,"This Time Recording template was constructed at the Research and Innovation Supports Post Award section /DB2022"]
[]
[null,null,null,"Type of project member"]
[]
[null,null,null,"Titel/Function*",null,null,null,null,null,null,null,null,null,"(fill in title of member on Start Page)",null,null,null,null,null,null,null,null,null,null,null,null,null,null,{"$f":"IF(Member.title=\"\",\"< < < Title of project member missing!\",\"\")","v":""}]
[]
[null,null,null,"Supervisor*",null,null,null,null,null,null,null,null,null,"(fill in name of supervisor on Start Page)",null,null,null,null,null,null,null,null,null,null,null,null,null,null,{"$f":"IF(Supervisor=\"\",\"< < < Name of supervisor missing!\",\"\")","v":""}]
[]
[null,null,null,"Titel/Function",null,null,null,null,null,null,null,null,null,"(fill in the title of supervisor on Start Page)"]
[]
[null,null,null,"Projects"]
[]
[]
[null,null,null,null,null,"Acronym/Project name*",null,null,null,null,null,null,null,null,null,null,"Funding*",null,null,null,null,null,null,"WP No.**",null,null,null,null,"GA**/Contract No.",null,null,null,null,null,null,null,null,"SU Internal No.",null,null,null,null,null,null,"Notes/Further information"]
[null,null,null,null,null,null,null,null,null,null,null,null,null,null,null,null,null,null,null,null,null,null,null,null,null,null,null,null,null,null,null,null,null,null,null,null,null,null,null,null,null,null,null,null,null,null,null,null,null,null,null,null,null,null,null,null,null,null,null,null,"WP","Contr."]
[null,null,"Fill projects from the bottom up",12,null,null,null,null,null,null,null,null,null,null,null,null,null,null,null,null,null,null,null,null,null,null,null,null,null,null,null,null,null,null,null,null,null,null,null,null,null,null,null,null,null,null,null,null,null,null,null,null,null,null,null,null,null,null,null,null,{"$f":"Def!I76","v":0},{"$f":"Def!J76","v":0}]
[null,null,null,11,null,null,null,null,null,null,null,null,null,null,null,null,null,null,null,null,null,null,null,null,null,null,null,null,null,null,null,null,null,null,null,null,null,null,null,null,null,null,null,null,null,null,null,null,null,null,null,null,null,null,null,null,null,null,null,null,{"$f":"Def!I77","v":0},{"$f":"Def!J77","v":0}]
[null,null,null,10,null,null,null,null,null,null,null,null,null,null,null,null,null,null,null,null,null,null,null,null,null,null,null,null,null,null,null,null,null,null,null,null,null,null,null,null,null,null,null,null,null,null,null,null,null,null,null,null,null,null,null,null,null,null,null,null,{"$f":"Def!I78","v":0},{"$f":"Def!J78","v":0}]
[null,null,null,9,null,null,null,null,null,null,null,null,null,null,null,null,null,null,null,null,null,null,null,null,null,null,null,null,null,null,null,null,null,null,null,null,null,null,null,null,null,null,null,null,null,null,null,null,null,null,null,null,null,null,null,null,null,null,null,null,{"$f":"Def!I79","v":0},{"$f":"Def!J79","v":0}]
[null,null,null,8,null,null,null,null,null,null,null,null,null,null,null,null,null,null,null,null,null,null,null,null,null,null,null,null,null,null,null,null,null,null,null,null,null,null,null,null,null,null,null,null,null,null,null,null,null,null,null,null,null,null,null,null,null,null,null,null,{"$f":"Def!I80","v":0},{"$f":"Def!J80","v":0}]
[null,null,null,7,null,null,null,null,null,null,null,null,null,null,null,null,null,null,null,null,null,null,null,null,null,null,null,null,null,null,null,null,null,null,null,null,null,null,null,null,null,null,null,null,null,null,null,null,null,null,null,null,null,null,null,null,null,null,null,null,{"$f":"Def!I81","v":0},{"$f":"Def!J81","v":0}]
[null,null,null,6,null,null,null,null,null,null,null,null,null,null,null,null,null,null,null,null,null,null,null,null,null,null,null,null,null,null,null,null,null,null,null,null,null,null,null,null,null,null,null,null,null,null,null,null,null,null,null,null,null,null,null,null,null,null,null,null,{"$f":"Def!I82","v":0},{"$f":"Def!J82","v":0}]
[null,null,null,5,null,null,null,null,null,null,null,null,null,null,null,null,null,null,null,null,null,null,null,null,null,null,null,null,null,null,null,null,null,null,null,null,null,null,null,null,null,null,null,null,null,null,null,null,null,null,null,null,null,null,null,null,null,null,null,null,{"$f":"Def!I83","v":0},{"$f":"Def!J83","v":0}]
[null,null,null,4,null,null,null,null,null,null,null,null,null,null,null,null,null,null,null,null,null,null,null,null,null,null,null,null,null,null,null,null,null,null,null,null,null,null,null,null,null,null,null,null,null,null,null,null,null,null,null,null,null,null,null,null,null,null,null,null,{"$f":"Def!I84","v":0},{"$f":"Def!J84","v":0}]
[null,null,null,3,null,null,null,null,null,null,null,null,null,null,null,null,null,null,null,null,null,null,null,null,null,null,null,null,null,null,null,null,null,null,null,null,null,null,null,null,null,null,null,null,null,null,null,null,null,null,null,null,null,null,null,null,null,null,null,null,{"$f":"Def!I85","v":0},{"$f":"Def!J85","v":0}]
[null,null,null,2,null,null,null,null,null,null,null,null,null,null,null,null,null,null,null,null,null,null,null,null,null,null,null,null,null,null,null,null,null,null,null,null,null,null,null,null,null,null,null,null,null,null,null,null,null,null,null,null,null,null,null,null,null,null,null,null,{"$f":"Def!I86","v":0},{"$f":"Def!J86","v":0}]
[null,null,null,1,null,null,null,null,null,null,null,null,null,null,null,null,null,null,null,null,null,null,null,null,null,null,null,null,null,null,null,null,null,null,null,null,null,null,null,null,null,null,null,null,null,null,null,null,null,null,null,null,null,null,null,null,null,null,null,null,{"$f":"Def!I87","v":0},{"$f":"Def!J87","v":0}]
[]
[]
[]
[null,null,null,"*) Compulsory information for all projects  **) Compulsory information for EU projects",null,null,null,null,null,null,null,null,null,null,null,null,null,null,null,null,null,null,null,null,null,null,null,null,null,null,null,null,null,null,null,null,null,null,null,null,null,null,null,null,null,null,null,null,null,null,null,null,null,null,null,null,"Version: 221115"]

{"sheet":"Jan","index":3,"n_rows":52,"n_cols":49,"rows_kept":52,"cut":false,"hidden":false,"merged":[[41,48,51,48],[17,2,17,13],[12,2,12,13],[13,2,13,13],[14,2,14,13],[15,2,15,13],[16,2,16,13],[3,1,3,18],[6,2,6,13],[23,2,30,5],[36,24,37,37],[39,2,51,19],[50,24,50,33],[43,24,43,33],[49,24,49,33],[51,24,51,33],[3,27,3,48],[3,19,3,25],[7,2,7,13],[8,2,8,13],[9,2,9,13],[10,2,10,13],[11,2,11,13]]}
[null,null,null,null,null,null,null,null,null,null,null,null,null,null,"Röda dagar",{"$f":"OR(WEEKDAY(P6,2)=6,WEEKDAY(P6,2)=7,COUNTIF(Tabell.Red.FixedDates[FulltDatum],P6),COUNTIF(Tabell.Red.FixedDays[FulltDatum],P6))","v":true},{"$f":"OR(WEEKDAY(Q6,2)=6,WEEKDAY(Q6,2)=7,COUNTIF(Tabell.Red.FixedDates[FulltDatum],Q6),COUNTIF(Tabell.Red.FixedDays[FulltDatum],Q6))","v":false},{"$f":"OR(WEEKDAY(R6,2)=6,WEEKDAY(R6,2)=7,COUNTIF(Tabell.Red.FixedDates[FulltDatum],R6),COUNTIF(Tabell.Red.FixedDays[FulltDatum],R6))","v":false},{"$f":"OR(WEEKDAY(S6,2)=6,WEEKDAY(S6,2)=7,COUNTIF(Tabell.Red.FixedDates[FulltDatum],S6),COUNTIF(Tabell.Red.FixedDays[FulltDatum],S6))","v":false},{"$f":"OR(WEEKDAY(T6,2)=6,WEEKDAY(T6,2)=7,COUNTIF(Tabell.Red.FixedDates[FulltDatum],T6),COUNTIF(Tabell.Red.FixedDays[FulltDatum],T6))","v":false},{"$f":"OR(WEEKDAY(U6,2)=6,WEEKDAY(U6,2)=7,COUNTIF(Tabell.Red.FixedDates[FulltDatum],U6),COUNTIF(Tabell.Red.FixedDays[FulltDatum],U6))","v":true},{"$f":"OR(WEEKDAY(V6,2)=6,WEEKDAY(V6,2)=7,COUNTIF(Tabell.Red.FixedDates[FulltDatum],V6),COUNTIF(Tabell.Red.FixedDays[FulltDatum],V6))","v":true},{"$f":"OR(WEEKDAY(W6,2)=6,WEEKDAY(W6,2)=7,COUNTIF(Tabell.Red.FixedDates[FulltDatum],W6),COUNTIF(Tabell.Red.FixedDays[FulltDatum],W6))","v":false},{"$f":"OR(WEEKDAY(X6,2)=6,WEEKDAY(X6,2)=7,COUNTIF(Tabell.Red.FixedDates[FulltDatum],X6),COUNTIF(Tabell.Red.FixedDays[FulltDatum],X6))","v":false},{"$f":"OR(WEEKDAY(Y6,2)=6,WEEKDAY(Y6,2)=7,COUNTIF(Tabell.Red.FixedDates[FulltDatum],Y6),COUNTIF(Tabell.Red.FixedDays[FulltDatum],Y6))","v":false},{"$f":"OR(WEEKDAY(Z6,2)=6,WEEKDAY(Z6,2)=7,COUNTIF(Tabell.Red.FixedDates[FulltDatum],Z6),COUNTIF(Tabell.Red.FixedDays[FulltDatum],Z6))","v":false},{"$f":"OR(WEEKDAY(AA6,2)=6,WEEKDAY(AA6,2)=7,COUNTIF(Tabell.Red.FixedDates[FulltDatum],AA6),COUNTIF(Tabell.Red.FixedDays[FulltDatum],AA6))","v":false},{"$f":"OR(WEEKDAY(AB6,2)=6,WEEKDAY(AB6,2)=7,COUNTIF(Tabell.Red.FixedDates[FulltDatum],AB6),COUNTIF(Tabell.Red.FixedDays[FulltDatum],AB6))","v":true},{"$f":"OR(WEEKDAY(AC6,2)=6,WEEKDAY(AC6,2)=7,COUNTIF(Tabell.Red.FixedDates[FulltDatum],AC6),COUNTIF(Tabell.Red.FixedDays[FulltDatum],AC6))","v":true},{"$f":"OR(WEEKDAY(AD6,2)=6,WEEKDAY(AD6,2)=7,COUNTIF(Tabell.Red.FixedDates[FulltDatum],AD6),COUNTIF(Tabell.Red.FixedDays[FulltDatum],AD6))","v":false},{"$f":"OR(WEEKDAY(AE6,2)=6,WEEKDAY(AE6,2)=7,COUNTIF(Tabell.Red.FixedDates[FulltDatum],AE6),COUNTIF(Tabell.Red.FixedDays[FulltDatum],AE6))","v":false},{"$f":"OR(WEEKDAY(AF6,2)=6,WEEKDAY(AF6,2)=7,COUNTIF(Tabell.Red.FixedDates[FulltDatum],AF6),COUNTIF(Tabell.Red.FixedDays[FulltDatum],AF6))","v":false},{"$f":"OR(WEEKDAY(AG6,2)=6,WEEKDAY(AG6,2)=7,COUNTIF(Tabell.Red.FixedDates[FulltDatum],AG6),COUNTIF(Tabell.Red.FixedDays[FulltDatum],AG6))","v":false},{"$f":"OR(WEEKDAY(AH6,2)=6,WEEKDAY(AH6,2)=7,COUNTIF(Tabell.Red.FixedDates[FulltDatum],AH6),COUNTIF(Tabell.Red.FixedDays[FulltDatum],AH6))","v":false},{"$f":"OR(WEEKDAY(AI6,2)=6,WEEKDAY(AI6,2)=7,COUNTIF(Tabell.Red.FixedDates[FulltDatum],AI6),COUNTIF(Tabell.Red.FixedDays[FulltDatum],AI6))","v":true},{"$f":"OR(WEEKDAY(AJ6,2)=6,WEEKDAY(AJ6,2)=7,COUNTIF(Tabell.Red.FixedDates[FulltDatum],AJ6),COUNTIF(Tabell.Red.FixedDays[FulltDatum],AJ6))","v":true},{"$f":"OR(WEEKDAY(AK6,2)=6,WEEKDAY(AK6,2)=7,COUNTIF(Tabell.Red.FixedDates[FulltDatum],AK6),COUNTIF(Tabell.Red.FixedDays[FulltDatum],AK6))","v":false},{"$f":"OR(WEEKDAY(AL6,2)=6,WEEKDAY(AL6,2)=7,COUNTIF(Tabell.Red.FixedDates[FulltDatum],AL6),COUNTIF(Tabell.Red.FixedDays[FulltDatum],AL6))","v":false},{"$f":"OR(WEEKDAY(AM6,2)=6,WEEKDAY(AM6,2)=7,COUNTIF(Tabell.Red.FixedDates[FulltDatum],AM6),COUNTIF(Tabell.Red.FixedDays[FulltDatum],AM6))","v":false},{"$f":"OR(WEEKDAY(AN6,2)=6,WEEKDAY(AN6,2)=7,COUNTIF(Tabell.Red.FixedDates[FulltDatum],AN6),COUNTIF(Tabell.Red.FixedDays[FulltDatum],AN6))","v":false},{"$f":"OR(WEEKDAY(AO6,2)=6,WEEKDAY(AO6,2)=7,COUNTIF(Tabell.Red.FixedDates[FulltDatum],AO6),COUNTIF(Tabell.Red.FixedDays[FulltDatum],AO6))","v":false},{"$f":"OR(WEEKDAY(AP6,2)=6,WEEKDAY(AP6,2)=7,COUNTIF(Tabell.Red.FixedDates[FulltDatum],AP6),COUNTIF(Tabell.Red.FixedDays[FulltDatum],AP6))","v":true},{"$f":"OR(WEEKDAY(AQ6,2)=6,WEEKDAY(AQ6,2)=7,COUNTIF(Tabell.Red.FixedDates[FulltDatum],AQ6),COUNTIF(Tabell.Red.FixedDays[FulltDatum],AQ6))","v":true},{"$f":"OR(WEEKDAY(AR6,2)=6,WEEKDAY(AR6,2)=7,COUNTIF(Tabell.Red.FixedDates[FulltDatum],AR6),COUNTIF(Tabell.Red.FixedDays[FulltDatum],AR6))","v":false},{"$f":"OR(WEEKDAY(AS6,2)=6,WEEKDAY(AS6,2)=7,COUNTIF(Tabell.Red.FixedDates[FulltDatum],AS6),COUNTIF(Tabell.Red.FixedDays[FulltDatum],AS6))","v":false},{"$f":"OR(WEEKDAY(AT6,2)=6,WEEKDAY(AT6,2)=7,COUNTIF(Tabell.Red.FixedDates[FulltDatum],AT6),COUNTIF(Tabell.Red.FixedDays[FulltDatum],AT6))","v":false}]
[null,null,null,null,null,null,null,null,null,null,null,null,null,null,"Övriga dagar",{"$f":"OR(COUNTIF(Tabell.Shortdays[FulltDatum],P6),COUNTIF(Tabell.Klamdagar[FulltDatum],P6))","v":false},{"$f":"OR(COUNTIF(Tabell.Shortdays[FulltDatum],Q6),COUNTIF(Tabell.Klamdagar[FulltDatum],Q6))","v":false},{"$f":"OR(COUNTIF(Tabell.Shortdays[FulltDatum],R6),COUNTIF(Tabell.Klamdagar[FulltDatum],R6))","v":false},{"$f":"OR(COUNTIF(Tabell.Shortdays[FulltDatum],S6),COUNTIF(Tabell.Klamdagar[FulltDatum],S6))","v":false},{"$f":"OR(COUNTIF(Tabell.Shortdays[FulltDatum],T6),COUNTIF(Tabell.Klamdagar[FulltDatum],T6))","v":false},{"$f":"OR(COUNTIF(Tabell.Shortdays[FulltDatum],U6),COUNTIF(Tabell.Klamdagar[FulltDatum],U6))","v":false},{"$f":"OR(COUNTIF(Tabell.Shortdays[FulltDatum],V6),COUNTIF(Tabell.Klamdagar[FulltDatum],V6))","v":false},{"$f":"OR(COUNTIF(Tabell.Shortdays[FulltDatum],W6),COUNTIF(Tabell.Klamdagar[FulltDatum],W6))","v":false},{"$f":"OR(COUNTIF(Tabell.Shortdays[FulltDatum],X6),COUNTIF(Tabell.Klamdagar[FulltDatum],X6))","v":false},{"$f":"OR(COUNTIF(Tabell.Shortdays[FulltDatum],Y6),COUNTIF(Tabell.Klamdagar[FulltDatum],Y6))","v":false},{"$f":"OR(COUNTIF(Tabell.Shortdays[FulltDatum],Z6),COUNTIF(Tabell.Klamdagar[FulltDatum],Z6))","v":false},{"$f":"OR(COUNTIF(Tabell.Shortdays[FulltDatum],AA6),COUNTIF(Tabell.Klamdagar[FulltDatum],AA6))","v":false},{"$f":"OR(COUNTIF(Tabell.Shortdays[FulltDatum],AB6),COUNTIF(Tabell.Klamdagar[FulltDatum],AB6))","v":false},{"$f":"OR(COUNTIF(Tabell.Shortdays[FulltDatum],AC6),COUNTIF(Tabell.Klamdagar[FulltDatum],AC6))","v":false},{"$f":"OR(COUNTIF(Tabell.Shortdays[FulltDatum],AD6),COUNTIF(Tabell.Klamdagar[FulltDatum],AD6))","v":false},{"$f":"OR(COUNTIF(Tabell.Shortdays[FulltDatum],AE6),COUNTIF(Tabell.Klamdagar[FulltDatum],AE6))","v":false},{"$f":"OR(COUNTIF(Tabell.Shortdays[FulltDatum],AF6),COUNTIF(Tabell.Klamdagar[FulltDatum],AF6))","v":false},{"$f":"OR(COUNTIF(Tabell.Shortdays[FulltDatum],AG6),COUNTIF(Tabell.Klamdagar[FulltDatum],AG6))","v":false},{"$f":"OR(COUNTIF(Tabell.Shortdays[FulltDatum],AH6),COUNTIF(Tabell.Klamdagar[FulltDatum],AH6))","v":false},{"$f":"OR(COUNTIF(Tabell.Shortdays[FulltDatum],AI6),COUNTIF(Tabell.Klamdagar[FulltDatum],AI6))","v":false},{"$f":"OR(COUNTIF(Tabell.Shortdays[FulltDatum],AJ6),COUNTIF(Tabell.Klamdagar[FulltDatum],AJ6))","v":false},{"$f":"OR(COUNTIF(Tabell.Shortdays[FulltDatum],AK6),COUNTIF(Tabell.Klamdagar[FulltDatum],AK6))","v":false},{"$f":"OR(COUNTIF(Tabell.Shortdays[FulltDatum],AL6),COUNTIF(Tabell.Klamdagar[FulltDatum],AL6))","v":false},{"$f":"OR(COUNTIF(Tabell.Shortdays[FulltDatum],AM6),COUNTIF(Tabell.Klamdagar[FulltDatum],AM6))","v":false},{"$f":"OR(COUNTIF(Tabell.Shortdays[FulltDatum],AN6),COUNTIF(Tabell.Klamdagar[FulltDatum],AN6))","v":false},{"$f":"OR(COUNTIF(Tabell.Shortdays[FulltDatum],AO6),COUNTIF(Tabell.Klamdagar[FulltDatum],AO6))","v":false},{"$f":"OR(COUNTIF(Tabell.Shortdays[FulltDatum],AP6),COUNTIF(Tabell.Klamdagar[FulltDatum],AP6))","v":false},{"$f":"OR(COUNTIF(Tabell.Shortdays[FulltDatum],AQ6),COUNTIF(Tabell.Klamdagar[FulltDatum],AQ6))","v":false},{"$f":"OR(COUNTIF(Tabell.Shortdays[FulltDatum],AR6),COUNTIF(Tabell.Klamdagar[FulltDatum],AR6))","v":false},{"$f":"OR(COUNTIF(Tabell.Shortdays[FulltDatum],AS6),COUNTIF(Tabell.Klamdagar[FulltDatum],AS6))","v":false},{"$f":"OR(COUNTIF(Tabell.Shortdays[FulltDatum],AT6),COUNTIF(Tabell.Klamdagar[FulltDatum],AT6))","v":false}]
[]
[null,"January",null,null,null,null,null,null,null,null,null,null,null,null,null,null,null,null,null,{"$f":"Year","v":2024},null,null,null,null,null,null,null,{"$f":"Member","v":"(fill in name of member on Start Page)"}]
[]
[null,null,null,null,null,null,null,null,null,null,null,null,null,null,null,{"$f":"DATEVALUE(Year&\"-\"&VLOOKUP(LEFT(B4,3),list.months,2,0)&\"-1\")","v":"2024-01-01"},{"$f":"DATE(YEAR(P6),MONTH(P6),DAY(P6)+1)","v":"2024-01-02"},{"$f":"DATE(YEAR(Q6),MONTH(Q6),DAY(Q6)+1)","v":"2024-01-03"},"2024-01-04","2024-01-05","2024-01-06","2024-01-07","2024-01-08","2024-01-09","2024-01-10","2024-01-11","2024-01-12","2024-01-13","2024-01-14","2024-01-15","2024-01-16","2024-01-17","2024-01-18","2024-01-19","2024-01-20","2024-01-21","2024-01-22","2024-01-23","2024-01-24","2024-01-25","2024-01-26","2024-01-27","2024-01-28","2024-01-29","2024-01-30","2024-01-31","Sum",null,"%"]
[null,null,{"$f":"IF(Acronym.01=\"\",,IF(Type.01=\"\",Error.no.funding,IF(Type.01=Funding.type.03,Acronym.01&\" - \"&Contract.01,IF(Def!K76>0,Error.no.WP,Acronym.01&\" - \"&Contract.01&\" - WP\"&WP.01))))","v":0},null,null,null,null,null,null,null,null,null,null,null,null,null,null,null,null,null,null,null,null,null,null,null,null,null,null,null,null,null,null,null,null,null,null,null,null,null,null,null,null,null,null,null,{"$f":"SUM(P7:AT7)","v":0},null,{"$f":"IFERROR(IF(AU7/$AU$21=0,\"\",AU7/$AU$21),\"\")","v":""}]
[null,null,{"$f":"IF(Acronym.02=\"\",,IF(Type.02=\"\",Error.no.funding,IF(Type.02=Funding.type.03,Acronym.02&\" - \"&Contract.02,IF(Def!K77>0,Error.no.WP,Acronym.02&\" - \"&Contract.02&\" - WP\"&WP.02))))","v":0},null,null,null,null,null,null,null,null,null,null,null,null,null,null,null,null,null,null,null,null,null,null,null,null,null,null,null,null,null,null,null,null,null,null,null,null,null,null,null,null,null,null,null,0,null,""]
[null,null,{"$f":"IF(Acronym.03=\"\",,IF(Type.03=\"\",Error.no.funding,IF(Type.03=Funding.type.03,Acronym.03&\" - \"&Contract.03,IF(Def!K78>0,Error.no.WP,Acronym.03&\" - \"&Contract.03&\" - WP\"&WP.03))))","v":0},null,null,null,null,null,null,null,null,null,null,null,null,null,null,null,null,null,null,null,null,null,null,null,null,null,null,null,null,null,null,null,null,null,null,null,null,null,null,null,null,null,null,null,0,null,""]
[null,null,{"$f":"IF(Acronym.04=\"\",,IF(Type.04=\"\",Error.no.funding,IF(Type.04=Funding.type.03,Acronym.04&\" - \"&Contract.04,IF(Def!K79>0,Error.no.WP,Acronym.04&\" - \"&Contract.04&\" - WP\"&WP.04))))","v":0},null,null,null,null,null,null,null,null,null,null,null,null,null,null,null,null,null,null,null,null,null,null,null,null,null,null,null,null,null,null,null,null,null,null,null,null,null,null,null,null,null,null,null,0,null,""]
[null,null,{"$f":"IF(Acronym.05=\"\",,IF(Type.05=\"\",Error.no.funding,IF(Type.05=Funding.type.03,Acronym.05&\" - \"&Contract.05,IF(Def!K80>0,Error.no.WP,Acronym.05&\" - \"&Contract.05&\" - WP\"&WP.05))))","v":0},null,null,null,null,null,null,null,null,null,null,null,null,null,null,null,null,null,null,null,null,null,null,null,null,null,null,null,null,null,null,null,null,null,null,null,null,null,null,null,null,null,null,null,0,null,""]
[null,null,{"$f":"IF(Acronym.06=\"\",,IF(Type.06=\"\",Error.no.funding,IF(Type.06=Funding.type.03,Acronym.06&\" - \"&Contract.06,IF(Def!K81>0,Error.no.WP,Acronym.06&\" - \"&Contract.06&\" - WP\"&WP.06))))","v":0},null,null,null,null,null,null,null,null,null,null,null,null,null,null,null,null,null,null,null,null,null,null,null,null,null,null,null,null,null,null,null,null,null,null,null,null,null,null,null,null,null,null,null,0,null,""]
[null,null,{"$f":"IF(Acronym.07=\"\",,IF(Type.07=\"\",Error.no.funding,IF(Type.07=Funding.type.03,Acronym.07&\" - \"&Contract.07,IF(Def!K82>0,Error.no.WP,Acronym.07&\" - \"&Contract.07&\" - WP\"&WP.07))))","v":0},null,null,null,null,null,null,null,null,null,null,null,null,null,null,null,null,null,null,null,null,null,null,null,null,null,null,null,null,null,null,null,null,null,null,null,null,null,null,null,null,null,null,null,0,null,""]
[null,null,{"$f":"IF(Acronym.08=\"\",,IF(Type.08=\"\",Error.no.funding,IF(Type.08=Funding.type.03,Acronym.08&\" - \"&Contract.08,IF(Def!K83>0,Error.no.WP,Acronym.08&\" - \"&Contract.08&\" - WP\"&WP.08))))","v":0},null,null,null,null,null,null,null,null,null,null,null,null,null,null,null,null,null,null,null,null,null,null,null,null,null,null,null,null,null,null,null,null,null,null,null,null,null,null,null,null,null,null,null,0,null,""]
[null,null,{"$f":"IF(Acronym.09=\"\",,IF(Type.09=\"\",Error.no.funding,IF(Type.09=Funding.type.03,Acronym.09&\" - \"&Contract.09,IF(Def!K84>0,Error.no.WP,Acronym.09&\" - \"&Contract.09&\" - WP\"&WP.09))))","v":0},null,null,null,null,null,null,null,null,null,null,null,null,null,null,null,null,null,null,null,null,null,null,null,null,null,null,null,null,null,null,null,null,null,null,null,null,null,null,null,null,null,null,null,0,null,""]
[null,null,{"$f":"IF(Acronym.10=\"\",,IF(Type.10=\"\",Error.no.funding,IF(Type.10=Funding.type.03,Acronym.10&\" - \"&Contract.10,IF(Def!K85>0,Error.no.WP,Acronym.10&\" - \"&Contract.10&\" - WP\"&WP.10))))","v":0},null,null,null,null,null,null,null,null,null,null,null,null,null,null,null,null,null,null,null,null,null,null,null,null,null,null,null,null,null,null,null,null,null,null,null,null,null,null,null,null,null,null,null,0,null,""]
[null,null,{"$f":"IF(Acronym.11=\"\",,IF(Type.11=\"\",Error.no.funding,IF(Type.11=Funding.type.03,Acronym.11&\" - \"&Contract.11,IF(Def!K86>0,Error.no.WP,Acronym.11&\" - \"&Contract.11&\" - WP\"&WP.11))))","v":0},null,null,null,null,null,null,null,null,null,null,null,null,null,null,null,null,null,null,null,null,null,null,null,null,null,null,null,null,null,null,null,null,null,null,null,null,null,null,null,null,null,null,null,0,null,""]
[null,null,{"$f":"IF(Acronym.12=\"\",,IF(Type.12=\"\",Error.no.funding,IF(Type.12=Funding.type.03,Acronym.12&\" - \"&Contract.12,IF(Def!K87>0,Error.no.WP,Acronym.12&\" - \"&Contract.12&\" - WP\"&WP.12))))","v":0},null,null,null,null,null,null,null,null,null,null,null,null,null,null,null,null,null,null,null,null,null,null,null,null,null,null,null,null,null,null,null,null,null,null,null,null,null,null,null,null,null,null,null,0,null,{"$f":"IFERROR(AU18/$AU$21,\"\")","v":""}]
[null,null,null,null,null,null,null,null,null,null,null,null,null,"ALL OTHER HOURS WORKED AT SU",null,null,null,null,null,null,null,null,null,null,null,null,null,null,null,null,null,null,null,null,null,null,null,null,null,null,null,null,null,null,null,null,0,null,""]
[]
[null,null,null,null,null,null,null,null,null,null,null,null,null,"Total productive hours",null,{"$f":"IF(ROUND(SUM(P7:P19),2)=0,\"\",ROUND(SUM(P7:P19),2))","v":""},"","","","","","","","","","","","","","","","","","","","","","","","","","","","","","",""]
[]
[]
[null,null,"Absence"]
[null,null,null,null,null,null,null,null,null,null,null,null,null,"Annual Leave",null,null,null,null,null,null,null,null,null,null,null,null,null,null,null,null,null,null,null,null,null,null,null,null,null,null,null,null,null,null,null,null,{"$f":"IF(ROUND(SUM(P25:AT25),2)=0,\"\",ROUND(SUM(P25:AT25),2))","v":""},null,{"$f":"IFERROR(IF(AU25/$AU$30=0,\"\",AU25/$AU$30),\"\")","v":""}]
[null,null,null,null,null,null,null,null,null,null,null,null,null,"Own Illness",null,null,null,null,null,null,null,null,null,null,null,null,null,null,null,null,null,null,null,null,null,null,null,null,null,null,null,null,null,null,null,null,"",null,""]
[null,null,null,null,null,null,null,null,null,null,null,null,null,"Special Leave",null,null,null,null,null,null,null,null,null,null,null,null,null,null,null,null,null,null,null,null,null,null,null,null,null,null,null,null,null,null,null,null,"",null,""]
[null,null,null,null,null,null,null,null,null,null,null,null,null,"Parental Leave",null,null,null,null,null,null,null,null,null,null,null,null,null,null,null,null,null,null,null,null,null,null,null,null,null,null,null,null,null,null,null,null,"",null,""]
[]
[null,null,null,null,null,null,null,null,null,null,null,null,null,"Total absent hours",null,{"$f":"IF(ROUND(SUM(P25:P28),2)=0,\"\",ROUND(SUM(P25:P28),2))","v":""},"","","","","","","","","","","","","","","","","","","","","","","","","","","","","","",""]
[]
[]
[null,null,null,null,null,null,null,null,null,null,null,null,null,"Total hours",null,{"$f":"IF(ROUND(SUM(P21,P30),2)=0,\"\",ROUND(SUM(P21,P30),2))","v":""},"","","","","","","","","","",{"$f":"IF(ROUND(SUM(AA21,AA30),2)=0,\"\",ROUND(SUM(AA21,AA30),2))","v":""},{"$f":"IF(ROUND(SUM(AB21,AB30),2)=0,\"\",ROUND(SUM(AB21,AB30),2))","v":""},"","","","","","","","","","","","","","","","","","",""]
[]
[]
[]
[null,null,"Short description of the activities carried out",null,null,null,null,null,null,null,null,null,null,null,null,null,null,null,null,null,null,null,null,null,"Signatures and date of signature",null,null,null,null,null,null,null,null,null,null,null,null,null,null,null,null,"Beneficiary:"]
[null,null,"(indicate the project name with the description)",null,null,null,null,null,null,null,null,null,null,null,null,null,null,null,null,null,null,null,null,null,null,null,null,null,null,null,null,null,null,null,null,null,null,null,null,null,null,{"$f":"Beneficiary","v":"STOCKHOLMS UNIVERSITET"}]
[]
[]
[null,null,null,null,null,null,null,null,null,null,null,null,null,null,null,null,null,null,null,null,null,null,null,null,{"$f":"IF(Member=\"\",Error.name.member,IF(Member.title=\"\",Error.title.member,IF(Total.Error.Funding>0,Error.no.funding,IF(Total.Error.EU>0,Error.no.WP,\"\"))))","v":""}]
[]
[null,null,null,null,null,null,null,null,null,null,null,null,null,null,null,null,null,null,null,null,null,null,null,null,{"$f":"Member","v":"(fill in name of member on Start Page)"}]
[null,null,null,null,null,null,null,null,null,null,null,null,null,null,null,null,null,null,null,null,null,null,null,null,{"$f":"Member.title","v":"(fill in title of member on Start Page)"},null,null,null,null,null,null,null,null,null,null,"Date"]
[]
[]
[null,null,null,null,null,null,null,null,null,null,null,null,null,null,null,null,null,null,null,null,null,null,null,null,{"$f":"IF(Y51=0,Error.name.supervisor,IF(Total.Error.Funding>0,Error.no.funding,IF(Total.Error.EU>0,Error.no.WP,\"\")))","v":""}]
[]
[]
[null,null,null,null,null,null,null,null,null,null,null,null,null,null,null,null,null,null,null,null,null,null,null,null,{"$f":"\"Supervisor:\"","v":"Supervisor:"},null,null,null,null,null,null,null,null,null,null,"Date"]
[null,null,null,null,null,null,null,null,null,null,null,null,null,null,null,null,null,null,null,null,null,null,null,null,{"$f":"Supervisor","v":"(fill in name of supervisor on Start Page)"}]
[null,null,null,null,null,null,null,null,null,null,null,null,null,null,null,null,null,null,null,null,null,null,null,null,{"$f":"Supervisor.title","v":"(fill in the title of supervisor on Start Page)"}]

{"sheet":"Feb","index":4,"n_rows":52,"n_cols":49,"rows_kept":52,"cut":false,"hidden":false,"merged":[[36,24,37,37],[41,48,51,48],[43,24,43,33],[49,24,49,33],[50,24,50,33],[51,24,51,33],[39,2,51,19],[9,2,9,13],[10,2,10,13],[11,2,11,13],[12,2,12,13],[13,2,13,13],[14,2,14,13],[15,2,15,13],[16,2,16,13],[17,2,17,13],[23,2,30,5],[8,2,8,13],[3,1,3,18],[3,19,3,25],[3,27,3,48],[6,2,6,13],[7,2,7,13]]}
[null,null,null,null,null,null,null,null,null,null,null,null,null,null,"Röda dagar",{"$f":"OR(WEEKDAY(P6,2)=6,WEEKDAY(P6,2)=7,COUNTIF(Tabell.Red.FixedDates[FulltDatum],P6),COUNTIF(Tabell.Red.FixedDays[FulltDatum],P6))","v":false},{"$f":"OR(WEEKDAY(Q6,2)=6,WEEKDAY(Q6,2)=7,COUNTIF(Tabell.Red.FixedDates[FulltDatum],Q6),COUNTIF(Tabell.Red.FixedDays[FulltDatum],Q6))","v":false},{"$f":"OR(WEEKDAY(R6,2)=6,WEEKDAY(R6,2)=7,COUNTIF(Tabell.Red.FixedDates[FulltDatum],R6),COUNTIF(Tabell.Red.FixedDays[FulltDatum],R6))","v":true},{"$f":"OR(WEEKDAY(S6,2)=6,WEEKDAY(S6,2)=7,COUNTIF(Tabell.Red.FixedDates[FulltDatum],S6),COUNTIF(Tabell.Red.FixedDays[FulltDatum],S6))","v":true},{"$f":"OR(WEEKDAY(T6,2)=6,WEEKDAY(T6,2)=7,COUNTIF(Tabell.Red.FixedDates[FulltDatum],T6),COUNTIF(Tabell.Red.FixedDays[FulltDatum],T6))","v":false},{"$f":"OR(WEEKDAY(U6,2)=6,WEEKDAY(U6,2)=7,COUNTIF(Tabell.Red.FixedDates[FulltDatum],U6),COUNTIF(Tabell.Red.FixedDays[FulltDatum],U6))","v":false},{"$f":"OR(WEEKDAY(V6,2)=6,WEEKDAY(V6,2)=7,COUNTIF(Tabell.Red.FixedDates[FulltDatum],V6),COUNTIF(Tabell.Red.FixedDays[FulltDatum],V6))","v":false},{"$f":"OR(WEEKDAY(W6,2)=6,WEEKDAY(W6,2)=7,COUNTIF(Tabell.Red.FixedDates[FulltDatum],W6),COUNTIF(Tabell.Red.FixedDays[FulltDatum],W6))","v":false},{"$f":"OR(WEEKDAY(X6,2)=6,WEEKDAY(X6,2)=7,COUNTIF(Tabell.Red.FixedDates[FulltDatum],X6),COUNTIF(Tabell.Red.FixedDays[FulltDatum],X6))","v":false},{"$f":"OR(WEEKDAY(Y6,2)=6,WEEKDAY(Y6,2)=7,COUNTIF(Tabell.Red.FixedDates[FulltDatum],Y6),COUNTIF(Tabell.Red.FixedDays[FulltDatum],Y6))","v":true},{"$f":"OR(WEEKDAY(Z6,2)=6,WEEKDAY(Z6,2)=7,COUNTIF(Tabell.Red.FixedDates[FulltDatum],Z6),COUNTIF(Tabell.Red.FixedDays[FulltDatum],Z6))","v":true},{"$f":"OR(WEEKDAY(AA6,2)=6,WEEKDAY(AA6,2)=7,COUNTIF(Tabell.Red.FixedDates[FulltDatum],AA6),COUNTIF(Tabell.Red.FixedDays[FulltDatum],AA6))","v":false},{"$f":"OR(WEEKDAY(AB6,2)=6,WEEKDAY(AB6,2)=7,COUNTIF(Tabell.Red.FixedDates[FulltDatum],AB6),COUNTIF(Tabell.Red.FixedDays[FulltDatum],AB6))","v":false},{"$f":"OR(WEEKDAY(AC6,2)=6,WEEKDAY(AC6,2)=7,COUNTIF(Tabell.Red.FixedDates[FulltDatum],AC6),COUNTIF(Tabell.Red.FixedDays[FulltDatum],AC6))","v":false},{"$f":"OR(WEEKDAY(AD6,2)=6,WEEKDAY(AD6,2)=7,COUNTIF(Tabell.Red.FixedDates[FulltDatum],AD6),COUNTIF(Tabell.Red.FixedDays[FulltDatum],AD6))","v":false},{"$f":"OR(WEEKDAY(AE6,2)=6,WEEKDAY(AE6,2)=7,COUNTIF(Tabell.Red.FixedDates[FulltDatum],AE6),COUNTIF(Tabell.Red.FixedDays[FulltDatum],AE6))","v":false},{"$f":"OR(WEEKDAY(AF6,2)=6,WEEKDAY(AF6,2)=7,COUNTIF(Tabell.Red.FixedDates[FulltDatum],AF6),COUNTIF(Tabell.Red.FixedDays[FulltDatum],AF6))","v":true},{"$f":"OR(WEEKDAY(AG6,2)=6,WEEKDAY(AG6,2)=7,COUNTIF(Tabell.Red.FixedDates[FulltDatum],AG6),COUNTIF(Tabell.Red.FixedDays[FulltDatum],AG6))","v":true},{"$f":"OR(WEEKDAY(AH6,2)=6,WEEKDAY(AH6,2)=7,COUNTIF(Tabell.Red.FixedDates[FulltDatum],AH6),COUNTIF(Tabell.Red.FixedDays[FulltDatum],AH6))","v":false},{"$f":"OR(WEEKDAY(AI6,2)=6,WEEKDAY(AI6,2)=7,COUNTIF(Tabell.Red.FixedDates[FulltDatum],AI6),COUNTIF(Tabell.Red.FixedDays[FulltDatum],AI6))","v":false},{"$f":"OR(WEEKDAY(AJ6,2)=6,WEEKDAY(AJ6,2)=7,COUNTIF(Tabell.Red.FixedDates[FulltDatum],AJ6),COUNTIF(Tabell.Red.FixedDays[FulltDatum],AJ6))","v":false},{"$f":"OR(WEEKDAY(AK6,2)=6,WEEKDAY(AK6,2)=7,COUNTIF(Tabell.Red.FixedDates[FulltDatum],AK6),COUNTIF(Tabell.Red.FixedDays[FulltDatum],AK6))","v":false},{"$f":"OR(WEEKDAY(AL6,2)=6,WEEKDAY(AL6,2)=7,COUNTIF(Tabell.Red.FixedDates[FulltDatum],AL6),COUNTIF(Tabell.Red.FixedDays[FulltDatum],AL6))","v":false},{"$f":"OR(WEEKDAY(AM6,2)=6,WEEKDAY(AM6,2)=7,COUNTIF(Tabell.Red.FixedDates[FulltDatum],AM6),COUNTIF(Tabell.Red.FixedDays[FulltDatum],AM6))","v":true},{"$f":"OR(WEEKDAY(AN6,2)=6,WEEKDAY(AN6,2)=7,COUNTIF(Tabell.Red.FixedDates[FulltDatum],AN6),COUNTIF(Tabell.Red.FixedDays[FulltDatum],AN6))","v":true},{"$f":"OR(WEEKDAY(AO6,2)=6,WEEKDAY(AO6,2)=7,COUNTIF(Tabell.Red.FixedDates[FulltDatum],AO6),COUNTIF(Tabell.Red.FixedDays[FulltDatum],AO6))","v":false},{"$f":"OR(WEEKDAY(AP6,2)=6,WEEKDAY(AP6,2)=7,COUNTIF(Tabell.Red.FixedDates[FulltDatum],AP6),COUNTIF(Tabell.Red.FixedDays[FulltDatum],AP6))","v":false},{"$f":"OR(WEEKDAY(AQ6,2)=6,WEEKDAY(AQ6,2)=7,COUNTIF(Tabell.Red.FixedDates[FulltDatum],AQ6),COUNTIF(Tabell.Red.FixedDays[FulltDatum],AQ6))","v":false},{"$f":"OR(WEEKDAY(AR6,2)=6,WEEKDAY(AR6,2)=7,COUNTIF(Tabell.Red.FixedDates[FulltDatum],AR6),COUNTIF(Tabell.Red.FixedDays[FulltDatum],AR6))","v":false},{"$f":"OR(WEEKDAY(AS6,2)=6,WEEKDAY(AS6,2)=7,COUNTIF(Tabell.Red.FixedDates[FulltDatum],AS6),COUNTIF(Tabell.Red.FixedDays[FulltDatum],AS6))","v":false},{"$f":"OR(WEEKDAY(AT6,2)=6,WEEKDAY(AT6,2)=7,COUNTIF(Tabell.Red.FixedDates[FulltDatum],AT6),COUNTIF(Tabell.Red.FixedDays[FulltDatum],AT6))","v":true}]
[null,null,null,null,null,null,null,null,null,null,null,null,null,null,"Övriga dagar",{"$f":"OR(COUNTIF(Tabell.Shortdays[FulltDatum],P6),COUNTIF(Tabell.Klamdagar[FulltDatum],P6))","v":false},{"$f":"OR(COUNTIF(Tabell.Shortdays[FulltDatum],Q6),COUNTIF(Tabell.Klamdagar[FulltDatum],Q6))","v":false},{"$f":"OR(COUNTIF(Tabell.Shortdays[FulltDatum],R6),COUNTIF(Tabell.Klamdagar[FulltDatum],R6))","v":false},{"$f":"OR(COUNTIF(Tabell.Shortdays[FulltDatum],S6),COUNTIF(Tabell.Klamdagar[FulltDatum],S6))","v":false},{"$f":"OR(COUNTIF(Tabell.Shortdays[FulltDatum],T6),COUNTIF(Tabell.Klamdagar[FulltDatum],T6))","v":false},{"$f":"OR(COUNTIF(Tabell.Shortdays[FulltDatum],U6),COUNTIF(Tabell.Klamdagar[FulltDatum],U6))","v":false},{"$f":"OR(COUNTIF(Tabell.Shortdays[FulltDatum],V6),COUNTIF(Tabell.Klamdagar[FulltDatum],V6))","v":false},{"$f":"OR(COUNTIF(Tabell.Shortdays[FulltDatum],W6),COUNTIF(Tabell.Klamdagar[FulltDatum],W6))","v":false},{"$f":"OR(COUNTIF(Tabell.Shortdays[FulltDatum],X6),COUNTIF(Tabell.Klamdagar[FulltDatum],X6))","v":false},{"$f":"OR(COUNTIF(Tabell.Shortdays[FulltDatum],Y6),COUNTIF(Tabell.Klamdagar[FulltDatum],Y6))","v":false},{"$f":"OR(COUNTIF(Tabell.Shortdays[FulltDatum],Z6),COUNTIF(Tabell.Klamdagar[FulltDatum],Z6))","v":false},{"$f":"OR(COUNTIF(Tabell.Shortdays[FulltDatum],AA6),COUNTIF(Tabell.Klamdagar[FulltDatum],AA6))","v":false},{"$f":"OR(COUNTIF(Tabell.Shortdays[FulltDatum],AB6),COUNTIF(Tabell.Klamdagar[FulltDatum],AB6))","v":false},{"$f":"OR(COUNTIF(Tabell.Shortdays[FulltDatum],AC6),COUNTIF(Tabell.Klamdagar[FulltDatum],AC6))","v":false},{"$f":"OR(COUNTIF(Tabell.Shortdays[FulltDatum],AD6),COUNTIF(Tabell.Klamdagar[FulltDatum],AD6))","v":false},{"$f":"OR(COUNTIF(Tabell.Shortdays[FulltDatum],AE6),COUNTIF(Tabell.Klamdagar[FulltDatum],AE6))","v":false},{"$f":"OR(COUNTIF(Tabell.Shortdays[FulltDatum],AF6),COUNTIF(Tabell.Klamdagar[FulltDatum],AF6))","v":false},{"$f":"OR(COUNTIF(Tabell.Shortdays[FulltDatum],AG6),COUNTIF(Tabell.Klamdagar[FulltDatum],AG6))","v":false},{"$f":"OR(COUNTIF(Tabell.Shortdays[FulltDatum],AH6),COUNTIF(Tabell.Klamdagar[FulltDatum],AH6))","v":false},{"$f":"OR(COUNTIF(Tabell.Shortdays[FulltDatum],AI6),COUNTIF(Tabell.Klamdagar[FulltDatum],AI6))","v":false},{"$f":"OR(COUNTIF(Tabell.Shortdays[FulltDatum],AJ6),COUNTIF(Tabell.Klamdagar[FulltDatum],AJ6))","v":false},{"$f":"OR(COUNTIF(Tabell.Shortdays[FulltDatum],AK6),COUNTIF(Tabell.Klamdagar[FulltDatum],AK6))","v":false},{"$f":"OR(COUNTIF(Tabell.Shortdays[FulltDatum],AL6),COUNTIF(Tabell.Klamdagar[FulltDatum],AL6))","v":false},{"$f":"OR(COUNTIF(Tabell.Shortdays[FulltDatum],AM6),COUNTIF(Tabell.Klamdagar[FulltDatum],AM6))","v":false},{"$f":"OR(COUNTIF(Tabell.Shortdays[FulltDatum],AN6),COUNTIF(Tabell.Klamdagar[FulltDatum],AN6))","v":false},{"$f":"OR(COUNTIF(Tabell.Shortdays[FulltDatum],AO6),COUNTIF(Tabell.Klamdagar[FulltDatum],AO6))","v":false},{"$f":"OR(COUNTIF(Tabell.Shortdays[FulltDatum],AP6),COUNTIF(Tabell.Klamdagar[FulltDatum],AP6))","v":false},{"$f":"OR(COUNTIF(Tabell.Shortdays[FulltDatum],AQ6),COUNTIF(Tabell.Klamdagar[FulltDatum],AQ6))","v":false},{"$f":"OR(COUNTIF(Tabell.Shortdays[FulltDatum],AR6),COUNTIF(Tabell.Klamdagar[FulltDatum],AR6))","v":false},{"$f":"OR(COUNTIF(Tabell.Shortdays[FulltDatum],AS6),COUNTIF(Tabell.Klamdagar[FulltDatum],AS6))","v":false},{"$f":"OR(COUNTIF(Tabell.Shortdays[FulltDatum],AT6),COUNTIF(Tabell.Klamdagar[FulltDatum],AT6))","v":false}]
[]
[null,"Febuary",null,null,null,null,null,null,null,null,null,null,null,null,null,null,null,null,null,{"$f":"Year","v":2024},null,null,null,null,null,null,null,{"$f":"Member","v":"(fill in name of member on Start Page)"}]
[]
[null,null,null,null,null,null,null,null,null,null,null,null,null,null,null,{"$f":"DATEVALUE(Year&\"-\"&VLOOKUP(LEFT(B4,3),list.months,2,0)&\"-1\")","v":"2024-02-01"},{"$f":"DATE(YEAR(P6),MONTH(P6),DAY(P6)+1)","v":"2024-02-02"},{"$f":"DATE(YEAR(Q6),MONTH(Q6),DAY(Q6)+1)","v":"2024-02-03"},"2024-02-04","2024-02-05","2024-02-06","2024-02-07","2024-02-08","2024-02-09","2024-02-10","2024-02-11","2024-02-12","2024-02-13","2024-02-14","2024-02-15","2024-02-16","2024-02-17","2024-02-18","2024-02-19","2024-02-20","2024-02-21","2024-02-22","2024-02-23","2024-02-24","2024-02-25","2024-02-26","2024-02-27","2024-02-28","2024-02-29","2024-03-01","2024-03-02","Sum",null,"%"]
[null,null,{"$f":"IF(Acronym.01=\"\",,IF(Type.01=\"\",Error.no.funding,IF(Type.01=Funding.type.03,Acronym.01&\" - \"&Contract.01,IF(Def!K76>0,Error.no.WP,Acronym.01&\" - \"&Contract.01&\" - WP\"&WP.01))))","v":0},null,null,null,null,null,null,null,null,null,null,null,null,null,null,null,null,null,null,null,null,null,null,null,null,null,null,null,null,null,null,null,null,null,null,null,null,null,null,null,null,null,null,null,{"$f":"SUM(P7:AT7)","v":0},null,{"$f":"IFERROR(IF(AU7/$AU$21=0,\"\",AU7/$AU$21),\"\")","v":""}]
[null,null,{"$f":"IF(Acronym.02=\"\",,IF(Type.02=\"\",Error.no.funding,IF(Type.02=Funding.type.03,Acronym.02&\" - \"&Contract.02,IF(Def!K77>0,Error.no.WP,Acronym.02&\" - \"&Contract.02&\" - WP\"&WP.02))))","v":0},null,null,null,null,null,null,null,null,null,null,null,null,null,null,null,null,null,null,null,null,null,null,null,null,null,null,null,null,null,null,null,null,null,null,null,null,null,null,null,null,null,null,null,0,null,""]
[null,null,{"$f":"IF(Acronym.03=\"\",,IF(Type.03=\"\",Error.no.funding,IF(Type.03=Funding.type.03,Acronym.03&\" - \"&Contract.03,IF(Def!K78>0,Error.no.WP,Acronym.03&\" - \"&Contract.03&\" - WP\"&WP.03))))","v":0},null,null,null,null,null,null,null,null,null,null,null,null,null,null,null,null,null,null,null,null,null,null,null,null,null,null,null,null,null,null,null,null,null,null,null,null,null,null,null,null,null,null,null,0,null,""]
[null,null,{"$f":"IF(Acronym.04=\"\",,IF(Type.04=\"\",Error.no.funding,IF(Type.04=Funding.type.03,Acronym.04&\" - \"&Contract.04,IF(Def!K79>0,Error.no.WP,Acronym.04&\" - \"&Contract.04&\" - WP\"&WP.04))))","v":0},null,null,null,null,null,null,null,null,null,null,null,null,null,null,null,null,null,null,null,null,null,null,null,null,null,null,null,null,null,null,null,null,null,null,null,null,null,null,null,null,null,null,null,0,null,""]
[null,null,{"$f":"IF(Acronym.05=\"\",,IF(Type.05=\"\",Error.no.funding,IF(Type.05=Funding.type.03,Acronym.05&\" - \"&Contract.05,IF(Def!K80>0,Error.no.WP,Acronym.05&\" - \"&Contract.05&\" - WP\"&WP.05))))","v":0},null,null,null,null,null,null,null,null,null,null,null,null,null,null,null,null,null,null,null,null,null,null,null,null,null,null,null,null,null,null,null,null,null,null,null,null,null,null,null,null,null,null,null,0,null,""]
[null,null,{"$f":"IF(Acronym.06=\"\",,IF(Type.06=\"\",Error.no.funding,IF(Type.06=Funding.type.03,Acronym.06&\" - \"&Contract.06,IF(Def!K81>0,Error.no.WP,Acronym.06&\" - \"&Contract.06&\" - WP\"&WP.06))))","v":0},null,null,null,null,null,null,null,null,null,null,null,null,null,null,null,null,null,null,null,null,null,null,null,null,null,null,null,null,null,null,null,null,null,null,null,null,null,null,null,null,null,null,null,0,null,""]
[null,null,{"$f":"IF(Acronym.07=\"\",,IF(Type.07=\"\",Error.no.funding,IF(Type.07=Funding.type.03,Acronym.07&\" - \"&Contract.07,IF(Def!K82>0,Error.no.WP,Acronym.07&\" - \"&Contract.07&\" - WP\"&WP.07))))","v":0},null,null,null,null,null,null,null,null,null,null,null,null,null,null,null,null,null,null,null,null,null,null,null,null,null,null,null,null,null,null,null,null,null,null,null,null,null,null,null,null,null,null,null,0,null,""]
[null,null,{"$f":"IF(Acronym.08=\"\",,IF(Type.08=\"\",Error.no.funding,IF(Type.08=Funding.type.03,Acronym.08&\" - \"&Contract.08,IF(Def!K83>0,Error.no.WP,Acronym.08&\" - \"&Contract.08&\" - WP\"&WP.08))))","v":0},null,null,null,null,null,null,null,null,null,null,null,null,null,null,null,null,null,null,null,null,null,null,null,null,null,null,null,null,null,null,null,null,null,null,null,null,null,null,null,null,null,null,null,0,null,""]
[null,null,{"$f":"IF(Acronym.09=\"\",,IF(Type.09=\"\",Error.no.funding,IF(Type.09=Funding.type.03,Acronym.09&\" - \"&Contract.09,IF(Def!K84>0,Error.no.WP,Acronym.09&\" - \"&Contract.09&\" - WP\"&WP.09))))","v":0},null,null,null,null,null,null,null,null,null,null,null,null,null,null,null,null,null,null,null,null,null,null,null,null,null,null,null,null,null,null,null,null,null,null,null,null,null,null,null,null,null,null,null,0,null,""]
[null,null,{"$f":"IF(Acronym.10=\"\",,IF(Type.10=\"\",Error.no.funding,IF(Type.10=Funding.type.03,Acronym.10&\" - \"&Contract.10,IF(Def!K85>0,Error.no.WP,Acronym.10&\" - \"&Contract.10&\" - WP\"&WP.10))))","v":0},null,null,null,null,null,null,null,null,null,null,null,null,null,null,null,null,null,null,null,null,null,null,null,null,null,null,null,null,null,null,null,null,null,null,null,null,null,null,null,null,null,null,null,0,null,""]
[null,null,{"$f":"IF(Acronym.11=\"\",,IF(Type.11=\"\",Error.no.funding,IF(Type.11=Funding.type.03,Acronym.11&\" - \"&Contract.11,IF(Def!K86>0,Error.no.WP,Acronym.11&\" - \"&Contract.11&\" - WP\"&WP.11))))","v":0},null,null,null,null,null,null,null,null,null,null,null,null,null,null,null,null,null,null,null,null,null,null,null,null,null,null,null,null,null,null,null,null,null,null,null,null,null,null,null,null,null,null,null,0,null,""]
[null,null,{"$f":"IF(Acronym.12=\"\",,IF(Type.12=\"\",Error.no.funding,IF(Type.12=Funding.type.03,Acronym.12&\" - \"&Contract.12,IF(Def!K87>0,Error.no.WP,Acronym.12&\" - \"&Contract.12&\" - WP\"&WP.12))))","v":0},null,null,null,null,null,null,null,null,null,null,null,null,null,null,null,null,null,null,null,null,null,null,null,null,null,null,null,null,null,null,null,null,null,null,null,null,null,null,null,null,null,null,null,0,null,{"$f":"IFERROR(AU18/$AU$21,\"\")","v":""}]
[null,null,null,null,null,null,null,null,null,null,null,null,null,"ALL OTHER HOURS WORKED AT SU",null,null,null,null,null,null,null,null,null,null,null,null,null,null,null,null,null,null,null,null,null,null,null,null,null,null,null,null,null,null,null,null,0,null,""]
[]
[null,null,null,null,null,null,null,null,null,null,null,null,null,"Total productive hours",null,{"$f":"IF(ROUND(SUM(P7:P19),2)=0,\"\",ROUND(SUM(P7:P19),2))","v":""},"","","","","","","","","","","","","","","","","","","","","","","","","","","","","","",""]
[]
[]
[null,null,"Absence"]
[null,null,null,null,null,null,null,null,null,null,null,null,null,"Annual Leave",null,null,null,null,null,null,null,null,null,null,null,null,null,null,null,null,null,null,null,null,null,null,null,null,null,null,null,null,null,null,null,null,{"$f":"IF(ROUND(SUM(P25:AT25),2)=0,\"\",ROUND(SUM(P25:AT25),2))","v":""},null,{"$f":"IFERROR(IF(AU25/$AU$30=0,\"\",AU25/$AU$30),\"\")","v":""}]
[null,null,null,null,null,null,null,null,null,null,null,null,null,"Own Illness",null,null,null,null,null,null,null,null,null,null,null,null,null,null,null,null,null,null,null,null,null,null,null,null,null,null,null,null,null,null,null,null,"",null,""]
[null,null,null,null,null,null,null,null,null,null,null,null,null,"Special Leave",null,null,null,null,null,null,null,null,null,null,null,null,null,null,null,null,null,null,null,null,null,null,null,null,null,null,null,null,null,null,null,null,"",null,""]
[null,null,null,null,null,null,null,null,null,null,null,null,null,"Parental Leave",null,null,null,null,null,null,null,null,null,null,null,null,null,null,null,null,null,null,null,null,null,null,null,null,null,null,null,null,null,null,null,null,"",null,""]
[]
[null,null,null,null,null,null,null,null,null,null,null,null,null,"Total absent hours",null,{"$f":"IF(ROUND(SUM(P25:P28),2)=0,\"\",ROUND(SUM(P25:P28),2))","v":""},"","","","","","","","","","","","","","","","","","","","","","","","","","","","","","",""]
[]
[]
[null,null,null,null,null,null,null,null,null,null,null,null,null,"Total hours",null,{"$f":"IF(ROUND(SUM(P21,P30),2)=0,\"\",ROUND(SUM(P21,P30),2))","v":""},"","","","","","","","","","",{"$f":"IF(ROUND(SUM(AA21,AA30),2)=0,\"\",ROUND(SUM(AA21,AA30),2))","v":""},{"$f":"IF(ROUND(SUM(AB21,AB30),2)=0,\"\",ROUND(SUM(AB21,AB30),2))","v":""},"","","","","","","","","","","","","","","","","","",""]
[]
[]
[]
[null,null,"Short description of the activities carried out",null,null,null,null,null,null,null,null,null,null,null,null,null,null,null,null,null,null,null,null,null,"Signatures and date of signature",null,null,null,null,null,null,null,null,null,null,null,null,null,null,"Beneficiary:"]
[null,null,"(indicate the project name with the description)",null,null,null,null,null,null,null,null,null,null,null,null,null,null,null,null,null,null,null,null,null,null,null,null,null,null,null,null,null,null,null,null,null,null,null,null,{"$f":"Beneficiary","v":"STOCKHOLMS UNIVERSITET"}]
[]
[]
[null,null,null,null,null,null,null,null,null,null,null,null,null,null,null,null,null,null,null,null,null,null,null,null,{"$f":"IF(Member=\"\",Error.name.member,IF(Member.title=\"\",Error.title.member,IF(Total.Error.Funding>0,Error.no.funding,IF(Total.Error.EU>0,Error.no.WP,\"\"))))","v":""}]
[]
[null,null,null,null,null,null,null,null,null,null,null,null,null,null,null,null,null,null,null,null,null,null,null,null,{"$f":"Member","v":"(fill in name of member on Start Page)"}]
[null,null,null,null,null,null,null,null,null,null,null,null,null,null,null,null,null,null,null,null,null,null,null,null,{"$f":"Member.title","v":"(fill in title of member on Start Page)"},null,null,null,null,null,null,null,null,null,null,"Date"]
[]
[]
[null,null,null,null,null,null,null,null,null,null,null,null,null,null,null,null,null,null,null,null,null,null,null,null,{"$f":"IF(Y51=0,Error.name.supervisor,IF(Total.Error.Funding>0,Error.no.funding,IF(Total.Error.EU>0,Error.no.WP,\"\")))","v":""}]
[]
[]
[null,null,null,null,null,null,null,null,null,null,null,null,null,null,null,null,null,null,null,null,null,null,null,null,{"$f":"\"Supervisor:\"","v":"Supervisor:"},null,null,null,null,null,null,null,null,null,null,"Date"]
[null,null,null,null,null,null,null,null,null,null,null,null,null,null,null,null,null,null,null,null,null,null,null,null,{"$f":"Supervisor","v":"(fill in name of supervisor on Start Page)"}]
[null,null,null,null,null,null,null,null,null,null,null,null,null,null,null,null,null,null,null,null,null,null,null,null,{"$f":"Supervisor.title","v":"(fill in the title of supervisor on Start Page)"}]

{"sheet":"Mar","index":5,"n_rows":52,"n_cols":49,"rows_kept":52,"cut":false,"hidden":false,"merged":[[8,2,8,13],[3,1,3,18],[3,19,3,25],[3,27,3,48],[6,2,6,13],[7,2,7,13],[39,2,51,19],[9,2,9,13],[10,2,10,13],[11,2,11,13],[12,2,12,13],[13,2,13,13],[14,2,14,13],[15,2,15,13],[16,2,16,13],[17,2,17,13],[23,2,30,5],[36,24,37,37],[41,48,51,48],[43,24,43,33],[49,24,49,33],[50,24,50,33],[51,24,51,33]]}
[null,null,null,null,null,null,null,null,null,null,null,null,null,null,"Röda dagar",{"$f":"OR(WEEKDAY(P6,2)=6,WEEKDAY(P6,2)=7,COUNTIF(Tabell.Red.FixedDates[FulltDatum],P6),COUNTIF(Tabell.Red.FixedDays[FulltDatum],P6))","v":false},{"$f":"OR(WEEKDAY(Q6,2)=6,WEEKDAY(Q6,2)=7,COUNTIF(Tabell.Red.FixedDates[FulltDatum],Q6),COUNTIF(Tabell.Red.FixedDays[FulltDatum],Q6))","v":true},{"$f":"OR(WEEKDAY(R6,2)=6,WEEKDAY(R6,2)=7,COUNTIF(Tabell.Red.FixedDates[FulltDatum],R6),COUNTIF(Tabell.Red.FixedDays[FulltDatum],R6))","v":true},{"$f":"OR(WEEKDAY(S6,2)=6,WEEKDAY(S6,2)=7,COUNTIF(Tabell.Red.FixedDates[FulltDatum],S6),COUNTIF(Tabell.Red.FixedDays[FulltDatum],S6))","v":false},{"$f":"OR(WEEKDAY(T6,2)=6,WEEKDAY(T6,2)=7,COUNTIF(Tabell.Red.FixedDates[FulltDatum],T6),COUNTIF(Tabell.Red.FixedDays[FulltDatum],T6))","v":false},{"$f":"OR(WEEKDAY(U6,2)=6,WEEKDAY(U6,2)=7,COUNTIF(Tabell.Red.FixedDates[FulltDatum],U6),COUNTIF(Tabell.Red.FixedDays[FulltDatum],U6))","v":false},{"$f":"OR(WEEKDAY(V6,2)=6,WEEKDAY(V6,2)=7,COUNTIF(Tabell.Red.FixedDates[FulltDatum],V6),COUNTIF(Tabell.Red.FixedDays[FulltDatum],V6))","v":false},{"$f":"OR(WEEKDAY(W6,2)=6,WEEKDAY(W6,2)=7,COUNTIF(Tabell.Red.FixedDates[FulltDatum],W6),COUNTIF(Tabell.Red.FixedDays[FulltDatum],W6))","v":false},{"$f":"OR(WEEKDAY(X6,2)=6,WEEKDAY(X6,2)=7,COUNTIF(Tabell.Red.FixedDates[FulltDatum],X6),COUNTIF(Tabell.Red.FixedDays[FulltDatum],X6))","v":true},{"$f":"OR(WEEKDAY(Y6,2)=6,WEEKDAY(Y6,2)=7,COUNTIF(Tabell.Red.FixedDates[FulltDatum],Y6),COUNTIF(Tabell.Red.FixedDays[FulltDatum],Y6))","v":true},{"$f":"OR(WEEKDAY(Z6,2)=6,WEEKDAY(Z6,2)=7,COUNTIF(Tabell.Red.FixedDates[FulltDatum],Z6),COUNTIF(Tabell.Red.FixedDays[FulltDatum],Z6))","v":false},{"$f":"OR(WEEKDAY(AA6,2)=6,WEEKDAY(AA6,2)=7,COUNTIF(Tabell.Red.FixedDates[FulltDatum],AA6),COUNTIF(Tabell.Red.FixedDays[FulltDatum],AA6))","v":false},{"$f":"OR(WEEKDAY(AB6,2)=6,WEEKDAY(AB6,2)=7,COUNTIF(Tabell.Red.FixedDates[FulltDatum],AB6),COUNTIF(Tabell.Red.FixedDays[FulltDatum],AB6))","v":false},{"$f":"OR(WEEKDAY(AC6,2)=6,WEEKDAY(AC6,2)=7,COUNTIF(Tabell.Red.FixedDates[FulltDatum],AC6),COUNTIF(Tabell.Red.FixedDays[FulltDatum],AC6))","v":false},{"$f":"OR(WEEKDAY(AD6,2)=6,WEEKDAY(AD6,2)=7,COUNTIF(Tabell.Red.FixedDates[FulltDatum],AD6),COUNTIF(Tabell.Red.FixedDays[FulltDatum],AD6))","v":false},{"$f":"OR(WEEKDAY(AE6,2)=6,WEEKDAY(AE6,2)=7,COUNTIF(Tabell.Red.FixedDates[FulltDatum],AE6),COUNTIF(Tabell.Red.FixedDays[FulltDatum],AE6))","v":true},{"$f":"OR(WEEKDAY(AF6,2)=6,WEEKDAY(AF6,2)=7,COUNTIF(Tabell.Red.FixedDates[FulltDatum],AF6),COUNTIF(Tabell.Red.FixedDays[FulltDatum],AF6))","v":true},{"$f":"OR(WEEKDAY(AG6,2)=6,WEEKDAY(AG6,2)=7,COUNTIF(Tabell.Red.FixedDates[FulltDatum],AG6),COUNTIF(Tabell.Red.FixedDays[FulltDatum],AG6))","v":false},{"$f":"OR(WEEKDAY(AH6,2)=6,WEEKDAY(AH6,2)=7,COUNTIF(Tabell.Red.FixedDates[FulltDatum],AH6),COUNTIF(Tabell.Red.FixedDays[FulltDatum],AH6))","v":false},{"$f":"OR(WEEKDAY(AI6,2)=6,WEEKDAY(AI6,2)=7,COUNTIF(Tabell.Red.FixedDates[FulltDatum],AI6),COUNTIF(Tabell.Red.FixedDays[FulltDatum],AI6))","v":false},{"$f":"OR(WEEKDAY(AJ6,2)=6,WEEKDAY(AJ6,2)=7,COUNTIF(Tabell.Red.FixedDates[FulltDatum],AJ6),COUNTIF(Tabell.Red.FixedDays[FulltDatum],AJ6))","v":false},{"$f":"OR(WEEKDAY(AK6,2)=6,WEEKDAY(AK6,2)=7,COUNTIF(Tabell.Red.FixedDates[FulltDatum],AK6),COUNTIF(Tabell.Red.FixedDays[FulltDatum],AK6))","v":false},{"$f":"OR(WEEKDAY(AL6,2)=6,WEEKDAY(AL6,2)=7,COUNTIF(Tabell.Red.FixedDates[FulltDatum],AL6),COUNTIF(Tabell.Red.FixedDays[FulltDatum],AL6))","v":true},{"$f":"OR(WEEKDAY(AM6,2)=6,WEEKDAY(AM6,2)=7,COUNTIF(Tabell.Red.FixedDates[FulltDatum],AM6),COUNTIF(Tabell.Red.FixedDays[FulltDatum],AM6))","v":true},{"$f":"OR(WEEKDAY(AN6,2)=6,WEEKDAY(AN6,2)=7,COUNTIF(Tabell.Red.FixedDates[FulltDatum],AN6),COUNTIF(Tabell.Red.FixedDays[FulltDatum],AN6))","v":false},{"$f":"OR(WEEKDAY(AO6,2)=6,WEEKDAY(AO6,2)=7,COUNTIF(Tabell.Red.FixedDates[FulltDatum],AO6),COUNTIF(Tabell.Red.FixedDays[FulltDatum],AO6))","v":false},{"$f":"OR(WEEKDAY(AP6,2)=6,WEEKDAY(AP6,2)=7,COUNTIF(Tabell.Red.FixedDates[FulltDatum],AP6),COUNTIF(Tabell.Red.FixedDays[FulltDatum],AP6))","v":false},{"$f":"OR(WEEKDAY(AQ6,2)=6,WEEKDAY(AQ6,2)=7,COUNTIF(Tabell.Red.FixedDates[FulltDatum],AQ6),COUNTIF(Tabell.Red.FixedDays[FulltDatum],AQ6))","v":false},{"$f":"OR(WEEKDAY(AR6,2)=6,WEEKDAY(AR6,2)=7,COUNTIF(Tabell.Red.FixedDates[FulltDatum],AR6),COUNTIF(Tabell.Red.FixedDays[FulltDatum],AR6))","v":true},{"$f":"OR(WEEKDAY(AS6,2)=6,WEEKDAY(AS6,2)=7,COUNTIF(Tabell.Red.FixedDates[FulltDatum],AS6),COUNTIF(Tabell.Red.FixedDays[FulltDatum],AS6))","v":true},{"$f":"OR(WEEKDAY(AT6,2)=6,WEEKDAY(AT6,2)=7,COUNTIF(Tabell.Red.FixedDates[FulltDatum],AT6),COUNTIF(Tabell.Red.FixedDays[FulltDatum],AT6))","v":true}]
[null,null,null,null,null,null,null,null,null,null,null,null,null,null,"Övriga dagar",{"$f":"OR(COUNTIF(Tabell.Shortdays[FulltDatum],P6),COUNTIF(Tabell.Klamdagar[FulltDatum],P6))","v":false},{"$f":"OR(COUNTIF(Tabell.Shortdays[FulltDatum],Q6),COUNTIF(Tabell.Klamdagar[FulltDatum],Q6))","v":false},{"$f":"OR(COUNTIF(Tabell.Shortdays[FulltDatum],R6),COUNTIF(Tabell.Klamdagar[FulltDatum],R6))","v":false},{"$f":"OR(COUNTIF(Tabell.Shortdays[FulltDatum],S6),COUNTIF(Tabell.Klamdagar[FulltDatum],S6))","v":false},{"$f":"OR(COUNTIF(Tabell.Shortdays[FulltDatum],T6),COUNTIF(Tabell.Klamdagar[FulltDatum],T6))","v":false},{"$f":"OR(COUNTIF(Tabell.Shortdays[FulltDatum],U6),COUNTIF(Tabell.Klamdagar[FulltDatum],U6))","v":false},{"$f":"OR(COUNTIF(Tabell.Shortdays[FulltDatum],V6),COUNTIF(Tabell.Klamdagar[FulltDatum],V6))","v":false},{"$f":"OR(COUNTIF(Tabell.Shortdays[FulltDatum],W6),COUNTIF(Tabell.Klamdagar[FulltDatum],W6))","v":false},{"$f":"OR(COUNTIF(Tabell.Shortdays[FulltDatum],X6),COUNTIF(Tabell.Klamdagar[FulltDatum],X6))","v":false},{"$f":"OR(COUNTIF(Tabell.Shortdays[FulltDatum],Y6),COUNTIF(Tabell.Klamdagar[FulltDatum],Y6))","v":false},{"$f":"OR(COUNTIF(Tabell.Shortdays[FulltDatum],Z6),COUNTIF(Tabell.Klamdagar[FulltDatum],Z6))","v":false},{"$f":"OR(COUNTIF(Tabell.Shortdays[FulltDatum],AA6),COUNTIF(Tabell.Klamdagar[FulltDatum],AA6))","v":false},{"$f":"OR(COUNTIF(Tabell.Shortdays[FulltDatum],AB6),COUNTIF(Tabell.Klamdagar[FulltDatum],AB6))","v":false},{"$f":"OR(COUNTIF(Tabell.Shortdays[FulltDatum],AC6),COUNTIF(Tabell.Klamdagar[FulltDatum],AC6))","v":false},{"$f":"OR(COUNTIF(Tabell.Shortdays[FulltDatum],AD6),COUNTIF(Tabell.Klamdagar[FulltDatum],AD6))","v":false},{"$f":"OR(COUNTIF(Tabell.Shortdays[FulltDatum],AE6),COUNTIF(Tabell.Klamdagar[FulltDatum],AE6))","v":false},{"$f":"OR(COUNTIF(Tabell.Shortdays[FulltDatum],AF6),COUNTIF(Tabell.Klamdagar[FulltDatum],AF6))","v":false},{"$f":"OR(COUNTIF(Tabell.Shortdays[FulltDatum],AG6),COUNTIF(Tabell.Klamdagar[FulltDatum],AG6))","v":false},{"$f":"OR(COUNTIF(Tabell.Shortdays[FulltDatum],AH6),COUNTIF(Tabell.Klamdagar[FulltDatum],AH6))","v":false},{"$f":"OR(COUNTIF(Tabell.Shortdays[FulltDatum],AI6),COUNTIF(Tabell.Klamdagar[FulltDatum],AI6))","v":false},{"$f":"OR(COUNTIF(Tabell.Shortdays[FulltDatum],AJ6),COUNTIF(Tabell.Klamdagar[FulltDatum],AJ6))","v":false},{"$f":"OR(COUNTIF(Tabell.Shortdays[FulltDatum],AK6),COUNTIF(Tabell.Klamdagar[FulltDatum],AK6))","v":false},{"$f":"OR(COUNTIF(Tabell.Shortdays[FulltDatum],AL6),COUNTIF(Tabell.Klamdagar[FulltDatum],AL6))","v":false},{"$f":"OR(COUNTIF(Tabell.Shortdays[FulltDatum],AM6),COUNTIF(Tabell.Klamdagar[FulltDatum],AM6))","v":false},{"$f":"OR(COUNTIF(Tabell.Shortdays[FulltDatum],AN6),COUNTIF(Tabell.Klamdagar[FulltDatum],AN6))","v":false},{"$f":"OR(COUNTIF(Tabell.Shortdays[FulltDatum],AO6),COUNTIF(Tabell.Klamdagar[FulltDatum],AO6))","v":false},{"$f":"OR(COUNTIF(Tabell.Shortdays[FulltDatum],AP6),COUNTIF(Tabell.Klamdagar[FulltDatum],AP6))","v":false},{"$f":"OR(COUNTIF(Tabell.Shortdays[FulltDatum],AQ6),COUNTIF(Tabell.Klamdagar[FulltDatum],AQ6))","v":false},{"$f":"OR(COUNTIF(Tabell.Shortdays[FulltDatum],AR6),COUNTIF(Tabell.Klamdagar[FulltDatum],AR6))","v":false},{"$f":"OR(COUNTIF(Tabell.Shortdays[FulltDatum],AS6),COUNTIF(Tabell.Klamdagar[FulltDatum],AS6))","v":false},{"$f":"OR(COUNTIF(Tabell.Shortdays[FulltDatum],AT6),COUNTIF(Tabell.Klamdagar[FulltDatum],AT6))","v":false}]
[]
[null,"March",null,null,null,null,null,null,null,null,null,null,null,null,null,null,null,null,null,{"$f":"Year","v":2024},null,null,null,null,null,null,null,{"$f":"Member","v":"(fill in name of member on Start Page)"}]
[]
[null,null,null,null,null,null,null,null,null,null,null,null,null,null,null,{"$f":"DATEVALUE(Year&\"-\"&VLOOKUP(LEFT(B4,3),list.months,2,0)&\"-1\")","v":"2024-03-01"},{"$f":"DATE(YEAR(P6),MONTH(P6),DAY(P6)+1)","v":"2024-03-02"},{"$f":"DATE(YEAR(Q6),MONTH(Q6),DAY(Q6)+1)","v":"2024-03-03"},"2024-03-04","2024-03-05","2024-03-06","2024-03-07","2024-03-08","2024-03-09","2024-03-10","2024-03-11","2024-03-12","2024-03-13","2024-03-14","2024-03-15","2024-03-16","2024-03-17","2024-03-18","2024-03-19","2024-03-20","2024-03-21","2024-03-22","2024-03-23","2024-03-24","2024-03-25","2024-03-26","2024-03-27","2024-03-28","2024-03-29","2024-03-30","2024-03-31","Sum",null,"%"]
[null,null,{"$f":"IF(Acronym.01=\"\",,IF(Type.01=\"\",Error.no.funding,IF(Type.01=Funding.type.03,Acronym.01&\" - \"&Contract.01,IF(Def!K76>0,Error.no.WP,Acronym.01&\" - \"&Contract.01&\" - WP\"&WP.01))))","v":0},null,null,null,null,null,null,null,null,null,null,null,null,null,null,null,null,null,null,null,null,null,null,null,null,null,null,null,null,null,null,null,null,null,null,null,null,null,null,null,null,null,null,null,{"$f":"SUM(P7:AT7)","v":0},null,{"$f":"IFERROR(IF(AU7/$AU$21=0,\"\",AU7/$AU$21),\"\")","v":""}]
[null,null,{"$f":"IF(Acronym.02=\"\",,IF(Type.02=\"\",Error.no.funding,IF(Type.02=Funding.type.03,Acronym.02&\" - \"&Contract.02,IF(Def!K77>0,Error.no.WP,Acronym.02&\" - \"&Contract.02&\" - WP\"&WP.02))))","v":0},null,null,null,null,null,null,null,null,null,null,null,null,null,null,null,null,null,null,null,null,null,null,null,null,null,null,null,null,null,null,null,null,null,null,null,null,null,null,null,null,null,null,null,0,null,""]
[null,null,{"$f":"IF(Acronym.03=\"\",,IF(Type.03=\"\",Error.no.funding,IF(Type.03=Funding.type.03,Acronym.03&\" - \"&Contract.03,IF(Def!K78>0,Error.no.WP,Acronym.03&\" - \"&Contract.03&\" - WP\"&WP.03))))","v":0},null,null,null,null,null,null,null,null,null,null,null,null,null,null,null,null,null,null,null,null,null,null,null,null,null,null,null,null,null,null,null,null,null,null,null,null,null,null,null,null,null,null,null,0,null,""]
[null,null,{"$f":"IF(Acronym.04=\"\",,IF(Type.04=\"\",Error.no.funding,IF(Type.04=Funding.type.03,Acronym.04&\" - \"&Contract.04,IF(Def!K79>0,Error.no.WP,Acronym.04&\" - \"&Contract.04&\" - WP\"&WP.04))))","v":0},null,null,null,null,null,null,null,null,null,null,null,null,null,null,null,null,null,null,null,null,null,null,null,null,null,null,null,null,null,null,null,null,null,null,null,null,null,null,null,null,null,null,null,0,null,""]
[null,null,{"$f":"IF(Acronym.05=\"\",,IF(Type.05=\"\",Error.no.funding,IF(Type.05=Funding.type.03,Acronym.05&\" - \"&Contract.05,IF(Def!K80>0,Error.no.WP,Acronym.05&\" - \"&Contract.05&\" - WP\"&WP.05))))","v":0},null,null,null,null,null,null,null,null,null,null,null,null,null,null,null,null,null,null,null,null,null,null,null,null,null,null,null,null,null,null,null,null,null,null,null,null,null,null,null,null,null,null,null,0,null,""]
[null,null,{"$f":"IF(Acronym.06=\"\",,IF(Type.06=\"\",Error.no.funding,IF(Type.06=Funding.type.03,Acronym.06&\" - \"&Contract.06,IF(Def!K81>0,Error.no.WP,Acronym.06&\" - \"&Contract.06&\" - WP\"&WP.06))))","v":0},null,null,null,null,null,null,null,null,null,null,null,null,null,null,null,null,null,null,null,null,null,null,null,null,null,null,null,null,null,null,null,null,null,null,null,null,null,null,null,null,null,null,null,0,null,""]
[null,null,{"$f":"IF(Acronym.07=\"\",,IF(Type.07=\"\",Error.no.funding,IF(Type.07=Funding.type.03,Acronym.07&\" - \"&Contract.07,IF(Def!K82>0,Error.no.WP,Acronym.07&\" - \"&Contract.07&\" - WP\"&WP.07))))","v":0},null,null,null,null,null,null,null,null,null,null,null,null,null,null,null,null,null,null,null,null,null,null,null,null,null,null,null,null,null,null,null,null,null,null,null,null,null,null,null,null,null,null,null,0,null,""]
[null,null,{"$f":"IF(Acronym.08=\"\",,IF(Type.08=\"\",Error.no.funding,IF(Type.08=Funding.type.03,Acronym.08&\" - \"&Contract.08,IF(Def!K83>0,Error.no.WP,Acronym.08&\" - \"&Contract.08&\" - WP\"&WP.08))))","v":0},null,null,null,null,null,null,null,null,null,null,null,null,null,null,null,null,null,null,null,null,null,null,null,null,null,null,null,null,null,null,null,null,null,null,null,null,null,null,null,null,null,null,null,0,null,""]
[null,null,{"$f":"IF(Acronym.09=\"\",,IF(Type.09=\"\",Error.no.funding,IF(Type.09=Funding.type.03,Acronym.09&\" - \"&Contract.09,IF(Def!K84>0,Error.no.WP,Acronym.09&\" - \"&Contract.09&\" - WP\"&WP.09))))","v":0},null,null,null,null,null,null,null,null,null,null,null,null,null,null,null,null,null,null,null,null,null,null,null,null,null,null,null,null,null,null,null,null,null,null,null,null,null,null,null,null,null,null,null,0,null,""]
[null,null,{"$f":"IF(Acronym.10=\"\",,IF(Type.10=\"\",Error.no.funding,IF(Type.10=Funding.type.03,Acronym.10&\" - \"&Contract.10,IF(Def!K85>0,Error.no.WP,Acronym.10&\" - \"&Contract.10&\" - WP\"&WP.10))))","v":0},null,null,null,null,null,null,null,null,null,null,null,null,null,null,null,null,null,null,null,null,null,null,null,null,null,null,null,null,null,null,null,null,null,null,null,null,null,null,null,null,null,null,null,0,null,""]
[null,null,{"$f":"IF(Acronym.11=\"\",,IF(Type.11=\"\",Error.no.funding,IF(Type.11=Funding.type.03,Acronym.11&\" - \"&Contract.11,IF(Def!K86>0,Error.no.WP,Acronym.11&\" - \"&Contract.11&\" - WP\"&WP.11))))","v":0},null,null,null,null,null,null,null,null,null,null,null,null,null,null,null,null,null,null,null,null,null,null,null,null,null,null,null,null,null,null,null,null,null,null,null,null,null,null,null,null,null,null,null,0,null,""]
[null,null,{"$f":"IF(Acronym.12=\"\",,IF(Type.12=\"\",Error.no.funding,IF(Type.12=Funding.type.03,Acronym.12&\" - \"&Contract.12,IF(Def!K87>0,Error.no.WP,Acronym.12&\" - \"&Contract.12&\" - WP\"&WP.12))))","v":0},null,null,null,null,null,null,null,null,null,null,null,null,null,null,null,null,null,null,null,null,null,null,null,null,null,null,null,null,null,null,null,null,null,null,null,null,null,null,null,null,null,null,null,0,null,{"$f":"IFERROR(AU18/$AU$21,\"\")","v":""}]
[null,null,null,null,null,null,null,null,null,null,null,null,null,"ALL OTHER HOURS WORKED AT SU",null,null,null,null,null,null,null,null,null,null,null,null,null,null,null,null,null,null,null,null,null,null,null,null,null,null,null,null,null,null,null,null,0,null,""]
[]
[null,null,null,null,null,null,null,null,null,null,null,null,null,"Total productive hours",null,{"$f":"IF(ROUND(SUM(P7:P19),2)=0,\"\",ROUND(SUM(P7:P19),2))","v":""},"","","","","","","","","","","","","","","","","","","","","","","","","","","","","","",""]
[]
[]
[null,null,"Absence"]
[null,null,null,null,null,null,null,null,null,null,null,null,null,"Annual Leave",null,null,null,null,null,null,null,null,null,null,null,null,null,null,null,null,null,null,null,null,null,null,null,null,null,null,null,null,null,null,null,null,{"$f":"IF(ROUND(SUM(P25:AT25),2)=0,\"\",ROUND(SUM(P25:AT25),2))","v":""},null,{"$f":"IFERROR(IF(AU25/$AU$30=0,\"\",AU25/$AU$30),\"\")","v":""}]
[null,null,null,null,null,null,null,null,null,null,null,null,null,"Own Illness",null,null,null,null,null,null,null,null,null,null,null,null,null,null,null,null,null,null,null,null,null,null,null,null,null,null,null,null,null,null,null,null,"",null,""]
[null,null,null,null,null,null,null,null,null,null,null,null,null,"Special Leave",null,null,null,null,null,null,null,null,null,null,null,null,null,null,null,null,null,null,null,null,null,null,null,null,null,null,null,null,null,null,null,null,"",null,""]
[null,null,null,null,null,null,null,null,null,null,null,null,null,"Parental Leave",null,null,null,null,null,null,null,null,null,null,null,null,null,null,null,null,null,null,null,null,null,null,null,null,null,null,null,null,null,null,null,null,"",null,""]
[]
[null,null,null,null,null,null,null,null,null,null,null,null,null,"Total absent hours",null,{"$f":"IF(ROUND(SUM(P25:P28),2)=0,\"\",ROUND(SUM(P25:P28),2))","v":""},"","","","","","","","","","","","","","","","","","","","","","","","","","","","","","",""]
[]
[]
[null,null,null,null,null,null,null,null,null,null,null,null,null,"Total hours",null,{"$f":"IF(ROUND(SUM(P21,P30),2)=0,\"\",ROUND(SUM(P21,P30),2))","v":""},"","","","","","","","","","",{"$f":"IF(ROUND(SUM(AA21,AA30),2)=0,\"\",ROUND(SUM(AA21,AA30),2))","v":""},{"$f":"IF(ROUND(SUM(AB21,AB30),2)=0,\"\",ROUND(SUM(AB21,AB30),2))","v":""},"","","","","","","","","","","","","","","","","","",""]
[]
[]
[]
[null,null,"Short description of the activities carried out",null,null,null,null,null,null,null,null,null,null,null,null,null,null,null,null,null,null,null,null,null,"Signatures and date of signature",null,null,null,null,null,null,null,null,null,null,null,null,null,null,null,null,"Beneficiary:"]
[null,null,"(indicate the project name with the description)",null,null,null,null,null,null,null,null,null,null,null,null,null,null,null,null,null,null,null,null,null,null,null,null,null,null,null,null,null,null,null,null,null,null,null,null,null,null,{"$f":"Beneficiary","v":"STOCKHOLMS UNIVERSITET"}]
[]
[]
[null,null,null,null,null,null,null,null,null,null,null,null,null,null,null,null,null,null,null,null,null,null,null,null,{"$f":"IF(Member=\"\",Error.name.member,IF(Member.title=\"\",Error.title.member,IF(Total.Error.Funding>0,Error.no.funding,IF(Total.Error.EU>0,Error.no.WP,\"\"))))","v":""}]
[]
[null,null,null,null,null,null,null,null,null,null,null,null,null,null,null,null,null,null,null,null,null,null,null,null,{"$f":"Member","v":"(fill in name of member on Start Page)"}]
[null,null,null,null,null,null,null,null,null,null,null,null,null,null,null,null,null,null,null,null,null,null,null,null,{"$f":"Member.title","v":"(fill in title of member on Start Page)"},null,null,null,null,null,null,null,null,null,null,"Date"]
[]
[]
[null,null,null,null,null,null,null,null,null,null,null,null,null,null,null,null,null,null,null,null,null,null,null,null,{"$f":"IF(Y51=0,Error.name.supervisor,IF(Total.Error.Funding>0,Error.no.funding,IF(Total.Error.EU>0,Error.no.WP,\"\")))","v":""}]
[]
[]
[null,null,null,null,null,null,null,null,null,null,null,null,null,null,null,null,null,null,null,null,null,null,null,null,{"$f":"\"Supervisor:\"","v":"Supervisor:"},null,null,null,null,null,null,null,null,null,null,"Date"]
[null,null,null,null,null,null,null,null,null,null,null,null,null,null,null,null,null,null,null,null,null,null,null,null,{"$f":"Supervisor","v":"(fill in name of supervisor on Start Page)"}]
[null,null,null,null,null,null,null,null,null,null,null,null,null,null,null,null,null,null,null,null,null,null,null,null,{"$f":"Supervisor.title","v":"(fill in the title of supervisor on Start Page)"}]

{"sheet":"Apr","index":6,"n_rows":52,"n_cols":49,"rows_kept":52,"cut":false,"hidden":false,"merged":[[8,2,8,13],[3,1,3,18],[3,19,3,25],[3,27,3,48],[6,2,6,13],[7,2,7,13],[39,2,51,19],[9,2,9,13],[10,2,10,13],[11,2,11,13],[12,2,12,13],[13,2,13,13],[14,2,14,13],[15,2,15,13],[16,2,16,13],[17,2,17,13],[23,2,30,5],[36,24,37,37],[41,48,51,48],[43,24,43,33],[49,24,49,33],[50,24,50,33],[51,24,51,33]]}
[null,null,null,null,null,null,null,null,null,null,null,null,null,null,"Röda dagar",{"$f":"OR(WEEKDAY(P6,2)=6,WEEKDAY(P6,2)=7,COUNTIF(Tabell.Red.FixedDates[FulltDatum],P6),COUNTIF(Tabell.Red.FixedDays[FulltDatum],P6))","v":true},{"$f":"OR(WEEKDAY(Q6,2)=6,WEEKDAY(Q6,2)=7,COUNTIF(Tabell.Red.FixedDates[FulltDatum],Q6),COUNTIF(Tabell.Red.FixedDays[FulltDatum],Q6))","v":false},{"$f":"OR(WEEKDAY(R6,2)=6,WEEKDAY(R6,2)=7,COUNTIF(Tabell.Red.FixedDates[FulltDatum],R6),COUNTIF(Tabell.Red.FixedDays[FulltDatum],R6))","v":false},{"$f":"OR(WEEKDAY(S6,2)=6,WEEKDAY(S6,2)=7,COUNTIF(Tabell.Red.FixedDates[FulltDatum],S6),COUNTIF(Tabell.Red.FixedDays[FulltDatum],S6))","v":false},{"$f":"OR(WEEKDAY(T6,2)=6,WEEKDAY(T6,2)=7,COUNTIF(Tabell.Red.FixedDates[FulltDatum],T6),COUNTIF(Tabell.Red.FixedDays[FulltDatum],T6))","v":false},{"$f":"OR(WEEKDAY(U6,2)=6,WEEKDAY(U6,2)=7,COUNTIF(Tabell.Red.FixedDates[FulltDatum],U6),COUNTIF(Tabell.Red.FixedDays[FulltDatum],U6))","v":true},{"$f":"OR(WEEKDAY(V6,2)=6,WEEKDAY(V6,2)=7,COUNTIF(Tabell.Red.FixedDates[FulltDatum],V6),COUNTIF(Tabell.Red.FixedDays[FulltDatum],V6))","v":true},{"$f":"OR(WEEKDAY(W6,2)=6,WEEKDAY(W6,2)=7,COUNTIF(Tabell.Red.FixedDates[FulltDatum],W6),COUNTIF(Tabell.Red.FixedDays[FulltDatum],W6))","v":false},{"$f":"OR(WEEKDAY(X6,2)=6,WEEKDAY(X6,2)=7,COUNTIF(Tabell.Red.FixedDates[FulltDatum],X6),COUNTIF(Tabell.Red.FixedDays[FulltDatum],X6))","v":false},{"$f":"OR(WEEKDAY(Y6,2)=6,WEEKDAY(Y6,2)=7,COUNTIF(Tabell.Red.FixedDates[FulltDatum],Y6),COUNTIF(Tabell.Red.FixedDays[FulltDatum],Y6))","v":false},{"$f":"OR(WEEKDAY(Z6,2)=6,WEEKDAY(Z6,2)=7,COUNTIF(Tabell.Red.FixedDates[FulltDatum],Z6),COUNTIF(Tabell.Red.FixedDays[FulltDatum],Z6))","v":false},{"$f":"OR(WEEKDAY(AA6,2)=6,WEEKDAY(AA6,2)=7,COUNTIF(Tabell.Red.FixedDates[FulltDatum],AA6),COUNTIF(Tabell.Red.FixedDays[FulltDatum],AA6))","v":false},{"$f":"OR(WEEKDAY(AB6,2)=6,WEEKDAY(AB6,2)=7,COUNTIF(Tabell.Red.FixedDates[FulltDatum],AB6),COUNTIF(Tabell.Red.FixedDays[FulltDatum],AB6))","v":true},{"$f":"OR(WEEKDAY(AC6,2)=6,WEEKDAY(AC6,2)=7,COUNTIF(Tabell.Red.FixedDates[FulltDatum],AC6),COUNTIF(Tabell.Red.FixedDays[FulltDatum],AC6))","v":true},{"$f":"OR(WEEKDAY(AD6,2)=6,WEEKDAY(AD6,2)=7,COUNTIF(Tabell.Red.FixedDates[FulltDatum],AD6),COUNTIF(Tabell.Red.FixedDays[FulltDatum],AD6))","v":false},{"$f":"OR(WEEKDAY(AE6,2)=6,WEEKDAY(AE6,2)=7,COUNTIF(Tabell.Red.FixedDates[FulltDatum],AE6),COUNTIF(Tabell.Red.FixedDays[FulltDatum],AE6))","v":false},{"$f":"OR(WEEKDAY(AF6,2)=6,WEEKDAY(AF6,2)=7,COUNTIF(Tabell.Red.FixedDates[FulltDatum],AF6),COUNTIF(Tabell.Red.FixedDays[FulltDatum],AF6))","v":false},{"$f":"OR(WEEKDAY(AG6,2)=6,WEEKDAY(AG6,2)=7,COUNTIF(Tabell.Red.FixedDates[FulltDatum],AG6),COUNTIF(Tabell.Red.FixedDays[FulltDatum],AG6))","v":false},{"$f":"OR(WEEKDAY(AH6,2)=6,WEEKDAY(AH6,2)=7,COUNTIF(Tabell.Red.FixedDates[FulltDatum],AH6),COUNTIF(Tabell.Red.FixedDays[FulltDatum],AH6))","v":false},{"$f":"OR(WEEKDAY(AI6,2)=6,WEEKDAY(AI6,2)=7,COUNTIF(Tabell.Red.FixedDates[FulltDatum],AI6),COUNTIF(Tabell.Red.FixedDays[FulltDatum],AI6))","v":true},{"$f":"OR(WEEKDAY(AJ6,2)=6,WEEKDAY(AJ6,2)=7,COUNTIF(Tabell.Red.FixedDates[FulltDatum],AJ6),COUNTIF(Tabell.Red.FixedDays[FulltDatum],AJ6))","v":true},{"$f":"OR(WEEKDAY(AK6,2)=6,WEEKDAY(AK6,2)=7,COUNTIF(Tabell.Red.FixedDates[FulltDatum],AK6),COUNTIF(Tabell.Red.FixedDays[FulltDatum],AK6))","v":false},{"$f":"OR(WEEKDAY(AL6,2)=6,WEEKDAY(AL6,2)=7,COUNTIF(Tabell.Red.FixedDates[FulltDatum],AL6),COUNTIF(Tabell.Red.FixedDays[FulltDatum],AL6))","v":false},{"$f":"OR(WEEKDAY(AM6,2)=6,WEEKDAY(AM6,2)=7,COUNTIF(Tabell.Red.FixedDates[FulltDatum],AM6),COUNTIF(Tabell.Red.FixedDays[FulltDatum],AM6))","v":false},{"$f":"OR(WEEKDAY(AN6,2)=6,WEEKDAY(AN6,2)=7,COUNTIF(Tabell.Red.FixedDates[FulltDatum],AN6),COUNTIF(Tabell.Red.FixedDays[FulltDatum],AN6))","v":false},{"$f":"OR(WEEKDAY(AO6,2)=6,WEEKDAY(AO6,2)=7,COUNTIF(Tabell.Red.FixedDates[FulltDatum],AO6),COUNTIF(Tabell.Red.FixedDays[FulltDatum],AO6))","v":false},{"$f":"OR(WEEKDAY(AP6,2)=6,WEEKDAY(AP6,2)=7,COUNTIF(Tabell.Red.FixedDates[FulltDatum],AP6),COUNTIF(Tabell.Red.FixedDays[FulltDatum],AP6))","v":true},{"$f":"OR(WEEKDAY(AQ6,2)=6,WEEKDAY(AQ6,2)=7,COUNTIF(Tabell.Red.FixedDates[FulltDatum],AQ6),COUNTIF(Tabell.Red.FixedDays[FulltDatum],AQ6))","v":true},{"$f":"OR(WEEKDAY(AR6,2)=6,WEEKDAY(AR6,2)=7,COUNTIF(Tabell.Red.FixedDates[FulltDatum],AR6),COUNTIF(Tabell.Red.FixedDays[FulltDatum],AR6))","v":false},{"$f":"OR(WEEKDAY(AS6,2)=6,WEEKDAY(AS6,2)=7,COUNTIF(Tabell.Red.FixedDates[FulltDatum],AS6),COUNTIF(Tabell.Red.FixedDays[FulltDatum],AS6))","v":false},{"$f":"OR(WEEKDAY(AT6,2)=6,WEEKDAY(AT6,2)=7,COUNTIF(Tabell.Red.FixedDates[FulltDatum],AT6),COUNTIF(Tabell.Red.FixedDays[FulltDatum],AT6))","v":true}]
[null,null,null,null,null,null,null,null,null,null,null,null,null,null,"Övriga dagar",{"$f":"OR(COUNTIF(Tabell.Shortdays[FulltDatum],P6),COUNTIF(Tabell.Klamdagar[FulltDatum],P6))","v":false},{"$f":"OR(COUNTIF(Tabell.Shortdays[FulltDatum],Q6),COUNTIF(Tabell.Klamdagar[FulltDatum],Q6))","v":false},{"$f":"OR(COUNTIF(Tabell.Shortdays[FulltDatum],R6),COUNTIF(Tabell.Klamdagar[FulltDatum],R6))","v":false},{"$f":"OR(COUNTIF(Tabell.Shortdays[FulltDatum],S6),COUNTIF(Tabell.Klamdagar[FulltDatum],S6))","v":false},{"$f":"OR(COUNTIF(Tabell.Shortdays[FulltDatum],T6),COUNTIF(Tabell.Klamdagar[FulltDatum],T6))","v":false},{"$f":"OR(COUNTIF(Tabell.Shortdays[FulltDatum],U6),COUNTIF(Tabell.Klamdagar[FulltDatum],U6))","v":false},{"$f":"OR(COUNTIF(Tabell.Shortdays[FulltDatum],V6),COUNTIF(Tabell.Klamdagar[FulltDatum],V6))","v":false},{"$f":"OR(COUNTIF(Tabell.Shortdays[FulltDatum],W6),COUNTIF(Tabell.Klamdagar[FulltDatum],W6))","v":false},{"$f":"OR(COUNTIF(Tabell.Shortdays[FulltDatum],X6),COUNTIF(Tabell.Klamdagar[FulltDatum],X6))","v":false},{"$f":"OR(COUNTIF(Tabell.Shortdays[FulltDatum],Y6),COUNTIF(Tabell.Klamdagar[FulltDatum],Y6))","v":false},{"$f":"OR(COUNTIF(Tabell.Shortdays[FulltDatum],Z6),COUNTIF(Tabell.Klamdagar[FulltDatum],Z6))","v":false},{"$f":"OR(COUNTIF(Tabell.Shortdays[FulltDatum],AA6),COUNTIF(Tabell.Klamdagar[FulltDatum],AA6))","v":false},{"$f":"OR(COUNTIF(Tabell.Shortdays[FulltDatum],AB6),COUNTIF(Tabell.Klamdagar[FulltDatum],AB6))","v":false},{"$f":"OR(COUNTIF(Tabell.Shortdays[FulltDatum],AC6),COUNTIF(Tabell.Klamdagar[FulltDatum],AC6))","v":false},{"$f":"OR(COUNTIF(Tabell.Shortdays[FulltDatum],AD6),COUNTIF(Tabell.Klamdagar[FulltDatum],AD6))","v":false},{"$f":"OR(COUNTIF(Tabell.Shortdays[FulltDatum],AE6),COUNTIF(Tabell.Klamdagar[FulltDatum],AE6))","v":false},{"$f":"OR(COUNTIF(Tabell.Shortdays[FulltDatum],AF6),COUNTIF(Tabell.Klamdagar[FulltDatum],AF6))","v":false},{"$f":"OR(COUNTIF(Tabell.Shortdays[FulltDatum],AG6),COUNTIF(Tabell.Klamdagar[FulltDatum],AG6))","v":false},{"$f":"OR(COUNTIF(Tabell.Shortdays[FulltDatum],AH6),COUNTIF(Tabell.Klamdagar[FulltDatum],AH6))","v":false},{"$f":"OR(COUNTIF(Tabell.Shortdays[FulltDatum],AI6),COUNTIF(Tabell.Klamdagar[FulltDatum],AI6))","v":false},{"$f":"OR(COUNTIF(Tabell.Shortdays[FulltDatum],AJ6),COUNTIF(Tabell.Klamdagar[FulltDatum],AJ6))","v":false},{"$f":"OR(COUNTIF(Tabell.Shortdays[FulltDatum],AK6),COUNTIF(Tabell.Klamdagar[FulltDatum],AK6))","v":false},{"$f":"OR(COUNTIF(Tabell.Shortdays[FulltDatum],AL6),COUNTIF(Tabell.Klamdagar[FulltDatum],AL6))","v":false},{"$f":"OR(COUNTIF(Tabell.Shortdays[FulltDatum],AM6),COUNTIF(Tabell.Klamdagar[FulltDatum],AM6))","v":false},{"$f":"OR(COUNTIF(Tabell.Shortdays[FulltDatum],AN6),COUNTIF(Tabell.Klamdagar[FulltDatum],AN6))","v":false},{"$f":"OR(COUNTIF(Tabell.Shortdays[FulltDatum],AO6),COUNTIF(Tabell.Klamdagar[FulltDatum],AO6))","v":false},{"$f":"OR(COUNTIF(Tabell.Shortdays[FulltDatum],AP6),COUNTIF(Tabell.Klamdagar[FulltDatum],AP6))","v":false},{"$f":"OR(COUNTIF(Tabell.Shortdays[FulltDatum],AQ6),COUNTIF(Tabell.Klamdagar[FulltDatum],AQ6))","v":false},{"$f":"OR(COUNTIF(Tabell.Shortdays[FulltDatum],AR6),COUNTIF(Tabell.Klamdagar[FulltDatum],AR6))","v":false},{"$f":"OR(COUNTIF(Tabell.Shortdays[FulltDatum],AS6),COUNTIF(Tabell.Klamdagar[FulltDatum],AS6))","v":false},{"$f":"OR(COUNTIF(Tabell.Shortdays[FulltDatum],AT6),COUNTIF(Tabell.Klamdagar[FulltDatum],AT6))","v":false}]
[]
[null,"April",null,null,null,null,null,null,null,null,null,null,null,null,null,null,null,null,null,{"$f":"Year","v":2024},null,null,null,null,null,null,null,{"$f":"Member","v":"(fill in name of member on Start Page)"}]
[]
[null,null,null,null,null,null,null,null,null,null,null,null,null,null,null,{"$f":"DATEVALUE(Year&\"-\"&VLOOKUP(LEFT(B4,3),list.months,2,0)&\"-1\")","v":"2024-04-01"},{"$f":"DATE(YEAR(P6),MONTH(P6),DAY(P6)+1)","v":"2024-04-02"},{"$f":"DATE(YEAR(Q6),MONTH(Q6),DAY(Q6)+1)","v":"2024-04-03"},"2024-04-04","2024-04-05","2024-04-06","2024-04-07","2024-04-08","2024-04-09","2024-04-10","2024-04-11","2024-04-12","2024-04-13","2024-04-14","2024-04-15","2024-04-16","2024-04-17","2024-04-18","2024-04-19","2024-04-20","2024-04-21","2024-04-22","2024-04-23","2024-04-24","2024-04-25","2024-04-26","2024-04-27","2024-04-28","2024-04-29","2024-04-30","2024-05-01","Sum",null,"%"]
[null,null,{"$f":"IF(Acronym.01=\"\",,IF(Type.01=\"\",Error.no.funding,IF(Type.01=Funding.type.03,Acronym.01&\" - \"&Contract.01,IF(Def!K76>0,Error.no.WP,Acronym.01&\" - \"&Contract.01&\" - WP\"&WP.01))))","v":0},null,null,null,null,null,null,null,null,null,null,null,null,null,null,null,null,null,null,null,null,null,null,null,null,null,null,null,null,null,null,null,null,null,null,null,null,null,null,null,null,null,null,null,{"$f":"SUM(P7:AT7)","v":0},null,{"$f":"IFERROR(IF(AU7/$AU$21=0,\"\",AU7/$AU$21),\"\")","v":""}]
[null,null,{"$f":"IF(Acronym.02=\"\",,IF(Type.02=\"\",Error.no.funding,IF(Type.02=Funding.type.03,Acronym.02&\" - \"&Contract.02,IF(Def!K77>0,Error.no.WP,Acronym.02&\" - \"&Contract.02&\" - WP\"&WP.02))))","v":0},null,null,null,null,null,null,null,null,null,null,null,null,null,null,null,null,null,null,null,null,null,null,null,null,null,null,null,null,null,null,null,null,null,null,null,null,null,null,null,null,null,null,null,0,null,""]
[null,null,{"$f":"IF(Acronym.03=\"\",,IF(Type.03=\"\",Error.no.funding,IF(Type.03=Funding.type.03,Acronym.03&\" - \"&Contract.03,IF(Def!K78>0,Error.no.WP,Acronym.03&\" - \"&Contract.03&\" - WP\"&WP.03))))","v":0},null,null,null,null,null,null,null,null,null,null,null,null,null,null,null,null,null,null,null,null,null,null,null,null,null,null,null,null,null,null,null,null,null,null,null,null,null,null,null,null,null,null,null,0,null,""]
[null,null,{"$f":"IF(Acronym.04=\"\",,IF(Type.04=\"\",Error.no.funding,IF(Type.04=Funding.type.03,Acronym.04&\" - \"&Contract.04,IF(Def!K79>0,Error.no.WP,Acronym.04&\" - \"&Contract.04&\" - WP\"&WP.04))))","v":0},null,null,null,null,null,null,null,null,null,null,null,null,null,null,null,null,null,null,null,null,null,null,null,null,null,null,null,null,null,null,null,null,null,null,null,null,null,null,null,null,null,null,null,0,null,""]
[null,null,{"$f":"IF(Acronym.05=\"\",,IF(Type.05=\"\",Error.no.funding,IF(Type.05=Funding.type.03,Acronym.05&\" - \"&Contract.05,IF(Def!K80>0,Error.no.WP,Acronym.05&\" - \"&Contract.05&\" - WP\"&WP.05))))","v":0},null,null,null,null,null,null,null,null,null,null,null,null,null,null,null,null,null,null,null,null,null,null,null,null,null,null,null,null,null,null,null,null,null,null,null,null,null,null,null,null,null,null,null,0,null,""]
[null,null,{"$f":"IF(Acronym.06=\"\",,IF(Type.06=\"\",Error.no.funding,IF(Type.06=Funding.type.03,Acronym.06&\" - \"&Contract.06,IF(Def!K81>0,Error.no.WP,Acronym.06&\" - \"&Contract.06&\" - WP\"&WP.06))))","v":0},null,null,null,null,null,null,null,null,null,null,null,null,null,null,null,null,null,null,null,null,null,null,null,null,null,null,null,null,null,null,null,null,null,null,null,null,null,null,null,null,null,null,null,0,null,""]
[null,null,{"$f":"IF(Acronym.07=\"\",,IF(Type.07=\"\",Error.no.funding,IF(Type.07=Funding.type.03,Acronym.07&\" - \"&Contract.07,IF(Def!K82>0,Error.no.WP,Acronym.07&\" - \"&Contract.07&\" - WP\"&WP.07))))","v":0},null,null,null,null,null,null,null,null,null,null,null,null,null,null,null,null,null,null,null,null,null,null,null,null,null,null,null,null,null,null,null,null,null,null,null,null,null,null,null,null,null,null,null,0,null,""]
[null,null,{"$f":"IF(Acronym.08=\"\",,IF(Type.08=\"\",Error.no.funding,IF(Type.08=Funding.type.03,Acronym.08&\" - \"&Contract.08,IF(Def!K83>0,Error.no.WP,Acronym.08&\" - \"&Contract.08&\" - WP\"&WP.08))))","v":0},null,null,null,null,null,null,null,null,null,null,null,null,null,null,null,null,null,null,null,null,null,null,null,null,null,null,null,null,null,null,null,null,null,null,null,null,null,null,null,null,null,null,null,0,null,""]
[null,null,{"$f":"IF(Acronym.09=\"\",,IF(Type.09=\"\",Error.no.funding,IF(Type.09=Funding.type.03,Acronym.09&\" - \"&Contract.09,IF(Def!K84>0,Error.no.WP,Acronym.09&\" - \"&Contract.09&\" - WP\"&WP.09))))","v":0},null,null,null,null,null,null,null,null,null,null,null,null,null,null,null,null,null,null,null,null,null,null,null,null,null,null,null,null,null,null,null,null,null,null,null,null,null,null,null,null,null,null,null,0,null,""]
[null,null,{"$f":"IF(Acronym.10=\"\",,IF(Type.10=\"\",Error.no.funding,IF(Type.10=Funding.type.03,Acronym.10&\" - \"&Contract.10,IF(Def!K85>0,Error.no.WP,Acronym.10&\" - \"&Contract.10&\" - WP\"&WP.10))))","v":0},null,null,null,null,null,null,null,null,null,null,null,null,null,null,null,null,null,null,null,null,null,null,null,null,null,null,null,null,null,null,null,null,null,null,null,null,null,null,null,null,null,null,null,0,null,""]
[null,null,{"$f":"IF(Acronym.11=\"\",,IF(Type.11=\"\",Error.no.funding,IF(Type.11=Funding.type.03,Acronym.11&\" - \"&Contract.11,IF(Def!K86>0,Error.no.WP,Acronym.11&\" - \"&Contract.11&\" - WP\"&WP.11))))","v":0},null,null,null,null,null,null,null,null,null,null,null,null,null,null,null,null,null,null,null,null,null,null,null,null,null,null,null,null,null,null,null,null,null,null,null,null,null,null,null,null,null,null,null,0,null,""]
[null,null,{"$f":"IF(Acronym.12=\"\",,IF(Type.12=\"\",Error.no.funding,IF(Type.12=Funding.type.03,Acronym.12&\" - \"&Contract.12,IF(Def!K87>0,Error.no.WP,Acronym.12&\" - \"&Contract.12&\" - WP\"&WP.12))))","v":0},null,null,null,null,null,null,null,null,null,null,null,null,null,null,null,null,null,null,null,null,null,null,null,null,null,null,null,null,null,null,null,null,null,null,null,null,null,null,null,null,null,null,null,0,null,{"$f":"IFERROR(AU18/$AU$21,\"\")","v":""}]
[null,null,null,null,null,null,null,null,null,null,null,null,null,"ALL OTHER HOURS WORKED AT SU",null,null,null,null,null,null,null,null,null,null,null,null,null,null,null,null,null,null,null,null,null,null,null,null,null,null,null,null,null,null,null,null,0,null,""]
[]
[null,null,null,null,null,null,null,null,null,null,null,null,null,"Total productive hours",null,{"$f":"IF(ROUND(SUM(P7:P19),2)=0,\"\",ROUND(SUM(P7:P19),2))","v":""},"","","","","","","","","","","","","","","","","","","","","","","","","","","","","","",""]
[]
[]
[null,null,"Absence"]
[null,null,null,null,null,null,null,null,null,null,null,null,null,"Annual Leave",null,null,null,null,null,null,null,null,null,null,null,null,null,null,null,null,null,null,null,null,null,null,null,null,null,null,null,null,null,null,null,null,{"$f":"IF(ROUND(SUM(P25:AT25),2)=0,\"\",ROUND(SUM(P25:AT25),2))","v":""},null,{"$f":"IFERROR(IF(AU25/$AU$30=0,\"\",AU25/$AU$30),\"\")","v":""}]
[null,null,null,null,null,null,null,null,null,null,null,null,null,"Own Illness",null,null,null,null,null,null,null,null,null,null,null,null,null,null,null,null,null,null,null,null,null,null,null,null,null,null,null,null,null,null,null,null,"",null,""]
[null,null,null,null,null,null,null,null,null,null,null,null,null,"Special Leave",null,null,null,null,null,null,null,null,null,null,null,null,null,null,null,null,null,null,null,null,null,null,null,null,null,null,null,null,null,null,null,null,"",null,""]
[null,null,null,null,null,null,null,null,null,null,null,null,null,"Parental Leave",null,null,null,null,null,null,null,null,null,null,null,null,null,null,null,null,null,null,null,null,null,null,null,null,null,null,null,null,null,null,null,null,"",null,""]
[]
[null,null,null,null,null,null,null,null,null,null,null,null,null,"Total absent hours",null,{"$f":"IF(ROUND(SUM(P25:P28),2)=0,\"\",ROUND(SUM(P25:P28),2))","v":""},"","","","","","","","","","","","","","","","","","","","","","","","","","","","","","",""]
[]
[]
[null,null,null,null,null,null,null,null,null,null,null,null,null,"Total hours",null,{"$f":"IF(ROUND(SUM(P21,P30),2)=0,\"\",ROUND(SUM(P21,P30),2))","v":""},"","","","","","","","","","",{"$f":"IF(ROUND(SUM(AA21,AA30),2)=0,\"\",ROUND(SUM(AA21,AA30),2))","v":""},{"$f":"IF(ROUND(SUM(AB21,AB30),2)=0,\"\",ROUND(SUM(AB21,AB30),2))","v":""},"","","","","","","","","","","","","","","","","","",""]
[]
[]
[]
[null,null,"Short description of the activities carried out",null,null,null,null,null,null,null,null,null,null,null,null,null,null,null,null,null,null,null,null,null,"Signatures and date of signature",null,null,null,null,null,null,null,null,null,null,null,null,null,null,null,null,"Beneficiary:"]
[null,null,"(indicate the project name with the description)",null,null,null,null,null,null,null,null,null,null,null,null,null,null,null,null,null,null,null,null,null,null,null,null,null,null,null,null,null,null,null,null,null,null,null,null,null,null,{"$f":"Beneficiary","v":"STOCKHOLMS UNIVERSITET"}]
[]
[]
[null,null,null,null,null,null,null,null,null,null,null,null,null,null,null,null,null,null,null,null,null,null,null,null,{"$f":"IF(Member=\"\",Error.name.member,IF(Member.title=\"\",Error.title.member,IF(Total.Error.Funding>0,Error.no.funding,IF(Total.Error.EU>0,Error.no.WP,\"\"))))","v":""}]
[]
[null,null,null,null,null,null,null,null,null,null,null,null,null,null,null,null,null,null,null,null,null,null,null,null,{"$f":"Member","v":"(fill in name of member on Start Page)"}]
[null,null,null,null,null,null,null,null,null,null,null,null,null,null,null,null,null,null,null,null,null,null,null,null,{"$f":"Member.title","v":"(fill in title of member on Start Page)"},null,null,null,null,null,null,null,null,null,null,"Date"]
[]
[]
[null,null,null,null,null,null,null,null,null,null,null,null,null,null,null,null,null,null,null,null,null,null,null,null,{"$f":"IF(Y51=0,Error.name.supervisor,IF(Total.Error.Funding>0,Error.no.funding,IF(Total.Error.EU>0,Error.no.WP,\"\")))","v":""}]
[]
[]
[null,null,null,null,null,null,null,null,null,null,null,null,null,null,null,null,null,null,null,null,null,null,null,null,{"$f":"\"Supervisor:\"","v":"Supervisor:"},null,null,null,null,null,null,null,null,null,null,"Date"]
[null,null,null,null,null,null,null,null,null,null,null,null,null,null,null,null,null,null,null,null,null,null,null,null,{"$f":"Supervisor","v":"(fill in name of supervisor on Start Page)"}]
[null,null,null,null,null,null,null,null,null,null,null,null,null,null,null,null,null,null,null,null,null,null,null,null,{"$f":"Supervisor.title","v":"(fill in the title of supervisor on Start Page)"}]

{"sheet":"May","index":7,"n_rows":52,"n_cols":49,"rows_kept":52,"cut":false,"hidden":false,"merged":[[8,2,8,13],[3,1,3,18],[3,19,3,25],[3,27,3,48],[6,2,6,13],[7,2,7,13],[39,2,51,19],[9,2,9,13],[10,2,10,13],[11,2,11,13],[12,2,12,13],[13,2,13,13],[14,2,14,13],[15,2,15,13],[16,2,16,13],[17,2,17,13],[23,2,30,5],[36,24,37,37],[41,48,51,48],[43,24,43,33],[49,24,49,33],[50,24,50,33],[51,24,51,33]]}
[null,null,null,null,null,null,null,null,null,null,null,null,null,null,"Röda dagar",{"$f":"OR(WEEKDAY(P6,2)=6,WEEKDAY(P6,2)=7,COUNTIF(Tabell.Red.FixedDates[FulltDatum],P6),COUNTIF(Tabell.Red.FixedDays[FulltDatum],P6))","v":true},{"$f":"OR(WEEKDAY(Q6,2)=6,WEEKDAY(Q6,2)=7,COUNTIF(Tabell.Red.FixedDates[FulltDatum],Q6),COUNTIF(Tabell.Red.FixedDays[FulltDatum],Q6))","v":false},{"$f":"OR(WEEKDAY(R6,2)=6,WEEKDAY(R6,2)=7,COUNTIF(Tabell.Red.FixedDates[FulltDatum],R6),COUNTIF(Tabell.Red.FixedDays[FulltDatum],R6))","v":false},{"$f":"OR(WEEKDAY(S6,2)=6,WEEKDAY(S6,2)=7,COUNTIF(Tabell.Red.FixedDates[FulltDatum],S6),COUNTIF(Tabell.Red.FixedDays[FulltDatum],S6))","v":true},{"$f":"OR(WEEKDAY(T6,2)=6,WEEKDAY(T6,2)=7,COUNTIF(Tabell.Red.FixedDates[FulltDatum],T6),COUNTIF(Tabell.Red.FixedDays[FulltDatum],T6))","v":true},{"$f":"OR(WEEKDAY(U6,2)=6,WEEKDAY(U6,2)=7,COUNTIF(Tabell.Red.FixedDates[FulltDatum],U6),COUNTIF(Tabell.Red.FixedDays[FulltDatum],U6))","v":false},{"$f":"OR(WEEKDAY(V6,2)=6,WEEKDAY(V6,2)=7,COUNTIF(Tabell.Red.FixedDates[FulltDatum],V6),COUNTIF(Tabell.Red.FixedDays[FulltDatum],V6))","v":false},{"$f":"OR(WEEKDAY(W6,2)=6,WEEKDAY(W6,2)=7,COUNTIF(Tabell.Red.FixedDates[FulltDatum],W6),COUNTIF(Tabell.Red.FixedDays[FulltDatum],W6))","v":false},{"$f":"OR(WEEKDAY(X6,2)=6,WEEKDAY(X6,2)=7,COUNTIF(Tabell.Red.FixedDates[FulltDatum],X6),COUNTIF(Tabell.Red.FixedDays[FulltDatum],X6))","v":true},{"$f":"OR(WEEKDAY(Y6,2)=6,WEEKDAY(Y6,2)=7,COUNTIF(Tabell.Red.FixedDates[FulltDatum],Y6),COUNTIF(Tabell.Red.FixedDays[FulltDatum],Y6))","v":false},{"$f":"OR(WEEKDAY(Z6,2)=6,WEEKDAY(Z6,2)=7,COUNTIF(Tabell.Red.FixedDates[FulltDatum],Z6),COUNTIF(Tabell.Red.FixedDays[FulltDatum],Z6))","v":true},{"$f":"OR(WEEKDAY(AA6,2)=6,WEEKDAY(AA6,2)=7,COUNTIF(Tabell.Red.FixedDates[FulltDatum],AA6),COUNTIF(Tabell.Red.FixedDays[FulltDatum],AA6))","v":true},{"$f":"OR(WEEKDAY(AB6,2)=6,WEEKDAY(AB6,2)=7,COUNTIF(Tabell.Red.FixedDates[FulltDatum],AB6),COUNTIF(Tabell.Red.FixedDays[FulltDatum],AB6))","v":false},{"$f":"OR(WEEKDAY(AC6,2)=6,WEEKDAY(AC6,2)=7,COUNTIF(Tabell.Red.FixedDates[FulltDatum],AC6),COUNTIF(Tabell.Red.FixedDays[FulltDatum],AC6))","v":false},{"$f":"OR(WEEKDAY(AD6,2)=6,WEEKDAY(AD6,2)=7,COUNTIF(Tabell.Red.FixedDates[FulltDatum],AD6),COUNTIF(Tabell.Red.FixedDays[FulltDatum],AD6))","v":false},{"$f":"OR(WEEKDAY(AE6,2)=6,WEEKDAY(AE6,2)=7,COUNTIF(Tabell.Red.FixedDates[FulltDatum],AE6),COUNTIF(Tabell.Red.FixedDays[FulltDatum],AE6))","v":false},{"$f":"OR(WEEKDAY(AF6,2)=6,WEEKDAY(AF6,2)=7,COUNTIF(Tabell.Red.FixedDates[FulltDatum],AF6),COUNTIF(Tabell.Red.FixedDays[FulltDatum],AF6))","v":false},{"$f":"OR(WEEKDAY(AG6,2)=6,WEEKDAY(AG6,2)=7,COUNTIF(Tabell.Red.FixedDates[FulltDatum],AG6),COUNTIF(Tabell.Red.FixedDays[FulltDatum],AG6))","v":true},{"$f":"OR(WEEKDAY(AH6,2)=6,WEEKDAY(AH6,2)=7,COUNTIF(Tabell.Red.FixedDates[FulltDatum],AH6),COUNTIF(Tabell.Red.FixedDays[FulltDatum],AH6))","v":true},{"$f":"OR(WEEKDAY(AI6,2)=6,WEEKDAY(AI6,2)=7,COUNTIF(Tabell.Red.FixedDates[FulltDatum],AI6),COUNTIF(Tabell.Red.FixedDays[FulltDatum],AI6))","v":false},{"$f":"OR(WEEKDAY(AJ6,2)=6,WEEKDAY(AJ6,2)=7,COUNTIF(Tabell.Red.FixedDates[FulltDatum],AJ6),COUNTIF(Tabell.Red.FixedDays[FulltDatum],AJ6))","v":false},{"$f":"OR(WEEKDAY(AK6,2)=6,WEEKDAY(AK6,2)=7,COUNTIF(Tabell.Red.FixedDates[FulltDatum],AK6),COUNTIF(Tabell.Red.FixedDays[FulltDatum],AK6))","v":false},{"$f":"OR(WEEKDAY(AL6,2)=6,WEEKDAY(AL6,2)=7,COUNTIF(Tabell.Red.FixedDates[FulltDatum],AL6),COUNTIF(Tabell.Red.FixedDays[FulltDatum],AL6))","v":false},{"$f":"OR(WEEKDAY(AM6,2)=6,WEEKDAY(AM6,2)=7,COUNTIF(Tabell.Red.FixedDates[FulltDatum],AM6),COUNTIF(Tabell.Red.FixedDays[FulltDatum],AM6))","v":false},{"$f":"OR(WEEKDAY(AN6,2)=6,WEEKDAY(AN6,2)=7,COUNTIF(Tabell.Red.FixedDates[FulltDatum],AN6),COUNTIF(Tabell.Red.FixedDays[FulltDatum],AN6))","v":true},{"$f":"OR(WEEKDAY(AO6,2)=6,WEEKDAY(AO6,2)=7,COUNTIF(Tabell.Red.FixedDates[FulltDatum],AO6),COUNTIF(Tabell.Red.FixedDays[FulltDatum],AO6))","v":true},{"$f":"OR(WEEKDAY(AP6,2)=6,WEEKDAY(AP6,2)=7,COUNTIF(Tabell.Red.FixedDates[FulltDatum],AP6),COUNTIF(Tabell.Red.FixedDays[FulltDatum],AP6))","v":false},{"$f":"OR(WEEKDAY(AQ6,2)=6,WEEKDAY(AQ6,2)=7,COUNTIF(Tabell.Red.FixedDates[FulltDatum],AQ6),COUNTIF(Tabell.Red.FixedDays[FulltDatum],AQ6))","v":false},{"$f":"OR(WEEKDAY(AR6,2)=6,WEEKDAY(AR6,2)=7,COUNTIF(Tabell.Red.FixedDates[FulltDatum],AR6),COUNTIF(Tabell.Red.FixedDays[FulltDatum],AR6))","v":false},{"$f":"OR(WEEKDAY(AS6,2)=6,WEEKDAY(AS6,2)=7,COUNTIF(Tabell.Red.FixedDates[FulltDatum],AS6),COUNTIF(Tabell.Red.FixedDays[FulltDatum],AS6))","v":false},{"$f":"OR(WEEKDAY(AT6,2)=6,WEEKDAY(AT6,2)=7,COUNTIF(Tabell.Red.FixedDates[FulltDatum],AT6),COUNTIF(Tabell.Red.FixedDays[FulltDatum],AT6))","v":false}]
[null,null,null,null,null,null,null,null,null,null,null,null,null,null,"Övriga dagar",{"$f":"OR(COUNTIF(Tabell.Shortdays[FulltDatum],P6),COUNTIF(Tabell.Klamdagar[FulltDatum],P6))","v":false},{"$f":"OR(COUNTIF(Tabell.Shortdays[FulltDatum],Q6),COUNTIF(Tabell.Klamdagar[FulltDatum],Q6))","v":false},{"$f":"OR(COUNTIF(Tabell.Shortdays[FulltDatum],R6),COUNTIF(Tabell.Klamdagar[FulltDatum],R6))","v":false},{"$f":"OR(COUNTIF(Tabell.Shortdays[FulltDatum],S6),COUNTIF(Tabell.Klamdagar[FulltDatum],S6))","v":false},{"$f":"OR(COUNTIF(Tabell.Shortdays[FulltDatum],T6),COUNTIF(Tabell.Klamdagar[FulltDatum],T6))","v":false},{"$f":"OR(COUNTIF(Tabell.Shortdays[FulltDatum],U6),COUNTIF(Tabell.Klamdagar[FulltDatum],U6))","v":false},{"$f":"OR(COUNTIF(Tabell.Shortdays[FulltDatum],V6),COUNTIF(Tabell.Klamdagar[FulltDatum],V6))","v":false},{"$f":"OR(COUNTIF(Tabell.Shortdays[FulltDatum],W6),COUNTIF(Tabell.Klamdagar[FulltDatum],W6))","v":false},{"$f":"OR(COUNTIF(Tabell.Shortdays[FulltDatum],X6),COUNTIF(Tabell.Klamdagar[FulltDatum],X6))","v":false},{"$f":"OR(COUNTIF(Tabell.Shortdays[FulltDatum],Y6),COUNTIF(Tabell.Klamdagar[FulltDatum],Y6))","v":false},{"$f":"OR(COUNTIF(Tabell.Shortdays[FulltDatum],Z6),COUNTIF(Tabell.Klamdagar[FulltDatum],Z6))","v":false},{"$f":"OR(COUNTIF(Tabell.Shortdays[FulltDatum],AA6),COUNTIF(Tabell.Klamdagar[FulltDatum],AA6))","v":false},{"$f":"OR(COUNTIF(Tabell.Shortdays[FulltDatum],AB6),COUNTIF(Tabell.Klamdagar[FulltDatum],AB6))","v":false},{"$f":"OR(COUNTIF(Tabell.Shortdays[FulltDatum],AC6),COUNTIF(Tabell.Klamdagar[FulltDatum],AC6))","v":false},{"$f":"OR(COUNTIF(Tabell.Shortdays[FulltDatum],AD6),COUNTIF(Tabell.Klamdagar[FulltDatum],AD6))","v":false},{"$f":"OR(COUNTIF(Tabell.Shortdays[FulltDatum],AE6),COUNTIF(Tabell.Klamdagar[FulltDatum],AE6))","v":false},{"$f":"OR(COUNTIF(Tabell.Shortdays[FulltDatum],AF6),COUNTIF(Tabell.Klamdagar[FulltDatum],AF6))","v":false},{"$f":"OR(COUNTIF(Tabell.Shortdays[FulltDatum],AG6),COUNTIF(Tabell.Klamdagar[FulltDatum],AG6))","v":false},{"$f":"OR(COUNTIF(Tabell.Shortdays[FulltDatum],AH6),COUNTIF(Tabell.Klamdagar[FulltDatum],AH6))","v":false},{"$f":"OR(COUNTIF(Tabell.Shortdays[FulltDatum],AI6),COUNTIF(Tabell.Klamdagar[FulltDatum],AI6))","v":false},{"$f":"OR(COUNTIF(Tabell.Shortdays[FulltDatum],AJ6),COUNTIF(Tabell.Klamdagar[FulltDatum],AJ6))","v":false},{"$f":"OR(COUNTIF(Tabell.Shortdays[FulltDatum],AK6),COUNTIF(Tabell.Klamdagar[FulltDatum],AK6))","v":false},{"$f":"OR(COUNTIF(Tabell.Shortdays[FulltDatum],AL6),COUNTIF(Tabell.Klamdagar[FulltDatum],AL6))","v":false},{"$f":"OR(COUNTIF(Tabell.Shortdays[FulltDatum],AM6),COUNTIF(Tabell.Klamdagar[FulltDatum],AM6))","v":false},{"$f":"OR(COUNTIF(Tabell.Shortdays[FulltDatum],AN6),COUNTIF(Tabell.Klamdagar[FulltDatum],AN6))","v":false},{"$f":"OR(COUNTIF(Tabell.Shortdays[FulltDatum],AO6),COUNTIF(Tabell.Klamdagar[FulltDatum],AO6))","v":false},{"$f":"OR(COUNTIF(Tabell.Shortdays[FulltDatum],AP6),COUNTIF(Tabell.Klamdagar[FulltDatum],AP6))","v":false},{"$f":"OR(COUNTIF(Tabell.Shortdays[FulltDatum],AQ6),COUNTIF(Tabell.Klamdagar[FulltDatum],AQ6))","v":false},{"$f":"OR(COUNTIF(Tabell.Shortdays[FulltDatum],AR6),COUNTIF(Tabell.Klamdagar[FulltDatum],AR6))","v":false},{"$f":"OR(COUNTIF(Tabell.Shortdays[FulltDatum],AS6),COUNTIF(Tabell.Klamdagar[FulltDatum],AS6))","v":false},{"$f":"OR(COUNTIF(Tabell.Shortdays[FulltDatum],AT6),COUNTIF(Tabell.Klamdagar[FulltDatum],AT6))","v":false}]
[]
[null,"May",null,null,null,null,null,null,null,null,null,null,null,null,null,null,null,null,null,{"$f":"Year","v":2024},null,null,null,null,null,null,null,{"$f":"Member","v":"(fill in name of member on Start Page)"}]
[]
[null,null,null,null,null,null,null,null,null,null,null,null,null,null,null,{"$f":"DATEVALUE(Year&\"-\"&VLOOKUP(LEFT(B4,3),list.months,2,0)&\"-1\")","v":"2024-05-01"},{"$f":"DATE(YEAR(P6),MONTH(P6),DAY(P6)+1)","v":"2024-05-02"},{"$f":"DATE(YEAR(Q6),MONTH(Q6),DAY(Q6)+1)","v":"2024-05-03"},"2024-05-04","2024-05-05","2024-05-06","2024-05-07","2024-05-08","2024-05-09","2024-05-10","2024-05-11","2024-05-12","2024-05-13","2024-05-14","2024-05-15","2024-05-16","2024-05-17","2024-05-18","2024-05-19","2024-05-20","2024-05-21","2024-05-22","2024-05-23","2024-05-24","2024-05-25","2024-05-26","2024-05-27","2024-05-28","2024-05-29","2024-05-30","2024-05-31","Sum",null,"%"]
[null,null,{"$f":"IF(Acronym.01=\"\",,IF(Type.01=\"\",Error.no.funding,IF(Type.01=Funding.type.03,Acronym.01&\" - \"&Contract.01,IF(Def!K76>0,Error.no.WP,Acronym.01&\" - \"&Contract.01&\" - WP\"&WP.01))))","v":0},null,null,null,null,null,null,null,null,null,null,null,null,null,null,null,null,null,null,null,null,null,null,null,null,null,null,null,null,null,null,null,null,null,null,null,null,null,null,null,null,null,null,null,{"$f":"SUM(P7:AT7)","v":0},null,{"$f":"IFERROR(IF(AU7/$AU$21=0,\"\",AU7/$AU$21),\"\")","v":""}]
[null,null,{"$f":"IF(Acronym.02=\"\",,IF(Type.02=\"\",Error.no.funding,IF(Type.02=Funding.type.03,Acronym.02&\" - \"&Contract.02,IF(Def!K77>0,Error.no.WP,Acronym.02&\" - \"&Contract.02&\" - WP\"&WP.02))))","v":0},null,null,null,null,null,null,null,null,null,null,null,null,null,null,null,null,null,null,null,null,null,null,null,null,null,null,null,null,null,null,null,null,null,null,null,null,null,null,null,null,null,null,null,0,null,""]
[null,null,{"$f":"IF(Acronym.03=\"\",,IF(Type.03=\"\",Error.no.funding,IF(Type.03=Funding.type.03,Acronym.03&\" - \"&Contract.03,IF(Def!K78>0,Error.no.WP,Acronym.03&\" - \"&Contract.03&\" - WP\"&WP.03))))","v":0},null,null,null,null,null,null,null,null,null,null,null,null,null,null,null,null,null,null,null,null,null,null,null,null,null,null,null,null,null,null,null,null,null,null,null,null,null,null,null,null,null,null,null,0,null,""]
[null,null,{"$f":"IF(Acronym.04=\"\",,IF(Type.04=\"\",Error.no.funding,IF(Type.04=Funding.type.03,Acronym.04&\" - \"&Contract.04,IF(Def!K79>0,Error.no.WP,Acronym.04&\" - \"&Contract.04&\" - WP\"&WP.04))))","v":0},null,null,null,null,null,null,null,null,null,null,null,null,null,null,null,null,null,null,null,null,null,null,null,null,null,null,null,null,null,null,null,null,null,null,null,null,null,null,null,null,null,null,null,0,null,""]
[null,null,{"$f":"IF(Acronym.05=\"\",,IF(Type.05=\"\",Error.no.funding,IF(Type.05=Funding.type.03,Acronym.05&\" - \"&Contract.05,IF(Def!K80>0,Error.no.WP,Acronym.05&\" - \"&Contract.05&\" - WP\"&WP.05))))","v":0},null,null,null,null,null,null,null,null,null,null,null,null,null,null,null,null,null,null,null,null,null,null,null,null,null,null,null,null,null,null,null,null,null,null,null,null,null,null,null,null,null,null,null,0,null,""]
[null,null,{"$f":"IF(Acronym.06=\"\",,IF(Type.06=\"\",Error.no.funding,IF(Type.06=Funding.type.03,Acronym.06&\" - \"&Contract.06,IF(Def!K81>0,Error.no.WP,Acronym.06&\" - \"&Contract.06&\" - WP\"&WP.06))))","v":0},null,null,null,null,null,null,null,null,null,null,null,null,null,null,null,null,null,null,null,null,null,null,null,null,null,null,null,null,null,null,null,null,null,null,null,null,null,null,null,null,null,null,null,0,null,""]
[null,null,{"$f":"IF(Acronym.07=\"\",,IF(Type.07=\"\",Error.no.funding,IF(Type.07=Funding.type.03,Acronym.07&\" - \"&Contract.07,IF(Def!K82>0,Error.no.WP,Acronym.07&\" - \"&Contract.07&\" - WP\"&WP.07))))","v":0},null,null,null,null,null,null,null,null,null,null,null,null,null,null,null,null,null,null,null,null,null,null,null,null,null,null,null,null,null,null,null,null,null,null,null,null,null,null,null,null,null,null,null,0,null,""]
[null,null,{"$f":"IF(Acronym.08=\"\",,IF(Type.08=\"\",Error.no.funding,IF(Type.08=Funding.type.03,Acronym.08&\" - \"&Contract.08,IF(Def!K83>0,Error.no.WP,Acronym.08&\" - \"&Contract.08&\" - WP\"&WP.08))))","v":0},null,null,null,null,null,null,null,null,null,null,null,null,null,null,null,null,null,null,null,null,null,null,null,null,null,null,null,null,null,null,null,null,null,null,null,null,null,null,null,null,null,null,null,0,null,""]
[null,null,{"$f":"IF(Acronym.09=\"\",,IF(Type.09=\"\",Error.no.funding,IF(Type.09=Funding.type.03,Acronym.09&\" - \"&Contract.09,IF(Def!K84>0,Error.no.WP,Acronym.09&\" - \"&Contract.09&\" - WP\"&WP.09))))","v":0},null,null,null,null,null,null,null,null,null,null,null,null,null,null,null,null,null,null,null,null,null,null,null,null,null,null,null,null,null,null,null,null,null,null,null,null,null,null,null,null,null,null,null,0,null,""]
[null,null,{"$f":"IF(Acronym.10=\"\",,IF(Type.10=\"\",Error.no.funding,IF(Type.10=Funding.type.03,Acronym.10&\" - \"&Contract.10,IF(Def!K85>0,Error.no.WP,Acronym.10&\" - \"&Contract.10&\" - WP\"&WP.10))))","v":0},null,null,null,null,null,null,null,null,null,null,null,null,null,null,null,null,null,null,null,null,null,null,null,null,null,null,null,null,null,null,null,null,null,null,null,null,null,null,null,null,null,null,null,0,null,""]
[null,null,{"$f":"IF(Acronym.11=\"\",,IF(Type.11=\"\",Error.no.funding,IF(Type.11=Funding.type.03,Acronym.11&\" - \"&Contract.11,IF(Def!K86>0,Error.no.WP,Acronym.11&\" - \"&Contract.11&\" - WP\"&WP.11))))","v":0},null,null,null,null,null,null,null,null,null,null,null,null,null,null,null,null,null,null,null,null,null,null,null,null,null,null,null,null,null,null,null,null,null,null,null,null,null,null,null,null,null,null,null,0,null,""]
[null,null,{"$f":"IF(Acronym.12=\"\",,IF(Type.12=\"\",Error.no.funding,IF(Type.12=Funding.type.03,Acronym.12&\" - \"&Contract.12,IF(Def!K87>0,Error.no.WP,Acronym.12&\" - \"&Contract.12&\" - WP\"&WP.12))))","v":0},null,null,null,null,null,null,null,null,null,null,null,null,null,null,null,null,null,null,null,null,null,null,null,null,null,null,null,null,null,null,null,null,null,null,null,null,null,null,null,null,null,null,null,0,null,{"$f":"IFERROR(AU18/$AU$21,\"\")","v":""}]
[null,null,null,null,null,null,null,null,null,null,null,null,null,"ALL OTHER HOURS WORKED AT SU",null,null,null,null,null,null,null,null,null,null,null,null,null,null,null,null,null,null,null,null,null,null,null,null,null,null,null,null,null,null,null,null,0,null,""]
[]
[null,null,null,null,null,null,null,null,null,null,null,null,null,"Total productive hours",null,{"$f":"IF(ROUND(SUM(P7:P19),2)=0,\"\",ROUND(SUM(P7:P19),2))","v":""},"","","","","","","","","","","","","","","","","","","","","","","","","","","","","","",""]
[]
[]
[null,null,"Absence"]
[null,null,null,null,null,null,null,null,null,null,null,null,null,"Annual Leave",null,null,null,null,null,null,null,null,null,null,null,null,null,null,null,null,null,null,null,null,null,null,null,null,null,null,null,null,null,null,null,null,{"$f":"IF(ROUND(SUM(P25:AT25),2)=0,\"\",ROUND(SUM(P25:AT25),2))","v":""},null,{"$f":"IFERROR(IF(AU25/$AU$30=0,\"\",AU25/$AU$30),\"\")","v":""}]
[null,null,null,null,null,null,null,null,null,null,null,null,null,"Own Illness",null,null,null,null,null,null,null,null,null,null,null,null,null,null,null,null,null,null,null,null,null,null,null,null,null,null,null,null,null,null,null,null,"",null,""]
[null,null,null,null,null,null,null,null,null,null,null,null,null,"Special Leave",null,null,null,null,null,null,null,null,null,null,null,null,null,null,null,null,null,null,null,null,null,null,null,null,null,null,null,null,null,null,null,null,"",null,""]
[null,null,null,null,null,null,null,null,null,null,null,null,null,"Parental Leave",null,null,null,null,null,null,null,null,null,null,null,null,null,null,null,null,null,null,null,null,null,null,null,null,null,null,null,null,null,null,null,null,"",null,""]
[]
[null,null,null,null,null,null,null,null,null,null,null,null,null,"Total absent hours",null,{"$f":"IF(ROUND(SUM(P25:P28),2)=0,\"\",ROUND(SUM(P25:P28),2))","v":""},"","","","","","","","","","","","","","","","","","","","","","","","","","","","","","",""]
[]
[]
[null,null,null,null,null,null,null,null,null,null,null,null,null,"Total hours",null,{"$f":"IF(ROUND(SUM(P21,P30),2)=0,\"\",ROUND(SUM(P21,P30),2))","v":""},"","","","","","","","","","",{"$f":"IF(ROUND(SUM(AA21,AA30),2)=0,\"\",ROUND(SUM(AA21,AA30),2))","v":""},{"$f":"IF(ROUND(SUM(AB21,AB30),2)=0,\"\",ROUND(SUM(AB21,AB30),2))","v":""},"","","","","","","","","","","","","","","","","","",""]
[]
[]
[]
[null,null,"Short description of the activities carried out",null,null,null,null,null,null,null,null,null,null,null,null,null,null,null,null,null,null,null,null,null,"Signatures and date of signature",null,null,null,null,null,null,null,null,null,null,null,null,null,null,null,null,"Beneficiary:"]
[null,null,"(indicate the project name with the description)",null,null,null,null,null,null,null,null,null,null,null,null,null,null,null,null,null,null,null,null,null,null,null,null,null,null,null,null,null,null,null,null,null,null,null,null,null,null,{"$f":"Beneficiary","v":"STOCKHOLMS UNIVERSITET"}]
[]
[]
[null,null,null,null,null,null,null,null,null,null,null,null,null,null,null,null,null,null,null,null,null,null,null,null,{"$f":"IF(Member=\"\",Error.name.member,IF(Member.title=\"\",Error.title.member,IF(Total.Error.Funding>0,Error.no.funding,IF(Total.Error.EU>0,Error.no.WP,\"\"))))","v":""}]
[]
[null,null,null,null,null,null,null,null,null,null,null,null,null,null,null,null,null,null,null,null,null,null,null,null,{"$f":"Member","v":"(fill in name of member on Start Page)"}]
[null,null,null,null,null,null,null,null,null,null,null,null,null,null,null,null,null,null,null,null,null,null,null,null,{"$f":"Member.title","v":"(fill in title of member on Start Page)"},null,null,null,null,null,null,null,null,null,null,"Date"]
[]
[]
[null,null,null,null,null,null,null,null,null,null,null,null,null,null,null,null,null,null,null,null,null,null,null,null,{"$f":"IF(Y51=0,Error.name.supervisor,IF(Total.Error.Funding>0,Error.no.funding,IF(Total.Error.EU>0,Error.no.WP,\"\")))","v":""}]
[]
[]
[null,null,null,null,null,null,null,null,null,null,null,null,null,null,null,null,null,null,null,null,null,null,null,null,{"$f":"\"Supervisor:\"","v":"Supervisor:"},null,null,null,null,null,null,null,null,null,null,"Date"]
[null,null,null,null,null,null,null,null,null,null,null,null,null,null,null,null,null,null,null,null,null,null,null,null,{"$f":"Supervisor","v":"(fill in name of supervisor on Start Page)"}]
[null,null,null,null,null,null,null,null,null,null,null,null,null,null,null,null,null,null,null,null,null,null,null,null,{"$f":"Supervisor.title","v":"(fill in the title of supervisor on Start Page)"}]

{"sheet":"Jun","index":8,"n_rows":52,"n_cols":49,"rows_kept":52,"cut":false,"hidden":false,"merged":[[8,2,8,13],[3,1,3,18],[3,19,3,25],[3,27,3,48],[6,2,6,13],[7,2,7,13],[39,2,51,19],[9,2,9,13],[10,2,10,13],[11,2,11,13],[12,2,12,13],[13,2,13,13],[14,2,14,13],[15,2,15,13],[16,2,16,13],[17,2,17,13],[23,2,30,5],[36,24,37,37],[41,48,51,48],[43,24,43,33],[49,24,49,33],[50,24,50,33],[51,24,51,33]]}
[null,null,null,null,null,null,null,null,null,null,null,null,null,null,"Röda dagar",{"$f":"OR(WEEKDAY(P6,2)=6,WEEKDAY(P6,2)=7,COUNTIF(Tabell.Red.FixedDates[FulltDatum],P6),COUNTIF(Tabell.Red.FixedDays[FulltDatum],P6))","v":true},{"$f":"OR(WEEKDAY(Q6,2)=6,WEEKDAY(Q6,2)=7,COUNTIF(Tabell.Red.FixedDates[FulltDatum],Q6),COUNTIF(Tabell.Red.FixedDays[FulltDatum],Q6))","v":true},{"$f":"OR(WEEKDAY(R6,2)=6,WEEKDAY(R6,2)=7,COUNTIF(Tabell.Red.FixedDates[FulltDatum],R6),COUNTIF(Tabell.Red.FixedDays[FulltDatum],R6))","v":false},{"$f":"OR(WEEKDAY(S6,2)=6,WEEKDAY(S6,2)=7,COUNTIF(Tabell.Red.FixedDates[FulltDatum],S6),COUNTIF(Tabell.Red.FixedDays[FulltDatum],S6))","v":false},{"$f":"OR(WEEKDAY(T6,2)=6,WEEKDAY(T6,2)=7,COUNTIF(Tabell.Red.FixedDates[FulltDatum],T6),COUNTIF(Tabell.Red.FixedDays[FulltDatum],T6))","v":false},{"$f":"OR(WEEKDAY(U6,2)=6,WEEKDAY(U6,2)=7,COUNTIF(Tabell.Red.FixedDates[FulltDatum],U6),COUNTIF(Tabell.Red.FixedDays[FulltDatum],U6))","v":true},{"$f":"OR(WEEKDAY(V6,2)=6,WEEKDAY(V6,2)=7,COUNTIF(Tabell.Red.FixedDates[FulltDatum],V6),COUNTIF(Tabell.Red.FixedDays[FulltDatum],V6))","v":false},{"$f":"OR(WEEKDAY(W6,2)=6,WEEKDAY(W6,2)=7,COUNTIF(Tabell.Red.FixedDates[FulltDatum],W6),COUNTIF(Tabell.Red.FixedDays[FulltDatum],W6))","v":true},{"$f":"OR(WEEKDAY(X6,2)=6,WEEKDAY(X6,2)=7,COUNTIF(Tabell.Red.FixedDates[FulltDatum],X6),COUNTIF(Tabell.Red.FixedDays[FulltDatum],X6))","v":true},{"$f":"OR(WEEKDAY(Y6,2)=6,WEEKDAY(Y6,2)=7,COUNTIF(Tabell.Red.FixedDates[FulltDatum],Y6),COUNTIF(Tabell.Red.FixedDays[FulltDatum],Y6))","v":false},{"$f":"OR(WEEKDAY(Z6,2)=6,WEEKDAY(Z6,2)=7,COUNTIF(Tabell.Red.FixedDates[FulltDatum],Z6),COUNTIF(Tabell.Red.FixedDays[FulltDatum],Z6))","v":false},{"$f":"OR(WEEKDAY(AA6,2)=6,WEEKDAY(AA6,2)=7,COUNTIF(Tabell.Red.FixedDates[FulltDatum],AA6),COUNTIF(Tabell.Red.FixedDays[FulltDatum],AA6))","v":false},{"$f":"OR(WEEKDAY(AB6,2)=6,WEEKDAY(AB6,2)=7,COUNTIF(Tabell.Red.FixedDates[FulltDatum],AB6),COUNTIF(Tabell.Red.FixedDays[FulltDatum],AB6))","v":false},{"$f":"OR(WEEKDAY(AC6,2)=6,WEEKDAY(AC6,2)=7,COUNTIF(Tabell.Red.FixedDates[FulltDatum],AC6),COUNTIF(Tabell.Red.FixedDays[FulltDatum],AC6))","v":false},{"$f":"OR(WEEKDAY(AD6,2)=6,WEEKDAY(AD6,2)=7,COUNTIF(Tabell.Red.FixedDates[FulltDatum],AD6),COUNTIF(Tabell.Red.FixedDays[FulltDatum],AD6))","v":true},{"$f":"OR(WEEKDAY(AE6,2)=6,WEEKDAY(AE6,2)=7,COUNTIF(Tabell.Red.FixedDates[FulltDatum],AE6),COUNTIF(Tabell.Red.FixedDays[FulltDatum],AE6))","v":true},{"$f":"OR(WEEKDAY(AF6,2)=6,WEEKDAY(AF6,2)=7,COUNTIF(Tabell.Red.FixedDates[FulltDatum],AF6),COUNTIF(Tabell.Red.FixedDays[FulltDatum],AF6))","v":false},{"$f":"OR(WEEKDAY(AG6,2)=6,WEEKDAY(AG6,2)=7,COUNTIF(Tabell.Red.FixedDates[FulltDatum],AG6),COUNTIF(Tabell.Red.FixedDays[FulltDatum],AG6))","v":false},{"$f":"OR(WEEKDAY(AH6,2)=6,WEEKDAY(AH6,2)=7,COUNTIF(Tabell.Red.FixedDates[FulltDatum],AH6),COUNTIF(Tabell.Red.FixedDays[FulltDatum],AH6))","v":false},{"$f":"OR(WEEKDAY(AI6,2)=6,WEEKDAY(AI6,2)=7,COUNTIF(Tabell.Red.FixedDates[FulltDatum],AI6),COUNTIF(Tabell.Red.FixedDays[FulltDatum],AI6))","v":false},{"$f":"OR(WEEKDAY(AJ6,2)=6,WEEKDAY(AJ6,2)=7,COUNTIF(Tabell.Red.FixedDates[FulltDatum],AJ6),COUNTIF(Tabell.Red.FixedDays[FulltDatum],AJ6))","v":true},{"$f":"OR(WEEKDAY(AK6,2)=6,WEEKDAY(AK6,2)=7,COUNTIF(Tabell.Red.FixedDates[FulltDatum],AK6),COUNTIF(Tabell.Red.FixedDays[FulltDatum],AK6))","v":true},{"$f":"OR(WEEKDAY(AL6,2)=6,WEEKDAY(AL6,2)=7,COUNTIF(Tabell.Red.FixedDates[FulltDatum],AL6),COUNTIF(Tabell.Red.FixedDays[FulltDatum],AL6))","v":true},{"$f":"OR(WEEKDAY(AM6,2)=6,WEEKDAY(AM6,2)=7,COUNTIF(Tabell.Red.FixedDates[FulltDatum],AM6),COUNTIF(Tabell.Red.FixedDays[FulltDatum],AM6))","v":false},{"$f":"OR(WEEKDAY(AN6,2)=6,WEEKDAY(AN6,2)=7,COUNTIF(Tabell.Red.FixedDates[FulltDatum],AN6),COUNTIF(Tabell.Red.FixedDays[FulltDatum],AN6))","v":false},{"$f":"OR(WEEKDAY(AO6,2)=6,WEEKDAY(AO6,2)=7,COUNTIF(Tabell.Red.FixedDates[FulltDatum],AO6),COUNTIF(Tabell.Red.FixedDays[FulltDatum],AO6))","v":false},{"$f":"OR(WEEKDAY(AP6,2)=6,WEEKDAY(AP6,2)=7,COUNTIF(Tabell.Red.FixedDates[FulltDatum],AP6),COUNTIF(Tabell.Red.FixedDays[FulltDatum],AP6))","v":false},{"$f":"OR(WEEKDAY(AQ6,2)=6,WEEKDAY(AQ6,2)=7,COUNTIF(Tabell.Red.FixedDates[FulltDatum],AQ6),COUNTIF(Tabell.Red.FixedDays[FulltDatum],AQ6))","v":false},{"$f":"OR(WEEKDAY(AR6,2)=6,WEEKDAY(AR6,2)=7,COUNTIF(Tabell.Red.FixedDates[FulltDatum],AR6),COUNTIF(Tabell.Red.FixedDays[FulltDatum],AR6))","v":true},{"$f":"OR(WEEKDAY(AS6,2)=6,WEEKDAY(AS6,2)=7,COUNTIF(Tabell.Red.FixedDates[FulltDatum],AS6),COUNTIF(Tabell.Red.FixedDays[FulltDatum],AS6))","v":true},{"$f":"OR(WEEKDAY(AT6,2)=6,WEEKDAY(AT6,2)=7,COUNTIF(Tabell.Red.FixedDates[FulltDatum],AT6),COUNTIF(Tabell.Red.FixedDays[FulltDatum],AT6))","v":false}]
[null,null,null,null,null,null,null,null,null,null,null,null,null,null,"Övriga dagar",{"$f":"OR(COUNTIF(Tabell.Shortdays[FulltDatum],P6),COUNTIF(Tabell.Klamdagar[FulltDatum],P6))","v":false},{"$f":"OR(COUNTIF(Tabell.Shortdays[FulltDatum],Q6),COUNTIF(Tabell.Klamdagar[FulltDatum],Q6))","v":false},{"$f":"OR(COUNTIF(Tabell.Shortdays[FulltDatum],R6),COUNTIF(Tabell.Klamdagar[FulltDatum],R6))","v":false},{"$f":"OR(COUNTIF(Tabell.Shortdays[FulltDatum],S6),COUNTIF(Tabell.Klamdagar[FulltDatum],S6))","v":false},{"$f":"OR(COUNTIF(Tabell.Shortdays[FulltDatum],T6),COUNTIF(Tabell.Klamdagar[FulltDatum],T6))","v":false},{"$f":"OR(COUNTIF(Tabell.Shortdays[FulltDatum],U6),COUNTIF(Tabell.Klamdagar[FulltDatum],U6))","v":false},{"$f":"OR(COUNTIF(Tabell.Shortdays[FulltDatum],V6),COUNTIF(Tabell.Klamdagar[FulltDatum],V6))","v":false},{"$f":"OR(COUNTIF(Tabell.Shortdays[FulltDatum],W6),COUNTIF(Tabell.Klamdagar[FulltDatum],W6))","v":false},{"$f":"OR(COUNTIF(Tabell.Shortdays[FulltDatum],X6),COUNTIF(Tabell.Klamdagar[FulltDatum],X6))","v":false},{"$f":"OR(COUNTIF(Tabell.Shortdays[FulltDatum],Y6),COUNTIF(Tabell.Klamdagar[FulltDatum],Y6))","v":false},{"$f":"OR(COUNTIF(Tabell.Shortdays[FulltDatum],Z6),COUNTIF(Tabell.Klamdagar[FulltDatum],Z6))","v":false},{"$f":"OR(COUNTIF(Tabell.Shortdays[FulltDatum],AA6),COUNTIF(Tabell.Klamdagar[FulltDatum],AA6))","v":false},{"$f":"OR(COUNTIF(Tabell.Shortdays[FulltDatum],AB6),COUNTIF(Tabell.Klamdagar[FulltDatum],AB6))","v":false},{"$f":"OR(COUNTIF(Tabell.Shortdays[FulltDatum],AC6),COUNTIF(Tabell.Klamdagar[FulltDatum],AC6))","v":false},{"$f":"OR(COUNTIF(Tabell.Shortdays[FulltDatum],AD6),COUNTIF(Tabell.Klamdagar[FulltDatum],AD6))","v":false},{"$f":"OR(COUNTIF(Tabell.Shortdays[FulltDatum],AE6),COUNTIF(Tabell.Klamdagar[FulltDatum],AE6))","v":false},{"$f":"OR(COUNTIF(Tabell.Shortdays[FulltDatum],AF6),COUNTIF(Tabell.Klamdagar[FulltDatum],AF6))","v":false},{"$f":"OR(COUNTIF(Tabell.Shortdays[FulltDatum],AG6),COUNTIF(Tabell.Klamdagar[FulltDatum],AG6))","v":false},{"$f":"OR(COUNTIF(Tabell.Shortdays[FulltDatum],AH6),COUNTIF(Tabell.Klamdagar[FulltDatum],AH6))","v":false},{"$f":"OR(COUNTIF(Tabell.Shortdays[FulltDatum],AI6),COUNTIF(Tabell.Klamdagar[FulltDatum],AI6))","v":false},{"$f":"OR(COUNTIF(Tabell.Shortdays[FulltDatum],AJ6),COUNTIF(Tabell.Klamdagar[FulltDatum],AJ6))","v":false},{"$f":"OR(COUNTIF(Tabell.Shortdays[FulltDatum],AK6),COUNTIF(Tabell.Klamdagar[FulltDatum],AK6))","v":false},{"$f":"OR(COUNTIF(Tabell.Shortdays[FulltDatum],AL6),COUNTIF(Tabell.Klamdagar[FulltDatum],AL6))","v":false},{"$f":"OR(COUNTIF(Tabell.Shortdays[FulltDatum],AM6),COUNTIF(Tabell.Klamdagar[FulltDatum],AM6))","v":false},{"$f":"OR(COUNTIF(Tabell.Shortdays[FulltDatum],AN6),COUNTIF(Tabell.Klamdagar[FulltDatum],AN6))","v":false},{"$f":"OR(COUNTIF(Tabell.Shortdays[FulltDatum],AO6),COUNTIF(Tabell.Klamdagar[FulltDatum],AO6))","v":false},{"$f":"OR(COUNTIF(Tabell.Shortdays[FulltDatum],AP6),COUNTIF(Tabell.Klamdagar[FulltDatum],AP6))","v":false},{"$f":"OR(COUNTIF(Tabell.Shortdays[FulltDatum],AQ6),COUNTIF(Tabell.Klamdagar[FulltDatum],AQ6))","v":false},{"$f":"OR(COUNTIF(Tabell.Shortdays[FulltDatum],AR6),COUNTIF(Tabell.Klamdagar[FulltDatum],AR6))","v":false},{"$f":"OR(COUNTIF(Tabell.Shortdays[FulltDatum],AS6),COUNTIF(Tabell.Klamdagar[FulltDatum],AS6))","v":false},{"$f":"OR(COUNTIF(Tabell.Shortdays[FulltDatum],AT6),COUNTIF(Tabell.Klamdagar[FulltDatum],AT6))","v":false}]
[]
[null,"June",null,null,null,null,null,null,null,null,null,null,null,null,null,null,null,null,null,{"$f":"Year","v":2024},null,null,null,null,null,null,null,{"$f":"Member","v":"(fill in name of member on Start Page)"}]
[]
[null,null,null,null,null,null,null,null,null,null,null,null,null,null,null,{"$f":"DATEVALUE(Year&\"-\"&VLOOKUP(LEFT(B4,3),list.months,2,0)&\"-1\")","v":"2024-06-01"},{"$f":"DATE(YEAR(P6),MONTH(P6),DAY(P6)+1)","v":"2024-06-02"},{"$f":"DATE(YEAR(Q6),MONTH(Q6),DAY(Q6)+1)","v":"2024-06-03"},"2024-06-04","2024-06-05","2024-06-06","2024-06-07","2024-06-08","2024-06-09","2024-06-10","2024-06-11","2024-06-12","2024-06-13","2024-06-14","2024-06-15","2024-06-16","2024-06-17","2024-06-18","2024-06-19","2024-06-20","2024-06-21","2024-06-22","2024-06-23","2024-06-24","2024-06-25","2024-06-26","2024-06-27","2024-06-28","2024-06-29","2024-06-30","2024-07-01","Sum",null,"%"]
[null,null,{"$f":"IF(Acronym.01=\"\",,IF(Type.01=\"\",Error.no.funding,IF(Type.01=Funding.type.03,Acronym.01&\" - \"&Contract.01,IF(Def!K76>0,Error.no.WP,Acronym.01&\" - \"&Contract.01&\" - WP\"&WP.01))))","v":0},null,null,null,null,null,null,null,null,null,null,null,null,null,null,null,null,null,null,null,null,null,null,null,null,null,null,null,null,null,null,null,null,null,null,null,null,null,null,null,null,null,null,null,{"$f":"SUM(P7:AT7)","v":0},null,{"$f":"IFERROR(IF(AU7/$AU$21=0,\"\",AU7/$AU$21),\"\")","v":""}]
[null,null,{"$f":"IF(Acronym.02=\"\",,IF(Type.02=\"\",Error.no.funding,IF(Type.02=Funding.type.03,Acronym.02&\" - \"&Contract.02,IF(Def!K77>0,Error.no.WP,Acronym.02&\" - \"&Contract.02&\" - WP\"&WP.02))))","v":0},null,null,null,null,null,null,null,null,null,null,null,null,null,null,null,null,null,null,null,null,null,null,null,null,null,null,null,null,null,null,null,null,null,null,null,null,null,null,null,null,null,null,null,0,null,""]
[null,null,{"$f":"IF(Acronym.03=\"\",,IF(Type.03=\"\",Error.no.funding,IF(Type.03=Funding.type.03,Acronym.03&\" - \"&Contract.03,IF(Def!K78>0,Error.no.WP,Acronym.03&\" - \"&Contract.03&\" - WP\"&WP.03))))","v":0},null,null,null,null,null,null,null,null,null,null,null,null,null,null,null,null,null,null,null,null,null,null,null,null,null,null,null,null,null,null,null,null,null,null,null,null,null,null,null,null,null,null,null,0,null,""]
[null,null,{"$f":"IF(Acronym.04=\"\",,IF(Type.04=\"\",Error.no.funding,IF(Type.04=Funding.type.03,Acronym.04&\" - \"&Contract.04,IF(Def!K79>0,Error.no.WP,Acronym.04&\" - \"&Contract.04&\" - WP\"&WP.04))))","v":0},null,null,null,null,null,null,null,null,null,null,null,null,null,null,null,null,null,null,null,null,null,null,null,null,null,null,null,null,null,null,null,null,null,null,null,null,null,null,null,null,null,null,null,0,null,""]
[null,null,{"$f":"IF(Acronym.05=\"\",,IF(Type.05=\"\",Error.no.funding,IF(Type.05=Funding.type.03,Acronym.05&\" - \"&Contract.05,IF(Def!K80>0,Error.no.WP,Acronym.05&\" - \"&Contract.05&\" - WP\"&WP.05))))","v":0},null,null,null,null,null,null,null,null,null,null,null,null,null,null,null,null,null,null,null,null,null,null,null,null,null,null,null,null,null,null,null,null,null,null,null,null,null,null,null,null,null,null,null,0,null,""]
[null,null,{"$f":"IF(Acronym.06=\"\",,IF(Type.06=\"\",Error.no.funding,IF(Type.06=Funding.type.03,Acronym.06&\" - \"&Contract.06,IF(Def!K81>0,Error.no.WP,Acronym.06&\" - \"&Contract.06&\" - WP\"&WP.06))))","v":0},null,null,null,null,null,null,null,null,null,null,null,null,null,null,null,null,null,null,null,null,null,null,null,null,null,null,null,null,null,null,null,null,null,null,null,null,null,null,null,null,null,null,null,0,null,""]
[null,null,{"$f":"IF(Acronym.07=\"\",,IF(Type.07=\"\",Error.no.funding,IF(Type.07=Funding.type.03,Acronym.07&\" - \"&Contract.07,IF(Def!K82>0,Error.no.WP,Acronym.07&\" - \"&Contract.07&\" - WP\"&WP.07))))","v":0},null,null,null,null,null,null,null,null,null,null,null,null,null,null,null,null,null,null,null,null,null,null,null,null,null,null,null,null,null,null,null,null,null,null,null,null,null,null,null,null,null,null,null,0,null,""]
[null,null,{"$f":"IF(Acronym.08=\"\",,IF(Type.08=\"\",Error.no.funding,IF(Type.08=Funding.type.03,Acronym.08&\" - \"&Contract.08,IF(Def!K83>0,Error.no.WP,Acronym.08&\" - \"&Contract.08&\" - WP\"&WP.08))))","v":0},null,null,null,null,null,null,null,null,null,null,null,null,null,null,null,null,null,null,null,null,null,null,null,null,null,null,null,null,null,null,null,null,null,null,null,null,null,null,null,null,null,null,null,0,null,""]
[null,null,{"$f":"IF(Acronym.09=\"\",,IF(Type.09=\"\",Error.no.funding,IF(Type.09=Funding.type.03,Acronym.09&\" - \"&Contract.09,IF(Def!K84>0,Error.no.WP,Acronym.09&\" - \"&Contract.09&\" - WP\"&WP.09))))","v":0},null,null,null,null,null,null,null,null,null,null,null,null,null,null,null,null,null,null,null,null,null,null,null,null,null,null,null,null,null,null,null,null,null,null,null,null,null,null,null,null,null,null,null,0,null,""]
[null,null,{"$f":"IF(Acronym.10=\"\",,IF(Type.10=\"\",Error.no.funding,IF(Type.10=Funding.type.03,Acronym.10&\" - \"&Contract.10,IF(Def!K85>0,Error.no.WP,Acronym.10&\" - \"&Contract.10&\" - WP\"&WP.10))))","v":0},null,null,null,null,null,null,null,null,null,null,null,null,null,null,null,null,null,null,null,null,null,null,null,null,null,null,null,null,null,null,null,null,null,null,null,null,null,null,null,null,null,null,null,0,null,""]
[null,null,{"$f":"IF(Acronym.11=\"\",,IF(Type.11=\"\",Error.no.funding,IF(Type.11=Funding.type.03,Acronym.11&\" - \"&Contract.11,IF(Def!K86>0,Error.no.WP,Acronym.11&\" - \"&Contract.11&\" - WP\"&WP.11))))","v":0},null,null,null,null,null,null,null,null,null,null,null,null,null,null,null,null,null,null,null,null,null,null,null,null,null,null,null,null,null,null,null,null,null,null,null,null,null,null,null,null,null,null,null,0,null,""]
[null,null,{"$f":"IF(Acronym.12=\"\",,IF(Type.12=\"\",Error.no.funding,IF(Type.12=Funding.type.03,Acronym.12&\" - \"&Contract.12,IF(Def!K87>0,Error.no.WP,Acronym.12&\" - \"&Contract.12&\" - WP\"&WP.12))))","v":0},null,null,null,null,null,null,null,null,null,null,null,null,null,null,null,null,null,null,null,null,null,null,null,null,null,null,null,null,null,null,null,null,null,null,null,null,null,null,null,null,null,null,null,0,null,{"$f":"IFERROR(AU18/$AU$21,\"\")","v":""}]
[null,null,null,null,null,null,null,null,null,null,null,null,null,"ALL OTHER HOURS WORKED AT SU",null,null,null,null,null,null,null,null,null,null,null,null,null,null,null,null,null,null,null,null,null,null,null,null,null,null,null,null,null,null,null,null,0,null,""]
[]
[null,null,null,null,null,null,null,null,null,null,null,null,null,"Total productive hours",null,{"$f":"IF(ROUND(SUM(P7:P19),2)=0,\"\",ROUND(SUM(P7:P19),2))","v":""},"","","","","","","","","","","","","","","","","","","","","","","","","","","","","","",""]
[]
[]
[null,null,"Absence"]
[null,null,null,null,null,null,null,null,null,null,null,null,null,"Annual Leave",null,null,null,null,null,null,null,null,null,null,null,null,null,null,null,null,null,null,null,null,null,null,null,null,null,null,null,null,null,null,null,null,{"$f":"IF(ROUND(SUM(P25:AT25),2)=0,\"\",ROUND(SUM(P25:AT25),2))","v":""},null,{"$f":"IFERROR(IF(AU25/$AU$30=0,\"\",AU25/$AU$30),\"\")","v":""}]
[null,null,null,null,null,null,null,null,null,null,null,null,null,"Own Illness",null,null,null,null,null,null,null,null,null,null,null,null,null,null,null,null,null,null,null,null,null,null,null,null,null,null,null,null,null,null,null,null,"",null,""]
[null,null,null,null,null,null,null,null,null,null,null,null,null,"Special Leave",null,null,null,null,null,null,null,null,null,null,null,null,null,null,null,null,null,null,null,null,null,null,null,null,null,null,null,null,null,null,null,null,"",null,""]
[null,null,null,null,null,null,null,null,null,null,null,null,null,"Parental Leave",null,null,null,null,null,null,null,null,null,null,null,null,null,null,null,null,null,null,null,null,null,null,null,null,null,null,null,null,null,null,null,null,"",null,""]
[]
[null,null,null,null,null,null,null,null,null,null,null,null,null,"Total absent hours",null,{"$f":"IF(ROUND(SUM(P25:P28),2)=0,\"\",ROUND(SUM(P25:P28),2))","v":""},"","","","","","","","","","","","","","","","","","","","","","","","","","","","","","",""]
[]
[]
[null,null,null,null,null,null,null,null,null,null,null,null,null,"Total hours",null,{"$f":"IF(ROUND(SUM(P21,P30),2)=0,\"\",ROUND(SUM(P21,P30),2))","v":""},"","","","","","","","","","",{"$f":"IF(ROUND(SUM(AA21,AA30),2)=0,\"\",ROUND(SUM(AA21,AA30),2))","v":""},{"$f":"IF(ROUND(SUM(AB21,AB30),2)=0,\"\",ROUND(SUM(AB21,AB30),2))","v":""},"","","","","","","","","","","","","","","","","","",""]
[]
[]
[]
[null,null,"Short description of the activities carried out",null,null,null,null,null,null,null,null,null,null,null,null,null,null,null,null,null,null,null,null,null,"Signatures and date of signature",null,null,null,null,null,null,null,null,null,null,null,null,null,null,null,null,"Beneficiary:"]
[null,null,"(indicate the project name with the description)",null,null,null,null,null,null,null,null,null,null,null,null,null,null,null,null,null,null,null,null,null,null,null,null,null,null,null,null,null,null,null,null,null,null,null,null,null,null,{"$f":"Beneficiary","v":"STOCKHOLMS UNIVERSITET"}]
[]
[]
[null,null,null,null,null,null,null,null,null,null,null,null,null,null,null,null,null,null,null,null,null,null,null,null,{"$f":"IF(Member=\"\",Error.name.member,IF(Member.title=\"\",Error.title.member,IF(Total.Error.Funding>0,Error.no.funding,IF(Total.Error.EU>0,Error.no.WP,\"\"))))","v":""}]
[]
[null,null,null,null,null,null,null,null,null,null,null,null,null,null,null,null,null,null,null,null,null,null,null,null,{"$f":"Member","v":"(fill in name of member on Start Page)"}]
[null,null,null,null,null,null,null,null,null,null,null,null,null,null,null,null,null,null,null,null,null,null,null,null,{"$f":"Member.title","v":"(fill in title of member on Start Page)"},null,null,null,null,null,null,null,null,null,null,"Date"]
[]
[]
[null,null,null,null,null,null,null,null,null,null,null,null,null,null,null,null,null,null,null,null,null,null,null,null,{"$f":"IF(Y51=0,Error.name.supervisor,IF(Total.Error.Funding>0,Error.no.funding,IF(Total.Error.EU>0,Error.no.WP,\"\")))","v":""}]
[]
[]
[null,null,null,null,null,null,null,null,null,null,null,null,null,null,null,null,null,null,null,null,null,null,null,null,{"$f":"\"Supervisor:\"","v":"Supervisor:"},null,null,null,null,null,null,null,null,null,null,"Date"]
[null,null,null,null,null,null,null,null,null,null,null,null,null,null,null,null,null,null,null,null,null,null,null,null,{"$f":"Supervisor","v":"(fill in name of supervisor on Start Page)"}]
[null,null,null,null,null,null,null,null,null,null,null,null,null,null,null,null,null,null,null,null,null,null,null,null,{"$f":"Supervisor.title","v":"(fill in the title of supervisor on Start Page)"}]

{"sheet":"Jul","index":9,"n_rows":52,"n_cols":49,"rows_kept":52,"cut":false,"hidden":false,"merged":[[8,2,8,13],[3,1,3,18],[3,19,3,25],[3,27,3,48],[6,2,6,13],[7,2,7,13],[39,2,51,19],[9,2,9,13],[10,2,10,13],[11,2,11,13],[12,2,12,13],[13,2,13,13],[14,2,14,13],[15,2,15,13],[16,2,16,13],[17,2,17,13],[23,2,30,5],[36,24,37,37],[41,48,51,48],[43,24,43,33],[49,24,49,33],[50,24,50,33],[51,24,51,33]]}
[null,null,null,null,null,null,null,null,null,null,null,null,null,null,"Röda dagar",{"$f":"OR(WEEKDAY(P6,2)=6,WEEKDAY(P6,2)=7,COUNTIF(Tabell.Red.FixedDates[FulltDatum],P6),COUNTIF(Tabell.Red.FixedDays[FulltDatum],P6))","v":false},{"$f":"OR(WEEKDAY(Q6,2)=6,WEEKDAY(Q6,2)=7,COUNTIF(Tabell.Red.FixedDates[FulltDatum],Q6),COUNTIF(Tabell.Red.FixedDays[FulltDatum],Q6))","v":false},{"$f":"OR(WEEKDAY(R6,2)=6,WEEKDAY(R6,2)=7,COUNTIF(Tabell.Red.FixedDates[FulltDatum],R6),COUNTIF(Tabell.Red.FixedDays[FulltDatum],R6))","v":false},{"$f":"OR(WEEKDAY(S6,2)=6,WEEKDAY(S6,2)=7,COUNTIF(Tabell.Red.FixedDates[FulltDatum],S6),COUNTIF(Tabell.Red.FixedDays[FulltDatum],S6))","v":false},{"$f":"OR(WEEKDAY(T6,2)=6,WEEKDAY(T6,2)=7,COUNTIF(Tabell.Red.FixedDates[FulltDatum],T6),COUNTIF(Tabell.Red.FixedDays[FulltDatum],T6))","v":false},{"$f":"OR(WEEKDAY(U6,2)=6,WEEKDAY(U6,2)=7,COUNTIF(Tabell.Red.FixedDates[FulltDatum],U6),COUNTIF(Tabell.Red.FixedDays[FulltDatum],U6))","v":true},{"$f":"OR(WEEKDAY(V6,2)=6,WEEKDAY(V6,2)=7,COUNTIF(Tabell.Red.FixedDates[FulltDatum],V6),COUNTIF(Tabell.Red.FixedDays[FulltDatum],V6))","v":true},{"$f":"OR(WEEKDAY(W6,2)=6,WEEKDAY(W6,2)=7,COUNTIF(Tabell.Red.FixedDates[FulltDatum],W6),COUNTIF(Tabell.Red.FixedDays[FulltDatum],W6))","v":false},{"$f":"OR(WEEKDAY(X6,2)=6,WEEKDAY(X6,2)=7,COUNTIF(Tabell.Red.FixedDates[FulltDatum],X6),COUNTIF(Tabell.Red.FixedDays[FulltDatum],X6))","v":false},{"$f":"OR(WEEKDAY(Y6,2)=6,WEEKDAY(Y6,2)=7,COUNTIF(Tabell.Red.FixedDates[FulltDatum],Y6),COUNTIF(Tabell.Red.FixedDays[FulltDatum],Y6))","v":false},{"$f":"OR(WEEKDAY(Z6,2)=6,WEEKDAY(Z6,2)=7,COUNTIF(Tabell.Red.FixedDates[FulltDatum],Z6),COUNTIF(Tabell.Red.FixedDays[FulltDatum],Z6))","v":false},{"$f":"OR(WEEKDAY(AA6,2)=6,WEEKDAY(AA6,2)=7,COUNTIF(Tabell.Red.FixedDates[FulltDatum],AA6),COUNTIF(Tabell.Red.FixedDays[FulltDatum],AA6))","v":false},{"$f":"OR(WEEKDAY(AB6,2)=6,WEEKDAY(AB6,2)=7,COUNTIF(Tabell.Red.FixedDates[FulltDatum],AB6),COUNTIF(Tabell.Red.FixedDays[FulltDatum],AB6))","v":true},{"$f":"OR(WEEKDAY(AC6,2)=6,WEEKDAY(AC6,2)=7,COUNTIF(Tabell.Red.FixedDates[FulltDatum],AC6),COUNTIF(Tabell.Red.FixedDays[FulltDatum],AC6))","v":true},{"$f":"OR(WEEKDAY(AD6,2)=6,WEEKDAY(AD6,2)=7,COUNTIF(Tabell.Red.FixedDates[FulltDatum],AD6),COUNTIF(Tabell.Red.FixedDays[FulltDatum],AD6))","v":false},{"$f":"OR(WEEKDAY(AE6,2)=6,WEEKDAY(AE6,2)=7,COUNTIF(Tabell.Red.FixedDates[FulltDatum],AE6),COUNTIF(Tabell.Red.FixedDays[FulltDatum],AE6))","v":false},{"$f":"OR(WEEKDAY(AF6,2)=6,WEEKDAY(AF6,2)=7,COUNTIF(Tabell.Red.FixedDates[FulltDatum],AF6),COUNTIF(Tabell.Red.FixedDays[FulltDatum],AF6))","v":false},{"$f":"OR(WEEKDAY(AG6,2)=6,WEEKDAY(AG6,2)=7,COUNTIF(Tabell.Red.FixedDates[FulltDatum],AG6),COUNTIF(Tabell.Red.FixedDays[FulltDatum],AG6))","v":false},{"$f":"OR(WEEKDAY(AH6,2)=6,WEEKDAY(AH6,2)=7,COUNTIF(Tabell.Red.FixedDates[FulltDatum],AH6),COUNTIF(Tabell.Red.FixedDays[FulltDatum],AH6))","v":false},{"$f":"OR(WEEKDAY(AI6,2)=6,WEEKDAY(AI6,2)=7,COUNTIF(Tabell.Red.FixedDates[FulltDatum],AI6),COUNTIF(Tabell.Red.FixedDays[FulltDatum],AI6))","v":true},{"$f":"OR(WEEKDAY(AJ6,2)=6,WEEKDAY(AJ6,2)=7,COUNTIF(Tabell.Red.FixedDates[FulltDatum],AJ6),COUNTIF(Tabell.Red.FixedDays[FulltDatum],AJ6))","v":true},{"$f":"OR(WEEKDAY(AK6,2)=6,WEEKDAY(AK6,2)=7,COUNTIF(Tabell.Red.FixedDates[FulltDatum],AK6),COUNTIF(Tabell.Red.FixedDays[FulltDatum],AK6))","v":false},{"$f":"OR(WEEKDAY(AL6,2)=6,WEEKDAY(AL6,2)=7,COUNTIF(Tabell.Red.FixedDates[FulltDatum],AL6),COUNTIF(Tabell.Red.FixedDays[FulltDatum],AL6))","v":false},{"$f":"OR(WEEKDAY(AM6,2)=6,WEEKDAY(AM6,2)=7,COUNTIF(Tabell.Red.FixedDates[FulltDatum],AM6),COUNTIF(Tabell.Red.FixedDays[FulltDatum],AM6))","v":false},{"$f":"OR(WEEKDAY(AN6,2)=6,WEEKDAY(AN6,2)=7,COUNTIF(Tabell.Red.FixedDates[FulltDatum],AN6),COUNTIF(Tabell.Red.FixedDays[FulltDatum],AN6))","v":false},{"$f":"OR(WEEKDAY(AO6,2)=6,WEEKDAY(AO6,2)=7,COUNTIF(Tabell.Red.FixedDates[FulltDatum],AO6),COUNTIF(Tabell.Red.FixedDays[FulltDatum],AO6))","v":false},{"$f":"OR(WEEKDAY(AP6,2)=6,WEEKDAY(AP6,2)=7,COUNTIF(Tabell.Red.FixedDates[FulltDatum],AP6),COUNTIF(Tabell.Red.FixedDays[FulltDatum],AP6))","v":true},{"$f":"OR(WEEKDAY(AQ6,2)=6,WEEKDAY(AQ6,2)=7,COUNTIF(Tabell.Red.FixedDates[FulltDatum],AQ6),COUNTIF(Tabell.Red.FixedDays[FulltDatum],AQ6))","v":true},{"$f":"OR(WEEKDAY(AR6,2)=6,WEEKDAY(AR6,2)=7,COUNTIF(Tabell.Red.FixedDates[FulltDatum],AR6),COUNTIF(Tabell.Red.FixedDays[FulltDatum],AR6))","v":false},{"$f":"OR(WEEKDAY(AS6,2)=6,WEEKDAY(AS6,2)=7,COUNTIF(Tabell.Red.FixedDates[FulltDatum],AS6),COUNTIF(Tabell.Red.FixedDays[FulltDatum],AS6))","v":false},{"$f":"OR(WEEKDAY(AT6,2)=6,WEEKDAY(AT6,2)=7,COUNTIF(Tabell.Red.FixedDates[FulltDatum],AT6),COUNTIF(Tabell.Red.FixedDays[FulltDatum],AT6))","v":false}]
[null,null,null,null,null,null,null,null,null,null,null,null,null,null,"Övriga dagar",{"$f":"OR(COUNTIF(Tabell.Shortdays[FulltDatum],P6),COUNTIF(Tabell.Klamdagar[FulltDatum],P6))","v":false},{"$f":"OR(COUNTIF(Tabell.Shortdays[FulltDatum],Q6),COUNTIF(Tabell.Klamdagar[FulltDatum],Q6))","v":false},{"$f":"OR(COUNTIF(Tabell.Shortdays[FulltDatum],R6),COUNTIF(Tabell.Klamdagar[FulltDatum],R6))","v":false},{"$f":"OR(COUNTIF(Tabell.Shortdays[FulltDatum],S6),COUNTIF(Tabell.Klamdagar[FulltDatum],S6))","v":false},{"$f":"OR(COUNTIF(Tabell.Shortdays[FulltDatum],T6),COUNTIF(Tabell.Klamdagar[FulltDatum],T6))","v":false},{"$f":"OR(COUNTIF(Tabell.Shortdays[FulltDatum],U6),COUNTIF(Tabell.Klamdagar[FulltDatum],U6))","v":false},{"$f":"OR(COUNTIF(Tabell.Shortdays[FulltDatum],V6),COUNTIF(Tabell.Klamdagar[FulltDatum],V6))","v":false},{"$f":"OR(COUNTIF(Tabell.Shortdays[FulltDatum],W6),COUNTIF(Tabell.Klamdagar[FulltDatum],W6))","v":false},{"$f":"OR(COUNTIF(Tabell.Shortdays[FulltDatum],X6),COUNTIF(Tabell.Klamdagar[FulltDatum],X6))","v":false},{"$f":"OR(COUNTIF(Tabell.Shortdays[FulltDatum],Y6),COUNTIF(Tabell.Klamdagar[FulltDatum],Y6))","v":false},{"$f":"OR(COUNTIF(Tabell.Shortdays[FulltDatum],Z6),COUNTIF(Tabell.Klamdagar[FulltDatum],Z6))","v":false},{"$f":"OR(COUNTIF(Tabell.Shortdays[FulltDatum],AA6),COUNTIF(Tabell.Klamdagar[FulltDatum],AA6))","v":false},{"$f":"OR(COUNTIF(Tabell.Shortdays[FulltDatum],AB6),COUNTIF(Tabell.Klamdagar[FulltDatum],AB6))","v":false},{"$f":"OR(COUNTIF(Tabell.Shortdays[FulltDatum],AC6),COUNTIF(Tabell.Klamdagar[FulltDatum],AC6))","v":false},{"$f":"OR(COUNTIF(Tabell.Shortdays[FulltDatum],AD6),COUNTIF(Tabell.Klamdagar[FulltDatum],AD6))","v":false},{"$f":"OR(COUNTIF(Tabell.Shortdays[FulltDatum],AE6),COUNTIF(Tabell.Klamdagar[FulltDatum],AE6))","v":false},{"$f":"OR(COUNTIF(Tabell.Shortdays[FulltDatum],AF6),COUNTIF(Tabell.Klamdagar[FulltDatum],AF6))","v":false},{"$f":"OR(COUNTIF(Tabell.Shortdays[FulltDatum],AG6),COUNTIF(Tabell.Klamdagar[FulltDatum],AG6))","v":false},{"$f":"OR(COUNTIF(Tabell.Shortdays[FulltDatum],AH6),COUNTIF(Tabell.Klamdagar[FulltDatum],AH6))","v":false},{"$f":"OR(COUNTIF(Tabell.Shortdays[FulltDatum],AI6),COUNTIF(Tabell.Klamdagar[FulltDatum],AI6))","v":false},{"$f":"OR(COUNTIF(Tabell.Shortdays[FulltDatum],AJ6),COUNTIF(Tabell.Klamdagar[FulltDatum],AJ6))","v":false},{"$f":"OR(COUNTIF(Tabell.Shortdays[FulltDatum],AK6),COUNTIF(Tabell.Klamdagar[FulltDatum],AK6))","v":false},{"$f":"OR(COUNTIF(Tabell.Shortdays[FulltDatum],AL6),COUNTIF(Tabell.Klamdagar[FulltDatum],AL6))","v":false},{"$f":"OR(COUNTIF(Tabell.Shortdays[FulltDatum],AM6),COUNTIF(Tabell.Klamdagar[FulltDatum],AM6))","v":false},{"$f":"OR(COUNTIF(Tabell.Shortdays[FulltDatum],AN6),COUNTIF(Tabell.Klamdagar[FulltDatum],AN6))","v":false},{"$f":"OR(COUNTIF(Tabell.Shortdays[FulltDatum],AO6),COUNTIF(Tabell.Klamdagar[FulltDatum],AO6))","v":false},{"$f":"OR(COUNTIF(Tabell.Shortdays[FulltDatum],AP6),COUNTIF(Tabell.Klamdagar[FulltDatum],AP6))","v":false},{"$f":"OR(COUNTIF(Tabell.Shortdays[FulltDatum],AQ6),COUNTIF(Tabell.Klamdagar[FulltDatum],AQ6))","v":false},{"$f":"OR(COUNTIF(Tabell.Shortdays[FulltDatum],AR6),COUNTIF(Tabell.Klamdagar[FulltDatum],AR6))","v":false},{"$f":"OR(COUNTIF(Tabell.Shortdays[FulltDatum],AS6),COUNTIF(Tabell.Klamdagar[FulltDatum],AS6))","v":false},{"$f":"OR(COUNTIF(Tabell.Shortdays[FulltDatum],AT6),COUNTIF(Tabell.Klamdagar[FulltDatum],AT6))","v":false}]
[]
[null,"July",null,null,null,null,null,null,null,null,null,null,null,null,null,null,null,null,null,{"$f":"Year","v":2024},null,null,null,null,null,null,null,{"$f":"Member","v":"(fill in name of member on Start Page)"}]
[]
[null,null,null,null,null,null,null,null,null,null,null,null,null,null,null,{"$f":"DATEVALUE(Year&\"-\"&VLOOKUP(LEFT(B4,3),list.months,2,0)&\"-1\")","v":"2024-07-01"},{"$f":"DATE(YEAR(P6),MONTH(P6),DAY(P6)+1)","v":"2024-07-02"},{"$f":"DATE(YEAR(Q6),MONTH(Q6),DAY(Q6)+1)","v":"2024-07-03"},"2024-07-04","2024-07-05","2024-07-06","2024-07-07","2024-07-08","2024-07-09","2024-07-10","2024-07-11","2024-07-12","2024-07-13","2024-07-14","2024-07-15","2024-07-16","2024-07-17","2024-07-18","2024-07-19","2024-07-20","2024-07-21","2024-07-22","2024-07-23","2024-07-24","2024-07-25","2024-07-26","2024-07-27","2024-07-28","2024-07-29","2024-07-30","2024-07-31","Sum",null,"%"]
[null,null,{"$f":"IF(Acronym.01=\"\",,IF(Type.01=\"\",Error.no.funding,IF(Type.01=Funding.type.03,Acronym.01&\" - \"&Contract.01,IF(Def!K76>0,Error.no.WP,Acronym.01&\" - \"&Contract.01&\" - WP\"&WP.01))))","v":0},null,null,null,null,null,null,null,null,null,null,null,null,null,null,null,null,null,null,null,null,null,null,null,null,null,null,null,null,null,null,null,null,null,null,null,null,null,null,null,null,null,null,null,{"$f":"SUM(P7:AT7)","v":0},null,{"$f":"IFERROR(IF(AU7/$AU$21=0,\"\",AU7/$AU$21),\"\")","v":""}]
[null,null,{"$f":"IF(Acronym.02=\"\",,IF(Type.02=\"\",Error.no.funding,IF(Type.02=Funding.type.03,Acronym.02&\" - \"&Contract.02,IF(Def!K77>0,Error.no.WP,Acronym.02&\" - \"&Contract.02&\" - WP\"&WP.02))))","v":0},null,null,null,null,null,null,null,null,null,null,null,null,null,null,null,null,null,null,null,null,null,null,null,null,null,null,null,null,null,null,null,null,null,null,null,null,null,null,null,null,null,null,null,0,null,""]
[null,null,{"$f":"IF(Acronym.03=\"\",,IF(Type.03=\"\",Error.no.funding,IF(Type.03=Funding.type.03,Acronym.03&\" - \"&Contract.03,IF(Def!K78>0,Error.no.WP,Acronym.03&\" - \"&Contract.03&\" - WP\"&WP.03))))","v":0},null,null,null,null,null,null,null,null,null,null,null,null,null,null,null,null,null,null,null,null,null,null,null,null,null,null,null,null,null,null,null,null,null,null,null,null,null,null,null,null,null,null,null,0,null,""]
[null,null,{"$f":"IF(Acronym.04=\"\",,IF(Type.04=\"\",Error.no.funding,IF(Type.04=Funding.type.03,Acronym.04&\" - \"&Contract.04,IF(Def!K79>0,Error.no.WP,Acronym.04&\" - \"&Contract.04&\" - WP\"&WP.04))))","v":0},null,null,null,null,null,null,null,null,null,null,null,null,null,null,null,null,null,null,null,null,null,null,null,null,null,null,null,null,null,null,null,null,null,null,null,null,null,null,null,null,null,null,null,0,null,""]
[null,null,{"$f":"IF(Acronym.05=\"\",,IF(Type.05=\"\",Error.no.funding,IF(Type.05=Funding.type.03,Acronym.05&\" - \"&Contract.05,IF(Def!K80>0,Error.no.WP,Acronym.05&\" - \"&Contract.05&\" - WP\"&WP.05))))","v":0},null,null,null,null,null,null,null,null,null,null,null,null,null,null,null,null,null,null,null,null,null,null,null,null,null,null,null,null,null,null,null,null,null,null,null,null,null,null,null,null,null,null,null,0,null,""]
[null,null,{"$f":"IF(Acronym.06=\"\",,IF(Type.06=\"\",Error.no.funding,IF(Type.06=Funding.type.03,Acronym.06&\" - \"&Contract.06,IF(Def!K81>0,Error.no.WP,Acronym.06&\" - \"&Contract.06&\" - WP\"&WP.06))))","v":0},null,null,null,null,null,null,null,null,null,null,null,null,null,null,null,null,null,null,null,null,null,null,null,null,null,null,null,null,null,null,null,null,null,null,null,null,null,null,null,null,null,null,null,0,null,""]
[null,null,{"$f":"IF(Acronym.07=\"\",,IF(Type.07=\"\",Error.no.funding,IF(Type.07=Funding.type.03,Acronym.07&\" - \"&Contract.07,IF(Def!K82>0,Error.no.WP,Acronym.07&\" - \"&Contract.07&\" - WP\"&WP.07))))","v":0},null,null,null,null,null,null,null,null,null,null,null,null,null,null,null,null,null,null,null,null,null,null,null,null,null,null,null,null,null,null,null,null,null,null,null,null,null,null,null,null,null,null,null,0,null,""]
[null,null,{"$f":"IF(Acronym.08=\"\",,IF(Type.08=\"\",Error.no.funding,IF(Type.08=Funding.type.03,Acronym.08&\" - \"&Contract.08,IF(Def!K83>0,Error.no.WP,Acronym.08&\" - \"&Contract.08&\" - WP\"&WP.08))))","v":0},null,null,null,null,null,null,null,null,null,null,null,null,null,null,null,null,null,null,null,null,null,null,null,null,null,null,null,null,null,null,null,null,null,null,null,null,null,null,null,null,null,null,null,0,null,""]
[null,null,{"$f":"IF(Acronym.09=\"\",,IF(Type.09=\"\",Error.no.funding,IF(Type.09=Funding.type.03,Acronym.09&\" - \"&Contract.09,IF(Def!K84>0,Error.no.WP,Acronym.09&\" - \"&Contract.09&\" - WP\"&WP.09))))","v":0},null,null,null,null,null,null,null,null,null,null,null,null,null,null,null,null,null,null,null,null,null,null,null,null,null,null,null,null,null,null,null,null,null,null,null,null,null,null,null,null,null,null,null,0,null,""]
[null,null,{"$f":"IF(Acronym.10=\"\",,IF(Type.10=\"\",Error.no.funding,IF(Type.10=Funding.type.03,Acronym.10&\" - \"&Contract.10,IF(Def!K85>0,Error.no.WP,Acronym.10&\" - \"&Contract.10&\" - WP\"&WP.10))))","v":0},null,null,null,null,null,null,null,null,null,null,null,null,null,null,null,null,null,null,null,null,null,null,null,null,null,null,null,null,null,null,null,null,null,null,null,null,null,null,null,null,null,null,null,0,null,""]
[null,null,{"$f":"IF(Acronym.11=\"\",,IF(Type.11=\"\",Error.no.funding,IF(Type.11=Funding.type.03,Acronym.11&\" - \"&Contract.11,IF(Def!K86>0,Error.no.WP,Acronym.11&\" - \"&Contract.11&\" - WP\"&WP.11))))","v":0},null,null,null,null,null,null,null,null,null,null,null,null,null,null,null,null,null,null,null,null,null,null,null,null,null,null,null,null,null,null,null,null,null,null,null,null,null,null,null,null,null,null,null,0,null,""]
[null,null,{"$f":"IF(Acronym.12=\"\",,IF(Type.12=\"\",Error.no.funding,IF(Type.12=Funding.type.03,Acronym.12&\" - \"&Contract.12,IF(Def!K87>0,Error.no.WP,Acronym.12&\" - \"&Contract.12&\" - WP\"&WP.12))))","v":0},null,null,null,null,null,null,null,null,null,null,null,null,null,null,null,null,null,null,null,null,null,null,null,null,null,null,null,null,null,null,null,null,null,null,null,null,null,null,null,null,null,null,null,0,null,{"$f":"IFERROR(AU18/$AU$21,\"\")","v":""}]
[null,null,null,null,null,null,null,null,null,null,null,null,null,"ALL OTHER HOURS WORKED AT SU",null,null,null,null,null,null,null,null,null,null,null,null,null,null,null,null,null,null,null,null,null,null,null,null,null,null,null,null,null,null,null,null,0,null,""]
[]
[null,null,null,null,null,null,null,null,null,null,null,null,null,"Total productive hours",null,{"$f":"IF(ROUND(SUM(P7:P19),2)=0,\"\",ROUND(SUM(P7:P19),2))","v":""},"","","","","","","","","","","","","","","","","","","","","","","","","","","","","","",""]
[]
[]
[null,null,"Absence"]
[null,null,null,null,null,null,null,null,null,null,null,null,null,"Annual Leave",null,null,null,null,null,null,null,null,null,null,null,null,null,null,null,null,null,null,null,null,null,null,null,null,null,null,null,null,null,null,null,null,{"$f":"IF(ROUND(SUM(P25:AT25),2)=0,\"\",ROUND(SUM(P25:AT25),2))","v":""},null,{"$f":"IFERROR(IF(AU25/$AU$30=0,\"\",AU25/$AU$30),\"\")","v":""}]
[null,null,null,null,null,null,null,null,null,null,null,null,null,"Own Illness",null,null,null,null,null,null,null,null,null,null,null,null,null,null,null,null,null,null,null,null,null,null,null,null,null,null,null,null,null,null,null,null,"",null,""]
[null,null,null,null,null,null,null,null,null,null,null,null,null,"Special Leave",null,null,null,null,null,null,null,null,null,null,null,null,null,null,null,null,null,null,null,null,null,null,null,null,null,null,null,null,null,null,null,null,"",null,""]
[null,null,null,null,null,null,null,null,null,null,null,null,null,"Parental Leave",null,null,null,null,null,null,null,null,null,null,null,null,null,null,null,null,null,null,null,null,null,null,null,null,null,null,null,null,null,null,null,null,"",null,""]
[]
[null,null,null,null,null,null,null,null,null,null,null,null,null,"Total absent hours",null,{"$f":"IF(ROUND(SUM(P25:P28),2)=0,\"\",ROUND(SUM(P25:P28),2))","v":""},"","","","","","","","","","","","","","","","","","","","","","","","","","","","","","",""]
[]
[]
[null,null,null,null,null,null,null,null,null,null,null,null,null,"Total hours",null,{"$f":"IF(ROUND(SUM(P21,P30),2)=0,\"\",ROUND(SUM(P21,P30),2))","v":""},"","","","","","","","","","",{"$f":"IF(ROUND(SUM(AA21,AA30),2)=0,\"\",ROUND(SUM(AA21,AA30),2))","v":""},{"$f":"IF(ROUND(SUM(AB21,AB30),2)=0,\"\",ROUND(SUM(AB21,AB30),2))","v":""},"","","","","","","","","","","","","","","","","","",""]
[]
[]
[]
[null,null,"Short description of the activities carried out",null,null,null,null,null,null,null,null,null,null,null,null,null,null,null,null,null,null,null,null,null,"Signatures and date of signature",null,null,null,null,null,null,null,null,null,null,null,null,null,null,null,null,"Beneficiary:"]
[null,null,"(indicate the project name with the description)",null,null,null,null,null,null,null,null,null,null,null,null,null,null,null,null,null,null,null,null,null,null,null,null,null,null,null,null,null,null,null,null,null,null,null,null,null,null,{"$f":"Beneficiary","v":"STOCKHOLMS UNIVERSITET"}]
[]
[]
[null,null,null,null,null,null,null,null,null,null,null,null,null,null,null,null,null,null,null,null,null,null,null,null,{"$f":"IF(Member=\"\",Error.name.member,IF(Member.title=\"\",Error.title.member,IF(Total.Error.Funding>0,Error.no.funding,IF(Total.Error.EU>0,Error.no.WP,\"\"))))","v":""}]
[]
[null,null,null,null,null,null,null,null,null,null,null,null,null,null,null,null,null,null,null,null,null,null,null,null,{"$f":"Member","v":"(fill in name of member on Start Page)"}]
[null,null,null,null,null,null,null,null,null,null,null,null,null,null,null,null,null,null,null,null,null,null,null,null,{"$f":"Member.title","v":"(fill in title of member on Start Page)"},null,null,null,null,null,null,null,null,null,null,"Date"]
[]
[]
[null,null,null,null,null,null,null,null,null,null,null,null,null,null,null,null,null,null,null,null,null,null,null,null,{"$f":"IF(Y51=0,Error.name.supervisor,IF(Total.Error.Funding>0,Error.no.funding,IF(Total.Error.EU>0,Error.no.WP,\"\")))","v":""}]
[]
[]
[null,null,null,null,null,null,null,null,null,null,null,null,null,null,null,null,null,null,null,null,null,null,null,null,{"$f":"\"Supervisor:\"","v":"Supervisor:"},null,null,null,null,null,null,null,null,null,null,"Date"]
[null,null,null,null,null,null,null,null,null,null,null,null,null,null,null,null,null,null,null,null,null,null,null,null,{"$f":"Supervisor","v":"(fill in name of supervisor on Start Page)"}]
[null,null,null,null,null,null,null,null,null,null,null,null,null,null,null,null,null,null,null,null,null,null,null,null,{"$f":"Supervisor.title","v":"(fill in the title of supervisor on Start Page)"}]

{"sheet":"Aug","index":10,"n_rows":52,"n_cols":49,"rows_kept":52,"cut":false,"hidden":false,"merged":[[8,2,8,13],[3,1,3,18],[3,19,3,25],[3,27,3,48],[6,2,6,13],[7,2,7,13],[39,2,51,19],[9,2,9,13],[10,2,10,13],[11,2,11,13],[12,2,12,13],[13,2,13,13],[14,2,14,13],[15,2,15,13],[16,2,16,13],[17,2,17,13],[23,2,30,5],[36,24,37,37],[41,48,51,48],[43,24,43,33],[49,24,49,33],[50,24,50,33],[51,24,51,33]]}
[null,null,null,null,null,null,null,null,null,null,null,null,null,null,"Röda dagar",{"$f":"OR(WEEKDAY(P6,2)=6,WEEKDAY(P6,2)=7,COUNTIF(Tabell.Red.FixedDates[FulltDatum],P6),COUNTIF(Tabell.Red.FixedDays[FulltDatum],P6))","v":false},{"$f":"OR(WEEKDAY(Q6,2)=6,WEEKDAY(Q6,2)=7,COUNTIF(Tabell.Red.FixedDates[FulltDatum],Q6),COUNTIF(Tabell.Red.FixedDays[FulltDatum],Q6))","v":false},{"$f":"OR(WEEKDAY(R6,2)=6,WEEKDAY(R6,2)=7,COUNTIF(Tabell.Red.FixedDates[FulltDatum],R6),COUNTIF(Tabell.Red.FixedDays[FulltDatum],R6))","v":true},{"$f":"OR(WEEKDAY(S6,2)=6,WEEKDAY(S6,2)=7,COUNTIF(Tabell.Red.FixedDates[FulltDatum],S6),COUNTIF(Tabell.Red.FixedDays[FulltDatum],S6))","v":true},{"$f":"OR(WEEKDAY(T6,2)=6,WEEKDAY(T6,2)=7,COUNTIF(Tabell.Red.FixedDates[FulltDatum],T6),COUNTIF(Tabell.Red.FixedDays[FulltDatum],T6))","v":false},{"$f":"OR(WEEKDAY(U6,2)=6,WEEKDAY(U6,2)=7,COUNTIF(Tabell.Red.FixedDates[FulltDatum],U6),COUNTIF(Tabell.Red.FixedDays[FulltDatum],U6))","v":false},{"$f":"OR(WEEKDAY(V6,2)=6,WEEKDAY(V6,2)=7,COUNTIF(Tabell.Red.FixedDates[FulltDatum],V6),COUNTIF(Tabell.Red.FixedDays[FulltDatum],V6))","v":false},{"$f":"OR(WEEKDAY(W6,2)=6,WEEKDAY(W6,2)=7,COUNTIF(Tabell.Red.FixedDates[FulltDatum],W6),COUNTIF(Tabell.Red.FixedDays[FulltDatum],W6))","v":false},{"$f":"OR(WEEKDAY(X6,2)=6,WEEKDAY(X6,2)=7,COUNTIF(Tabell.Red.FixedDates[FulltDatum],X6),COUNTIF(Tabell.Red.FixedDays[FulltDatum],X6))","v":false},{"$f":"OR(WEEKDAY(Y6,2)=6,WEEKDAY(Y6,2)=7,COUNTIF(Tabell.Red.FixedDates[FulltDatum],Y6),COUNTIF(Tabell.Red.FixedDays[FulltDatum],Y6))","v":true},{"$f":"OR(WEEKDAY(Z6,2)=6,WEEKDAY(Z6,2)=7,COUNTIF(Tabell.Red.FixedDates[FulltDatum],Z6),COUNTIF(Tabell.Red.FixedDays[FulltDatum],Z6))","v":true},{"$f":"OR(WEEKDAY(AA6,2)=6,WEEKDAY(AA6,2)=7,COUNTIF(Tabell.Red.FixedDates[FulltDatum],AA6),COUNTIF(Tabell.Red.FixedDays[FulltDatum],AA6))","v":false},{"$f":"OR(WEEKDAY(AB6,2)=6,WEEKDAY(AB6,2)=7,COUNTIF(Tabell.Red.FixedDates[FulltDatum],AB6),COUNTIF(Tabell.Red.FixedDays[FulltDatum],AB6))","v":false},{"$f":"OR(WEEKDAY(AC6,2)=6,WEEKDAY(AC6,2)=7,COUNTIF(Tabell.Red.FixedDates[FulltDatum],AC6),COUNTIF(Tabell.Red.FixedDays[FulltDatum],AC6))","v":false},{"$f":"OR(WEEKDAY(AD6,2)=6,WEEKDAY(AD6,2)=7,COUNTIF(Tabell.Red.FixedDates[FulltDatum],AD6),COUNTIF(Tabell.Red.FixedDays[FulltDatum],AD6))","v":false},{"$f":"OR(WEEKDAY(AE6,2)=6,WEEKDAY(AE6,2)=7,COUNTIF(Tabell.Red.FixedDates[FulltDatum],AE6),COUNTIF(Tabell.Red.FixedDays[FulltDatum],AE6))","v":false},{"$f":"OR(WEEKDAY(AF6,2)=6,WEEKDAY(AF6,2)=7,COUNTIF(Tabell.Red.FixedDates[FulltDatum],AF6),COUNTIF(Tabell.Red.FixedDays[FulltDatum],AF6))","v":true},{"$f":"OR(WEEKDAY(AG6,2)=6,WEEKDAY(AG6,2)=7,COUNTIF(Tabell.Red.FixedDates[FulltDatum],AG6),COUNTIF(Tabell.Red.FixedDays[FulltDatum],AG6))","v":true},{"$f":"OR(WEEKDAY(AH6,2)=6,WEEKDAY(AH6,2)=7,COUNTIF(Tabell.Red.FixedDates[FulltDatum],AH6),COUNTIF(Tabell.Red.FixedDays[FulltDatum],AH6))","v":false},{"$f":"OR(WEEKDAY(AI6,2)=6,WEEKDAY(AI6,2)=7,COUNTIF(Tabell.Red.FixedDates[FulltDatum],AI6),COUNTIF(Tabell.Red.FixedDays[FulltDatum],AI6))","v":false},{"$f":"OR(WEEKDAY(AJ6,2)=6,WEEKDAY(AJ6,2)=7,COUNTIF(Tabell.Red.FixedDates[FulltDatum],AJ6),COUNTIF(Tabell.Red.FixedDays[FulltDatum],AJ6))","v":false},{"$f":"OR(WEEKDAY(AK6,2)=6,WEEKDAY(AK6,2)=7,COUNTIF(Tabell.Red.FixedDates[FulltDatum],AK6),COUNTIF(Tabell.Red.FixedDays[FulltDatum],AK6))","v":false},{"$f":"OR(WEEKDAY(AL6,2)=6,WEEKDAY(AL6,2)=7,COUNTIF(Tabell.Red.FixedDates[FulltDatum],AL6),COUNTIF(Tabell.Red.FixedDays[FulltDatum],AL6))","v":false},{"$f":"OR(WEEKDAY(AM6,2)=6,WEEKDAY(AM6,2)=7,COUNTIF(Tabell.Red.FixedDates[FulltDatum],AM6),COUNTIF(Tabell.Red.FixedDays[FulltDatum],AM6))","v":true},{"$f":"OR(WEEKDAY(AN6,2)=6,WEEKDAY(AN6,2)=7,COUNTIF(Tabell.Red.FixedDates[FulltDatum],AN6),COUNTIF(Tabell.Red.FixedDays[FulltDatum],AN6))","v":true},{"$f":"OR(WEEKDAY(AO6,2)=6,WEEKDAY(AO6,2)=7,COUNTIF(Tabell.Red.FixedDates[FulltDatum],AO6),COUNTIF(Tabell.Red.FixedDays[FulltDatum],AO6))","v":false},{"$f":"OR(WEEKDAY(AP6,2)=6,WEEKDAY(AP6,2)=7,COUNTIF(Tabell.Red.FixedDates[FulltDatum],AP6),COUNTIF(Tabell.Red.FixedDays[FulltDatum],AP6))","v":false},{"$f":"OR(WEEKDAY(AQ6,2)=6,WEEKDAY(AQ6,2)=7,COUNTIF(Tabell.Red.FixedDates[FulltDatum],AQ6),COUNTIF(Tabell.Red.FixedDays[FulltDatum],AQ6))","v":false},{"$f":"OR(WEEKDAY(AR6,2)=6,WEEKDAY(AR6,2)=7,COUNTIF(Tabell.Red.FixedDates[FulltDatum],AR6),COUNTIF(Tabell.Red.FixedDays[FulltDatum],AR6))","v":false},{"$f":"OR(WEEKDAY(AS6,2)=6,WEEKDAY(AS6,2)=7,COUNTIF(Tabell.Red.FixedDates[FulltDatum],AS6),COUNTIF(Tabell.Red.FixedDays[FulltDatum],AS6))","v":false},{"$f":"OR(WEEKDAY(AT6,2)=6,WEEKDAY(AT6,2)=7,COUNTIF(Tabell.Red.FixedDates[FulltDatum],AT6),COUNTIF(Tabell.Red.FixedDays[FulltDatum],AT6))","v":true}]
[null,null,null,null,null,null,null,null,null,null,null,null,null,null,"Övriga dagar",{"$f":"OR(COUNTIF(Tabell.Shortdays[FulltDatum],P6),COUNTIF(Tabell.Klamdagar[FulltDatum],P6))","v":false},{"$f":"OR(COUNTIF(Tabell.Shortdays[FulltDatum],Q6),COUNTIF(Tabell.Klamdagar[FulltDatum],Q6))","v":false},{"$f":"OR(COUNTIF(Tabell.Shortdays[FulltDatum],R6),COUNTIF(Tabell.Klamdagar[FulltDatum],R6))","v":false},{"$f":"OR(COUNTIF(Tabell.Shortdays[FulltDatum],S6),COUNTIF(Tabell.Klamdagar[FulltDatum],S6))","v":false},{"$f":"OR(COUNTIF(Tabell.Shortdays[FulltDatum],T6),COUNTIF(Tabell.Klamdagar[FulltDatum],T6))","v":false},{"$f":"OR(COUNTIF(Tabell.Shortdays[FulltDatum],U6),COUNTIF(Tabell.Klamdagar[FulltDatum],U6))","v":false},{"$f":"OR(COUNTIF(Tabell.Shortdays[FulltDatum],V6),COUNTIF(Tabell.Klamdagar[FulltDatum],V6))","v":false},{"$f":"OR(COUNTIF(Tabell.Shortdays[FulltDatum],W6),COUNTIF(Tabell.Klamdagar[FulltDatum],W6))","v":false},{"$f":"OR(COUNTIF(Tabell.Shortdays[FulltDatum],X6),COUNTIF(Tabell.Klamdagar[FulltDatum],X6))","v":false},{"$f":"OR(COUNTIF(Tabell.Shortdays[FulltDatum],Y6),COUNTIF(Tabell.Klamdagar[FulltDatum],Y6))","v":false},{"$f":"OR(COUNTIF(Tabell.Shortdays[FulltDatum],Z6),COUNTIF(Tabell.Klamdagar[FulltDatum],Z6))","v":false},{"$f":"OR(COUNTIF(Tabell.Shortdays[FulltDatum],AA6),COUNTIF(Tabell.Klamdagar[FulltDatum],AA6))","v":false},{"$f":"OR(COUNTIF(Tabell.Shortdays[FulltDatum],AB6),COUNTIF(Tabell.Klamdagar[FulltDatum],AB6))","v":false},{"$f":"OR(COUNTIF(Tabell.Shortdays[FulltDatum],AC6),COUNTIF(Tabell.Klamdagar[FulltDatum],AC6))","v":false},{"$f":"OR(COUNTIF(Tabell.Shortdays[FulltDatum],AD6),COUNTIF(Tabell.Klamdagar[FulltDatum],AD6))","v":false},{"$f":"OR(COUNTIF(Tabell.Shortdays[FulltDatum],AE6),COUNTIF(Tabell.Klamdagar[FulltDatum],AE6))","v":false},{"$f":"OR(COUNTIF(Tabell.Shortdays[FulltDatum],AF6),COUNTIF(Tabell.Klamdagar[FulltDatum],AF6))","v":false},{"$f":"OR(COUNTIF(Tabell.Shortdays[FulltDatum],AG6),COUNTIF(Tabell.Klamdagar[FulltDatum],AG6))","v":false},{"$f":"OR(COUNTIF(Tabell.Shortdays[FulltDatum],AH6),COUNTIF(Tabell.Klamdagar[FulltDatum],AH6))","v":false},{"$f":"OR(COUNTIF(Tabell.Shortdays[FulltDatum],AI6),COUNTIF(Tabell.Klamdagar[FulltDatum],AI6))","v":false},{"$f":"OR(COUNTIF(Tabell.Shortdays[FulltDatum],AJ6),COUNTIF(Tabell.Klamdagar[FulltDatum],AJ6))","v":false},{"$f":"OR(COUNTIF(Tabell.Shortdays[FulltDatum],AK6),COUNTIF(Tabell.Klamdagar[FulltDatum],AK6))","v":false},{"$f":"OR(COUNTIF(Tabell.Shortdays[FulltDatum],AL6),COUNTIF(Tabell.Klamdagar[FulltDatum],AL6))","v":false},{"$f":"OR(COUNTIF(Tabell.Shortdays[FulltDatum],AM6),COUNTIF(Tabell.Klamdagar[FulltDatum],AM6))","v":false},{"$f":"OR(COUNTIF(Tabell.Shortdays[FulltDatum],AN6),COUNTIF(Tabell.Klamdagar[FulltDatum],AN6))","v":false},{"$f":"OR(COUNTIF(Tabell.Shortdays[FulltDatum],AO6),COUNTIF(Tabell.Klamdagar[FulltDatum],AO6))","v":false},{"$f":"OR(COUNTIF(Tabell.Shortdays[FulltDatum],AP6),COUNTIF(Tabell.Klamdagar[FulltDatum],AP6))","v":false},{"$f":"OR(COUNTIF(Tabell.Shortdays[FulltDatum],AQ6),COUNTIF(Tabell.Klamdagar[FulltDatum],AQ6))","v":false},{"$f":"OR(COUNTIF(Tabell.Shortdays[FulltDatum],AR6),COUNTIF(Tabell.Klamdagar[FulltDatum],AR6))","v":false},{"$f":"OR(COUNTIF(Tabell.Shortdays[FulltDatum],AS6),COUNTIF(Tabell.Klamdagar[FulltDatum],AS6))","v":false},{"$f":"OR(COUNTIF(Tabell.Shortdays[FulltDatum],AT6),COUNTIF(Tabell.Klamdagar[FulltDatum],AT6))","v":false}]
[]
[null,"August",null,null,null,null,null,null,null,null,null,null,null,null,null,null,null,null,null,{"$f":"Year","v":2024},null,null,null,null,null,null,null,{"$f":"Member","v":"(fill in name of member on Start Page)"}]
[]
[null,null,null,null,null,null,null,null,null,null,null,null,null,null,null,{"$f":"DATEVALUE(Year&\"-\"&VLOOKUP(LEFT(B4,3),list.months,2,0)&\"-1\")","v":"2024-08-01"},{"$f":"DATE(YEAR(P6),MONTH(P6),DAY(P6)+1)","v":"2024-08-02"},{"$f":"DATE(YEAR(Q6),MONTH(Q6),DAY(Q6)+1)","v":"2024-08-03"},"2024-08-04","2024-08-05","2024-08-06","2024-08-07","2024-08-08","2024-08-09","2024-08-10","2024-08-11","2024-08-12","2024-08-13","2024-08-14","2024-08-15","2024-08-16","2024-08-17","2024-08-18","2024-08-19","2024-08-20","2024-08-21","2024-08-22","2024-08-23","2024-08-24","2024-08-25","2024-08-26","2024-08-27","2024-08-28","2024-08-29","2024-08-30","2024-08-31","Sum",null,"%"]
[null,null,{"$f":"IF(Acronym.01=\"\",,IF(Type.01=\"\",Error.no.funding,IF(Type.01=Funding.type.03,Acronym.01&\" - \"&Contract.01,IF(Def!K76>0,Error.no.WP,Acronym.01&\" - \"&Contract.01&\" - WP\"&WP.01))))","v":0},null,null,null,null,null,null,null,null,null,null,null,null,null,null,null,null,null,null,null,null,null,null,null,null,null,null,null,null,null,null,null,null,null,null,null,null,null,null,null,null,null,null,null,{"$f":"SUM(P7:AT7)","v":0},null,{"$f":"IFERROR(IF(AU7/$AU$21=0,\"\",AU7/$AU$21),\"\")","v":""}]
[null,null,{"$f":"IF(Acronym.02=\"\",,IF(Type.02=\"\",Error.no.funding,IF(Type.02=Funding.type.03,Acronym.02&\" - \"&Contract.02,IF(Def!K77>0,Error.no.WP,Acronym.02&\" - \"&Contract.02&\" - WP\"&WP.02))))","v":0},null,null,null,null,null,null,null,null,null,null,null,null,null,null,null,null,null,null,null,null,null,null,null,null,null,null,null,null,null,null,null,null,null,null,null,null,null,null,null,null,null,null,null,0,null,""]
[null,null,{"$f":"IF(Acronym.03=\"\",,IF(Type.03=\"\",Error.no.funding,IF(Type.03=Funding.type.03,Acronym.03&\" - \"&Contract.03,IF(Def!K78>0,Error.no.WP,Acronym.03&\" - \"&Contract.03&\" - WP\"&WP.03))))","v":0},null,null,null,null,null,null,null,null,null,null,null,null,null,null,null,null,null,null,null,null,null,null,null,null,null,null,null,null,null,null,null,null,null,null,null,null,null,null,null,null,null,null,null,0,null,""]
[null,null,{"$f":"IF(Acronym.04=\"\",,IF(Type.04=\"\",Error.no.funding,IF(Type.04=Funding.type.03,Acronym.04&\" - \"&Contract.04,IF(Def!K79>0,Error.no.WP,Acronym.04&\" - \"&Contract.04&\" - WP\"&WP.04))))","v":0},null,null,null,null,null,null,null,null,null,null,null,null,null,null,null,null,null,null,null,null,null,null,null,null,null,null,null,null,null,null,null,null,null,null,null,null,null,null,null,null,null,null,null,0,null,""]
[null,null,{"$f":"IF(Acronym.05=\"\",,IF(Type.05=\"\",Error.no.funding,IF(Type.05=Funding.type.03,Acronym.05&\" - \"&Contract.05,IF(Def!K80>0,Error.no.WP,Acronym.05&\" - \"&Contract.05&\" - WP\"&WP.05))))","v":0},null,null,null,null,null,null,null,null,null,null,null,null,null,null,null,null,null,null,null,null,null,null,null,null,null,null,null,null,null,null,null,null,null,null,null,null,null,null,null,null,null,null,null,0,null,""]
[null,null,{"$f":"IF(Acronym.06=\"\",,IF(Type.06=\"\",Error.no.funding,IF(Type.06=Funding.type.03,Acronym.06&\" - \"&Contract.06,IF(Def!K81>0,Error.no.WP,Acronym.06&\" - \"&Contract.06&\" - WP\"&WP.06))))","v":0},null,null,null,null,null,null,null,null,null,null,null,null,null,null,null,null,null,null,null,null,null,null,null,null,null,null,null,null,null,null,null,null,null,null,null,null,null,null,null,null,null,null,null,0,null,""]
[null,null,{"$f":"IF(Acronym.07=\"\",,IF(Type.07=\"\",Error.no.funding,IF(Type.07=Funding.type.03,Acronym.07&\" - \"&Contract.07,IF(Def!K82>0,Error.no.WP,Acronym.07&\" - \"&Contract.07&\" - WP\"&WP.07))))","v":0},null,null,null,null,null,null,null,null,null,null,null,null,null,null,null,null,null,null,null,null,null,null,null,null,null,null,null,null,null,null,null,null,null,null,null,null,null,null,null,null,null,null,null,0,null,""]
[null,null,{"$f":"IF(Acronym.08=\"\",,IF(Type.08=\"\",Error.no.funding,IF(Type.08=Funding.type.03,Acronym.08&\" - \"&Contract.08,IF(Def!K83>0,Error.no.WP,Acronym.08&\" - \"&Contract.08&\" - WP\"&WP.08))))","v":0},null,null,null,null,null,null,null,null,null,null,null,null,null,null,null,null,null,null,null,null,null,null,null,null,null,null,null,null,null,null,null,null,null,null,null,null,null,null,null,null,null,null,null,0,null,""]
[null,null,{"$f":"IF(Acronym.09=\"\",,IF(Type.09=\"\",Error.no.funding,IF(Type.09=Funding.type.03,Acronym.09&\" - \"&Contract.09,IF(Def!K84>0,Error.no.WP,Acronym.09&\" - \"&Contract.09&\" - WP\"&WP.09))))","v":0},null,null,null,null,null,null,null,null,null,null,null,null,null,null,null,null,null,null,null,null,null,null,null,null,null,null,null,null,null,null,null,null,null,null,null,null,null,null,null,null,null,null,null,0,null,""]
[null,null,{"$f":"IF(Acronym.10=\"\",,IF(Type.10=\"\",Error.no.funding,IF(Type.10=Funding.type.03,Acronym.10&\" - \"&Contract.10,IF(Def!K85>0,Error.no.WP,Acronym.10&\" - \"&Contract.10&\" - WP\"&WP.10))))","v":0},null,null,null,null,null,null,null,null,null,null,null,null,null,null,null,null,null,null,null,null,null,null,null,null,null,null,null,null,null,null,null,null,null,null,null,null,null,null,null,null,null,null,null,0,null,""]
[null,null,{"$f":"IF(Acronym.11=\"\",,IF(Type.11=\"\",Error.no.funding,IF(Type.11=Funding.type.03,Acronym.11&\" - \"&Contract.11,IF(Def!K86>0,Error.no.WP,Acronym.11&\" - \"&Contract.11&\" - WP\"&WP.11))))","v":0},null,null,null,null,null,null,null,null,null,null,null,null,null,null,null,null,null,null,null,null,null,null,null,null,null,null,null,null,null,null,null,null,null,null,null,null,null,null,null,null,null,null,null,0,null,""]
[null,null,{"$f":"IF(Acronym.12=\"\",,IF(Type.12=\"\",Error.no.funding,IF(Type.12=Funding.type.03,Acronym.12&\" - \"&Contract.12,IF(Def!K87>0,Error.no.WP,Acronym.12&\" - \"&Contract.12&\" - WP\"&WP.12))))","v":0},null,null,null,null,null,null,null,null,null,null,null,null,null,null,null,null,null,null,null,null,null,null,null,null,null,null,null,null,null,null,null,null,null,null,null,null,null,null,null,null,null,null,null,0,null,{"$f":"IFERROR(AU18/$AU$21,\"\")","v":""}]
[null,null,null,null,null,null,null,null,null,null,null,null,null,"ALL OTHER HOURS WORKED AT SU",null,null,null,null,null,null,null,null,null,null,null,null,null,null,null,null,null,null,null,null,null,null,null,null,null,null,null,null,null,null,null,null,0,null,""]
[]
[null,null,null,null,null,null,null,null,null,null,null,null,null,"Total productive hours",null,{"$f":"IF(ROUND(SUM(P7:P19),2)=0,\"\",ROUND(SUM(P7:P19),2))","v":""},"","","","","","","","","","","","","","","","","","","","","","","","","","","","","","",""]
[]
[]
[null,null,"Absence"]
[null,null,null,null,null,null,null,null,null,null,null,null,null,"Annual Leave",null,null,null,null,null,null,null,null,null,null,null,null,null,null,null,null,null,null,null,null,null,null,null,null,null,null,null,null,null,null,null,null,{"$f":"IF(ROUND(SUM(P25:AT25),2)=0,\"\",ROUND(SUM(P25:AT25),2))","v":""},null,{"$f":"IFERROR(IF(AU25/$AU$30=0,\"\",AU25/$AU$30),\"\")","v":""}]
[null,null,null,null,null,null,null,null,null,null,null,null,null,"Own Illness",null,null,null,null,null,null,null,null,null,null,null,null,null,null,null,null,null,null,null,null,null,null,null,null,null,null,null,null,null,null,null,null,"",null,""]
[null,null,null,null,null,null,null,null,null,null,null,null,null,"Special Leave",null,null,null,null,null,null,null,null,null,null,null,null,null,null,null,null,null,null,null,null,null,null,null,null,null,null,null,null,null,null,null,null,"",null,""]
[null,null,null,null,null,null,null,null,null,null,null,null,null,"Parental Leave",null,null,null,null,null,null,null,null,null,null,null,null,null,null,null,null,null,null,null,null,null,null,null,null,null,null,null,null,null,null,null,null,"",null,""]
[]
[null,null,null,null,null,null,null,null,null,null,null,null,null,"Total absent hours",null,{"$f":"IF(ROUND(SUM(P25:P28),2)=0,\"\",ROUND(SUM(P25:P28),2))","v":""},"","","","","","","","","","","","","","","","","","","","","","","","","","","","","","",""]
[]
[]
[null,null,null,null,null,null,null,null,null,null,null,null,null,"Total hours",null,{"$f":"IF(ROUND(SUM(P21,P30),2)=0,\"\",ROUND(SUM(P21,P30),2))","v":""},"","","","","","","","","","",{"$f":"IF(ROUND(SUM(AA21,AA30),2)=0,\"\",ROUND(SUM(AA21,AA30),2))","v":""},{"$f":"IF(ROUND(SUM(AB21,AB30),2)=0,\"\",ROUND(SUM(AB21,AB30),2))","v":""},"","","","","","","","","","","","","","","","","","",""]
[]
[]
[]
[null,null,"Short description of the activities carried out",null,null,null,null,null,null,null,null,null,null,null,null,null,null,null,null,null,null,null,null,null,"Signatures and date of signature",null,null,null,null,null,null,null,null,null,null,null,null,null,null,null,null,"Beneficiary:"]
[null,null,"(indicate the project name with the description)",null,null,null,null,null,null,null,null,null,null,null,null,null,null,null,null,null,null,null,null,null,null,null,null,null,null,null,null,null,null,null,null,null,null,null,null,null,null,{"$f":"Beneficiary","v":"STOCKHOLMS UNIVERSITET"}]
[]
[]
[null,null,null,null,null,null,null,null,null,null,null,null,null,null,null,null,null,null,null,null,null,null,null,null,{"$f":"IF(Member=\"\",Error.name.member,IF(Member.title=\"\",Error.title.member,IF(Total.Error.Funding>0,Error.no.funding,IF(Total.Error.EU>0,Error.no.WP,\"\"))))","v":""}]
[]
[null,null,null,null,null,null,null,null,null,null,null,null,null,null,null,null,null,null,null,null,null,null,null,null,{"$f":"Member","v":"(fill in name of member on Start Page)"}]
[null,null,null,null,null,null,null,null,null,null,null,null,null,null,null,null,null,null,null,null,null,null,null,null,{"$f":"Member.title","v":"(fill in title of member on Start Page)"},null,null,null,null,null,null,null,null,null,null,"Date"]
[]
[]
[null,null,null,null,null,null,null,null,null,null,null,null,null,null,null,null,null,null,null,null,null,null,null,null,{"$f":"IF(Y51=0,Error.name.supervisor,IF(Total.Error.Funding>0,Error.no.funding,IF(Total.Error.EU>0,Error.no.WP,\"\")))","v":""}]
[]
[]
[null,null,null,null,null,null,null,null,null,null,null,null,null,null,null,null,null,null,null,null,null,null,null,null,{"$f":"\"Supervisor:\"","v":"Supervisor:"},null,null,null,null,null,null,null,null,null,null,"Date"]
[null,null,null,null,null,null,null,null,null,null,null,null,null,null,null,null,null,null,null,null,null,null,null,null,{"$f":"Supervisor","v":"(fill in name of supervisor on Start Page)"}]
[null,null,null,null,null,null,null,null,null,null,null,null,null,null,null,null,null,null,null,null,null,null,null,null,{"$f":"Supervisor.title","v":"(fill in the title of supervisor on Start Page)"}]

{"sheet":"Sep","index":11,"n_rows":52,"n_cols":49,"rows_kept":52,"cut":false,"hidden":false,"merged":[[8,2,8,13],[3,1,3,18],[3,19,3,25],[3,27,3,48],[6,2,6,13],[7,2,7,13],[39,2,51,19],[9,2,9,13],[10,2,10,13],[11,2,11,13],[12,2,12,13],[13,2,13,13],[14,2,14,13],[15,2,15,13],[16,2,16,13],[17,2,17,13],[23,2,30,5],[36,24,37,37],[41,48,51,48],[43,24,43,33],[49,24,49,33],[50,24,50,33],[51,24,51,33]]}
[null,null,null,null,null,null,null,null,null,null,null,null,null,null,"Röda dagar",{"$f":"OR(WEEKDAY(P6,2)=6,WEEKDAY(P6,2)=7,COUNTIF(Tabell.Red.FixedDates[FulltDatum],P6),COUNTIF(Tabell.Red.FixedDays[FulltDatum],P6))","v":true},{"$f":"OR(WEEKDAY(Q6,2)=6,WEEKDAY(Q6,2)=7,COUNTIF(Tabell.Red.FixedDates[FulltDatum],Q6),COUNTIF(Tabell.Red.FixedDays[FulltDatum],Q6))","v":false},{"$f":"OR(WEEKDAY(R6,2)=6,WEEKDAY(R6,2)=7,COUNTIF(Tabell.Red.FixedDates[FulltDatum],R6),COUNTIF(Tabell.Red.FixedDays[FulltDatum],R6))","v":false},{"$f":"OR(WEEKDAY(S6,2)=6,WEEKDAY(S6,2)=7,COUNTIF(Tabell.Red.FixedDates[FulltDatum],S6),COUNTIF(Tabell.Red.FixedDays[FulltDatum],S6))","v":false},{"$f":"OR(WEEKDAY(T6,2)=6,WEEKDAY(T6,2)=7,COUNTIF(Tabell.Red.FixedDates[FulltDatum],T6),COUNTIF(Tabell.Red.FixedDays[FulltDatum],T6))","v":false},{"$f":"OR(WEEKDAY(U6,2)=6,WEEKDAY(U6,2)=7,COUNTIF(Tabell.Red.FixedDates[FulltDatum],U6),COUNTIF(Tabell.Red.FixedDays[FulltDatum],U6))","v":false},{"$f":"OR(WEEKDAY(V6,2)=6,WEEKDAY(V6,2)=7,COUNTIF(Tabell.Red.FixedDates[FulltDatum],V6),COUNTIF(Tabell.Red.FixedDays[FulltDatum],V6))","v":true},{"$f":"OR(WEEKDAY(W6,2)=6,WEEKDAY(W6,2)=7,COUNTIF(Tabell.Red.FixedDates[FulltDatum],W6),COUNTIF(Tabell.Red.FixedDays[FulltDatum],W6))","v":true},{"$f":"OR(WEEKDAY(X6,2)=6,WEEKDAY(X6,2)=7,COUNTIF(Tabell.Red.FixedDates[FulltDatum],X6),COUNTIF(Tabell.Red.FixedDays[FulltDatum],X6))","v":false},{"$f":"OR(WEEKDAY(Y6,2)=6,WEEKDAY(Y6,2)=7,COUNTIF(Tabell.Red.FixedDates[FulltDatum],Y6),COUNTIF(Tabell.Red.FixedDays[FulltDatum],Y6))","v":false},{"$f":"OR(WEEKDAY(Z6,2)=6,WEEKDAY(Z6,2)=7,COUNTIF(Tabell.Red.FixedDates[FulltDatum],Z6),COUNTIF(Tabell.Red.FixedDays[FulltDatum],Z6))","v":false},{"$f":"OR(WEEKDAY(AA6,2)=6,WEEKDAY(AA6,2)=7,COUNTIF(Tabell.Red.FixedDates[FulltDatum],AA6),COUNTIF(Tabell.Red.FixedDays[FulltDatum],AA6))","v":false},{"$f":"OR(WEEKDAY(AB6,2)=6,WEEKDAY(AB6,2)=7,COUNTIF(Tabell.Red.FixedDates[FulltDatum],AB6),COUNTIF(Tabell.Red.FixedDays[FulltDatum],AB6))","v":false},{"$f":"OR(WEEKDAY(AC6,2)=6,WEEKDAY(AC6,2)=7,COUNTIF(Tabell.Red.FixedDates[FulltDatum],AC6),COUNTIF(Tabell.Red.FixedDays[FulltDatum],AC6))","v":true},{"$f":"OR(WEEKDAY(AD6,2)=6,WEEKDAY(AD6,2)=7,COUNTIF(Tabell.Red.FixedDates[FulltDatum],AD6),COUNTIF(Tabell.Red.FixedDays[FulltDatum],AD6))","v":true},{"$f":"OR(WEEKDAY(AE6,2)=6,WEEKDAY(AE6,2)=7,COUNTIF(Tabell.Red.FixedDates[FulltDatum],AE6),COUNTIF(Tabell.Red.FixedDays[FulltDatum],AE6))","v":false},{"$f":"OR(WEEKDAY(AF6,2)=6,WEEKDAY(AF6,2)=7,COUNTIF(Tabell.Red.FixedDates[FulltDatum],AF6),COUNTIF(Tabell.Red.FixedDays[FulltDatum],AF6))","v":false},{"$f":"OR(WEEKDAY(AG6,2)=6,WEEKDAY(AG6,2)=7,COUNTIF(Tabell.Red.FixedDates[FulltDatum],AG6),COUNTIF(Tabell.Red.FixedDays[FulltDatum],AG6))","v":false},{"$f":"OR(WEEKDAY(AH6,2)=6,WEEKDAY(AH6,2)=7,COUNTIF(Tabell.Red.FixedDates[FulltDatum],AH6),COUNTIF(Tabell.Red.FixedDays[FulltDatum],AH6))","v":false},{"$f":"OR(WEEKDAY(AI6,2)=6,WEEKDAY(AI6,2)=7,COUNTIF(Tabell.Red.FixedDates[FulltDatum],AI6),COUNTIF(Tabell.Red.FixedDays[FulltDatum],AI6))","v":false},{"$f":"OR(WEEKDAY(AJ6,2)=6,WEEKDAY(AJ6,2)=7,COUNTIF(Tabell.Red.FixedDates[FulltDatum],AJ6),COUNTIF(Tabell.Red.FixedDays[FulltDatum],AJ6))","v":true},{"$f":"OR(WEEKDAY(AK6,2)=6,WEEKDAY(AK6,2)=7,COUNTIF(Tabell.Red.FixedDates[FulltDatum],AK6),COUNTIF(Tabell.Red.FixedDays[FulltDatum],AK6))","v":true},{"$f":"OR(WEEKDAY(AL6,2)=6,WEEKDAY(AL6,2)=7,COUNTIF(Tabell.Red.FixedDates[FulltDatum],AL6),COUNTIF(Tabell.Red.FixedDays[FulltDatum],AL6))","v":false},{"$f":"OR(WEEKDAY(AM6,2)=6,WEEKDAY(AM6,2)=7,COUNTIF(Tabell.Red.FixedDates[FulltDatum],AM6),COUNTIF(Tabell.Red.FixedDays[FulltDatum],AM6))","v":false},{"$f":"OR(WEEKDAY(AN6,2)=6,WEEKDAY(AN6,2)=7,COUNTIF(Tabell.Red.FixedDates[FulltDatum],AN6),COUNTIF(Tabell.Red.FixedDays[FulltDatum],AN6))","v":false},{"$f":"OR(WEEKDAY(AO6,2)=6,WEEKDAY(AO6,2)=7,COUNTIF(Tabell.Red.FixedDates[FulltDatum],AO6),COUNTIF(Tabell.Red.FixedDays[FulltDatum],AO6))","v":false},{"$f":"OR(WEEKDAY(AP6,2)=6,WEEKDAY(AP6,2)=7,COUNTIF(Tabell.Red.FixedDates[FulltDatum],AP6),COUNTIF(Tabell.Red.FixedDays[FulltDatum],AP6))","v":false},{"$f":"OR(WEEKDAY(AQ6,2)=6,WEEKDAY(AQ6,2)=7,COUNTIF(Tabell.Red.FixedDates[FulltDatum],AQ6),COUNTIF(Tabell.Red.FixedDays[FulltDatum],AQ6))","v":true},{"$f":"OR(WEEKDAY(AR6,2)=6,WEEKDAY(AR6,2)=7,COUNTIF(Tabell.Red.FixedDates[FulltDatum],AR6),COUNTIF(Tabell.Red.FixedDays[FulltDatum],AR6))","v":true},{"$f":"OR(WEEKDAY(AS6,2)=6,WEEKDAY(AS6,2)=7,COUNTIF(Tabell.Red.FixedDates[FulltDatum],AS6),COUNTIF(Tabell.Red.FixedDays[FulltDatum],AS6))","v":false},{"$f":"OR(WEEKDAY(AT6,2)=6,WEEKDAY(AT6,2)=7,COUNTIF(Tabell.Red.FixedDates[FulltDatum],AT6),COUNTIF(Tabell.Red.FixedDays[FulltDatum],AT6))","v":false}]
[null,null,null,null,null,null,null,null,null,null,null,null,null,null,"Övriga dagar",{"$f":"OR(COUNTIF(Tabell.Shortdays[FulltDatum],P6),COUNTIF(Tabell.Klamdagar[FulltDatum],P6))","v":false},{"$f":"OR(COUNTIF(Tabell.Shortdays[FulltDatum],Q6),COUNTIF(Tabell.Klamdagar[FulltDatum],Q6))","v":false},{"$f":"OR(COUNTIF(Tabell.Shortdays[FulltDatum],R6),COUNTIF(Tabell.Klamdagar[FulltDatum],R6))","v":false},{"$f":"OR(COUNTIF(Tabell.Shortdays[FulltDatum],S6),COUNTIF(Tabell.Klamdagar[FulltDatum],S6))","v":false},{"$f":"OR(COUNTIF(Tabell.Shortdays[FulltDatum],T6),COUNTIF(Tabell.Klamdagar[FulltDatum],T6))","v":false},{"$f":"OR(COUNTIF(Tabell.Shortdays[FulltDatum],U6),COUNTIF(Tabell.Klamdagar[FulltDatum],U6))","v":false},{"$f":"OR(COUNTIF(Tabell.Shortdays[FulltDatum],V6),COUNTIF(Tabell.Klamdagar[FulltDatum],V6))","v":false},{"$f":"OR(COUNTIF(Tabell.Shortdays[FulltDatum],W6),COUNTIF(Tabell.Klamdagar[FulltDatum],W6))","v":false},{"$f":"OR(COUNTIF(Tabell.Shortdays[FulltDatum],X6),COUNTIF(Tabell.Klamdagar[FulltDatum],X6))","v":false},{"$f":"OR(COUNTIF(Tabell.Shortdays[FulltDatum],Y6),COUNTIF(Tabell.Klamdagar[FulltDatum],Y6))","v":false},{"$f":"OR(COUNTIF(Tabell.Shortdays[FulltDatum],Z6),COUNTIF(Tabell.Klamdagar[FulltDatum],Z6))","v":false},{"$f":"OR(COUNTIF(Tabell.Shortdays[FulltDatum],AA6),COUNTIF(Tabell.Klamdagar[FulltDatum],AA6))","v":false},{"$f":"OR(COUNTIF(Tabell.Shortdays[FulltDatum],AB6),COUNTIF(Tabell.Klamdagar[FulltDatum],AB6))","v":false},{"$f":"OR(COUNTIF(Tabell.Shortdays[FulltDatum],AC6),COUNTIF(Tabell.Klamdagar[FulltDatum],AC6))","v":false},{"$f":"OR(COUNTIF(Tabell.Shortdays[FulltDatum],AD6),COUNTIF(Tabell.Klamdagar[FulltDatum],AD6))","v":false},{"$f":"OR(COUNTIF(Tabell.Shortdays[FulltDatum],AE6),COUNTIF(Tabell.Klamdagar[FulltDatum],AE6))","v":false},{"$f":"OR(COUNTIF(Tabell.Shortdays[FulltDatum],AF6),COUNTIF(Tabell.Klamdagar[FulltDatum],AF6))","v":false},{"$f":"OR(COUNTIF(Tabell.Shortdays[FulltDatum],AG6),COUNTIF(Tabell.Klamdagar[FulltDatum],AG6))","v":false},{"$f":"OR(COUNTIF(Tabell.Shortdays[FulltDatum],AH6),COUNTIF(Tabell.Klamdagar[FulltDatum],AH6))","v":false},{"$f":"OR(COUNTIF(Tabell.Shortdays[FulltDatum],AI6),COUNTIF(Tabell.Klamdagar[FulltDatum],AI6))","v":false},{"$f":"OR(COUNTIF(Tabell.Shortdays[FulltDatum],AJ6),COUNTIF(Tabell.Klamdagar[FulltDatum],AJ6))","v":false},{"$f":"OR(COUNTIF(Tabell.Shortdays[FulltDatum],AK6),COUNTIF(Tabell.Klamdagar[FulltDatum],AK6))","v":false},{"$f":"OR(COUNTIF(Tabell.Shortdays[FulltDatum],AL6),COUNTIF(Tabell.Klamdagar[FulltDatum],AL6))","v":false},{"$f":"OR(COUNTIF(Tabell.Shortdays[FulltDatum],AM6),COUNTIF(Tabell.Klamdagar[FulltDatum],AM6))","v":false},{"$f":"OR(COUNTIF(Tabell.Shortdays[FulltDatum],AN6),COUNTIF(Tabell.Klamdagar[FulltDatum],AN6))","v":false},{"$f":"OR(COUNTIF(Tabell.Shortdays[FulltDatum],AO6),COUNTIF(Tabell.Klamdagar[FulltDatum],AO6))","v":false},{"$f":"OR(COUNTIF(Tabell.Shortdays[FulltDatum],AP6),COUNTIF(Tabell.Klamdagar[FulltDatum],AP6))","v":false},{"$f":"OR(COUNTIF(Tabell.Shortdays[FulltDatum],AQ6),COUNTIF(Tabell.Klamdagar[FulltDatum],AQ6))","v":false},{"$f":"OR(COUNTIF(Tabell.Shortdays[FulltDatum],AR6),COUNTIF(Tabell.Klamdagar[FulltDatum],AR6))","v":false},{"$f":"OR(COUNTIF(Tabell.Shortdays[FulltDatum],AS6),COUNTIF(Tabell.Klamdagar[FulltDatum],AS6))","v":false},{"$f":"OR(COUNTIF(Tabell.Shortdays[FulltDatum],AT6),COUNTIF(Tabell.Klamdagar[FulltDatum],AT6))","v":false}]
[]
[null,"September",null,null,null,null,null,null,null,null,null,null,null,null,null,null,null,null,null,{"$f":"Year","v":2024},null,null,null,null,null,null,null,{"$f":"Member","v":"(fill in name of member on Start Page)"}]
[]
[null,null,null,null,null,null,null,null,null,null,null,null,null,null,null,{"$f":"DATEVALUE(Year&\"-\"&VLOOKUP(LEFT(B4,3),list.months,2,0)&\"-1\")","v":"2024-09-01"},{"$f":"DATE(YEAR(P6),MONTH(P6),DAY(P6)+1)","v":"2024-09-02"},{"$f":"DATE(YEAR(Q6),MONTH(Q6),DAY(Q6)+1)","v":"2024-09-03"},"2024-09-04","2024-09-05","2024-09-06","2024-09-07","2024-09-08","2024-09-09","2024-09-10","2024-09-11","2024-09-12","2024-09-13","2024-09-14","2024-09-15","2024-09-16","2024-09-17","2024-09-18","2024-09-19","2024-09-20","2024-09-21","2024-09-22","2024-09-23","2024-09-24","2024-09-25","2024-09-26","2024-09-27","2024-09-28","2024-09-29","2024-09-30","2024-10-01","Sum",null,"%"]
[null,null,{"$f":"IF(Acronym.01=\"\",,IF(Type.01=\"\",Error.no.funding,IF(Type.01=Funding.type.03,Acronym.01&\" - \"&Contract.01,IF(Def!K76>0,Error.no.WP,Acronym.01&\" - \"&Contract.01&\" - WP\"&WP.01))))","v":0},null,null,null,null,null,null,null,null,null,null,null,null,null,null,null,null,null,null,null,null,null,null,null,null,null,null,null,null,null,null,null,null,null,null,null,null,null,null,null,null,null,null,null,{"$f":"SUM(P7:AT7)","v":0},null,{"$f":"IFERROR(IF(AU7/$AU$21=0,\"\",AU7/$AU$21),\"\")","v":""}]
[null,null,{"$f":"IF(Acronym.02=\"\",,IF(Type.02=\"\",Error.no.funding,IF(Type.02=Funding.type.03,Acronym.02&\" - \"&Contract.02,IF(Def!K77>0,Error.no.WP,Acronym.02&\" - \"&Contract.02&\" - WP\"&WP.02))))","v":0},null,null,null,null,null,null,null,null,null,null,null,null,null,null,null,null,null,null,null,null,null,null,null,null,null,null,null,null,null,null,null,null,null,null,null,null,null,null,null,null,null,null,null,0,null,""]
[null,null,{"$f":"IF(Acronym.03=\"\",,IF(Type.03=\"\",Error.no.funding,IF(Type.03=Funding.type.03,Acronym.03&\" - \"&Contract.03,IF(Def!K78>0,Error.no.WP,Acronym.03&\" - \"&Contract.03&\" - WP\"&WP.03))))","v":0},null,null,null,null,null,null,null,null,null,null,null,null,null,null,null,null,null,null,null,null,null,null,null,null,null,null,null,null,null,null,null,null,null,null,null,null,null,null,null,null,null,null,null,0,null,""]
[null,null,{"$f":"IF(Acronym.04=\"\",,IF(Type.04=\"\",Error.no.funding,IF(Type.04=Funding.type.03,Acronym.04&\" - \"&Contract.04,IF(Def!K79>0,Error.no.WP,Acronym.04&\" - \"&Contract.04&\" - WP\"&WP.04))))","v":0},null,null,null,null,null,null,null,null,null,null,null,null,null,null,null,null,null,null,null,null,null,null,null,null,null,null,null,null,null,null,null,null,null,null,null,null,null,null,null,null,null,null,null,0,null,""]
[null,null,{"$f":"IF(Acronym.05=\"\",,IF(Type.05=\"\",Error.no.funding,IF(Type.05=Funding.type.03,Acronym.05&\" - \"&Contract.05,IF(Def!K80>0,Error.no.WP,Acronym.05&\" - \"&Contract.05&\" - WP\"&WP.05))))","v":0},null,null,null,null,null,null,null,null,null,null,null,null,null,null,null,null,null,null,null,null,null,null,null,null,null,null,null,null,null,null,null,null,null,null,null,null,null,null,null,null,null,null,null,0,null,""]
[null,null,{"$f":"IF(Acronym.06=\"\",,IF(Type.06=\"\",Error.no.funding,IF(Type.06=Funding.type.03,Acronym.06&\" - \"&Contract.06,IF(Def!K81>0,Error.no.WP,Acronym.06&\" - \"&Contract.06&\" - WP\"&WP.06))))","v":0},null,null,null,null,null,null,null,null,null,null,null,null,null,null,null,null,null,null,null,null,null,null,null,null,null,null,null,null,null,null,null,null,null,null,null,null,null,null,null,null,null,null,null,0,null,""]
[null,null,{"$f":"IF(Acronym.07=\"\",,IF(Type.07=\"\",Error.no.funding,IF(Type.07=Funding.type.03,Acronym.07&\" - \"&Contract.07,IF(Def!K82>0,Error.no.WP,Acronym.07&\" - \"&Contract.07&\" - WP\"&WP.07))))","v":0},null,null,null,null,null,null,null,null,null,null,null,null,null,null,null,null,null,null,null,null,null,null,null,null,null,null,null,null,null,null,null,null,null,null,null,null,null,null,null,null,null,null,null,0,null,""]
[null,null,{"$f":"IF(Acronym.08=\"\",,IF(Type.08=\"\",Error.no.funding,IF(Type.08=Funding.type.03,Acronym.08&\" - \"&Contract.08,IF(Def!K83>0,Error.no.WP,Acronym.08&\" - \"&Contract.08&\" - WP\"&WP.08))))","v":0},null,null,null,null,null,null,null,null,null,null,null,null,null,null,null,null,null,null,null,null,null,null,null,null,null,null,null,null,null,null,null,null,null,null,null,null,null,null,null,null,null,null,null,0,null,""]
[null,null,{"$f":"IF(Acronym.09=\"\",,IF(Type.09=\"\",Error.no.funding,IF(Type.09=Funding.type.03,Acronym.09&\" - \"&Contract.09,IF(Def!K84>0,Error.no.WP,Acronym.09&\" - \"&Contract.09&\" - WP\"&WP.09))))","v":0},null,null,null,null,null,null,null,null,null,null,null,null,null,null,null,null,null,null,null,null,null,null,null,null,null,null,null,null,null,null,null,null,null,null,null,null,null,null,null,null,null,null,null,0,null,""]
[null,null,{"$f":"IF(Acronym.10=\"\",,IF(Type.10=\"\",Error.no.funding,IF(Type.10=Funding.type.03,Acronym.10&\" - \"&Contract.10,IF(Def!K85>0,Error.no.WP,Acronym.10&\" - \"&Contract.10&\" - WP\"&WP.10))))","v":0},null,null,null,null,null,null,null,null,null,null,null,null,null,null,null,null,null,null,null,null,null,null,null,null,null,null,null,null,null,null,null,null,null,null,null,null,null,null,null,null,null,null,null,0,null,""]
[null,null,{"$f":"IF(Acronym.11=\"\",,IF(Type.11=\"\",Error.no.funding,IF(Type.11=Funding.type.03,Acronym.11&\" - \"&Contract.11,IF(Def!K86>0,Error.no.WP,Acronym.11&\" - \"&Contract.11&\" - WP\"&WP.11))))","v":0},null,null,null,null,null,null,null,null,null,null,null,null,null,null,null,null,null,null,null,null,null,null,null,null,null,null,null,null,null,null,null,null,null,null,null,null,null,null,null,null,null,null,null,0,null,""]
[null,null,{"$f":"IF(Acronym.12=\"\",,IF(Type.12=\"\",Error.no.funding,IF(Type.12=Funding.type.03,Acronym.12&\" - \"&Contract.12,IF(Def!K87>0,Error.no.WP,Acronym.12&\" - \"&Contract.12&\" - WP\"&WP.12))))","v":0},null,null,null,null,null,null,null,null,null,null,null,null,null,null,null,null,null,null,null,null,null,null,null,null,null,null,null,null,null,null,null,null,null,null,null,null,null,null,null,null,null,null,null,0,null,{"$f":"IFERROR(AU18/$AU$21,\"\")","v":""}]
[null,null,null,null,null,null,null,null,null,null,null,null,null,"ALL OTHER HOURS WORKED AT SU",null,null,null,null,null,null,null,null,null,null,null,null,null,null,null,null,null,null,null,null,null,null,null,null,null,null,null,null,null,null,null,null,0,null,""]
[]
[null,null,null,null,null,null,null,null,null,null,null,null,null,"Total productive hours",null,{"$f":"IF(ROUND(SUM(P7:P19),2)=0,\"\",ROUND(SUM(P7:P19),2))","v":""},"","","","","","","","","","","","","","","","","","","","","","","","","","","","","","",""]
[]
[]
[null,null,"Absence"]
[null,null,null,null,null,null,null,null,null,null,null,null,null,"Annual Leave",null,null,null,null,null,null,null,null,null,null,null,null,null,null,null,null,null,null,null,null,null,null,null,null,null,null,null,null,null,null,null,null,{"$f":"IF(ROUND(SUM(P25:AT25),2)=0,\"\",ROUND(SUM(P25:AT25),2))","v":""},null,{"$f":"IFERROR(IF(AU25/$AU$30=0,\"\",AU25/$AU$30),\"\")","v":""}]
[null,null,null,null,null,null,null,null,null,null,null,null,null,"Own Illness",null,null,null,null,null,null,null,null,null,null,null,null,null,null,null,null,null,null,null,null,null,null,null,null,null,null,null,null,null,null,null,null,"",null,""]
[null,null,null,null,null,null,null,null,null,null,null,null,null,"Special Leave",null,null,null,null,null,null,null,null,null,null,null,null,null,null,null,null,null,null,null,null,null,null,null,null,null,null,null,null,null,null,null,null,"",null,""]
[null,null,null,null,null,null,null,null,null,null,null,null,null,"Parental Leave",null,null,null,null,null,null,null,null,null,null,null,null,null,null,null,null,null,null,null,null,null,null,null,null,null,null,null,null,null,null,null,null,"",null,""]
[]
[null,null,null,null,null,null,null,null,null,null,null,null,null,"Total absent hours",null,{"$f":"IF(ROUND(SUM(P25:P28),2)=0,\"\",ROUND(SUM(P25:P28),2))","v":""},"","","","","","","","","","","","","","","","","","","","","","","","","","","","","","",""]
[]
[]
[null,null,null,null,null,null,null,null,null,null,null,null,null,"Total hours",null,{"$f":"IF(ROUND(SUM(P21,P30),2)=0,\"\",ROUND(SUM(P21,P30),2))","v":""},"","","","","","","","","","",{"$f":"IF(ROUND(SUM(AA21,AA30),2)=0,\"\",ROUND(SUM(AA21,AA30),2))","v":""},{"$f":"IF(ROUND(SUM(AB21,AB30),2)=0,\"\",ROUND(SUM(AB21,AB30),2))","v":""},"","","","","","","","","","","","","","","","","","",""]
[]
[]
[]
[null,null,"Short description of the activities carried out",null,null,null,null,null,null,null,null,null,null,null,null,null,null,null,null,null,null,null,null,null,"Signatures and date of signature",null,null,null,null,null,null,null,null,null,null,null,null,null,null,null,null,"Beneficiary:"]
[null,null,"(indicate the project name with the description)",null,null,null,null,null,null,null,null,null,null,null,null,null,null,null,null,null,null,null,null,null,null,null,null,null,null,null,null,null,null,null,null,null,null,null,null,null,null,{"$f":"Beneficiary","v":"STOCKHOLMS UNIVERSITET"}]
[]
[]
[null,null,null,null,null,null,null,null,null,null,null,null,null,null,null,null,null,null,null,null,null,null,null,null,{"$f":"IF(Member=\"\",Error.name.member,IF(Member.title=\"\",Error.title.member,IF(Total.Error.Funding>0,Error.no.funding,IF(Total.Error.EU>0,Error.no.WP,\"\"))))","v":""}]
[]
[null,null,null,null,null,null,null,null,null,null,null,null,null,null,null,null,null,null,null,null,null,null,null,null,{"$f":"Member","v":"(fill in name of member on Start Page)"}]
[null,null,null,null,null,null,null,null,null,null,null,null,null,null,null,null,null,null,null,null,null,null,null,null,{"$f":"Member.title","v":"(fill in title of member on Start Page)"},null,null,null,null,null,null,null,null,null,null,"Date"]
[]
[]
[null,null,null,null,null,null,null,null,null,null,null,null,null,null,null,null,null,null,null,null,null,null,null,null,{"$f":"IF(Y51=0,Error.name.supervisor,IF(Total.Error.Funding>0,Error.no.funding,IF(Total.Error.EU>0,Error.no.WP,\"\")))","v":""}]
[]
[]
[null,null,null,null,null,null,null,null,null,null,null,null,null,null,null,null,null,null,null,null,null,null,null,null,{"$f":"\"Supervisor:\"","v":"Supervisor:"},null,null,null,null,null,null,null,null,null,null,"Date"]
[null,null,null,null,null,null,null,null,null,null,null,null,null,null,null,null,null,null,null,null,null,null,null,null,{"$f":"Supervisor","v":"(fill in name of supervisor on Start Page)"}]
[null,null,null,null,null,null,null,null,null,null,null,null,null,null,null,null,null,null,null,null,null,null,null,null,{"$f":"Supervisor.title","v":"(fill in the title of supervisor on Start Page)"}]

{"sheet":"Oct","index":12,"n_rows":52,"n_cols":49,"rows_kept":52,"cut":false,"hidden":false,"merged":[[8,2,8,13],[3,1,3,18],[3,19,3,25],[3,27,3,48],[6,2,6,13],[7,2,7,13],[39,2,51,19],[9,2,9,13],[10,2,10,13],[11,2,11,13],[12,2,12,13],[13,2,13,13],[14,2,14,13],[15,2,15,13],[16,2,16,13],[17,2,17,13],[23,2,30,5],[36,24,37,37],[41,48,51,48],[43,24,43,33],[49,24,49,33],[50,24,50,33],[51,24,51,33]]}
[null,null,null,null,null,null,null,null,null,null,null,null,null,null,"Röda dagar",{"$f":"OR(WEEKDAY(P6,2)=6,WEEKDAY(P6,2)=7,COUNTIF(Tabell.Red.FixedDates[FulltDatum],P6),COUNTIF(Tabell.Red.FixedDays[FulltDatum],P6))","v":false},{"$f":"OR(WEEKDAY(Q6,2)=6,WEEKDAY(Q6,2)=7,COUNTIF(Tabell.Red.FixedDates[FulltDatum],Q6),COUNTIF(Tabell.Red.FixedDays[FulltDatum],Q6))","v":false},{"$f":"OR(WEEKDAY(R6,2)=6,WEEKDAY(R6,2)=7,COUNTIF(Tabell.Red.FixedDates[FulltDatum],R6),COUNTIF(Tabell.Red.FixedDays[FulltDatum],R6))","v":false},{"$f":"OR(WEEKDAY(S6,2)=6,WEEKDAY(S6,2)=7,COUNTIF(Tabell.Red.FixedDates[FulltDatum],S6),COUNTIF(Tabell.Red.FixedDays[FulltDatum],S6))","v":false},{"$f":"OR(WEEKDAY(T6,2)=6,WEEKDAY(T6,2)=7,COUNTIF(Tabell.Red.FixedDates[FulltDatum],T6),COUNTIF(Tabell.Red.FixedDays[FulltDatum],T6))","v":true},{"$f":"OR(WEEKDAY(U6,2)=6,WEEKDAY(U6,2)=7,COUNTIF(Tabell.Red.FixedDates[FulltDatum],U6),COUNTIF(Tabell.Red.FixedDays[FulltDatum],U6))","v":true},{"$f":"OR(WEEKDAY(V6,2)=6,WEEKDAY(V6,2)=7,COUNTIF(Tabell.Red.FixedDates[FulltDatum],V6),COUNTIF(Tabell.Red.FixedDays[FulltDatum],V6))","v":false},{"$f":"OR(WEEKDAY(W6,2)=6,WEEKDAY(W6,2)=7,COUNTIF(Tabell.Red.FixedDates[FulltDatum],W6),COUNTIF(Tabell.Red.FixedDays[FulltDatum],W6))","v":false},{"$f":"OR(WEEKDAY(X6,2)=6,WEEKDAY(X6,2)=7,COUNTIF(Tabell.Red.FixedDates[FulltDatum],X6),COUNTIF(Tabell.Red.FixedDays[FulltDatum],X6))","v":false},{"$f":"OR(WEEKDAY(Y6,2)=6,WEEKDAY(Y6,2)=7,COUNTIF(Tabell.Red.FixedDates[FulltDatum],Y6),COUNTIF(Tabell.Red.FixedDays[FulltDatum],Y6))","v":false},{"$f":"OR(WEEKDAY(Z6,2)=6,WEEKDAY(Z6,2)=7,COUNTIF(Tabell.Red.FixedDates[FulltDatum],Z6),COUNTIF(Tabell.Red.FixedDays[FulltDatum],Z6))","v":false},{"$f":"OR(WEEKDAY(AA6,2)=6,WEEKDAY(AA6,2)=7,COUNTIF(Tabell.Red.FixedDates[FulltDatum],AA6),COUNTIF(Tabell.Red.FixedDays[FulltDatum],AA6))","v":true},{"$f":"OR(WEEKDAY(AB6,2)=6,WEEKDAY(AB6,2)=7,COUNTIF(Tabell.Red.FixedDates[FulltDatum],AB6),COUNTIF(Tabell.Red.FixedDays[FulltDatum],AB6))","v":true},{"$f":"OR(WEEKDAY(AC6,2)=6,WEEKDAY(AC6,2)=7,COUNTIF(Tabell.Red.FixedDates[FulltDatum],AC6),COUNTIF(Tabell.Red.FixedDays[FulltDatum],AC6))","v":false},{"$f":"OR(WEEKDAY(AD6,2)=6,WEEKDAY(AD6,2)=7,COUNTIF(Tabell.Red.FixedDates[FulltDatum],AD6),COUNTIF(Tabell.Red.FixedDays[FulltDatum],AD6))","v":false},{"$f":"OR(WEEKDAY(AE6,2)=6,WEEKDAY(AE6,2)=7,COUNTIF(Tabell.Red.FixedDates[FulltDatum],AE6),COUNTIF(Tabell.Red.FixedDays[FulltDatum],AE6))","v":false},{"$f":"OR(WEEKDAY(AF6,2)=6,WEEKDAY(AF6,2)=7,COUNTIF(Tabell.Red.FixedDates[FulltDatum],AF6),COUNTIF(Tabell.Red.FixedDays[FulltDatum],AF6))","v":false},{"$f":"OR(WEEKDAY(AG6,2)=6,WEEKDAY(AG6,2)=7,COUNTIF(Tabell.Red.FixedDates[FulltDatum],AG6),COUNTIF(Tabell.Red.FixedDays[FulltDatum],AG6))","v":false},{"$f":"OR(WEEKDAY(AH6,2)=6,WEEKDAY(AH6,2)=7,COUNTIF(Tabell.Red.FixedDates[FulltDatum],AH6),COUNTIF(Tabell.Red.FixedDays[FulltDatum],AH6))","v":true},{"$f":"OR(WEEKDAY(AI6,2)=6,WEEKDAY(AI6,2)=7,COUNTIF(Tabell.Red.FixedDates[FulltDatum],AI6),COUNTIF(Tabell.Red.FixedDays[FulltDatum],AI6))","v":true},{"$f":"OR(WEEKDAY(AJ6,2)=6,WEEKDAY(AJ6,2)=7,COUNTIF(Tabell.Red.FixedDates[FulltDatum],AJ6),COUNTIF(Tabell.Red.FixedDays[FulltDatum],AJ6))","v":false},{"$f":"OR(WEEKDAY(AK6,2)=6,WEEKDAY(AK6,2)=7,COUNTIF(Tabell.Red.FixedDates[FulltDatum],AK6),COUNTIF(Tabell.Red.FixedDays[FulltDatum],AK6))","v":false},{"$f":"OR(WEEKDAY(AL6,2)=6,WEEKDAY(AL6,2)=7,COUNTIF(Tabell.Red.FixedDates[FulltDatum],AL6),COUNTIF(Tabell.Red.FixedDays[FulltDatum],AL6))","v":false},{"$f":"OR(WEEKDAY(AM6,2)=6,WEEKDAY(AM6,2)=7,COUNTIF(Tabell.Red.FixedDates[FulltDatum],AM6),COUNTIF(Tabell.Red.FixedDays[FulltDatum],AM6))","v":false},{"$f":"OR(WEEKDAY(AN6,2)=6,WEEKDAY(AN6,2)=7,COUNTIF(Tabell.Red.FixedDates[FulltDatum],AN6),COUNTIF(Tabell.Red.FixedDays[FulltDatum],AN6))","v":false},{"$f":"OR(WEEKDAY(AO6,2)=6,WEEKDAY(AO6,2)=7,COUNTIF(Tabell.Red.FixedDates[FulltDatum],AO6),COUNTIF(Tabell.Red.FixedDays[FulltDatum],AO6))","v":true},{"$f":"OR(WEEKDAY(AP6,2)=6,WEEKDAY(AP6,2)=7,COUNTIF(Tabell.Red.FixedDates[FulltDatum],AP6),COUNTIF(Tabell.Red.FixedDays[FulltDatum],AP6))","v":true},{"$f":"OR(WEEKDAY(AQ6,2)=6,WEEKDAY(AQ6,2)=7,COUNTIF(Tabell.Red.FixedDates[FulltDatum],AQ6),COUNTIF(Tabell.Red.FixedDays[FulltDatum],AQ6))","v":false},{"$f":"OR(WEEKDAY(AR6,2)=6,WEEKDAY(AR6,2)=7,COUNTIF(Tabell.Red.FixedDates[FulltDatum],AR6),COUNTIF(Tabell.Red.FixedDays[FulltDatum],AR6))","v":false},{"$f":"OR(WEEKDAY(AS6,2)=6,WEEKDAY(AS6,2)=7,COUNTIF(Tabell.Red.FixedDates[FulltDatum],AS6),COUNTIF(Tabell.Red.FixedDays[FulltDatum],AS6))","v":false},{"$f":"OR(WEEKDAY(AT6,2)=6,WEEKDAY(AT6,2)=7,COUNTIF(Tabell.Red.FixedDates[FulltDatum],AT6),COUNTIF(Tabell.Red.FixedDays[FulltDatum],AT6))","v":false}]
[null,null,null,null,null,null,null,null,null,null,null,null,null,null,"Övriga dagar",{"$f":"OR(COUNTIF(Tabell.Shortdays[FulltDatum],P6),COUNTIF(Tabell.Klamdagar[FulltDatum],P6))","v":false},{"$f":"OR(COUNTIF(Tabell.Shortdays[FulltDatum],Q6),COUNTIF(Tabell.Klamdagar[FulltDatum],Q6))","v":false},{"$f":"OR(COUNTIF(Tabell.Shortdays[FulltDatum],R6),COUNTIF(Tabell.Klamdagar[FulltDatum],R6))","v":false},{"$f":"OR(COUNTIF(Tabell.Shortdays[FulltDatum],S6),COUNTIF(Tabell.Klamdagar[FulltDatum],S6))","v":false},{"$f":"OR(COUNTIF(Tabell.Shortdays[FulltDatum],T6),COUNTIF(Tabell.Klamdagar[FulltDatum],T6))","v":false},{"$f":"OR(COUNTIF(Tabell.Shortdays[FulltDatum],U6),COUNTIF(Tabell.Klamdagar[FulltDatum],U6))","v":false},{"$f":"OR(COUNTIF(Tabell.Shortdays[FulltDatum],V6),COUNTIF(Tabell.Klamdagar[FulltDatum],V6))","v":false},{"$f":"OR(COUNTIF(Tabell.Shortdays[FulltDatum],W6),COUNTIF(Tabell.Klamdagar[FulltDatum],W6))","v":false},{"$f":"OR(COUNTIF(Tabell.Shortdays[FulltDatum],X6),COUNTIF(Tabell.Klamdagar[FulltDatum],X6))","v":false},{"$f":"OR(COUNTIF(Tabell.Shortdays[FulltDatum],Y6),COUNTIF(Tabell.Klamdagar[FulltDatum],Y6))","v":false},{"$f":"OR(COUNTIF(Tabell.Shortdays[FulltDatum],Z6),COUNTIF(Tabell.Klamdagar[FulltDatum],Z6))","v":false},{"$f":"OR(COUNTIF(Tabell.Shortdays[FulltDatum],AA6),COUNTIF(Tabell.Klamdagar[FulltDatum],AA6))","v":false},{"$f":"OR(COUNTIF(Tabell.Shortdays[FulltDatum],AB6),COUNTIF(Tabell.Klamdagar[FulltDatum],AB6))","v":false},{"$f":"OR(COUNTIF(Tabell.Shortdays[FulltDatum],AC6),COUNTIF(Tabell.Klamdagar[FulltDatum],AC6))","v":false},{"$f":"OR(COUNTIF(Tabell.Shortdays[FulltDatum],AD6),COUNTIF(Tabell.Klamdagar[FulltDatum],AD6))","v":false},{"$f":"OR(COUNTIF(Tabell.Shortdays[FulltDatum],AE6),COUNTIF(Tabell.Klamdagar[FulltDatum],AE6))","v":false},{"$f":"OR(COUNTIF(Tabell.Shortdays[FulltDatum],AF6),COUNTIF(Tabell.Klamdagar[FulltDatum],AF6))","v":false},{"$f":"OR(COUNTIF(Tabell.Shortdays[FulltDatum],AG6),COUNTIF(Tabell.Klamdagar[FulltDatum],AG6))","v":false},{"$f":"OR(COUNTIF(Tabell.Shortdays[FulltDatum],AH6),COUNTIF(Tabell.Klamdagar[FulltDatum],AH6))","v":false},{"$f":"OR(COUNTIF(Tabell.Shortdays[FulltDatum],AI6),COUNTIF(Tabell.Klamdagar[FulltDatum],AI6))","v":false},{"$f":"OR(COUNTIF(Tabell.Shortdays[FulltDatum],AJ6),COUNTIF(Tabell.Klamdagar[FulltDatum],AJ6))","v":false},{"$f":"OR(COUNTIF(Tabell.Shortdays[FulltDatum],AK6),COUNTIF(Tabell.Klamdagar[FulltDatum],AK6))","v":false},{"$f":"OR(COUNTIF(Tabell.Shortdays[FulltDatum],AL6),COUNTIF(Tabell.Klamdagar[FulltDatum],AL6))","v":false},{"$f":"OR(COUNTIF(Tabell.Shortdays[FulltDatum],AM6),COUNTIF(Tabell.Klamdagar[FulltDatum],AM6))","v":false},{"$f":"OR(COUNTIF(Tabell.Shortdays[FulltDatum],AN6),COUNTIF(Tabell.Klamdagar[FulltDatum],AN6))","v":false},{"$f":"OR(COUNTIF(Tabell.Shortdays[FulltDatum],AO6),COUNTIF(Tabell.Klamdagar[FulltDatum],AO6))","v":false},{"$f":"OR(COUNTIF(Tabell.Shortdays[FulltDatum],AP6),COUNTIF(Tabell.Klamdagar[FulltDatum],AP6))","v":false},{"$f":"OR(COUNTIF(Tabell.Shortdays[FulltDatum],AQ6),COUNTIF(Tabell.Klamdagar[FulltDatum],AQ6))","v":false},{"$f":"OR(COUNTIF(Tabell.Shortdays[FulltDatum],AR6),COUNTIF(Tabell.Klamdagar[FulltDatum],AR6))","v":false},{"$f":"OR(COUNTIF(Tabell.Shortdays[FulltDatum],AS6),COUNTIF(Tabell.Klamdagar[FulltDatum],AS6))","v":false},{"$f":"OR(COUNTIF(Tabell.Shortdays[FulltDatum],AT6),COUNTIF(Tabell.Klamdagar[FulltDatum],AT6))","v":false}]
[]
[null,"October",null,null,null,null,null,null,null,null,null,null,null,null,null,null,null,null,null,{"$f":"Year","v":2024},null,null,null,null,null,null,null,{"$f":"Member","v":"(fill in name of member on Start Page)"}]
[]
[null,null,null,null,null,null,null,null,null,null,null,null,null,null,null,{"$f":"DATEVALUE(Year&\"-\"&VLOOKUP(LEFT(B4,3),list.months,2,0)&\"-1\")","v":"2024-10-01"},{"$f":"DATE(YEAR(P6),MONTH(P6),DAY(P6)+1)","v":"2024-10-02"},{"$f":"DATE(YEAR(Q6),MONTH(Q6),DAY(Q6)+1)","v":"2024-10-03"},"2024-10-04","2024-10-05","2024-10-06","2024-10-07","2024-10-08","2024-10-09","2024-10-10","2024-10-11","2024-10-12","2024-10-13","2024-10-14","2024-10-15","2024-10-16","2024-10-17","2024-10-18","2024-10-19","2024-10-20","2024-10-21","2024-10-22","2024-10-23","2024-10-24","2024-10-25","2024-10-26","2024-10-27","2024-10-28","2024-10-29","2024-10-30","2024-10-31","Sum",null,"%"]
[null,null,{"$f":"IF(Acronym.01=\"\",,IF(Type.01=\"\",Error.no.funding,IF(Type.01=Funding.type.03,Acronym.01&\" - \"&Contract.01,IF(Def!K76>0,Error.no.WP,Acronym.01&\" - \"&Contract.01&\" - WP\"&WP.01))))","v":0},null,null,null,null,null,null,null,null,null,null,null,null,null,null,null,null,null,null,null,null,null,null,null,null,null,null,null,null,null,null,null,null,null,null,null,null,null,null,null,null,null,null,null,{"$f":"SUM(P7:AT7)","v":0},null,{"$f":"IFERROR(IF(AU7/$AU$21=0,\"\",AU7/$AU$21),\"\")","v":""}]
[null,null,{"$f":"IF(Acronym.02=\"\",,IF(Type.02=\"\",Error.no.funding,IF(Type.02=Funding.type.03,Acronym.02&\" - \"&Contract.02,IF(Def!K77>0,Error.no.WP,Acronym.02&\" - \"&Contract.02&\" - WP\"&WP.02))))","v":0},null,null,null,null,null,null,null,null,null,null,null,null,null,null,null,null,null,null,null,null,null,null,null,null,null,null,null,null,null,null,null,null,null,null,null,null,null,null,null,null,null,null,null,0,null,""]
[null,null,{"$f":"IF(Acronym.03=\"\",,IF(Type.03=\"\",Error.no.funding,IF(Type.03=Funding.type.03,Acronym.03&\" - \"&Contract.03,IF(Def!K78>0,Error.no.WP,Acronym.03&\" - \"&Contract.03&\" - WP\"&WP.03))))","v":0},null,null,null,null,null,null,null,null,null,null,null,null,null,null,null,null,null,null,null,null,null,null,null,null,null,null,null,null,null,null,null,null,null,null,null,null,null,null,null,null,null,null,null,0,null,""]
[null,null,{"$f":"IF(Acronym.04=\"\",,IF(Type.04=\"\",Error.no.funding,IF(Type.04=Funding.type.03,Acronym.04&\" - \"&Contract.04,IF(Def!K79>0,Error.no.WP,Acronym.04&\" - \"&Contract.04&\" - WP\"&WP.04))))","v":0},null,null,null,null,null,null,null,null,null,null,null,null,null,null,null,null,null,null,null,null,null,null,null,null,null,null,null,null,null,null,null,null,null,null,null,null,null,null,null,null,null,null,null,0,null,""]
[null,null,{"$f":"IF(Acronym.05=\"\",,IF(Type.05=\"\",Error.no.funding,IF(Type.05=Funding.type.03,Acronym.05&\" - \"&Contract.05,IF(Def!K80>0,Error.no.WP,Acronym.05&\" - \"&Contract.05&\" - WP\"&WP.05))))","v":0},null,null,null,null,null,null,null,null,null,null,null,null,null,null,null,null,null,null,null,null,null,null,null,null,null,null,null,null,null,null,null,null,null,null,null,null,null,null,null,null,null,null,null,0,null,""]
[null,null,{"$f":"IF(Acronym.06=\"\",,IF(Type.06=\"\",Error.no.funding,IF(Type.06=Funding.type.03,Acronym.06&\" - \"&Contract.06,IF(Def!K81>0,Error.no.WP,Acronym.06&\" - \"&Contract.06&\" - WP\"&WP.06))))","v":0},null,null,null,null,null,null,null,null,null,null,null,null,null,null,null,null,null,null,null,null,null,null,null,null,null,null,null,null,null,null,null,null,null,null,null,null,null,null,null,null,null,null,null,0,null,""]
[null,null,{"$f":"IF(Acronym.07=\"\",,IF(Type.07=\"\",Error.no.funding,IF(Type.07=Funding.type.03,Acronym.07&\" - \"&Contract.07,IF(Def!K82>0,Error.no.WP,Acronym.07&\" - \"&Contract.07&\" - WP\"&WP.07))))","v":0},null,null,null,null,null,null,null,null,null,null,null,null,null,null,null,null,null,null,null,null,null,null,null,null,null,null,null,null,null,null,null,null,null,null,null,null,null,null,null,null,null,null,null,0,null,""]
[null,null,{"$f":"IF(Acronym.08=\"\",,IF(Type.08=\"\",Error.no.funding,IF(Type.08=Funding.type.03,Acronym.08&\" - \"&Contract.08,IF(Def!K83>0,Error.no.WP,Acronym.08&\" - \"&Contract.08&\" - WP\"&WP.08))))","v":0},null,null,null,null,null,null,null,null,null,null,null,null,null,null,null,null,null,null,null,null,null,null,null,null,null,null,null,null,null,null,null,null,null,null,null,null,null,null,null,null,null,null,null,0,null,""]
[null,null,{"$f":"IF(Acronym.09=\"\",,IF(Type.09=\"\",Error.no.funding,IF(Type.09=Funding.type.03,Acronym.09&\" - \"&Contract.09,IF(Def!K84>0,Error.no.WP,Acronym.09&\" - \"&Contract.09&\" - WP\"&WP.09))))","v":0},null,null,null,null,null,null,null,null,null,null,null,null,null,null,null,null,null,null,null,null,null,null,null,null,null,null,null,null,null,null,null,null,null,null,null,null,null,null,null,null,null,null,null,0,null,""]
[null,null,{"$f":"IF(Acronym.10=\"\",,IF(Type.10=\"\",Error.no.funding,IF(Type.10=Funding.type.03,Acronym.10&\" - \"&Contract.10,IF(Def!K85>0,Error.no.WP,Acronym.10&\" - \"&Contract.10&\" - WP\"&WP.10))))","v":0},null,null,null,null,null,null,null,null,null,null,null,null,null,null,null,null,null,null,null,null,null,null,null,null,null,null,null,null,null,null,null,null,null,null,null,null,null,null,null,null,null,null,null,0,null,""]
[null,null,{"$f":"IF(Acronym.11=\"\",,IF(Type.11=\"\",Error.no.funding,IF(Type.11=Funding.type.03,Acronym.11&\" - \"&Contract.11,IF(Def!K86>0,Error.no.WP,Acronym.11&\" - \"&Contract.11&\" - WP\"&WP.11))))","v":0},null,null,null,null,null,null,null,null,null,null,null,null,null,null,null,null,null,null,null,null,null,null,null,null,null,null,null,null,null,null,null,null,null,null,null,null,null,null,null,null,null,null,null,0,null,""]
[null,null,{"$f":"IF(Acronym.12=\"\",,IF(Type.12=\"\",Error.no.funding,IF(Type.12=Funding.type.03,Acronym.12&\" - \"&Contract.12,IF(Def!K87>0,Error.no.WP,Acronym.12&\" - \"&Contract.12&\" - WP\"&WP.12))))","v":0},null,null,null,null,null,null,null,null,null,null,null,null,null,null,null,null,null,null,null,null,null,null,null,null,null,null,null,null,null,null,null,null,null,null,null,null,null,null,null,null,null,null,null,0,null,{"$f":"IFERROR(AU18/$AU$21,\"\")","v":""}]
[null,null,null,null,null,null,null,null,null,null,null,null,null,"ALL OTHER HOURS WORKED AT SU",null,null,null,null,null,null,null,null,null,null,null,null,null,null,null,null,null,null,null,null,null,null,null,null,null,null,null,null,null,null,null,null,0,null,""]
[]
[null,null,null,null,null,null,null,null,null,null,null,null,null,"Total productive hours",null,{"$f":"IF(ROUND(SUM(P7:P19),2)=0,\"\",ROUND(SUM(P7:P19),2))","v":""},"","","","","","","","","","","","","","","","","","","","","","","","","","","","","","",""]
[]
[]
[null,null,"Absence"]
[null,null,null,null,null,null,null,null,null,null,null,null,null,"Annual Leave",null,null,null,null,null,null,null,null,null,null,null,null,null,null,null,null,null,null,null,null,null,null,null,null,null,null,null,null,null,null,null,null,{"$f":"IF(ROUND(SUM(P25:AT25),2)=0,\"\",ROUND(SUM(P25:AT25),2))","v":""},null,{"$f":"IFERROR(IF(AU25/$AU$30=0,\"\",AU25/$AU$30),\"\")","v":""}]
[null,null,null,null,null,null,null,null,null,null,null,null,null,"Own Illness",null,null,null,null,null,null,null,null,null,null,null,null,null,null,null,null,null,null,null,null,null,null,null,null,null,null,null,null,null,null,null,null,"",null,""]
[null,null,null,null,null,null,null,null,null,null,null,null,null,"Special Leave",null,null,null,null,null,null,null,null,null,null,null,null,null,null,null,null,null,null,null,null,null,null,null,null,null,null,null,null,null,null,null,null,"",null,""]
[null,null,null,null,null,null,null,null,null,null,null,null,null,"Parental Leave",null,null,null,null,null,null,null,null,null,null,null,null,null,null,null,null,null,null,null,null,null,null,null,null,null,null,null,null,null,null,null,null,"",null,""]
[]
[null,null,null,null,null,null,null,null,null,null,null,null,null,"Total absent hours",null,{"$f":"IF(ROUND(SUM(P25:P28),2)=0,\"\",ROUND(SUM(P25:P28),2))","v":""},"","","","","","","","","","","","","","","","","","","","","","","","","","","","","","",""]
[]
[]
[null,null,null,null,null,null,null,null,null,null,null,null,null,"Total hours",null,{"$f":"IF(ROUND(SUM(P21,P30),2)=0,\"\",ROUND(SUM(P21,P30),2))","v":""},"","","","","","","","","","",{"$f":"IF(ROUND(SUM(AA21,AA30),2)=0,\"\",ROUND(SUM(AA21,AA30),2))","v":""},{"$f":"IF(ROUND(SUM(AB21,AB30),2)=0,\"\",ROUND(SUM(AB21,AB30),2))","v":""},"","","","","","","","","","","","","","","","","","",""]
[]
[]
[]
[null,null,"Short description of the activities carried out",null,null,null,null,null,null,null,null,null,null,null,null,null,null,null,null,null,null,null,null,null,"Signatures and date of signature",null,null,null,null,null,null,null,null,null,null,null,null,null,null,null,null,"Beneficiary:"]
[null,null,"(indicate the project name with the description)",null,null,null,null,null,null,null,null,null,null,null,null,null,null,null,null,null,null,null,null,null,null,null,null,null,null,null,null,null,null,null,null,null,null,null,null,null,null,{"$f":"Beneficiary","v":"STOCKHOLMS UNIVERSITET"}]
[]
[]
[null,null,null,null,null,null,null,null,null,null,null,null,null,null,null,null,null,null,null,null,null,null,null,null,{"$f":"IF(Member=\"\",Error.name.member,IF(Member.title=\"\",Error.title.member,IF(Total.Error.Funding>0,Error.no.funding,IF(Total.Error.EU>0,Error.no.WP,\"\"))))","v":""}]
[]
[null,null,null,null,null,null,null,null,null,null,null,null,null,null,null,null,null,null,null,null,null,null,null,null,{"$f":"Member","v":"(fill in name of member on Start Page)"}]
[null,null,null,null,null,null,null,null,null,null,null,null,null,null,null,null,null,null,null,null,null,null,null,null,{"$f":"Member.title","v":"(fill in title of member on Start Page)"},null,null,null,null,null,null,null,null,null,null,"Date"]
[]
[]
[null,null,null,null,null,null,null,null,null,null,null,null,null,null,null,null,null,null,null,null,null,null,null,null,{"$f":"IF(Y51=0,Error.name.supervisor,IF(Total.Error.Funding>0,Error.no.funding,IF(Total.Error.EU>0,Error.no.WP,\"\")))","v":""}]
[]
[]
[null,null,null,null,null,null,null,null,null,null,null,null,null,null,null,null,null,null,null,null,null,null,null,null,{"$f":"\"Supervisor:\"","v":"Supervisor:"},null,null,null,null,null,null,null,null,null,null,"Date"]
[null,null,null,null,null,null,null,null,null,null,null,null,null,null,null,null,null,null,null,null,null,null,null,null,{"$f":"Supervisor","v":"(fill in name of supervisor on Start Page)"}]
[null,null,null,null,null,null,null,null,null,null,null,null,null,null,null,null,null,null,null,null,null,null,null,null,{"$f":"Supervisor.title","v":"(fill in the title of supervisor on Start Page)"}]

{"sheet":"Nov","index":13,"n_rows":52,"n_cols":49,"rows_kept":52,"cut":false,"hidden":false,"merged":[[8,2,8,13],[3,1,3,18],[3,19,3,25],[3,27,3,48],[6,2,6,13],[7,2,7,13],[39,2,51,19],[9,2,9,13],[10,2,10,13],[11,2,11,13],[12,2,12,13],[13,2,13,13],[14,2,14,13],[15,2,15,13],[16,2,16,13],[17,2,17,13],[23,2,30,5],[36,24,37,37],[41,48,51,48],[43,24,43,33],[49,24,49,33],[50,24,50,33],[51,24,51,33]]}
[null,null,null,null,null,null,null,null,null,null,null,null,null,null,"Röda dagar",{"$f":"OR(WEEKDAY(P6,2)=6,WEEKDAY(P6,2)=7,COUNTIF(Tabell.Red.FixedDates[FulltDatum],P6),COUNTIF(Tabell.Red.FixedDays[FulltDatum],P6))","v":false},{"$f":"OR(WEEKDAY(Q6,2)=6,WEEKDAY(Q6,2)=7,COUNTIF(Tabell.Red.FixedDates[FulltDatum],Q6),COUNTIF(Tabell.Red.FixedDays[FulltDatum],Q6))","v":true},{"$f":"OR(WEEKDAY(R6,2)=6,WEEKDAY(R6,2)=7,COUNTIF(Tabell.Red.FixedDates[FulltDatum],R6),COUNTIF(Tabell.Red.FixedDays[FulltDatum],R6))","v":true},{"$f":"OR(WEEKDAY(S6,2)=6,WEEKDAY(S6,2)=7,COUNTIF(Tabell.Red.FixedDates[FulltDatum],S6),COUNTIF(Tabell.Red.FixedDays[FulltDatum],S6))","v":false},{"$f":"OR(WEEKDAY(T6,2)=6,WEEKDAY(T6,2)=7,COUNTIF(Tabell.Red.FixedDates[FulltDatum],T6),COUNTIF(Tabell.Red.FixedDays[FulltDatum],T6))","v":false},{"$f":"OR(WEEKDAY(U6,2)=6,WEEKDAY(U6,2)=7,COUNTIF(Tabell.Red.FixedDates[FulltDatum],U6),COUNTIF(Tabell.Red.FixedDays[FulltDatum],U6))","v":false},{"$f":"OR(WEEKDAY(V6,2)=6,WEEKDAY(V6,2)=7,COUNTIF(Tabell.Red.FixedDates[FulltDatum],V6),COUNTIF(Tabell.Red.FixedDays[FulltDatum],V6))","v":false},{"$f":"OR(WEEKDAY(W6,2)=6,WEEKDAY(W6,2)=7,COUNTIF(Tabell.Red.FixedDates[FulltDatum],W6),COUNTIF(Tabell.Red.FixedDays[FulltDatum],W6))","v":false},{"$f":"OR(WEEKDAY(X6,2)=6,WEEKDAY(X6,2)=7,COUNTIF(Tabell.Red.FixedDates[FulltDatum],X6),COUNTIF(Tabell.Red.FixedDays[FulltDatum],X6))","v":true},{"$f":"OR(WEEKDAY(Y6,2)=6,WEEKDAY(Y6,2)=7,COUNTIF(Tabell.Red.FixedDates[FulltDatum],Y6),COUNTIF(Tabell.Red.FixedDays[FulltDatum],Y6))","v":true},{"$f":"OR(WEEKDAY(Z6,2)=6,WEEKDAY(Z6,2)=7,COUNTIF(Tabell.Red.FixedDates[FulltDatum],Z6),COUNTIF(Tabell.Red.FixedDays[FulltDatum],Z6))","v":false},{"$f":"OR(WEEKDAY(AA6,2)=6,WEEKDAY(AA6,2)=7,COUNTIF(Tabell.Red.FixedDates[FulltDatum],AA6),COUNTIF(Tabell.Red.FixedDays[FulltDatum],AA6))","v":false},{"$f":"OR(WEEKDAY(AB6,2)=6,WEEKDAY(AB6,2)=7,COUNTIF(Tabell.Red.FixedDates[FulltDatum],AB6),COUNTIF(Tabell.Red.FixedDays[FulltDatum],AB6))","v":false},{"$f":"OR(WEEKDAY(AC6,2)=6,WEEKDAY(AC6,2)=7,COUNTIF(Tabell.Red.FixedDates[FulltDatum],AC6),COUNTIF(Tabell.Red.FixedDays[FulltDatum],AC6))","v":false},{"$f":"OR(WEEKDAY(AD6,2)=6,WEEKDAY(AD6,2)=7,COUNTIF(Tabell.Red.FixedDates[FulltDatum],AD6),COUNTIF(Tabell.Red.FixedDays[FulltDatum],AD6))","v":false},{"$f":"OR(WEEKDAY(AE6,2)=6,WEEKDAY(AE6,2)=7,COUNTIF(Tabell.Red.FixedDates[FulltDatum],AE6),COUNTIF(Tabell.Red.FixedDays[FulltDatum],AE6))","v":true},{"$f":"OR(WEEKDAY(AF6,2)=6,WEEKDAY(AF6,2)=7,COUNTIF(Tabell.Red.FixedDates[FulltDatum],AF6),COUNTIF(Tabell.Red.FixedDays[FulltDatum],AF6))","v":true},{"$f":"OR(WEEKDAY(AG6,2)=6,WEEKDAY(AG6,2)=7,COUNTIF(Tabell.Red.FixedDates[FulltDatum],AG6),COUNTIF(Tabell.Red.FixedDays[FulltDatum],AG6))","v":false},{"$f":"OR(WEEKDAY(AH6,2)=6,WEEKDAY(AH6,2)=7,COUNTIF(Tabell.Red.FixedDates[FulltDatum],AH6),COUNTIF(Tabell.Red.FixedDays[FulltDatum],AH6))","v":false},{"$f":"OR(WEEKDAY(AI6,2)=6,WEEKDAY(AI6,2)=7,COUNTIF(Tabell.Red.FixedDates[FulltDatum],AI6),COUNTIF(Tabell.Red.FixedDays[FulltDatum],AI6))","v":false},{"$f":"OR(WEEKDAY(AJ6,2)=6,WEEKDAY(AJ6,2)=7,COUNTIF(Tabell.Red.FixedDates[FulltDatum],AJ6),COUNTIF(Tabell.Red.FixedDays[FulltDatum],AJ6))","v":false},{"$f":"OR(WEEKDAY(AK6,2)=6,WEEKDAY(AK6,2)=7,COUNTIF(Tabell.Red.FixedDates[FulltDatum],AK6),COUNTIF(Tabell.Red.FixedDays[FulltDatum],AK6))","v":false},{"$f":"OR(WEEKDAY(AL6,2)=6,WEEKDAY(AL6,2)=7,COUNTIF(Tabell.Red.FixedDates[FulltDatum],AL6),COUNTIF(Tabell.Red.FixedDays[FulltDatum],AL6))","v":true},{"$f":"OR(WEEKDAY(AM6,2)=6,WEEKDAY(AM6,2)=7,COUNTIF(Tabell.Red.FixedDates[FulltDatum],AM6),COUNTIF(Tabell.Red.FixedDays[FulltDatum],AM6))","v":true},{"$f":"OR(WEEKDAY(AN6,2)=6,WEEKDAY(AN6,2)=7,COUNTIF(Tabell.Red.FixedDates[FulltDatum],AN6),COUNTIF(Tabell.Red.FixedDays[FulltDatum],AN6))","v":false},{"$f":"OR(WEEKDAY(AO6,2)=6,WEEKDAY(AO6,2)=7,COUNTIF(Tabell.Red.FixedDates[FulltDatum],AO6),COUNTIF(Tabell.Red.FixedDays[FulltDatum],AO6))","v":false},{"$f":"OR(WEEKDAY(AP6,2)=6,WEEKDAY(AP6,2)=7,COUNTIF(Tabell.Red.FixedDates[FulltDatum],AP6),COUNTIF(Tabell.Red.FixedDays[FulltDatum],AP6))","v":false},{"$f":"OR(WEEKDAY(AQ6,2)=6,WEEKDAY(AQ6,2)=7,COUNTIF(Tabell.Red.FixedDates[FulltDatum],AQ6),COUNTIF(Tabell.Red.FixedDays[FulltDatum],AQ6))","v":false},{"$f":"OR(WEEKDAY(AR6,2)=6,WEEKDAY(AR6,2)=7,COUNTIF(Tabell.Red.FixedDates[FulltDatum],AR6),COUNTIF(Tabell.Red.FixedDays[FulltDatum],AR6))","v":false},{"$f":"OR(WEEKDAY(AS6,2)=6,WEEKDAY(AS6,2)=7,COUNTIF(Tabell.Red.FixedDates[FulltDatum],AS6),COUNTIF(Tabell.Red.FixedDays[FulltDatum],AS6))","v":true},{"$f":"OR(WEEKDAY(AT6,2)=6,WEEKDAY(AT6,2)=7,COUNTIF(Tabell.Red.FixedDates[FulltDatum],AT6),COUNTIF(Tabell.Red.FixedDays[FulltDatum],AT6))","v":true}]
[null,null,null,null,null,null,null,null,null,null,null,null,null,null,"Övriga dagar",{"$f":"OR(COUNTIF(Tabell.Shortdays[FulltDatum],P6),COUNTIF(Tabell.Klamdagar[FulltDatum],P6))","v":false},{"$f":"OR(COUNTIF(Tabell.Shortdays[FulltDatum],Q6),COUNTIF(Tabell.Klamdagar[FulltDatum],Q6))","v":false},{"$f":"OR(COUNTIF(Tabell.Shortdays[FulltDatum],R6),COUNTIF(Tabell.Klamdagar[FulltDatum],R6))","v":false},{"$f":"OR(COUNTIF(Tabell.Shortdays[FulltDatum],S6),COUNTIF(Tabell.Klamdagar[FulltDatum],S6))","v":false},{"$f":"OR(COUNTIF(Tabell.Shortdays[FulltDatum],T6),COUNTIF(Tabell.Klamdagar[FulltDatum],T6))","v":false},{"$f":"OR(COUNTIF(Tabell.Shortdays[FulltDatum],U6),COUNTIF(Tabell.Klamdagar[FulltDatum],U6))","v":false},{"$f":"OR(COUNTIF(Tabell.Shortdays[FulltDatum],V6),COUNTIF(Tabell.Klamdagar[FulltDatum],V6))","v":false},{"$f":"OR(COUNTIF(Tabell.Shortdays[FulltDatum],W6),COUNTIF(Tabell.Klamdagar[FulltDatum],W6))","v":false},{"$f":"OR(COUNTIF(Tabell.Shortdays[FulltDatum],X6),COUNTIF(Tabell.Klamdagar[FulltDatum],X6))","v":false},{"$f":"OR(COUNTIF(Tabell.Shortdays[FulltDatum],Y6),COUNTIF(Tabell.Klamdagar[FulltDatum],Y6))","v":false},{"$f":"OR(COUNTIF(Tabell.Shortdays[FulltDatum],Z6),COUNTIF(Tabell.Klamdagar[FulltDatum],Z6))","v":false},{"$f":"OR(COUNTIF(Tabell.Shortdays[FulltDatum],AA6),COUNTIF(Tabell.Klamdagar[FulltDatum],AA6))","v":false},{"$f":"OR(COUNTIF(Tabell.Shortdays[FulltDatum],AB6),COUNTIF(Tabell.Klamdagar[FulltDatum],AB6))","v":false},{"$f":"OR(COUNTIF(Tabell.Shortdays[FulltDatum],AC6),COUNTIF(Tabell.Klamdagar[FulltDatum],AC6))","v":false},{"$f":"OR(COUNTIF(Tabell.Shortdays[FulltDatum],AD6),COUNTIF(Tabell.Klamdagar[FulltDatum],AD6))","v":false},{"$f":"OR(COUNTIF(Tabell.Shortdays[FulltDatum],AE6),COUNTIF(Tabell.Klamdagar[FulltDatum],AE6))","v":false},{"$f":"OR(COUNTIF(Tabell.Shortdays[FulltDatum],AF6),COUNTIF(Tabell.Klamdagar[FulltDatum],AF6))","v":false},{"$f":"OR(COUNTIF(Tabell.Shortdays[FulltDatum],AG6),COUNTIF(Tabell.Klamdagar[FulltDatum],AG6))","v":false},{"$f":"OR(COUNTIF(Tabell.Shortdays[FulltDatum],AH6),COUNTIF(Tabell.Klamdagar[FulltDatum],AH6))","v":false},{"$f":"OR(COUNTIF(Tabell.Shortdays[FulltDatum],AI6),COUNTIF(Tabell.Klamdagar[FulltDatum],AI6))","v":false},{"$f":"OR(COUNTIF(Tabell.Shortdays[FulltDatum],AJ6),COUNTIF(Tabell.Klamdagar[FulltDatum],AJ6))","v":false},{"$f":"OR(COUNTIF(Tabell.Shortdays[FulltDatum],AK6),COUNTIF(Tabell.Klamdagar[FulltDatum],AK6))","v":false},{"$f":"OR(COUNTIF(Tabell.Shortdays[FulltDatum],AL6),COUNTIF(Tabell.Klamdagar[FulltDatum],AL6))","v":false},{"$f":"OR(COUNTIF(Tabell.Shortdays[FulltDatum],AM6),COUNTIF(Tabell.Klamdagar[FulltDatum],AM6))","v":false},{"$f":"OR(COUNTIF(Tabell.Shortdays[FulltDatum],AN6),COUNTIF(Tabell.Klamdagar[FulltDatum],AN6))","v":false},{"$f":"OR(COUNTIF(Tabell.Shortdays[FulltDatum],AO6),COUNTIF(Tabell.Klamdagar[FulltDatum],AO6))","v":false},{"$f":"OR(COUNTIF(Tabell.Shortdays[FulltDatum],AP6),COUNTIF(Tabell.Klamdagar[FulltDatum],AP6))","v":false},{"$f":"OR(COUNTIF(Tabell.Shortdays[FulltDatum],AQ6),COUNTIF(Tabell.Klamdagar[FulltDatum],AQ6))","v":false},{"$f":"OR(COUNTIF(Tabell.Shortdays[FulltDatum],AR6),COUNTIF(Tabell.Klamdagar[FulltDatum],AR6))","v":false},{"$f":"OR(COUNTIF(Tabell.Shortdays[FulltDatum],AS6),COUNTIF(Tabell.Klamdagar[FulltDatum],AS6))","v":false},{"$f":"OR(COUNTIF(Tabell.Shortdays[FulltDatum],AT6),COUNTIF(Tabell.Klamdagar[FulltDatum],AT6))","v":false}]
[]
[null,"November",null,null,null,null,null,null,null,null,null,null,null,null,null,null,null,null,null,{"$f":"Year","v":2024},null,null,null,null,null,null,null,{"$f":"Member","v":"(fill in name of member on Start Page)"}]
[]
[null,null,null,null,null,null,null,null,null,null,null,null,null,null,null,{"$f":"DATEVALUE(Year&\"-\"&VLOOKUP(LEFT(B4,3),list.months,2,0)&\"-1\")","v":"2024-11-01"},{"$f":"DATE(YEAR(P6),MONTH(P6),DAY(P6)+1)","v":"2024-11-02"},{"$f":"DATE(YEAR(Q6),MONTH(Q6),DAY(Q6)+1)","v":"2024-11-03"},"2024-11-04","2024-11-05","2024-11-06","2024-11-07","2024-11-08","2024-11-09","2024-11-10","2024-11-11","2024-11-12","2024-11-13","2024-11-14","2024-11-15","2024-11-16","2024-11-17","2024-11-18","2024-11-19","2024-11-20","2024-11-21","2024-11-22","2024-11-23","2024-11-24","2024-11-25","2024-11-26","2024-11-27","2024-11-28","2024-11-29","2024-11-30","2024-12-01","Sum",null,"%"]
[null,null,{"$f":"IF(Acronym.01=\"\",,IF(Type.01=\"\",Error.no.funding,IF(Type.01=Funding.type.03,Acronym.01&\" - \"&Contract.01,IF(Def!K76>0,Error.no.WP,Acronym.01&\" - \"&Contract.01&\" - WP\"&WP.01))))","v":0},null,null,null,null,null,null,null,null,null,null,null,null,null,null,null,null,null,null,null,null,null,null,null,null,null,null,null,null,null,null,null,null,null,null,null,null,null,null,null,null,null,null,null,{"$f":"SUM(P7:AT7)","v":0},null,{"$f":"IFERROR(IF(AU7/$AU$21=0,\"\",AU7/$AU$21),\"\")","v":""}]
[null,null,{"$f":"IF(Acronym.02=\"\",,IF(Type.02=\"\",Error.no.funding,IF(Type.02=Funding.type.03,Acronym.02&\" - \"&Contract.02,IF(Def!K77>0,Error.no.WP,Acronym.02&\" - \"&Contract.02&\" - WP\"&WP.02))))","v":0},null,null,null,null,null,null,null,null,null,null,null,null,null,null,null,null,null,null,null,null,null,null,null,null,null,null,null,null,null,null,null,null,null,null,null,null,null,null,null,null,null,null,null,0,null,""]
[null,null,{"$f":"IF(Acronym.03=\"\",,IF(Type.03=\"\",Error.no.funding,IF(Type.03=Funding.type.03,Acronym.03&\" - \"&Contract.03,IF(Def!K78>0,Error.no.WP,Acronym.03&\" - \"&Contract.03&\" - WP\"&WP.03))))","v":0},null,null,null,null,null,null,null,null,null,null,null,null,null,null,null,null,null,null,null,null,null,null,null,null,null,null,null,null,null,null,null,null,null,null,null,null,null,null,null,null,null,null,null,0,null,""]
[null,null,{"$f":"IF(Acronym.04=\"\",,IF(Type.04=\"\",Error.no.funding,IF(Type.04=Funding.type.03,Acronym.04&\" - \"&Contract.04,IF(Def!K79>0,Error.no.WP,Acronym.04&\" - \"&Contract.04&\" - WP\"&WP.04))))","v":0},null,null,null,null,null,null,null,null,null,null,null,null,null,null,null,null,null,null,null,null,null,null,null,null,null,null,null,null,null,null,null,null,null,null,null,null,null,null,null,null,null,null,null,0,null,""]
[null,null,{"$f":"IF(Acronym.05=\"\",,IF(Type.05=\"\",Error.no.funding,IF(Type.05=Funding.type.03,Acronym.05&\" - \"&Contract.05,IF(Def!K80>0,Error.no.WP,Acronym.05&\" - \"&Contract.05&\" - WP\"&WP.05))))","v":0},null,null,null,null,null,null,null,null,null,null,null,null,null,null,null,null,null,null,null,null,null,null,null,null,null,null,null,null,null,null,null,null,null,null,null,null,null,null,null,null,null,null,null,0,null,""]
[null,null,{"$f":"IF(Acronym.06=\"\",,IF(Type.06=\"\",Error.no.funding,IF(Type.06=Funding.type.03,Acronym.06&\" - \"&Contract.06,IF(Def!K81>0,Error.no.WP,Acronym.06&\" - \"&Contract.06&\" - WP\"&WP.06))))","v":0},null,null,null,null,null,null,null,null,null,null,null,null,null,null,null,null,null,null,null,null,null,null,null,null,null,null,null,null,null,null,null,null,null,null,null,null,null,null,null,null,null,null,null,0,null,""]
[null,null,{"$f":"IF(Acronym.07=\"\",,IF(Type.07=\"\",Error.no.funding,IF(Type.07=Funding.type.03,Acronym.07&\" - \"&Contract.07,IF(Def!K82>0,Error.no.WP,Acronym.07&\" - \"&Contract.07&\" - WP\"&WP.07))))","v":0},null,null,null,null,null,null,null,null,null,null,null,null,null,null,null,null,null,null,null,null,null,null,null,null,null,null,null,null,null,null,null,null,null,null,null,null,null,null,null,null,null,null,null,0,null,""]
[null,null,{"$f":"IF(Acronym.08=\"\",,IF(Type.08=\"\",Error.no.funding,IF(Type.08=Funding.type.03,Acronym.08&\" - \"&Contract.08,IF(Def!K83>0,Error.no.WP,Acronym.08&\" - \"&Contract.08&\" - WP\"&WP.08))))","v":0},null,null,null,null,null,null,null,null,null,null,null,null,null,null,null,null,null,null,null,null,null,null,null,null,null,null,null,null,null,null,null,null,null,null,null,null,null,null,null,null,null,null,null,0,null,""]
[null,null,{"$f":"IF(Acronym.09=\"\",,IF(Type.09=\"\",Error.no.funding,IF(Type.09=Funding.type.03,Acronym.09&\" - \"&Contract.09,IF(Def!K84>0,Error.no.WP,Acronym.09&\" - \"&Contract.09&\" - WP\"&WP.09))))","v":0},null,null,null,null,null,null,null,null,null,null,null,null,null,null,null,null,null,null,null,null,null,null,null,null,null,null,null,null,null,null,null,null,null,null,null,null,null,null,null,null,null,null,null,0,null,""]
[null,null,{"$f":"IF(Acronym.10=\"\",,IF(Type.10=\"\",Error.no.funding,IF(Type.10=Funding.type.03,Acronym.10&\" - \"&Contract.10,IF(Def!K85>0,Error.no.WP,Acronym.10&\" - \"&Contract.10&\" - WP\"&WP.10))))","v":0},null,null,null,null,null,null,null,null,null,null,null,null,null,null,null,null,null,null,null,null,null,null,null,null,null,null,null,null,null,null,null,null,null,null,null,null,null,null,null,null,null,null,null,0,null,""]
[null,null,{"$f":"IF(Acronym.11=\"\",,IF(Type.11=\"\",Error.no.funding,IF(Type.11=Funding.type.03,Acronym.11&\" - \"&Contract.11,IF(Def!K86>0,Error.no.WP,Acronym.11&\" - \"&Contract.11&\" - WP\"&WP.11))))","v":0},null,null,null,null,null,null,null,null,null,null,null,null,null,null,null,null,null,null,null,null,null,null,null,null,null,null,null,null,null,null,null,null,null,null,null,null,null,null,null,null,null,null,null,0,null,""]
[null,null,{"$f":"IF(Acronym.12=\"\",,IF(Type.12=\"\",Error.no.funding,IF(Type.12=Funding.type.03,Acronym.12&\" - \"&Contract.12,IF(Def!K87>0,Error.no.WP,Acronym.12&\" - \"&Contract.12&\" - WP\"&WP.12))))","v":0},null,null,null,null,null,null,null,null,null,null,null,null,null,null,null,null,null,null,null,null,null,null,null,null,null,null,null,null,null,null,null,null,null,null,null,null,null,null,null,null,null,null,null,0,null,{"$f":"IFERROR(AU18/$AU$21,\"\")","v":""}]
[null,null,null,null,null,null,null,null,null,null,null,null,null,"ALL OTHER HOURS WORKED AT SU",null,null,null,null,null,null,null,null,null,null,null,null,null,null,null,null,null,null,null,null,null,null,null,null,null,null,null,null,null,null,null,null,0,null,""]
[]
[null,null,null,null,null,null,null,null,null,null,null,null,null,"Total productive hours",null,{"$f":"IF(ROUND(SUM(P7:P19),2)=0,\"\",ROUND(SUM(P7:P19),2))","v":""},"","","","","","","","","","","","","","","","","","","","","","","","","","","","","","",""]
[]
[]
[null,null,"Absence"]
[null,null,null,null,null,null,null,null,null,null,null,null,null,"Annual Leave",null,null,null,null,null,null,null,null,null,null,null,null,null,null,null,null,null,null,null,null,null,null,null,null,null,null,null,null,null,null,null,null,{"$f":"IF(ROUND(SUM(P25:AT25),2)=0,\"\",ROUND(SUM(P25:AT25),2))","v":""},null,{"$f":"IFERROR(IF(AU25/$AU$30=0,\"\",AU25/$AU$30),\"\")","v":""}]
[null,null,null,null,null,null,null,null,null,null,null,null,null,"Own Illness",null,null,null,null,null,null,null,null,null,null,null,null,null,null,null,null,null,null,null,null,null,null,null,null,null,null,null,null,null,null,null,null,"",null,""]
[null,null,null,null,null,null,null,null,null,null,null,null,null,"Special Leave",null,null,null,null,null,null,null,null,null,null,null,null,null,null,null,null,null,null,null,null,null,null,null,null,null,null,null,null,null,null,null,null,"",null,""]
[null,null,null,null,null,null,null,null,null,null,null,null,null,"Parental Leave",null,null,null,null,null,null,null,null,null,null,null,null,null,null,null,null,null,null,null,null,null,null,null,null,null,null,null,null,null,null,null,null,"",null,""]
[]
[null,null,null,null,null,null,null,null,null,null,null,null,null,"Total absent hours",null,{"$f":"IF(ROUND(SUM(P25:P28),2)=0,\"\",ROUND(SUM(P25:P28),2))","v":""},"","","","","","","","","","","","","","","","","","","","","","","","","","","","","","",""]
[]
[]
[null,null,null,null,null,null,null,null,null,null,null,null,null,"Total hours",null,{"$f":"IF(ROUND(SUM(P21,P30),2)=0,\"\",ROUND(SUM(P21,P30),2))","v":""},"","","","","","","","","","",{"$f":"IF(ROUND(SUM(AA21,AA30),2)=0,\"\",ROUND(SUM(AA21,AA30),2))","v":""},{"$f":"IF(ROUND(SUM(AB21,AB30),2)=0,\"\",ROUND(SUM(AB21,AB30),2))","v":""},"","","","","","","","","","","","","","","","","","",""]
[]
[]
[]
[null,null,"Short description of the activities carried out",null,null,null,null,null,null,null,null,null,null,null,null,null,null,null,null,null,null,null,null,null,"Signatures and date of signature",null,null,null,null,null,null,null,null,null,null,null,null,null,null,null,null,"Beneficiary:"]
[null,null,"(indicate the project name with the description)",null,null,null,null,null,null,null,null,null,null,null,null,null,null,null,null,null,null,null,null,null,null,null,null,null,null,null,null,null,null,null,null,null,null,null,null,null,null,{"$f":"Beneficiary","v":"STOCKHOLMS UNIVERSITET"}]
[]
[]
[null,null,null,null,null,null,null,null,null,null,null,null,null,null,null,null,null,null,null,null,null,null,null,null,{"$f":"IF(Member=\"\",Error.name.member,IF(Member.title=\"\",Error.title.member,IF(Total.Error.Funding>0,Error.no.funding,IF(Total.Error.EU>0,Error.no.WP,\"\"))))","v":""}]
[]
[null,null,null,null,null,null,null,null,null,null,null,null,null,null,null,null,null,null,null,null,null,null,null,null,{"$f":"Member","v":"(fill in name of member on Start Page)"}]
[null,null,null,null,null,null,null,null,null,null,null,null,null,null,null,null,null,null,null,null,null,null,null,null,{"$f":"Member.title","v":"(fill in title of member on Start Page)"},null,null,null,null,null,null,null,null,null,null,"Date"]
[]
[]
[null,null,null,null,null,null,null,null,null,null,null,null,null,null,null,null,null,null,null,null,null,null,null,null,{"$f":"IF(Y51=0,Error.name.supervisor,IF(Total.Error.Funding>0,Error.no.funding,IF(Total.Error.EU>0,Error.no.WP,\"\")))","v":""}]
[]
[]
[null,null,null,null,null,null,null,null,null,null,null,null,null,null,null,null,null,null,null,null,null,null,null,null,{"$f":"\"Supervisor:\"","v":"Supervisor:"},null,null,null,null,null,null,null,null,null,null,"Date"]
[null,null,null,null,null,null,null,null,null,null,null,null,null,null,null,null,null,null,null,null,null,null,null,null,{"$f":"Supervisor","v":"(fill in name of supervisor on Start Page)"}]
[null,null,null,null,null,null,null,null,null,null,null,null,null,null,null,null,null,null,null,null,null,null,null,null,{"$f":"Supervisor.title","v":"(fill in the title of supervisor on Start Page)"}]

{"sheet":"Dec","index":14,"n_rows":52,"n_cols":49,"rows_kept":52,"cut":false,"hidden":false,"merged":[[8,2,8,13],[3,1,3,18],[3,19,3,25],[3,27,3,48],[6,2,6,13],[7,2,7,13],[39,2,51,19],[9,2,9,13],[10,2,10,13],[11,2,11,13],[12,2,12,13],[13,2,13,13],[14,2,14,13],[15,2,15,13],[16,2,16,13],[17,2,17,13],[23,2,30,5],[36,24,37,37],[41,48,51,48],[43,24,43,33],[49,24,49,33],[50,24,50,33],[51,24,51,33]]}
[null,null,null,null,null,null,null,null,null,null,null,null,null,null,"Röda dagar",{"$f":"OR(WEEKDAY(P6,2)=6,WEEKDAY(P6,2)=7,COUNTIF(Tabell.Red.FixedDates[FulltDatum],P6),COUNTIF(Tabell.Red.FixedDays[FulltDatum],P6))","v":true},{"$f":"OR(WEEKDAY(Q6,2)=6,WEEKDAY(Q6,2)=7,COUNTIF(Tabell.Red.FixedDates[FulltDatum],Q6),COUNTIF(Tabell.Red.FixedDays[FulltDatum],Q6))","v":false},{"$f":"OR(WEEKDAY(R6,2)=6,WEEKDAY(R6,2)=7,COUNTIF(Tabell.Red.FixedDates[FulltDatum],R6),COUNTIF(Tabell.Red.FixedDays[FulltDatum],R6))","v":false},{"$f":"OR(WEEKDAY(S6,2)=6,WEEKDAY(S6,2)=7,COUNTIF(Tabell.Red.FixedDates[FulltDatum],S6),COUNTIF(Tabell.Red.FixedDays[FulltDatum],S6))","v":false},{"$f":"OR(WEEKDAY(T6,2)=6,WEEKDAY(T6,2)=7,COUNTIF(Tabell.Red.FixedDates[FulltDatum],T6),COUNTIF(Tabell.Red.FixedDays[FulltDatum],T6))","v":false},{"$f":"OR(WEEKDAY(U6,2)=6,WEEKDAY(U6,2)=7,COUNTIF(Tabell.Red.FixedDates[FulltDatum],U6),COUNTIF(Tabell.Red.FixedDays[FulltDatum],U6))","v":false},{"$f":"OR(WEEKDAY(V6,2)=6,WEEKDAY(V6,2)=7,COUNTIF(Tabell.Red.FixedDates[FulltDatum],V6),COUNTIF(Tabell.Red.FixedDays[FulltDatum],V6))","v":true},{"$f":"OR(WEEKDAY(W6,2)=6,WEEKDAY(W6,2)=7,COUNTIF(Tabell.Red.FixedDates[FulltDatum],W6),COUNTIF(Tabell.Red.FixedDays[FulltDatum],W6))","v":true},{"$f":"OR(WEEKDAY(X6,2)=6,WEEKDAY(X6,2)=7,COUNTIF(Tabell.Red.FixedDates[FulltDatum],X6),COUNTIF(Tabell.Red.FixedDays[FulltDatum],X6))","v":false},{"$f":"OR(WEEKDAY(Y6,2)=6,WEEKDAY(Y6,2)=7,COUNTIF(Tabell.Red.FixedDates[FulltDatum],Y6),COUNTIF(Tabell.Red.FixedDays[FulltDatum],Y6))","v":false},{"$f":"OR(WEEKDAY(Z6,2)=6,WEEKDAY(Z6,2)=7,COUNTIF(Tabell.Red.FixedDates[FulltDatum],Z6),COUNTIF(Tabell.Red.FixedDays[FulltDatum],Z6))","v":false},{"$f":"OR(WEEKDAY(AA6,2)=6,WEEKDAY(AA6,2)=7,COUNTIF(Tabell.Red.FixedDates[FulltDatum],AA6),COUNTIF(Tabell.Red.FixedDays[FulltDatum],AA6))","v":false},{"$f":"OR(WEEKDAY(AB6,2)=6,WEEKDAY(AB6,2)=7,COUNTIF(Tabell.Red.FixedDates[FulltDatum],AB6),COUNTIF(Tabell.Red.FixedDays[FulltDatum],AB6))","v":false},{"$f":"OR(WEEKDAY(AC6,2)=6,WEEKDAY(AC6,2)=7,COUNTIF(Tabell.Red.FixedDates[FulltDatum],AC6),COUNTIF(Tabell.Red.FixedDays[FulltDatum],AC6))","v":true},{"$f":"OR(WEEKDAY(AD6,2)=6,WEEKDAY(AD6,2)=7,COUNTIF(Tabell.Red.FixedDates[FulltDatum],AD6),COUNTIF(Tabell.Red.FixedDays[FulltDatum],AD6))","v":true},{"$f":"OR(WEEKDAY(AE6,2)=6,WEEKDAY(AE6,2)=7,COUNTIF(Tabell.Red.FixedDates[FulltDatum],AE6),COUNTIF(Tabell.Red.FixedDays[FulltDatum],AE6))","v":false},{"$f":"OR(WEEKDAY(AF6,2)=6,WEEKDAY(AF6,2)=7,COUNTIF(Tabell.Red.FixedDates[FulltDatum],AF6),COUNTIF(Tabell.Red.FixedDays[FulltDatum],AF6))","v":false},{"$f":"OR(WEEKDAY(AG6,2)=6,WEEKDAY(AG6,2)=7,COUNTIF(Tabell.Red.FixedDates[FulltDatum],AG6),COUNTIF(Tabell.Red.FixedDays[FulltDatum],AG6))","v":false},{"$f":"OR(WEEKDAY(AH6,2)=6,WEEKDAY(AH6,2)=7,COUNTIF(Tabell.Red.FixedDates[FulltDatum],AH6),COUNTIF(Tabell.Red.FixedDays[FulltDatum],AH6))","v":false},{"$f":"OR(WEEKDAY(AI6,2)=6,WEEKDAY(AI6,2)=7,COUNTIF(Tabell.Red.FixedDates[FulltDatum],AI6),COUNTIF(Tabell.Red.FixedDays[FulltDatum],AI6))","v":false},{"$f":"OR(WEEKDAY(AJ6,2)=6,WEEKDAY(AJ6,2)=7,COUNTIF(Tabell.Red.FixedDates[FulltDatum],AJ6),COUNTIF(Tabell.Red.FixedDays[FulltDatum],AJ6))","v":true},{"$f":"OR(WEEKDAY(AK6,2)=6,WEEKDAY(AK6,2)=7,COUNTIF(Tabell.Red.FixedDates[FulltDatum],AK6),COUNTIF(Tabell.Red.FixedDays[FulltDatum],AK6))","v":true},{"$f":"OR(WEEKDAY(AL6,2)=6,WEEKDAY(AL6,2)=7,COUNTIF(Tabell.Red.FixedDates[FulltDatum],AL6),COUNTIF(Tabell.Red.FixedDays[FulltDatum],AL6))","v":false},{"$f":"OR(WEEKDAY(AM6,2)=6,WEEKDAY(AM6,2)=7,COUNTIF(Tabell.Red.FixedDates[FulltDatum],AM6),COUNTIF(Tabell.Red.FixedDays[FulltDatum],AM6))","v":true},{"$f":"OR(WEEKDAY(AN6,2)=6,WEEKDAY(AN6,2)=7,COUNTIF(Tabell.Red.FixedDates[FulltDatum],AN6),COUNTIF(Tabell.Red.FixedDays[FulltDatum],AN6))","v":true},{"$f":"OR(WEEKDAY(AO6,2)=6,WEEKDAY(AO6,2)=7,COUNTIF(Tabell.Red.FixedDates[FulltDatum],AO6),COUNTIF(Tabell.Red.FixedDays[FulltDatum],AO6))","v":true},{"$f":"OR(WEEKDAY(AP6,2)=6,WEEKDAY(AP6,2)=7,COUNTIF(Tabell.Red.FixedDates[FulltDatum],AP6),COUNTIF(Tabell.Red.FixedDays[FulltDatum],AP6))","v":false},{"$f":"OR(WEEKDAY(AQ6,2)=6,WEEKDAY(AQ6,2)=7,COUNTIF(Tabell.Red.FixedDates[FulltDatum],AQ6),COUNTIF(Tabell.Red.FixedDays[FulltDatum],AQ6))","v":true},{"$f":"OR(WEEKDAY(AR6,2)=6,WEEKDAY(AR6,2)=7,COUNTIF(Tabell.Red.FixedDates[FulltDatum],AR6),COUNTIF(Tabell.Red.FixedDays[FulltDatum],AR6))","v":true},{"$f":"OR(WEEKDAY(AS6,2)=6,WEEKDAY(AS6,2)=7,COUNTIF(Tabell.Red.FixedDates[FulltDatum],AS6),COUNTIF(Tabell.Red.FixedDays[FulltDatum],AS6))","v":false},{"$f":"OR(WEEKDAY(AT6,2)=6,WEEKDAY(AT6,2)=7,COUNTIF(Tabell.Red.FixedDates[FulltDatum],AT6),COUNTIF(Tabell.Red.FixedDays[FulltDatum],AT6))","v":true}]
[null,null,null,null,null,null,null,null,null,null,null,null,null,null,"Övriga dagar",{"$f":"OR(COUNTIF(Tabell.Shortdays[FulltDatum],P6),COUNTIF(Tabell.Klamdagar[FulltDatum],P6))","v":false},{"$f":"OR(COUNTIF(Tabell.Shortdays[FulltDatum],Q6),COUNTIF(Tabell.Klamdagar[FulltDatum],Q6))","v":false},{"$f":"OR(COUNTIF(Tabell.Shortdays[FulltDatum],R6),COUNTIF(Tabell.Klamdagar[FulltDatum],R6))","v":false},{"$f":"OR(COUNTIF(Tabell.Shortdays[FulltDatum],S6),COUNTIF(Tabell.Klamdagar[FulltDatum],S6))","v":false},{"$f":"OR(COUNTIF(Tabell.Shortdays[FulltDatum],T6),COUNTIF(Tabell.Klamdagar[FulltDatum],T6))","v":false},{"$f":"OR(COUNTIF(Tabell.Shortdays[FulltDatum],U6),COUNTIF(Tabell.Klamdagar[FulltDatum],U6))","v":false},{"$f":"OR(COUNTIF(Tabell.Shortdays[FulltDatum],V6),COUNTIF(Tabell.Klamdagar[FulltDatum],V6))","v":false},{"$f":"OR(COUNTIF(Tabell.Shortdays[FulltDatum],W6),COUNTIF(Tabell.Klamdagar[FulltDatum],W6))","v":false},{"$f":"OR(COUNTIF(Tabell.Shortdays[FulltDatum],X6),COUNTIF(Tabell.Klamdagar[FulltDatum],X6))","v":false},{"$f":"OR(COUNTIF(Tabell.Shortdays[FulltDatum],Y6),COUNTIF(Tabell.Klamdagar[FulltDatum],Y6))","v":false},{"$f":"OR(COUNTIF(Tabell.Shortdays[FulltDatum],Z6),COUNTIF(Tabell.Klamdagar[FulltDatum],Z6))","v":false},{"$f":"OR(COUNTIF(Tabell.Shortdays[FulltDatum],AA6),COUNTIF(Tabell.Klamdagar[FulltDatum],AA6))","v":false},{"$f":"OR(COUNTIF(Tabell.Shortdays[FulltDatum],AB6),COUNTIF(Tabell.Klamdagar[FulltDatum],AB6))","v":false},{"$f":"OR(COUNTIF(Tabell.Shortdays[FulltDatum],AC6),COUNTIF(Tabell.Klamdagar[FulltDatum],AC6))","v":false},{"$f":"OR(COUNTIF(Tabell.Shortdays[FulltDatum],AD6),COUNTIF(Tabell.Klamdagar[FulltDatum],AD6))","v":false},{"$f":"OR(COUNTIF(Tabell.Shortdays[FulltDatum],AE6),COUNTIF(Tabell.Klamdagar[FulltDatum],AE6))","v":false},{"$f":"OR(COUNTIF(Tabell.Shortdays[FulltDatum],AF6),COUNTIF(Tabell.Klamdagar[FulltDatum],AF6))","v":false},{"$f":"OR(COUNTIF(Tabell.Shortdays[FulltDatum],AG6),COUNTIF(Tabell.Klamdagar[FulltDatum],AG6))","v":false},{"$f":"OR(COUNTIF(Tabell.Shortdays[FulltDatum],AH6),COUNTIF(Tabell.Klamdagar[FulltDatum],AH6))","v":false},{"$f":"OR(COUNTIF(Tabell.Shortdays[FulltDatum],AI6),COUNTIF(Tabell.Klamdagar[FulltDatum],AI6))","v":false},{"$f":"OR(COUNTIF(Tabell.Shortdays[FulltDatum],AJ6),COUNTIF(Tabell.Klamdagar[FulltDatum],AJ6))","v":false},{"$f":"OR(COUNTIF(Tabell.Shortdays[FulltDatum],AK6),COUNTIF(Tabell.Klamdagar[FulltDatum],AK6))","v":false},{"$f":"OR(COUNTIF(Tabell.Shortdays[FulltDatum],AL6),COUNTIF(Tabell.Klamdagar[FulltDatum],AL6))","v":false},{"$f":"OR(COUNTIF(Tabell.Shortdays[FulltDatum],AM6),COUNTIF(Tabell.Klamdagar[FulltDatum],AM6))","v":false},{"$f":"OR(COUNTIF(Tabell.Shortdays[FulltDatum],AN6),COUNTIF(Tabell.Klamdagar[FulltDatum],AN6))","v":false},{"$f":"OR(COUNTIF(Tabell.Shortdays[FulltDatum],AO6),COUNTIF(Tabell.Klamdagar[FulltDatum],AO6))","v":false},{"$f":"OR(COUNTIF(Tabell.Shortdays[FulltDatum],AP6),COUNTIF(Tabell.Klamdagar[FulltDatum],AP6))","v":false},{"$f":"OR(COUNTIF(Tabell.Shortdays[FulltDatum],AQ6),COUNTIF(Tabell.Klamdagar[FulltDatum],AQ6))","v":false},{"$f":"OR(COUNTIF(Tabell.Shortdays[FulltDatum],AR6),COUNTIF(Tabell.Klamdagar[FulltDatum],AR6))","v":false},{"$f":"OR(COUNTIF(Tabell.Shortdays[FulltDatum],AS6),COUNTIF(Tabell.Klamdagar[FulltDatum],AS6))","v":false},{"$f":"OR(COUNTIF(Tabell.Shortdays[FulltDatum],AT6),COUNTIF(Tabell.Klamdagar[FulltDatum],AT6))","v":false}]
[]
[null,"December",null,null,null,null,null,null,null,null,null,null,null,null,null,null,null,null,null,{"$f":"Year","v":2024},null,null,null,null,null,null,null,{"$f":"Member","v":"(fill in name of member on Start Page)"}]
[]
[null,null,null,null,null,null,null,null,null,null,null,null,null,null,null,{"$f":"DATEVALUE(Year&\"-\"&VLOOKUP(LEFT(B4,3),list.months,2,0)&\"-1\")","v":"2024-12-01"},{"$f":"DATE(YEAR(P6),MONTH(P6),DAY(P6)+1)","v":"2024-12-02"},{"$f":"DATE(YEAR(Q6),MONTH(Q6),DAY(Q6)+1)","v":"2024-12-03"},"2024-12-04","2024-12-05","2024-12-06","2024-12-07","2024-12-08","2024-12-09","2024-12-10","2024-12-11","2024-12-12","2024-12-13","2024-12-14","2024-12-15","2024-12-16","2024-12-17","2024-12-18","2024-12-19","2024-12-20","2024-12-21","2024-12-22","2024-12-23","2024-12-24","2024-12-25","2024-12-26","2024-12-27","2024-12-28","2024-12-29","2024-12-30","2024-12-31","Sum",null,"%"]
[null,null,{"$f":"IF(Acronym.01=\"\",,IF(Type.01=\"\",Error.no.funding,IF(Type.01=Funding.type.03,Acronym.01&\" - \"&Contract.01,IF(Def!K76>0,Error.no.WP,Acronym.01&\" - \"&Contract.01&\" - WP\"&WP.01))))","v":0},null,null,null,null,null,null,null,null,null,null,null,null,null,null,null,null,null,null,null,null,null,null,null,null,null,null,null,null,null,null,null,null,null,null,null,null,null,null,null,null,null,null,null,{"$f":"SUM(P7:AT7)","v":0},null,{"$f":"IFERROR(IF(AU7/$AU$21=0,\"\",AU7/$AU$21),\"\")","v":""}]
[null,null,{"$f":"IF(Acronym.02=\"\",,IF(Type.02=\"\",Error.no.funding,IF(Type.02=Funding.type.03,Acronym.02&\" - \"&Contract.02,IF(Def!K77>0,Error.no.WP,Acronym.02&\" - \"&Contract.02&\" - WP\"&WP.02))))","v":0},null,null,null,null,null,null,null,null,null,null,null,null,null,null,null,null,null,null,null,null,null,null,null,null,null,null,null,null,null,null,null,null,null,null,null,null,null,null,null,null,null,null,null,0,null,""]
[null,null,{"$f":"IF(Acronym.03=\"\",,IF(Type.03=\"\",Error.no.funding,IF(Type.03=Funding.type.03,Acronym.03&\" - \"&Contract.03,IF(Def!K78>0,Error.no.WP,Acronym.03&\" - \"&Contract.03&\" - WP\"&WP.03))))","v":0},null,null,null,null,null,null,null,null,null,null,null,null,null,null,null,null,null,null,null,null,null,null,null,null,null,null,null,null,null,null,null,null,null,null,null,null,null,null,null,null,null,null,null,0,null,""]
[null,null,{"$f":"IF(Acronym.04=\"\",,IF(Type.04=\"\",Error.no.funding,IF(Type.04=Funding.type.03,Acronym.04&\" - \"&Contract.04,IF(Def!K79>0,Error.no.WP,Acronym.04&\" - \"&Contract.04&\" - WP\"&WP.04))))","v":0},null,null,null,null,null,null,null,null,null,null,null,null,null,null,null,null,null,null,null,null,null,null,null,null,null,null,null,null,null,null,null,null,null,null,null,null,null,null,null,null,null,null,null,0,null,""]
[null,null,{"$f":"IF(Acronym.05=\"\",,IF(Type.05=\"\",Error.no.funding,IF(Type.05=Funding.type.03,Acronym.05&\" - \"&Contract.05,IF(Def!K80>0,Error.no.WP,Acronym.05&\" - \"&Contract.05&\" - WP\"&WP.05))))","v":0},null,null,null,null,null,null,null,null,null,null,null,null,null,null,null,null,null,null,null,null,null,null,null,null,null,null,null,null,null,null,null,null,null,null,null,null,null,null,null,null,null,null,null,0,null,""]
[null,null,{"$f":"IF(Acronym.06=\"\",,IF(Type.06=\"\",Error.no.funding,IF(Type.06=Funding.type.03,Acronym.06&\" - \"&Contract.06,IF(Def!K81>0,Error.no.WP,Acronym.06&\" - \"&Contract.06&\" - WP\"&WP.06))))","v":0},null,null,null,null,null,null,null,null,null,null,null,null,null,null,null,null,null,null,null,null,null,null,null,null,null,null,null,null,null,null,null,null,null,null,null,null,null,null,null,null,null,null,null,0,null,""]
[null,null,{"$f":"IF(Acronym.07=\"\",,IF(Type.07=\"\",Error.no.funding,IF(Type.07=Funding.type.03,Acronym.07&\" - \"&Contract.07,IF(Def!K82>0,Error.no.WP,Acronym.07&\" - \"&Contract.07&\" - WP\"&WP.07))))","v":0},null,null,null,null,null,null,null,null,null,null,null,null,null,null,null,null,null,null,null,null,null,null,null,null,null,null,null,null,null,null,null,null,null,null,null,null,null,null,null,null,null,null,null,0,null,""]
[null,null,{"$f":"IF(Acronym.08=\"\",,IF(Type.08=\"\",Error.no.funding,IF(Type.08=Funding.type.03,Acronym.08&\" - \"&Contract.08,IF(Def!K83>0,Error.no.WP,Acronym.08&\" - \"&Contract.08&\" - WP\"&WP.08))))","v":0},null,null,null,null,null,null,null,null,null,null,null,null,null,null,null,null,null,null,null,null,null,null,null,null,null,null,null,null,null,null,null,null,null,null,null,null,null,null,null,null,null,null,null,0,null,""]
[null,null,{"$f":"IF(Acronym.09=\"\",,IF(Type.09=\"\",Error.no.funding,IF(Type.09=Funding.type.03,Acronym.09&\" - \"&Contract.09,IF(Def!K84>0,Error.no.WP,Acronym.09&\" - \"&Contract.09&\" - WP\"&WP.09))))","v":0},null,null,null,null,null,null,null,null,null,null,null,null,null,null,null,null,null,null,null,null,null,null,null,null,null,null,null,null,null,null,null,null,null,null,null,null,null,null,null,null,null,null,null,0,null,""]
[null,null,{"$f":"IF(Acronym.10=\"\",,IF(Type.10=\"\",Error.no.funding,IF(Type.10=Funding.type.03,Acronym.10&\" - \"&Contract.10,IF(Def!K85>0,Error.no.WP,Acronym.10&\" - \"&Contract.10&\" - WP\"&WP.10))))","v":0},null,null,null,null,null,null,null,null,null,null,null,null,null,null,null,null,null,null,null,null,null,null,null,null,null,null,null,null,null,null,null,null,null,null,null,null,null,null,null,null,null,null,null,0,null,""]
[null,null,{"$f":"IF(Acronym.11=\"\",,IF(Type.11=\"\",Error.no.funding,IF(Type.11=Funding.type.03,Acronym.11&\" - \"&Contract.11,IF(Def!K86>0,Error.no.WP,Acronym.11&\" - \"&Contract.11&\" - WP\"&WP.11))))","v":0},null,null,null,null,null,null,null,null,null,null,null,null,null,null,null,null,null,null,null,null,null,null,null,null,null,null,null,null,null,null,null,null,null,null,null,null,null,null,null,null,null,null,null,0,null,""]
[null,null,{"$f":"IF(Acronym.12=\"\",,IF(Type.12=\"\",Error.no.funding,IF(Type.12=Funding.type.03,Acronym.12&\" - \"&Contract.12,IF(Def!K87>0,Error.no.WP,Acronym.12&\" - \"&Contract.12&\" - WP\"&WP.12))))","v":0},null,null,null,null,null,null,null,null,null,null,null,null,null,null,null,null,null,null,null,null,null,null,null,null,null,null,null,null,null,null,null,null,null,null,null,null,null,null,null,null,null,null,null,0,null,{"$f":"IFERROR(AU18/$AU$21,\"\")","v":""}]
[null,null,null,null,null,null,null,null,null,null,null,null,null,"ALL OTHER HOURS WORKED AT SU",null,null,null,null,null,null,null,null,null,null,null,null,null,null,null,null,null,null,null,null,null,null,null,null,null,null,null,null,null,null,null,null,0,null,""]
[]
[null,null,null,null,null,null,null,null,null,null,null,null,null,"Total productive hours",null,{"$f":"IF(ROUND(SUM(P7:P19),2)=0,\"\",ROUND(SUM(P7:P19),2))","v":""},"","","","","","","","","","","","","","","","","","","","","","","","","","","","","","",""]
[]
[]
[null,null,"Absence"]
[null,null,null,null,null,null,null,null,null,null,null,null,null,"Annual Leave",null,null,null,null,null,null,null,null,null,null,null,null,null,null,null,null,null,null,null,null,null,null,null,null,null,null,null,null,null,null,null,null,{"$f":"IF(ROUND(SUM(P25:AT25),2)=0,\"\",ROUND(SUM(P25:AT25),2))","v":""},null,{"$f":"IFERROR(IF(AU25/$AU$30=0,\"\",AU25/$AU$30),\"\")","v":""}]
[null,null,null,null,null,null,null,null,null,null,null,null,null,"Own Illness",null,null,null,null,null,null,null,null,null,null,null,null,null,null,null,null,null,null,null,null,null,null,null,null,null,null,null,null,null,null,null,null,"",null,""]
[null,null,null,null,null,null,null,null,null,null,null,null,null,"Special Leave",null,null,null,null,null,null,null,null,null,null,null,null,null,null,null,null,null,null,null,null,null,null,null,null,null,null,null,null,null,null,null,null,"",null,""]
[null,null,null,null,null,null,null,null,null,null,null,null,null,"Parental Leave",null,null,null,null,null,null,null,null,null,null,null,null,null,null,null,null,null,null,null,null,null,null,null,null,null,null,null,null,null,null,null,null,"",null,""]
[]
[null,null,null,null,null,null,null,null,null,null,null,null,null,"Total absent hours",null,{"$f":"IF(ROUND(SUM(P25:P28),2)=0,\"\",ROUND(SUM(P25:P28),2))","v":""},"","","","","","","","","","","","","","","","","","","","","","","","","","","","","","",""]
[]
[]
[null,null,null,null,null,null,null,null,null,null,null,null,null,"Total hours",null,{"$f":"IF(ROUND(SUM(P21,P30),2)=0,\"\",ROUND(SUM(P21,P30),2))","v":""},"","","","","","","","","","",{"$f":"IF(ROUND(SUM(AA21,AA30),2)=0,\"\",ROUND(SUM(AA21,AA30),2))","v":""},{"$f":"IF(ROUND(SUM(AB21,AB30),2)=0,\"\",ROUND(SUM(AB21,AB30),2))","v":""},"","","","","","","","","","","","","","","","","","",""]
[]
[]
[]
[null,null,"Short description of the activities carried out",null,null,null,null,null,null,null,null,null,null,null,null,null,null,null,null,null,null,null,null,null,"Signatures and date of signature",null,null,null,null,null,null,null,null,null,null,null,null,null,null,null,null,"Beneficiary:"]
[null,null,"(indicate the project name with the description)",null,null,null,null,null,null,null,null,null,null,null,null,null,null,null,null,null,null,null,null,null,null,null,null,null,null,null,null,null,null,null,null,null,null,null,null,null,null,{"$f":"Beneficiary","v":"STOCKHOLMS UNIVERSITET"}]
[]
[]
[null,null,null,null,null,null,null,null,null,null,null,null,null,null,null,null,null,null,null,null,null,null,null,null,{"$f":"IF(Member=\"\",Error.name.member,IF(Member.title=\"\",Error.title.member,IF(Total.Error.Funding>0,Error.no.funding,IF(Total.Error.EU>0,Error.no.WP,\"\"))))","v":""}]
[]
[null,null,null,null,null,null,null,null,null,null,null,null,null,null,null,null,null,null,null,null,null,null,null,null,{"$f":"Member","v":"(fill in name of member on Start Page)"}]
[null,null,null,null,null,null,null,null,null,null,null,null,null,null,null,null,null,null,null,null,null,null,null,null,{"$f":"Member.title","v":"(fill in title of member on Start Page)"},null,null,null,null,null,null,null,null,null,null,"Date"]
[]
[]
[null,null,null,null,null,null,null,null,null,null,null,null,null,null,null,null,null,null,null,null,null,null,null,null,{"$f":"IF(Y51=0,Error.name.supervisor,IF(Total.Error.Funding>0,Error.no.funding,IF(Total.Error.EU>0,Error.no.WP,\"\")))","v":""}]
[]
[]
[null,null,null,null,null,null,null,null,null,null,null,null,null,null,null,null,null,null,null,null,null,null,null,null,{"$f":"\"Supervisor:\"","v":"Supervisor:"},null,null,null,null,null,null,null,null,null,null,"Date"]
[null,null,null,null,null,null,null,null,null,null,null,null,null,null,null,null,null,null,null,null,null,null,null,null,{"$f":"Supervisor","v":"(fill in name of supervisor on Start Page)"}]
[null,null,null,null,null,null,null,null,null,null,null,null,null,null,null,null,null,null,null,null,null,null,null,null,{"$f":"Supervisor.title","v":"(fill in the title of supervisor on Start Page)"}]

{"sheet":"Summary","index":15,"n_rows":48,"n_cols":59,"rows_kept":48,"cut":false,"hidden":false,"merged":[[32,58,33,59],[1,24,2,32],[35,11,42,15],[24,2,25,23],[26,2,27,23],[28,2,29,23],[30,2,30,23],[47,24,47,56],[1,2,2,18],[6,2,7,23],[8,2,9,23],[10,2,11,23],[12,2,13,23],[14,2,15,23],[16,2,17,23],[18,2,19,23],[10,54,11,55],[12,54,13,55],[14,54,15,55],[16,54,17,55],[18,54,19,55],[20,54,21,55],[10,50,11,52],[12,50,13,52],[26,37,27,38],[26,39,27,40],[26,41,27,42],[26,43,27,44],[24,33,25,34],[24,35,25,36],[24,37,25,38],[24,39,25,40],[24,41,25,42],[24,43,25,44],[20,25,21,26],[20,27,21,28],[20,29,21,30],[20,31,21,32],[20,33,21,34],[16,43,17,44],[16,45,17,46],[16,47,17,48],[18,25,19,26],[18,27,19,28],[18,29,19,30],[18,31,19,32],[18,33,19,34],[18,35,19,36],[18,37,19,38],[18,39,19,40],[18,41,19,42],[18,43,19,44],[18,45,19,46],[18,47,19,48],[14,25,15,26],[14,27,15,28],[14,29,15,30],[14,31,15,32],[14,33,15,34],[14,47,15,48],[16,25,17,26],[16,27,17,28],[16,29,17,30],[16,31,17,32],[16,33,17,34],[16,35,17,36],[16,37,17,38],[16,39,17,40],[16,41,17,42],[14,35,15,36],[14,37,15,38],[14,39,15,40],[14,41,15,42],[14,43,15,44],[14,45,15,46],[8,25,9,26],[8,27,9,28],[8,29,9,30],[10,43,11,44],[10,45,11,46],[10,47,11,48],[12,25,13,26],[12,27,13,28],[12,29,13,30],[12,31,13,32],[12,33,13,34],[12,35,13,36],[12,37,13,38],[10,31,11,32],[10,33,11,34],[10,35,11,36],[10,37,11,38],[10,39,11,40],[10,41,11,42],[10,25,11,26],[10,27,11,28],[10,29,11,30],[12,39,13,40],[12,41,13,42],[20,2,21,23],[22,2,23,23],[6,45,7,46],[6,47,7,48],[6,50,7,52],[6,54,7,55],[8,31,9,32],[8,33,9,34],[8,35,9,36],[8,37,9,38],[20,41,21,42],[20,43,21,44],[20,45,21,46],[20,47,21,48],[20,37,21,38],[20,39,21,40],[20,35,21,36],[8,54,9,55],[6,37,7,38],[6,39,7,40],[6,41,7,42],[6,43,7,44],[6,31,7,32],[8,39,9,40],[45,41,45,42],[45,43,45,44],[45,45,45,46],[45,47,45,48],[45,50,45,52],[6,25,7,26],[6,27,7,28],[6,29,7,30],[42,50,42,52],[43,50,43,52],[45,25,45,26],[45,27,45,28],[45,29,45,30],[45,31,45,32],[45,33,45,34],[45,35,45,36],[45,37,45,38],[45,39,45,40],[41,41,41,42],[41,43,41,44],[41,45,41,46],[41,47,41,48],[41,50,41,52],[38,47,38,48],[41,54,41,55],[39,54,39,55],[40,50,40,52],[41,25,41,26],[41,27,41,28],[41,29,41,30],[41,31,41,32],[41,33,41,34],[41,35,41,36],[41,37,41,38],[41,39,41,40],[39,39,39,40],[39,41,39,42],[39,43,39,44],[39,45,39,46],[39,47,39,48],[39,50,39,52],[38,25,38,26],[38,27,38,28],[38,29,38,30],[38,31,38,32],[38,33,38,34],[38,50,38,52],[38,54,38,55],[39,25,39,26],[39,27,39,28],[39,29,39,30],[39,31,39,32],[39,33,39,34],[39,35,39,36],[39,37,39,38],[38,35,38,36],[38,37,38,38],[38,39,38,40],[38,41,38,42],[38,43,38,44],[38,45,38,46],[36,54,36,55],[37,25,37,26],[37,27,37,28],[37,29,37,30],[37,31,37,32],[37,33,37,34],[37,35,37,36],[37,37,37,38],[37,39,37,40],[37,41,37,42],[36,39,36,40],[36,41,36,42],[36,43,36,44],[36,45,36,46],[36,47,36,48],[36,50,36,52],[37,43,37,44],[37,45,37,46],[37,47,37,48],[37,50,37,52],[37,54,37,55],[34,50,34,52],[35,50,35,52],[36,25,36,26],[36,27,36,28],[36,29,36,30],[36,31,36,32],[36,33,36,34],[36,35,36,36],[36,37,36,38],[32,41,32,42],[32,43,32,44],[32,45,32,46],[32,47,32,48],[32,50,32,52],[30,50,30,52],[30,54,30,55],[31,50,31,52],[30,41,30,42],[30,43,30,44],[30,45,30,46],[30,47,30,48],[32,25,32,26],[32,27,32,28],[32,29,32,30],[32,31,32,32],[32,33,32,34],[32,35,32,36],[32,37,32,38],[30,37,30,38],[30,39,30,40],[30,25,30,26],[30,27,30,28],[30,29,30,30],[30,31,30,32],[30,33,30,34],[30,35,30,36],[32,39,32,40],[28,45,29,46],[28,47,29,48],[28,50,29,52],[28,54,29,55],[28,25,29,26],[28,27,29,28],[28,29,29,30],[28,31,29,32],[26,45,27,46],[26,47,27,48],[26,50,27,52],[26,54,27,55],[26,25,27,26],[26,27,27,28],[26,29,27,30],[26,31,27,32],[28,33,29,34],[28,35,29,36],[28,37,29,38],[28,39,29,40],[28,41,29,42],[28,43,29,44],[26,33,27,34],[26,35,27,36],[24,25,25,26],[24,27,25,28],[24,29,25,30],[24,31,25,32],[22,47,23,48],[22,50,23,52],[22,54,23,55],[22,27,23,28],[22,29,23,30],[22,31,23,32],[22,33,23,34],[22,25,23,26],[22,39,23,40],[22,41,23,42],[22,43,23,44],[22,45,23,46],[22,35,23,36],[22,37,23,38],[4,41,4,42],[4,43,4,44],[4,45,4,46],[4,47,4,48],[4,50,4,52],[4,54,4,55],[1,39,2,55],[24,45,25,46],[24,47,25,48],[24,50,25,52],[24,54,25,55],[8,41,9,42],[8,43,9,44],[8,45,9,46],[8,47,9,48],[8,50,9,52],[12,43,13,44],[12,45,13,46],[12,47,13,48],[14,50,15,52],[16,50,17,52],[18,50,19,52],[20,50,21,52],[4,25,4,26],[4,27,4,28],[4,29,4,30],[4,31,4,32],[4,33,4,34],[4,35,4,36],[4,37,4,38],[4,39,4,40],[6,33,7,34],[6,35,7,36]]}
[]
[null,null,"Summary",null,null,null,null,null,null,null,null,null,null,null,null,null,null,null,null,null,null,null,null,null,{"$f":"Year","v":2024},null,null,null,null,null,null,null,null,null,null,null,null,null,null,{"$f":"Member","v":"(fill in name of member on Start Page)"}]
[]
[]
[null,null,null,null,null,null,null,null,null,null,null,null,null,null,null,null,null,null,null,null,null,null,null,null,null,"Jan",null,"Feb",null,"Mar",null,"Apr",null,"May",null,"Jun",null,"Jul",null,"Aug",null,"Sep",null,"Oct",null,"Nov",null,"Dec",null,null,"Total",null,null,null,"%"]
[]
[null,null,{"$f":"IF(Acronym.01=\"\",,IF(Type.01=\"\",Error.no.funding,IF(Def!K76>0,Error.no.WP,Acronym.01&\" - \"&Contract.01&\" - WP\"&WP.01&\" - \"&ProjectNo.01&\" - \"&Notes.01)))","v":0},null,null,null,null,null,null,null,null,null,null,null,null,null,null,null,null,null,null,null,null,null,null,{"$f":"Jan!AU7","v":0},null,{"$f":"Feb!AU7","v":0},null,{"$f":"Mar!AU7","v":0},null,{"$f":"Apr!AU7","v":0},null,{"$f":"May!AU7","v":0},null,{"$f":"Jun!AU7","v":0},null,{"$f":"Jul!AU7","v":0},null,{"$f":"Aug!AU7","v":0},null,{"$f":"Sep!AU7","v":0},null,{"$f":"Oct!AU7","v":0},null,{"$f":"Nov!AU7","v":0},null,{"$f":"Dec!AU7","v":0},null,null,{"$f":"IF(ROUND(SUM(Z7:AW8),2)=0,\"\",ROUND(SUM(Z7:AW8),2))","v":""},null,null,null,{"$f":"IFERROR(AY7/$AY$33,\"\")","v":""}]
[]
[null,null,{"$f":"IF(Acronym.02=\"\",,IF(Type.02=\"\",Error.no.funding,IF(Def!K77>0,Error.no.WP,Acronym.02&\" - \"&Contract.02&\" - WP\"&WP.02&\" - \"&ProjectNo.02&\" - \"&Notes.02)))","v":0},null,null,null,null,null,null,null,null,null,null,null,null,null,null,null,null,null,null,null,null,null,null,{"$f":"Jan!AU8","v":0},null,{"$f":"Feb!AU8","v":0},null,{"$f":"Mar!AU8","v":0},null,{"$f":"Apr!AU8","v":0},null,{"$f":"May!AU8","v":0},null,{"$f":"Jun!AU8","v":0},null,{"$f":"Jul!AU8","v":0},null,{"$f":"Aug!AU8","v":0},null,{"$f":"Sep!AU8","v":0},null,{"$f":"Oct!AU8","v":0},null,{"$f":"Nov!AU8","v":0},null,{"$f":"Dec!AU8","v":0},null,null,{"$f":"IF(ROUND(SUM(Z9:AW10),2)=0,\"\",ROUND(SUM(Z9:AW10),2))","v":""},null,null,null,{"$f":"IFERROR(AY9/$AY$33,\"\")","v":""}]
[]
[null,null,{"$f":"IF(Acronym.03=\"\",,IF(Type.03=\"\",Error.no.funding,IF(Def!K78>0,Error.no.WP,Acronym.03&\" - \"&Contract.03&\" - WP\"&WP.03&\" - \"&ProjectNo.03&\" - \"&Notes.03)))","v":0},null,null,null,null,null,null,null,null,null,null,null,null,null,null,null,null,null,null,null,null,null,null,{"$f":"Jan!AU9","v":0},null,{"$f":"Feb!AU9","v":0},null,{"$f":"Mar!AU9","v":0},null,{"$f":"Apr!AU9","v":0},null,{"$f":"May!AU9","v":0},null,{"$f":"Jun!AU9","v":0},null,{"$f":"Jul!AU9","v":0},null,{"$f":"Aug!AU9","v":0},null,{"$f":"Sep!AU9","v":0},null,{"$f":"Oct!AU9","v":0},null,{"$f":"Nov!AU9","v":0},null,{"$f":"Dec!AU9","v":0},null,null,{"$f":"IF(ROUND(SUM(Z11:AW12),2)=0,\"\",ROUND(SUM(Z11:AW12),2))","v":""},null,null,null,{"$f":"IFERROR(AY11/$AY$33,\"\")","v":""}]
[]
[null,null,{"$f":"IF(Acronym.04=\"\",,IF(Type.04=\"\",Error.no.funding,IF(Def!K79>0,Error.no.WP,Acronym.04&\" - \"&Contract.04&\" - WP\"&WP.04&\" - \"&ProjectNo.04&\" - \"&Notes.04)))","v":0},null,null,null,null,null,null,null,null,null,null,null,null,null,null,null,null,null,null,null,null,null,null,{"$f":"Jan!AU10","v":0},null,{"$f":"Feb!AU10","v":0},null,{"$f":"Mar!AU10","v":0},null,{"$f":"Apr!AU10","v":0},null,{"$f":"May!AU10","v":0},null,{"$f":"Jun!AU10","v":0},null,{"$f":"Jul!AU10","v":0},null,{"$f":"Aug!AU10","v":0},null,{"$f":"Sep!AU10","v":0},null,{"$f":"Oct!AU10","v":0},null,{"$f":"Nov!AU10","v":0},null,{"$f":"Dec!AU10","v":0},null,null,{"$f":"IF(ROUND(SUM(Z13:AW14),2)=0,\"\",ROUND(SUM(Z13:AW14),2))","v":""},null,null,null,{"$f":"IFERROR(AY13/$AY$33,\"\")","v":""}]
[]
[null,null,{"$f":"IF(Acronym.05=\"\",,IF(Type.05=\"\",Error.no.funding,IF(Def!K80>0,Error.no.WP,Acronym.05&\" - \"&Contract.05&\" - WP\"&WP.05&\" - \"&ProjectNo.05&\" - \"&Notes.05)))","v":0},null,null,null,null,null,null,null,null,null,null,null,null,null,null,null,null,null,null,null,null,null,null,{"$f":"Jan!AU11","v":0},null,{"$f":"Feb!AU11","v":0},null,{"$f":"Mar!AU11","v":0},null,{"$f":"Apr!AU11","v":0},null,{"$f":"May!AU11","v":0},null,{"$f":"Jun!AU11","v":0},null,{"$f":"Jul!AU11","v":0},null,{"$f":"Aug!AU11","v":0},null,{"$f":"Sep!AU11","v":0},null,{"$f":"Oct!AU11","v":0},null,{"$f":"Nov!AU11","v":0},null,{"$f":"Dec!AU11","v":0},null,null,{"$f":"IF(ROUND(SUM(Z15:AW16),2)=0,\"\",ROUND(SUM(Z15:AW16),2))","v":""},null,null,null,{"$f":"IFERROR(AY15/$AY$33,\"\")","v":""}]
[]
[null,null,{"$f":"IF(Acronym.06=\"\",,IF(Type.06=\"\",Error.no.funding,IF(Def!K81>0,Error.no.WP,Acronym.06&\" - \"&Contract.06&\" - WP\"&WP.06&\" - \"&ProjectNo.06&\" - \"&Notes.06)))","v":0},null,null,null,null,null,null,null,null,null,null,null,null,null,null,null,null,null,null,null,null,null,null,{"$f":"Jan!AU12","v":0},null,{"$f":"Feb!AU12","v":0},null,{"$f":"Mar!AU12","v":0},null,{"$f":"Apr!AU12","v":0},null,{"$f":"May!AU12","v":0},null,{"$f":"Jun!AU12","v":0},null,{"$f":"Jul!AU12","v":0},null,{"$f":"Aug!AU12","v":0},null,{"$f":"Sep!AU12","v":0},null,{"$f":"Oct!AU12","v":0},null,{"$f":"Nov!AU12","v":0},null,{"$f":"Dec!AU12","v":0},null,null,{"$f":"IF(ROUND(SUM(Z17:AW18),2)=0,\"\",ROUND(SUM(Z17:AW18),2))","v":""},null,null,null,{"$f":"IFERROR(AY17/$AY$33,\"\")","v":""}]
[]
[null,null,{"$f":"IF(Acronym.07=\"\",,IF(Type.07=\"\",Error.no.funding,IF(Def!K82>0,Error.no.WP,Acronym.07&\" - \"&Contract.07&\" - WP\"&WP.07&\" - \"&ProjectNo.07&\" - \"&Notes.07)))","v":0},null,null,null,null,null,null,null,null,null,null,null,null,null,null,null,null,null,null,null,null,null,null,{"$f":"Jan!AU13","v":0},null,{"$f":"Feb!AU13","v":0},null,{"$f":"Mar!AU13","v":0},null,{"$f":"Apr!AU13","v":0},null,{"$f":"May!AU13","v":0},null,{"$f":"Jun!AU13","v":0},null,{"$f":"Jul!AU13","v":0},null,{"$f":"Aug!AU13","v":0},null,{"$f":"Sep!AU13","v":0},null,{"$f":"Oct!AU13","v":0},null,{"$f":"Nov!AU13","v":0},null,{"$f":"Dec!AU13","v":0},null,null,{"$f":"IF(ROUND(SUM(Z19:AW20),2)=0,\"\",ROUND(SUM(Z19:AW20),2))","v":""},null,null,null,{"$f":"IFERROR(AY19/$AY$33,\"\")","v":""}]
[]
[null,null,{"$f":"IF(Acronym.08=\"\",,IF(Type.08=\"\",Error.no.funding,IF(Def!K83>0,Error.no.WP,Acronym.08&\" - \"&Contract.08&\" - WP\"&WP.08&\" - \"&ProjectNo.08&\" - \"&Notes.08)))","v":0},null,null,null,null,null,null,null,null,null,null,null,null,null,null,null,null,null,null,null,null,null,null,{"$f":"Jan!AU14","v":0},null,{"$f":"Feb!AU14","v":0},null,{"$f":"Mar!AU14","v":0},null,{"$f":"Apr!AU14","v":0},null,{"$f":"May!AU14","v":0},null,{"$f":"Jun!AU14","v":0},null,{"$f":"Jul!AU14","v":0},null,{"$f":"Aug!AU14","v":0},null,{"$f":"Sep!AU14","v":0},null,{"$f":"Oct!AU14","v":0},null,{"$f":"Nov!AU14","v":0},null,{"$f":"Dec!AU14","v":0},null,null,{"$f":"IF(ROUND(SUM(Z21:AW22),2)=0,\"\",ROUND(SUM(Z21:AW22),2))","v":""},null,null,null,{"$f":"IFERROR(AY21/$AY$33,\"\")","v":""}]
[]
[null,null,{"$f":"IF(Acronym.09=\"\",,IF(Type.09=\"\",Error.no.funding,IF(Def!K84>0,Error.no.WP,Acronym.09&\" - \"&Contract.09&\" - WP\"&WP.09&\" - \"&ProjectNo.09&\" - \"&Notes.09)))","v":0},null,null,null,null,null,null,null,null,null,null,null,null,null,null,null,null,null,null,null,null,null,null,{"$f":"Jan!AU15","v":0},null,{"$f":"Feb!AU15","v":0},null,{"$f":"Mar!AU15","v":0},null,{"$f":"Apr!AU15","v":0},null,{"$f":"May!AU15","v":0},null,{"$f":"Jun!AU15","v":0},null,{"$f":"Jul!AU15","v":0},null,{"$f":"Aug!AU15","v":0},null,{"$f":"Sep!AU15","v":0},null,{"$f":"Oct!AU15","v":0},null,{"$f":"Nov!AU15","v":0},null,{"$f":"Dec!AU15","v":0},null,null,{"$f":"IF(ROUND(SUM(Z23:AW24),2)=0,\"\",ROUND(SUM(Z23:AW24),2))","v":""},null,null,null,{"$f":"IFERROR(AY23/$AY$33,\"\")","v":""}]
[]
[null,null,{"$f":"IF(Acronym.10=\"\",,IF(Type.10=\"\",Error.no.funding,IF(Def!K85>0,Error.no.WP,Acronym.10&\" - \"&Contract.10&\" - WP\"&WP.10&\" - \"&ProjectNo.10&\" - \"&Notes.10)))","v":0},null,null,null,null,null,null,null,null,null,null,null,null,null,null,null,null,null,null,null,null,null,null,{"$f":"Jan!AU16","v":0},null,{"$f":"Feb!AU16","v":0},null,{"$f":"Mar!AU16","v":0},null,{"$f":"Apr!AU16","v":0},null,{"$f":"May!AU16","v":0},null,{"$f":"Jun!AU16","v":0},null,{"$f":"Jul!AU16","v":0},null,{"$f":"Aug!AU16","v":0},null,{"$f":"Sep!AU16","v":0},null,{"$f":"Oct!AU16","v":0},null,{"$f":"Nov!AU16","v":0},null,{"$f":"Dec!AU16","v":0},null,null,{"$f":"IF(ROUND(SUM(Z25:AW26),2)=0,\"\",ROUND(SUM(Z25:AW26),2))","v":""},null,null,null,{"$f":"IFERROR(AY25/$AY$33,\"\")","v":""}]
[]
[null,null,{"$f":"IF(Acronym.11=\"\",,IF(Type.11=\"\",Error.no.funding,IF(Def!K86>0,Error.no.WP,Acronym.11&\" - \"&Contract.11&\" - WP\"&WP.11&\" - \"&ProjectNo.11&\" - \"&Notes.11)))","v":0},null,null,null,null,null,null,null,null,null,null,null,null,null,null,null,null,null,null,null,null,null,null,{"$f":"Jan!AU17","v":0},null,{"$f":"Feb!AU17","v":0},null,{"$f":"Mar!AU17","v":0},null,{"$f":"Apr!AU17","v":0},null,{"$f":"May!AU17","v":0},null,{"$f":"Jun!AU17","v":0},null,{"$f":"Jul!AU17","v":0},null,{"$f":"Aug!AU17","v":0},null,{"$f":"Sep!AU17","v":0},null,{"$f":"Oct!AU17","v":0},null,{"$f":"Nov!AU17","v":0},null,{"$f":"Dec!AU17","v":0},null,null,{"$f":"IF(ROUND(SUM(Z27:AW28),2)=0,\"\",ROUND(SUM(Z27:AW28),2))","v":""},null,null,null,{"$f":"IFERROR(AY27/$AY$33,\"\")","v":""}]
[]
[null,null,{"$f":"IF(Acronym.12=\"\",,IF(Type.12=\"\",Error.no.funding,IF(Def!K87>0,Error.no.WP,Acronym.12&\" - \"&Contract.12&\" - WP\"&WP.12&\" - \"&ProjectNo.12&\" - \"&Notes.12)))","v":0},null,null,null,null,null,null,null,null,null,null,null,null,null,null,null,null,null,null,null,null,null,null,{"$f":"Jan!AU18","v":0},null,{"$f":"Feb!AU18","v":0},null,{"$f":"Mar!AU18","v":0},null,{"$f":"Apr!AU18","v":0},null,{"$f":"May!AU18","v":0},null,{"$f":"Jun!AU18","v":0},null,{"$f":"Jul!AU18","v":0},null,{"$f":"Aug!AU18","v":0},null,{"$f":"Sep!AU18","v":0},null,{"$f":"Oct!AU18","v":0},null,{"$f":"Nov!AU18","v":0},null,{"$f":"Dec!AU18","v":0},null,null,{"$f":"IF(ROUND(SUM(Z29:AW30),2)=0,\"\",ROUND(SUM(Z29:AW30),2))","v":""},null,null,null,{"$f":"IFERROR(AY29/$AY$33,\"\")","v":""}]
[]
[null,null,"ALL OTHER HOURS WORKED AT SU",null,null,null,null,null,null,null,null,null,null,null,null,null,null,null,null,null,null,null,null,null,null,{"$f":"Jan!AU19","v":0},null,{"$f":"Feb!AU19","v":0},null,{"$f":"Mar!AU19","v":0},null,{"$f":"Apr!AU19","v":0},null,{"$f":"May!AU19","v":0},null,{"$f":"Jun!AU19","v":0},null,{"$f":"Jul!AU19","v":0},null,{"$f":"Aug!AU19","v":0},null,{"$f":"Sep!AU19","v":0},null,{"$f":"Oct!AU19","v":0},null,{"$f":"Nov!AU19","v":0},null,{"$f":"Dec!AU19","v":0},null,null,{"$f":"IF(ROUND(SUM(Z31:AW31),2)=0,\"\",ROUND(SUM(Z31:AW31),2))","v":""},null,null,null,{"$f":"IFERROR(AY31/$AY$33,\"\")","v":""}]
[]
[null,null,null,null,null,null,null,null,null,null,null,null,null,null,null,null,null,null,null,null,null,null,null,"Total productive hours",null,{"$f":"Jan!AU21","v":""},null,{"$f":"Feb!AU21","v":""},null,{"$f":"Mar!AU21","v":""},null,{"$f":"Apr!AU21","v":""},null,{"$f":"May!AU21","v":""},null,{"$f":"Jun!AU21","v":""},null,{"$f":"Jul!AU21","v":""},null,{"$f":"Aug!AU21","v":""},null,{"$f":"Sep!AU21","v":""},null,{"$f":"Oct!AU21","v":""},null,{"$f":"Nov!AU21","v":""},null,{"$f":"Dec!AU21","v":""},null,null,{"$f":"IF(ROUND(SUM(Z33:AW33),2)=0,\"\",ROUND(SUM(Z33:AW33),2))","v":""},null,null,null,null,null,null,null,"Beneficiary:"]
[]
[null,null,null,null,null,null,null,null,null,null,null,null,null,null,null,null,null,null,null,null,null,null,null,null,null,null,null,null,null,null,null,null,null,null,null,null,null,null,null,null,null,null,null,null,null,null,null,null,null,null,null,null,null,null,null,null,null,null,{"$f":"Beneficiary","v":"STOCKHOLMS UNIVERSITET"}]
[null,null,null,null,null,null,null,null,null,null,null,"Absence"]
[null,null,null,null,null,null,null,null,null,null,null,null,null,null,null,null,null,null,null,null,null,null,null,{"$f":"Jan!N25","v":"Annual Leave"},null,{"$f":"Jan!AU25","v":""},null,{"$f":"Feb!AU25","v":""},null,{"$f":"Mar!AU25","v":""},null,{"$f":"Apr!AU25","v":""},null,{"$f":"May!AU25","v":""},null,{"$f":"Jun!AU25","v":""},null,{"$f":"Jul!AU25","v":""},null,{"$f":"Aug!AU25","v":""},null,{"$f":"Sep!AU25","v":""},null,{"$f":"Oct!AU25","v":""},null,{"$f":"Nov!AU25","v":""},null,{"$f":"Dec!AU25","v":""},null,null,{"$f":"IF(ROUND(SUM(Z37:AW37),2)=0,\"\",ROUND(SUM(Z37:AW37),2))","v":""},null,null,null,{"$f":"IFERROR(AY37/$AY$42,\"\")","v":""}]
[null,null,null,null,null,null,null,null,null,null,null,null,null,null,null,null,null,null,null,null,null,null,null,{"$f":"Jan!N26","v":"Own Illness"},null,{"$f":"Jan!AU26","v":""},null,{"$f":"Feb!AU26","v":""},null,{"$f":"Mar!AU26","v":""},null,{"$f":"Apr!AU26","v":""},null,{"$f":"May!AU26","v":""},null,{"$f":"Jun!AU26","v":""},null,{"$f":"Jul!AU26","v":""},null,{"$f":"Aug!AU26","v":""},null,{"$f":"Sep!AU26","v":""},null,{"$f":"Oct!AU26","v":""},null,{"$f":"Nov!AU26","v":""},null,{"$f":"Dec!AU26","v":""},null,null,"",null,null,null,{"$f":"IFERROR(AY38/$AY$42,\"\")","v":""}]
[null,null,null,null,null,null,null,null,null,null,null,null,null,null,null,null,null,null,null,null,null,null,null,{"$f":"Jan!N27","v":"Special Leave"},null,{"$f":"Jan!AU27","v":""},null,{"$f":"Feb!AU27","v":""},null,{"$f":"Mar!AU27","v":""},null,{"$f":"Apr!AU27","v":""},null,{"$f":"May!AU27","v":""},null,{"$f":"Jun!AU27","v":""},null,{"$f":"Jul!AU27","v":""},null,{"$f":"Aug!AU27","v":""},null,{"$f":"Sep!AU27","v":""},null,{"$f":"Oct!AU27","v":""},null,{"$f":"Nov!AU27","v":""},null,{"$f":"Dec!AU27","v":""},null,null,"",null,null,null,""]
[null,null,null,null,null,null,null,null,null,null,null,null,null,null,null,null,null,null,null,null,null,null,null,{"$f":"Jan!N28","v":"Parental Leave"},null,{"$f":"Jan!AU28","v":""},null,{"$f":"Feb!AU28","v":""},null,{"$f":"Mar!AU28","v":""},null,{"$f":"Apr!AU28","v":""},null,{"$f":"May!AU28","v":""},null,{"$f":"Jun!AU28","v":""},null,{"$f":"Jul!AU28","v":""},null,{"$f":"Aug!AU28","v":""},null,{"$f":"Sep!AU28","v":""},null,{"$f":"Oct!AU28","v":""},null,{"$f":"Nov!AU28","v":""},null,{"$f":"Dec!AU28","v":""},null,null,"",null,null,null,""]
[]
[null,null,null,null,null,null,null,null,null,null,null,null,null,null,null,null,null,null,null,null,null,null,null,{"$f":"Jan!N30","v":"Total absent hours"},null,{"$f":"Jan!AU30","v":""},null,{"$f":"Feb!AU30","v":""},null,{"$f":"Mar!AU30","v":""},null,{"$f":"Apr!AU30","v":""},null,{"$f":"May!AU30","v":""},null,{"$f":"Jun!AU30","v":""},null,{"$f":"Jul!AU30","v":""},null,{"$f":"Aug!AU30","v":""},null,{"$f":"Sep!AU30","v":""},null,{"$f":"Oct!AU30","v":""},null,{"$f":"Nov!AU30","v":""},null,{"$f":"Dec!AU30","v":""},null,null,{"$f":"IF(ROUND(SUM(Z42:AW42),2)=0,\"\",ROUND(SUM(Z42:AW42),2))","v":""}]
[]
[]
[]
[null,null,null,null,null,null,null,null,null,null,null,null,null,null,null,null,null,null,null,null,null,null,null,{"$f":"Jan!N33","v":"Total hours"},null,{"$f":"Jan!AU33","v":""},null,{"$f":"Feb!AU33","v":""},null,{"$f":"Mar!AU33","v":""},null,{"$f":"Apr!AU33","v":""},null,{"$f":"May!AU33","v":""},null,{"$f":"Jun!AU33","v":""},null,{"$f":"Jul!AU33","v":""},null,{"$f":"Aug!AU33","v":""},null,{"$f":"Sep!AU33","v":""},null,{"$f":"Oct!AU33","v":""},null,{"$f":"Nov!AU33","v":""},null,{"$f":"Dec!AU33","v":""},null,null,{"$f":"IFERROR(IF(ROUND(SUM(Z46:AW46),2)=0,\"\",ROUND(SUM(Z46:AW46),2)),\"\")","v":""}]
[]
[null,null,null,null,null,null,null,null,null,null,null,null,null,null,null,null,null,null,null,null,null,null,null,null,{"$f":"IF(Total.Error>0,\"WARNING! Time recording document contains error(s)!\",\"\")","v":""}]

{"sheet":"Def","index":16,"n_rows":91,"n_cols":11,"rows_kept":91,"cut":false,"hidden":true,"merged":[]}
[]
[]
[null,"År =",2024]
[null,null,null,null,"Datum som gäller får året matas in under kolumn D (fetade datum), övriga beräkningar är automatiska"]
[null,null,null,null,"Om ny dag måste införas ska …"]
[]
[]
[]
[null,"Röda dagar - fasta veckodagar"]
[null,"Timmar","Namn","Datum","År","Månad","Dag","FulltDatum","Veckodag"]
[null,8,"Långfredag","mar 29",{"$f":"Year","v":2024},{"$f":"+VLOOKUP(LEFT(Tabell.Red.FixedDays[[#This Row],[Datum]],3),list.months,2,0)","v":3},{"$f":"IF(LEN(Tabell.Red.FixedDays[[#This Row],[Datum]])=6,RIGHT(Tabell.Red.FixedDays[[#This Row],[Datum]],2),RIGHT(Tabell.Red.FixedDays[[#This Row],[Datum]],1))","v":"29"},{"$f":"DATEVALUE(Tabell.Red.FixedDays[[#This Row],[År]]&\"-\"&Tabell.Red.FixedDays[[#This Row],[Månad]]&\"-\"&Tabell.Red.FixedDays[[#This Row],[Dag]])","v":"2024-03-29"},{"$f":"CHOOSE(WEEKDAY(Tabell.Red.FixedDays[[#This Row],[FulltDatum]],2),\"Mån\",\"Tis\",\"Ons\",\"Tor\",\"Fre\",\"Lör\",\"Sön\")","v":"Fre"}]
[null,8,"Annandag påsk","apr 1",{"$f":"Year","v":2024},{"$f":"+VLOOKUP(LEFT(Tabell.Red.FixedDays[[#This Row],[Datum]],3),list.months,2,0)","v":4},{"$f":"IF(LEN(Tabell.Red.FixedDays[[#This Row],[Datum]])=6,RIGHT(Tabell.Red.FixedDays[[#This Row],[Datum]],2),RIGHT(Tabell.Red.FixedDays[[#This Row],[Datum]],1))","v":"1"},{"$f":"DATEVALUE(Tabell.Red.FixedDays[[#This Row],[År]]&\"-\"&Tabell.Red.FixedDays[[#This Row],[Månad]]&\"-\"&Tabell.Red.FixedDays[[#This Row],[Dag]])","v":"2024-04-01"},{"$f":"CHOOSE(WEEKDAY(Tabell.Red.FixedDays[[#This Row],[FulltDatum]],2),\"Mån\",\"Tis\",\"Ons\",\"Tor\",\"Fre\",\"Lör\",\"Sön\")","v":"Mån"}]
[null,8,"Himmelsfärdsdag","may 9",{"$f":"Year","v":2024},{"$f":"+VLOOKUP(LEFT(Tabell.Red.FixedDays[[#This Row],[Datum]],3),list.months,2,0)","v":5},{"$f":"IF(LEN(Tabell.Red.FixedDays[[#This Row],[Datum]])=6,RIGHT(Tabell.Red.FixedDays[[#This Row],[Datum]],2),RIGHT(Tabell.Red.FixedDays[[#This Row],[Datum]],1))","v":"9"},{"$f":"DATEVALUE(Tabell.Red.FixedDays[[#This Row],[År]]&\"-\"&Tabell.Red.FixedDays[[#This Row],[Månad]]&\"-\"&Tabell.Red.FixedDays[[#This Row],[Dag]])","v":"2024-05-09"},{"$f":"CHOOSE(WEEKDAY(Tabell.Red.FixedDays[[#This Row],[FulltDatum]],2),\"Mån\",\"Tis\",\"Ons\",\"Tor\",\"Fre\",\"Lör\",\"Sön\")","v":"Tor"}]
[null,8,"Midsommar","jun 21",{"$f":"Year","v":2024},{"$f":"+VLOOKUP(LEFT(Tabell.Red.FixedDays[[#This Row],[Datum]],3),list.months,2,0)","v":6},{"$f":"IF(LEN(Tabell.Red.FixedDays[[#This Row],[Datum]])=6,RIGHT(Tabell.Red.FixedDays[[#This Row],[Datum]],2),RIGHT(Tabell.Red.FixedDays[[#This Row],[Datum]],1))","v":"21"},{"$f":"DATEVALUE(Tabell.Red.FixedDays[[#This Row],[År]]&\"-\"&Tabell.Red.FixedDays[[#This Row],[Månad]]&\"-\"&Tabell.Red.FixedDays[[#This Row],[Dag]])","v":"2024-06-21"},{"$f":"CHOOSE(WEEKDAY(Tabell.Red.FixedDays[[#This Row],[FulltDatum]],2),\"Mån\",\"Tis\",\"Ons\",\"Tor\",\"Fre\",\"Lör\",\"Sön\")","v":"Fre"}]
[]
[]
[null,"Röda dagar - fasta datum"]
[null,"Timmar","Namn","Datum","År","Månad","Dag","FulltDatum","Veckodag"]
[null,8,"Nyårsdagen","jan 1",{"$f":"Year","v":2024},{"$f":"+VLOOKUP(LEFT(Tabell.Red.FixedDates[[#This Row],[Datum]],3),list.months,2,0)","v":1},{"$f":"IF(LEN(Tabell.Red.FixedDates[[#This Row],[Datum]])=6,RIGHT(Tabell.Red.FixedDates[[#This Row],[Datum]],2),RIGHT(Tabell.Red.FixedDates[[#This Row],[Datum]],1))","v":"1"},{"$f":"DATEVALUE(Tabell.Red.FixedDates[[#This Row],[År]]&\"-\"&Tabell.Red.FixedDates[[#This Row],[Månad]]&\"-\"&Tabell.Red.FixedDates[[#This Row],[Dag]])","v":"2024-01-01"},{"$f":"CHOOSE(WEEKDAY(Tabell.Red.FixedDates[[#This Row],[FulltDatum]],2),\"Mån\",\"Tis\",\"Ons\",\"Tor\",\"Fre\",\"Lör\",\"Sön\")","v":"Mån"}]
[null,8,"Trettonde dag jul","jan 6",2024,{"$f":"+VLOOKUP(LEFT(Tabell.Red.FixedDates[[#This Row],[Datum]],3),list.months,2,0)","v":1},{"$f":"IF(LEN(Tabell.Red.FixedDates[[#This Row],[Datum]])=6,RIGHT(Tabell.Red.FixedDates[[#This Row],[Datum]],2),RIGHT(Tabell.Red.FixedDates[[#This Row],[Datum]],1))","v":"6"},{"$f":"DATEVALUE(Tabell.Red.FixedDates[[#This Row],[År]]&\"-\"&Tabell.Red.FixedDates[[#This Row],[Månad]]&\"-\"&Tabell.Red.FixedDates[[#This Row],[Dag]])","v":"2024-01-06"},{"$f":"CHOOSE(WEEKDAY(Tabell.Red.FixedDates[[#This Row],[FulltDatum]],2),\"Mån\",\"Tis\",\"Ons\",\"Tor\",\"Fre\",\"Lör\",\"Sön\")","v":"Lör"}]
[null,8,"Första maj","may 1",2024,{"$f":"+VLOOKUP(LEFT(Tabell.Red.FixedDates[[#This Row],[Datum]],3),list.months,2,0)","v":5},{"$f":"IF(LEN(Tabell.Red.FixedDates[[#This Row],[Datum]])=6,RIGHT(Tabell.Red.FixedDates[[#This Row],[Datum]],2),RIGHT(Tabell.Red.FixedDates[[#This Row],[Datum]],1))","v":"1"},{"$f":"DATEVALUE(Tabell.Red.FixedDates[[#This Row],[År]]&\"-\"&Tabell.Red.FixedDates[[#This Row],[Månad]]&\"-\"&Tabell.Red.FixedDates[[#This Row],[Dag]])","v":"2024-05-01"},{"$f":"CHOOSE(WEEKDAY(Tabell.Red.FixedDates[[#This Row],[FulltDatum]],2),\"Mån\",\"Tis\",\"Ons\",\"Tor\",\"Fre\",\"Lör\",\"Sön\")","v":"Ons"}]
[null,8,"Nationaldagen","jun 6",2024,{"$f":"+VLOOKUP(LEFT(Tabell.Red.FixedDates[[#This Row],[Datum]],3),list.months,2,0)","v":6},{"$f":"IF(LEN(Tabell.Red.FixedDates[[#This Row],[Datum]])=6,RIGHT(Tabell.Red.FixedDates[[#This Row],[Datum]],2),RIGHT(Tabell.Red.FixedDates[[#This Row],[Datum]],1))","v":"6"},{"$f":"DATEVALUE(Tabell.Red.FixedDates[[#This Row],[År]]&\"-\"&Tabell.Red.FixedDates[[#This Row],[Månad]]&\"-\"&Tabell.Red.FixedDates[[#This Row],[Dag]])","v":"2024-06-06"},{"$f":"CHOOSE(WEEKDAY(Tabell.Red.FixedDates[[#This Row],[FulltDatum]],2),\"Mån\",\"Tis\",\"Ons\",\"Tor\",\"Fre\",\"Lör\",\"Sön\")","v":"Tor"}]
[null,8,"Julafton","dec 24",2024,{"$f":"+VLOOKUP(LEFT(Tabell.Red.FixedDates[[#This Row],[Datum]],3),list.months,2,0)","v":12},{"$f":"IF(LEN(Tabell.Red.FixedDates[[#This Row],[Datum]])=6,RIGHT(Tabell.Red.FixedDates[[#This Row],[Datum]],2),RIGHT(Tabell.Red.FixedDates[[#This Row],[Datum]],1))","v":"24"},{"$f":"DATEVALUE(Tabell.Red.FixedDates[[#This Row],[År]]&\"-\"&Tabell.Red.FixedDates[[#This Row],[Månad]]&\"-\"&Tabell.Red.FixedDates[[#This Row],[Dag]])","v":"2024-12-24"},{"$f":"CHOOSE(WEEKDAY(Tabell.Red.FixedDates[[#This Row],[FulltDatum]],2),\"Mån\",\"Tis\",\"Ons\",\"Tor\",\"Fre\",\"Lör\",\"Sön\")","v":"Tis"},null,"Datum som gäller får året matas in under kolumn K (fetade datum), övriga beräkningar är automatiska"]
[null,8,"Juldagen","dec 25",2024,{"$f":"+VLOOKUP(LEFT(Tabell.Red.FixedDates[[#This Row],[Datum]],3),list.months,2,0)","v":12},{"$f":"IF(LEN(Tabell.Red.FixedDates[[#This Row],[Datum]])=6,RIGHT(Tabell.Red.FixedDates[[#This Row],[Datum]],2),RIGHT(Tabell.Red.FixedDates[[#This Row],[Datum]],1))","v":"25"},{"$f":"DATEVALUE(Tabell.Red.FixedDates[[#This Row],[År]]&\"-\"&Tabell.Red.FixedDates[[#This Row],[Månad]]&\"-\"&Tabell.Red.FixedDates[[#This Row],[Dag]])","v":"2024-12-25"},{"$f":"CHOOSE(WEEKDAY(Tabell.Red.FixedDates[[#This Row],[FulltDatum]],2),\"Mån\",\"Tis\",\"Ons\",\"Tor\",\"Fre\",\"Lör\",\"Sön\")","v":"Ons"}]
[null,8,"Annan dag jul","dec 26",2024,{"$f":"+VLOOKUP(LEFT(Tabell.Red.FixedDates[[#This Row],[Datum]],3),list.months,2,0)","v":12},{"$f":"IF(LEN(Tabell.Red.FixedDates[[#This Row],[Datum]])=6,RIGHT(Tabell.Red.FixedDates[[#This Row],[Datum]],2),RIGHT(Tabell.Red.FixedDates[[#This Row],[Datum]],1))","v":"26"},{"$f":"DATEVALUE(Tabell.Red.FixedDates[[#This Row],[År]]&\"-\"&Tabell.Red.FixedDates[[#This Row],[Månad]]&\"-\"&Tabell.Red.FixedDates[[#This Row],[Dag]])","v":"2024-12-26"},{"$f":"CHOOSE(WEEKDAY(Tabell.Red.FixedDates[[#This Row],[FulltDatum]],2),\"Mån\",\"Tis\",\"Ons\",\"Tor\",\"Fre\",\"Lör\",\"Sön\")","v":"Tor"}]
[null,8,"Nyårsafton","dec 31",2024,{"$f":"+VLOOKUP(LEFT(Tabell.Red.FixedDates[[#This Row],[Datum]],3),list.months,2,0)","v":12},{"$f":"IF(LEN(Tabell.Red.FixedDates[[#This Row],[Datum]])=6,RIGHT(Tabell.Red.FixedDates[[#This Row],[Datum]],2),RIGHT(Tabell.Red.FixedDates[[#This Row],[Datum]],1))","v":"31"},{"$f":"DATEVALUE(Tabell.Red.FixedDates[[#This Row],[År]]&\"-\"&Tabell.Red.FixedDates[[#This Row],[Månad]]&\"-\"&Tabell.Red.FixedDates[[#This Row],[Dag]])","v":"2024-12-31"},{"$f":"CHOOSE(WEEKDAY(Tabell.Red.FixedDates[[#This Row],[FulltDatum]],2),\"Mån\",\"Tis\",\"Ons\",\"Tor\",\"Fre\",\"Lör\",\"Sön\")","v":"Tis"}]
[]
[]
[null,"Förkortad arbetsdag - TA-personal"]
[null,"Timmar","Namn","Datum","År","Månad","Dag","FulltDatum","Veckodag",null,"Datum"]
[null,4,"Trettondagsafton",{"$f":"IF(TA=TRUE,K31,\"\")","v":""},{"$f":"Year","v":2024},{"$f":"+VLOOKUP(LEFT(Tabell.Shortdays[[#This Row],[Datum]],3),list.months,2,0)","v":{"$error":"#N/A"}},{"$f":"IF(LEN(Tabell.Shortdays[[#This Row],[Datum]])=6,RIGHT(Tabell.Shortdays[[#This Row],[Datum]],2),RIGHT(Tabell.Shortdays[[#This Row],[Datum]],1))","v":""},{"$f":"DATEVALUE(Tabell.Shortdays[[#This Row],[År]]&\"-\"&Tabell.Shortdays[[#This Row],[Månad]]&\"-\"&Tabell.Shortdays[[#This Row],[Dag]])","v":{"$error":"#N/A"}},{"$f":"CHOOSE(WEEKDAY(Tabell.Shortdays[[#This Row],[FulltDatum]],2),\"Mån\",\"Tis\",\"Ons\",\"Tor\",\"Fre\",\"Lör\",\"Sön\")","v":{"$error":"#N/A"}},null,"jan 5"]
[null,8,"Skärtorsdag","",2024,{"$f":"+VLOOKUP(LEFT(Tabell.Shortdays[[#This Row],[Datum]],3),list.months,2,0)","v":{"$error":"#N/A"}},{"$f":"IF(LEN(Tabell.Shortdays[[#This Row],[Datum]])=6,RIGHT(Tabell.Shortdays[[#This Row],[Datum]],2),RIGHT(Tabell.Shortdays[[#This Row],[Datum]],1))","v":""},{"$f":"DATEVALUE(Tabell.Shortdays[[#This Row],[År]]&\"-\"&Tabell.Shortdays[[#This Row],[Månad]]&\"-\"&Tabell.Shortdays[[#This Row],[Dag]])","v":{"$error":"#N/A"}},{"$f":"CHOOSE(WEEKDAY(Tabell.Shortdays[[#This Row],[FulltDatum]],2),\"Mån\",\"Tis\",\"Ons\",\"Tor\",\"Fre\",\"Lör\",\"Sön\")","v":{"$error":"#N/A"}},null,"mar 28"]
[null,4,"Valborgsmässoafton","",2024,{"$f":"+VLOOKUP(LEFT(Tabell.Shortdays[[#This Row],[Datum]],3),list.months,2,0)","v":{"$error":"#N/A"}},{"$f":"IF(LEN(Tabell.Shortdays[[#This Row],[Datum]])=6,RIGHT(Tabell.Shortdays[[#This Row],[Datum]],2),RIGHT(Tabell.Shortdays[[#This Row],[Datum]],1))","v":""},{"$f":"DATEVALUE(Tabell.Shortdays[[#This Row],[År]]&\"-\"&Tabell.Shortdays[[#This Row],[Månad]]&\"-\"&Tabell.Shortdays[[#This Row],[Dag]])","v":{"$error":"#N/A"}},{"$f":"CHOOSE(WEEKDAY(Tabell.Shortdays[[#This Row],[FulltDatum]],2),\"Mån\",\"Tis\",\"Ons\",\"Tor\",\"Fre\",\"Lör\",\"Sön\")","v":{"$error":"#N/A"}},null,"apr 30"]
[null,8,"Dag före midsommar","",2024,{"$f":"+VLOOKUP(LEFT(Tabell.Shortdays[[#This Row],[Datum]],3),list.months,2,0)","v":{"$error":"#N/A"}},{"$f":"IF(LEN(Tabell.Shortdays[[#This Row],[Datum]])=6,RIGHT(Tabell.Shortdays[[#This Row],[Datum]],2),RIGHT(Tabell.Shortdays[[#This Row],[Datum]],1))","v":""},{"$f":"DATEVALUE(Tabell.Shortdays[[#This Row],[År]]&\"-\"&Tabell.Shortdays[[#This Row],[Månad]]&\"-\"&Tabell.Shortdays[[#This Row],[Dag]])","v":{"$error":"#N/A"}},{"$f":"CHOOSE(WEEKDAY(Tabell.Shortdays[[#This Row],[FulltDatum]],2),\"Mån\",\"Tis\",\"Ons\",\"Tor\",\"Fre\",\"Lör\",\"Sön\")","v":{"$error":"#N/A"}},null,"jun 20"]
[null,4,"Alla helgons afton","",2024,{"$f":"+VLOOKUP(LEFT(Tabell.Shortdays[[#This Row],[Datum]],3),list.months,2,0)","v":{"$error":"#N/A"}},{"$f":"IF(LEN(Tabell.Shortdays[[#This Row],[Datum]])=6,RIGHT(Tabell.Shortdays[[#This Row],[Datum]],2),RIGHT(Tabell.Shortdays[[#This Row],[Datum]],1))","v":""},{"$f":"DATEVALUE(Tabell.Shortdays[[#This Row],[År]]&\"-\"&Tabell.Shortdays[[#This Row],[Månad]]&\"-\"&Tabell.Shortdays[[#This Row],[Dag]])","v":{"$error":"#N/A"}},{"$f":"CHOOSE(WEEKDAY(Tabell.Shortdays[[#This Row],[FulltDatum]],2),\"Mån\",\"Tis\",\"Ons\",\"Tor\",\"Fre\",\"Lör\",\"Sön\")","v":{"$error":"#N/A"}},null,"nov 1"]
[null,4,"Dag före julafton","",2024,{"$f":"+VLOOKUP(LEFT(Tabell.Shortdays[[#This Row],[Datum]],3),list.months,2,0)","v":{"$error":"#N/A"}},{"$f":"IF(LEN(Tabell.Shortdays[[#This Row],[Datum]])=6,RIGHT(Tabell.Shortdays[[#This Row],[Datum]],2),RIGHT(Tabell.Shortdays[[#This Row],[Datum]],1))","v":""},{"$f":"DATEVALUE(Tabell.Shortdays[[#This Row],[År]]&\"-\"&Tabell.Shortdays[[#This Row],[Månad]]&\"-\"&Tabell.Shortdays[[#This Row],[Dag]])","v":{"$error":"#N/A"}},{"$f":"CHOOSE(WEEKDAY(Tabell.Shortdays[[#This Row],[FulltDatum]],2),\"Mån\",\"Tis\",\"Ons\",\"Tor\",\"Fre\",\"Lör\",\"Sön\")","v":{"$error":"#N/A"}},null,"dec 23"]
[]
[]
[null,"Klämdagar - TA-personal"]
[null,"Timmar","Namn","Datum","År","Månad","Dag","FulltDatum","Veckodag",null,"Datum"]
[null,8,"Efter Kristihimmelsfärdsdag",{"$f":"IF(TA=TRUE,K41,\"\")","v":""},{"$f":"Year","v":2024},{"$f":"+VLOOKUP(LEFT(Tabell.Klamdagar[[#This Row],[Datum]],3),list.months,2,0)","v":{"$error":"#N/A"}},{"$f":"IF(LEN(Tabell.Klamdagar[[#This Row],[Datum]])=6,RIGHT(Tabell.Klamdagar[[#This Row],[Datum]],2),RIGHT(Tabell.Klamdagar[[#This Row],[Datum]],1))","v":""},{"$f":"DATEVALUE(Tabell.Klamdagar[[#This Row],[År]]&\"-\"&Tabell.Klamdagar[[#This Row],[Månad]]&\"-\"&Tabell.Klamdagar[[#This Row],[Dag]])","v":{"$error":"#N/A"}},{"$f":"CHOOSE(WEEKDAY(Tabell.Klamdagar[[#This Row],[FulltDatum]],2),\"Mån\",\"Tis\",\"Ons\",\"Tor\",\"Fre\",\"Lör\",\"Sön\")","v":{"$error":"#N/A"}},null,"may 10"]
[null,8,"Före valbordmässoafton","",2024,{"$f":"+VLOOKUP(LEFT(Tabell.Klamdagar[[#This Row],[Datum]],3),list.months,2,0)","v":{"$error":"#N/A"}},{"$f":"IF(LEN(Tabell.Klamdagar[[#This Row],[Datum]])=6,RIGHT(Tabell.Klamdagar[[#This Row],[Datum]],2),RIGHT(Tabell.Klamdagar[[#This Row],[Datum]],1))","v":""},{"$f":"DATEVALUE(Tabell.Klamdagar[[#This Row],[År]]&\"-\"&Tabell.Klamdagar[[#This Row],[Månad]]&\"-\"&Tabell.Klamdagar[[#This Row],[Dag]])","v":{"$error":"#N/A"}},{"$f":"CHOOSE(WEEKDAY(Tabell.Klamdagar[[#This Row],[FulltDatum]],2),\"Mån\",\"Tis\",\"Ons\",\"Tor\",\"Fre\",\"Lör\",\"Sön\")","v":{"$error":"#N/A"}},null,"apr 29"]
[null,8,"Efter nationaldagen","",2024,{"$f":"+VLOOKUP(LEFT(Tabell.Klamdagar[[#This Row],[Datum]],3),list.months,2,0)","v":{"$error":"#N/A"}},{"$f":"IF(LEN(Tabell.Klamdagar[[#This Row],[Datum]])=6,RIGHT(Tabell.Klamdagar[[#This Row],[Datum]],2),RIGHT(Tabell.Klamdagar[[#This Row],[Datum]],1))","v":""},{"$f":"DATEVALUE(Tabell.Klamdagar[[#This Row],[År]]&\"-\"&Tabell.Klamdagar[[#This Row],[Månad]]&\"-\"&Tabell.Klamdagar[[#This Row],[Dag]])","v":{"$error":"#N/A"}},{"$f":"CHOOSE(WEEKDAY(Tabell.Klamdagar[[#This Row],[FulltDatum]],2),\"Mån\",\"Tis\",\"Ons\",\"Tor\",\"Fre\",\"Lör\",\"Sön\")","v":{"$error":"#N/A"}},null,"jun 7"]
[null,8,"Efter Annan dag jul","",2024,{"$f":"+VLOOKUP(LEFT(Tabell.Klamdagar[[#This Row],[Datum]],3),list.months,2,0)","v":{"$error":"#N/A"}},{"$f":"IF(LEN(Tabell.Klamdagar[[#This Row],[Datum]])=6,RIGHT(Tabell.Klamdagar[[#This Row],[Datum]],2),RIGHT(Tabell.Klamdagar[[#This Row],[Datum]],1))","v":""},{"$f":"DATEVALUE(Tabell.Klamdagar[[#This Row],[År]]&\"-\"&Tabell.Klamdagar[[#This Row],[Månad]]&\"-\"&Tabell.Klamdagar[[#This Row],[Dag]])","v":{"$error":"#N/A"}},{"$f":"CHOOSE(WEEKDAY(Tabell.Klamdagar[[#This Row],[FulltDatum]],2),\"Mån\",\"Tis\",\"Ons\",\"Tor\",\"Fre\",\"Lör\",\"Sön\")","v":{"$error":"#N/A"}},null,"dec 27"]
[null,8,"Före Nyårsafton","",2024,{"$f":"+VLOOKUP(LEFT(Tabell.Klamdagar[[#This Row],[Datum]],3),list.months,2,0)","v":{"$error":"#N/A"}},{"$f":"IF(LEN(Tabell.Klamdagar[[#This Row],[Datum]])=6,RIGHT(Tabell.Klamdagar[[#This Row],[Datum]],2),RIGHT(Tabell.Klamdagar[[#This Row],[Datum]],1))","v":""},{"$f":"DATEVALUE(Tabell.Klamdagar[[#This Row],[År]]&\"-\"&Tabell.Klamdagar[[#This Row],[Månad]]&\"-\"&Tabell.Klamdagar[[#This Row],[Dag]])","v":{"$error":"#N/A"}},{"$f":"CHOOSE(WEEKDAY(Tabell.Klamdagar[[#This Row],[FulltDatum]],2),\"Mån\",\"Tis\",\"Ons\",\"Tor\",\"Fre\",\"Lör\",\"Sön\")","v":{"$error":"#N/A"}},null,"dec 30"]
[null,8,null,"",2024,{"$f":"+VLOOKUP(LEFT(Tabell.Klamdagar[[#This Row],[Datum]],3),list.months,2,0)","v":{"$error":"#N/A"}},{"$f":"IF(LEN(Tabell.Klamdagar[[#This Row],[Datum]])=6,RIGHT(Tabell.Klamdagar[[#This Row],[Datum]],2),RIGHT(Tabell.Klamdagar[[#This Row],[Datum]],1))","v":""},{"$f":"DATEVALUE(Tabell.Klamdagar[[#This Row],[År]]&\"-\"&Tabell.Klamdagar[[#This Row],[Månad]]&\"-\"&Tabell.Klamdagar[[#This Row],[Dag]])","v":{"$error":"#N/A"}},{"$f":"CHOOSE(WEEKDAY(Tabell.Klamdagar[[#This Row],[FulltDatum]],2),\"Mån\",\"Tis\",\"Ons\",\"Tor\",\"Fre\",\"Lör\",\"Sön\")","v":{"$error":"#N/A"}}]
[null,8,null,"",2024,{"$f":"+VLOOKUP(LEFT(Tabell.Klamdagar[[#This Row],[Datum]],3),list.months,2,0)","v":{"$error":"#N/A"}},{"$f":"IF(LEN(Tabell.Klamdagar[[#This Row],[Datum]])=6,RIGHT(Tabell.Klamdagar[[#This Row],[Datum]],2),RIGHT(Tabell.Klamdagar[[#This Row],[Datum]],1))","v":""},{"$f":"DATEVALUE(Tabell.Klamdagar[[#This Row],[År]]&\"-\"&Tabell.Klamdagar[[#This Row],[Månad]]&\"-\"&Tabell.Klamdagar[[#This Row],[Dag]])","v":{"$error":"#N/A"}},{"$f":"CHOOSE(WEEKDAY(Tabell.Klamdagar[[#This Row],[FulltDatum]],2),\"Mån\",\"Tis\",\"Ons\",\"Tor\",\"Fre\",\"Lör\",\"Sön\")","v":{"$error":"#N/A"}}]
[null,8,null,"",2024,{"$f":"+VLOOKUP(LEFT(Tabell.Klamdagar[[#This Row],[Datum]],3),list.months,2,0)","v":{"$error":"#N/A"}},{"$f":"IF(LEN(Tabell.Klamdagar[[#This Row],[Datum]])=6,RIGHT(Tabell.Klamdagar[[#This Row],[Datum]],2),RIGHT(Tabell.Klamdagar[[#This Row],[Datum]],1))","v":""},{"$f":"DATEVALUE(Tabell.Klamdagar[[#This Row],[År]]&\"-\"&Tabell.Klamdagar[[#This Row],[Månad]]&\"-\"&Tabell.Klamdagar[[#This Row],[Dag]])","v":{"$error":"#N/A"}},{"$f":"CHOOSE(WEEKDAY(Tabell.Klamdagar[[#This Row],[FulltDatum]],2),\"Mån\",\"Tis\",\"Ons\",\"Tor\",\"Fre\",\"Lör\",\"Sön\")","v":{"$error":"#N/A"}}]
[]
[]
[]
[null,"Månad","Nummer",null,"Funding",null,"Information","Errors"]
[null,"jan",1,null,"H2020","= EU","Member name",{"$f":"IF('Start Page'!AC8=\"\",0,1)","v":0}]
[null,"feb",2,null,"Horizon Europe","= EU","Member title",{"$f":"IF('Start Page'!AC12=\"\",0,1)","v":0}]
[null,"mar",3,null,"Other","= Other","Supervisor name",{"$f":"IF('Start Page'!AC14=\"\",0,1)","v":0}]
[null,"apr",4,null,null,null,"Summa",{"$f":"SUBTOTAL(109,Def!$H$53:$H$55)","v":0}]
[null,"may",5]
[null,"jun",6,null,null,null,"Missing Funding information"]
[null,"jul",7,null,null,null,"Project No.","Errors"]
[null,"aug",8,null,null,null,1,{"$f":"IF(AND(Acronym.01<>\"\",Type.01=\"\"),1,0)","v":0}]
[null,"sep",9,null,null,null,2,{"$f":"IF(AND(Acronym.02<>\"\",Type.02=\"\"),1,0)","v":0}]
[null,"oct",10,null,null,null,3,{"$f":"IF(AND(Acronym.03<>\"\",Type.03=\"\"),1,0)","v":0}]
[null,"nov",11,null,null,null,4,{"$f":"IF(AND(Acronym.04<>\"\",Type.04=\"\"),1,0)","v":0}]
[null,"dec",12,null,null,null,5,{"$f":"IF(AND(Acronym.05<>\"\",Type.05=\"\"),1,0)","v":0}]
[null,null,null,null,null,null,6,{"$f":"IF(AND(Acronym.06<>\"\",Type.06=\"\"),1,0)","v":0}]
[null,null,null,null,null,null,7,{"$f":"IF(AND(Acronym.07<>\"\",Type.07=\"\"),1,0)","v":0}]
[null,null,null,null,null,null,8,{"$f":"IF(AND(Acronym.08<>\"\",Type.08=\"\"),1,0)","v":0}]
[null,"Standar Error Messages",null,null,null,null,9,{"$f":"IF(AND(Acronym.09<>\"\",Type.09=\"\"),1,0)","v":0}]
[null,"> > >Funding Information Is Missing!< < <",null,null,null,null,10,{"$f":"IF(AND(Acronym.10<>\"\",Type.10=\"\"),1,0)","v":0}]
[null,"> > >WP. No. or Contract No. Is Missing! < < <",null,null,null,null,11,{"$f":"IF(AND(Acronym.11<>\"\",Type.11=\"\"),1,0)","v":0}]
[null,"WARNING! Name of member missing, fill in on start page",null,null,null,null,12,{"$f":"IF(AND(Acronym.12<>\"\",Type.12=\"\"),1,0)","v":0}]
[null,"WARNING! Members title is missing, fill in on start page",null,null,null,null,"Summa",{"$f":"SUBTOTAL(109,Def!$H$60:$H$71)","v":0}]
[null,"WARNING! Name of supervisor missing, fill in on start page or below"]
[null,null,null,null,null,null,"Missing EU information"]
[null,null,null,null,null,null,"Project No.","Is EU project?","WP no","Contract no.","Sum of Errors"]
[null,null,null,null,null,null,1,{"$f":"OR(Type.01=Funding.type.01,Type.01=Funding.type.02)","v":false},{"$f":"IF(AND(H76=TRUE,ISBLANK(WP.01)),1,0)","v":0},{"$f":"IF(AND(H76=TRUE,ISBLANK(Contract.01)),1,0)","v":0},{"$f":"SUM(Def!$I76:$J76)","v":0}]
[null,null,null,null,null,null,2,{"$f":"OR(Type.02=Funding.type.01,Type.02=Funding.type.02)","v":false},{"$f":"IF(AND(H77=TRUE,ISBLANK(WP.02)),1,0)","v":0},{"$f":"IF(AND(H77=TRUE,ISBLANK(Contract.02)),1,0)","v":0},{"$f":"SUM(Def!$I77:$J77)","v":0}]
[null,null,null,null,null,null,3,{"$f":"OR(Type.03=Funding.type.01,Type.03=Funding.type.02)","v":false},{"$f":"IF(AND(H78=TRUE,ISBLANK(WP.03)),1,0)","v":0},{"$f":"IF(AND(H78=TRUE,ISBLANK(Contract.03)),1,0)","v":0},{"$f":"SUM(Def!$I78:$J78)","v":0}]
[null,null,null,null,null,null,4,{"$f":"OR(Type.04=Funding.type.01,Type.04=Funding.type.02)","v":false},{"$f":"IF(AND(H79=TRUE,ISBLANK(WP.04)),1,0)","v":0},{"$f":"IF(AND(H79=TRUE,ISBLANK(Contract.04)),1,0)","v":0},{"$f":"SUM(Def!$I79:$J79)","v":0}]
[null,null,null,null,null,null,5,{"$f":"OR(Type.05=Funding.type.01,Type.05=Funding.type.02)","v":false},{"$f":"IF(AND(H80=TRUE,ISBLANK(WP.05)),1,0)","v":0},{"$f":"IF(AND(H80=TRUE,ISBLANK(Contract.05)),1,0)","v":0},{"$f":"SUM(Def!$I80:$J80)","v":0}]
[null,null,null,null,null,null,6,{"$f":"OR(Type.06=Funding.type.01,Type.06=Funding.type.02)","v":false},{"$f":"IF(AND(H81=TRUE,ISBLANK(WP.06)),1,0)","v":0},{"$f":"IF(AND(H81=TRUE,ISBLANK(Contract.06)),1,0)","v":0},{"$f":"SUM(Def!$I81:$J81)","v":0}]
[null,null,null,null,null,null,7,{"$f":"OR(Type.07=Funding.type.01,Type.07=Funding.type.02)","v":false},{"$f":"IF(AND(H82=TRUE,ISBLANK(WP.07)),1,0)","v":0},{"$f":"IF(AND(H82=TRUE,ISBLANK(Contract.07)),1,0)","v":0},{"$f":"SUM(Def!$I82:$J82)","v":0}]
[null,null,null,null,null,null,8,{"$f":"OR(Type.08=Funding.type.01,Type.08=Funding.type.02)","v":false},{"$f":"IF(AND(H83=TRUE,ISBLANK(WP.08)),1,0)","v":0},{"$f":"IF(AND(H83=TRUE,ISBLANK(Contract.08)),1,0)","v":0},{"$f":"SUM(Def!$I83:$J83)","v":0}]
[null,null,null,null,null,null,9,{"$f":"OR(Type.09=Funding.type.01,Type.09=Funding.type.02)","v":false},{"$f":"IF(AND(H84=TRUE,ISBLANK(WP.09)),1,0)","v":0},{"$f":"IF(AND(H84=TRUE,ISBLANK(Contract.09)),1,0)","v":0},{"$f":"SUM(Def!$I84:$J84)","v":0}]
[null,null,null,null,null,null,10,{"$f":"OR(Type.10=Funding.type.01,Type.10=Funding.type.02)","v":false},{"$f":"IF(AND(H85=TRUE,ISBLANK(WP.10)),1,0)","v":0},{"$f":"IF(AND(H85=TRUE,ISBLANK(Contract.10)),1,0)","v":0},{"$f":"SUM(Def!$I85:$J85)","v":0}]
[null,null,null,null,null,null,11,{"$f":"OR(Type.11=Funding.type.01,Type.11=Funding.type.02)","v":false},{"$f":"IF(AND(H86=TRUE,ISBLANK(WP.11)),1,0)","v":0},{"$f":"IF(AND(H86=TRUE,ISBLANK(Contract.11)),1,0)","v":0},{"$f":"SUM(Def!$I86:$J86)","v":0}]
[null,null,null,null,null,null,12,{"$f":"OR(Type.12=Funding.type.01,Type.12=Funding.type.02)","v":false},{"$f":"IF(AND(H87=TRUE,ISBLANK(WP.12)),1,0)","v":0},{"$f":"IF(AND(H87=TRUE,ISBLANK(Contract.12)),1,0)","v":0},{"$f":"SUM(Def!$I87:$J87)","v":0}]
[null,null,null,null,null,null,"Summa",null,{"$f":"SUBTOTAL(109,Def!$I$76:$I$87)","v":0},{"$f":"SUBTOTAL(109,Def!$J$76:$J$87)","v":0},{"$f":"SUM(Def!$I$88:$J$88)","v":0}]
[]
[]
[null,null,null,null,null,null,"Total Error",{"$f":"Def!$H$72+Def!$K$88+Def!$H$56","v":0}]

{"sheet":"TA","index":17,"n_rows":1,"n_cols":1,"rows_kept":1,"cut":false,"hidden":true,"merged":[]}
[false]